Workbook

Sheet Kezdő oldal
A1: Hitelközvetítő neve (cégneve) | P1: Printer | Q1: \\HQPS1\XCOLOR a(z) Ne04: kimeneten
A2: Hitelközvetítő címe (székhelye)
A3: Tanácsadó neve
A6: 1. Előzetes tájékoztatás és adatkezelési nyilatkozat
A7: Ez a tájékoztató hivatott arra, hogy a hitel iránt érdeklődők figyelmét felhívja arra, hogy a jövedelem és a havi teher aránya megváltozhat a kamatlábak vagy a jövedelem változása esetén.
A11: 2. Ügyfelek adatainak rögzítése
A12: Az indikatív ajánlat és a Kockázatfeltáró nyilatkozat aláírási adataihoz legalább a név, anyja neve, születési dátum és az állandó lakcím kitöltése szükséges.
A14: A kockázati ármeghatározáshoz valamennyi adat kitöltése szükséges!
A15: Amennyiben nincs pl. kiegészítő jövedelem, akkor nullát kell beírni, nem hagyható üresen az adatmező.
A18: 3. A hitel akapvető adatainak, jellemzőinek megadása
A19: Újdonság: A K besorolás megadható a korábbi gyakorlat szerint manuálisan, de lehetőség van arra is, hogy a megadott részletes adatok alapján a kalkulátor állapítsa meg.
A22: 4. Az indikatív ajánlat nyomtatása, aláíratása
A23: Az indikatív ajánlatot a fair bank szabályok értelmében külön dokumentumként kell kezelni, ezért külön kerül nyomtatásra és az ügyfeleknek külön kell aláírniuk is.
A26: 5. A kockázatfeltáró nyilatkozat nyomtatása, aláíratása
A27: A Kockázatfeltáró nyilatkozatot a fair bank szabályok értelmében külön dokumentumként kell kezelni, ezért külön kerül nyomtatásra és az ügyfeleknek külön kell aláírniuk is.

Sheet Tájékoztató
A2: Termékkör: | D2: Lakáshitel
A7: K&H Bank Zrt.
A9: 1095 Budapest, Lechner Ödön fasor 9.
A10: Telefon: (06 1) 328 9000, (06 30) 761 9000
A11: Fax: (06 1) 328 9696
A12: www.kh.hu • bank@kh.hu
A14: Nyilatkozat hitelszerződés megkötését megelőző tájékoztatásról
A15: Kérjük, a jelölőnégyzetek kipipálásával szíveskedjen jelezni, amennyiben az adott tájékoztatás megtörtént!
A16: Alulírott kijelentem, hogy hitelfelvétel iránti érdeklődésem és annak felmérése során, miszerint az igénybe venni tervezett hitel megfelel-e az igényeimnek és a pénzügyi teljesítőképességemnek, az általam kiválasztott termékhez kapcsolódóan az következőkre kiterjedő tájékoztatást kaptam:  a vonatkozó MNB rendelet értelmében mekkora lehet a figyelembe vehető jövedelmemhez képest a törlesztőrészlet összege és ezt hogyan kell kiszámítani  ingatlanra alapított jelzálog fedezete mellett nyújtott kölcsön esetén az ingatlan forgalmi értéke arányában mekkora lehet a hitel összege  igényeim, lehetőségeim és szükségleteim felmérését követően az előnyben részesített termék legfontosabb jellemzőiről (az igényelhető hitel lehetséges összegéről, a kamatozás módjáról és a kamat módosításának lehetőségéről, a reprezentatívnak tekinthető teljes hiteldíj mutatóról, a törlesztőrészletek összegéről és a törlesztés gyakoriságáról, a hitel választható futamidejéről)  a kamat változásának a törlesztőrészletre gyakorolt hatásáról  a hitelszerződés megkötésekor felelős döntést kell hoznom, hiszen a hitelfelvétellel járó törlesztési kötelezettség hosszabb távon befolyásolja a pénzügyi helyzetemet, teljesítőképességem, a megjelenő teher milyen további kockázatokkal járhat (pl. kamat emelkedése folytán), a fizetések elmulasztása milyen következményekkel járhat (pl. késedelmi kamat, szerződés felmondása, azonnali teljes összegű visszafizetési kötelezettség)  az általam előnyben részesített termék törlesztőrészlet, illetőleg a jövedelem változásának lehetséges hatásairól az alábbi táblázat alapján:
A18: A hitel típusa: | D18: Jelzáloghitel
A19: A hitel összege: | D19: 5.000.000 forint
A20: A hitel futamideje: | D20: 240 hónap
A21: A hitel kamata: | D21: ='PD kamat'!I2+W39 -> 0.05 | F21: =CONCATENATE("(3 havi BUBOR + ",100*'PD kamat'!P6,"%)") -> (3 havi BUBOR + 2,9%) | V21: KSH munkabér | W21: 151118
A22: Rendszeres jövedelem változása | D22: Kamat emelkedése
D23: 0 | G23: 0.01 | J23: 0.02 | M23: 0.03 | V23: 1 | W23: január
A24: –30% változás | B24: =$W$21*0.7 -> 105782.6 | C24: forint | D24: JTM: | E24: =D26/$B24*100 -> 31.19396475 | F24: % | G24: JTM: | H24: =G26/$B24*100 -> 33.86336971 | I24: % | J24: JTM: | K24: =J26/$B24*100 -> 36.6458631 | L24: % | M24: JTM: | N24: =M26/$B24*100 -> 39.53580594 | O24: % | V24: 2 | W24: február
D25: Törlesztőrészlet: | G25: Törlesztőrészlet: | J25: Törlesztőrészlet: | M25: Törlesztőrészlet: | V25: 3 | W25: március
D26: =PMT(($D$21+D$23)/12,240,-5000000) -> 32997.78696 | F26: forint | G26: =PMT(($D$21+G$23)/12,240,-5000000) -> 35821.55292 | I26: forint | J26: =PMT(($D$21+J$23)/12,240,-5000000) -> 38764.94678 | L26: forint | M26: =PMT(($D$21+M$23)/12,240,-5000000) -> 41822.00345 | O26: forint | V26: 4 | W26: április
A27: –20% változás | B27: =$W$21*0.8 -> 120894.4 | C27: forint | D27: JTM: | E27: =D29/$B27*100 -> 27.29471916 | F27: % | G27: JTM: | H27: =G29/$B27*100 -> 29.63044849 | I27: % | J27: JTM: | K27: =J29/$B27*100 -> 32.06513021 | L27: % | M27: JTM: | N27: =M29/$B27*100 -> 34.59383019 | O27: % | V27: 5 | W27: május
D28: Törlesztőrészlet: | G28: Törlesztőrészlet: | J28: Törlesztőrészlet: | M28: Törlesztőrészlet: | V28: 6 | W28: június
D29: =PMT(($D$21+D$23)/12,240,-5000000) -> 32997.78696 | F29: forint | G29: =PMT(($D$21+G$23)/12,240,-5000000) -> 35821.55292 | I29: forint | J29: =PMT(($D$21+J$23)/12,240,-5000000) -> 38764.94678 | L29: forint | M29: =PMT(($D$21+M$23)/12,240,-5000000) -> 41822.00345 | O29: forint | V29: 7 | W29: július
A30: –10% változás | B30: =$W$21*0.9 -> 136006.2 | C30: forint | D30: JTM: | E30: =D32/$B30*100 -> 24.26197259 | F30: % | G30: JTM: | H30: =G32/$B30*100 -> 26.33817644 | I30: % | J30: JTM: | K30: =J32/$B30*100 -> 28.50233797 | L30: % | M30: JTM: | N30: =M32/$B30*100 -> 30.75007128 | O30: % | V30: 8 | W30: augusztus
D31: Törlesztőrészlet: | G31: Törlesztőrészlet: | J31: Törlesztőrészlet: | M31: Törlesztőrészlet: | V31: 9 | W31: szeptember
D32: =PMT(($D$21+D$23)/12,240,-5000000) -> 32997.78696 | F32: forint | G32: =PMT(($D$21+G$23)/12,240,-5000000) -> 35821.55292 | I32: forint | J32: =PMT(($D$21+J$23)/12,240,-5000000) -> 38764.94678 | L32: forint | M32: =PMT(($D$21+M$23)/12,240,-5000000) -> 41822.00345 | O32: forint | V32: 10 | W32: október
A33: 0% változás | B33: =$W$21 -> 151118 | C33: forint | D33: JTM: | E33: =D35/$B33*100 -> 21.83577533 | F33: % | G33: JTM: | H33: =G35/$B33*100 -> 23.7043588 | I33: % | J33: JTM: | K33: =J35/$B33*100 -> 25.65210417 | L33: % | M33: JTM: | N33: =M35/$B33*100 -> 27.67506415 | O33: % | V33: 11 | W33: november
D34: Törlesztőrészlet: | G34: Törlesztőrészlet: | J34: Törlesztőrészlet: | M34: Törlesztőrészlet: | V34: 12 | W34: december
D35: =PMT(($D$21+D$23)/12,240,-5000000) -> 32997.78696 | F35: forint | G35: =PMT(($D$21+G$23)/12,240,-5000000) -> 35821.55292 | I35: forint | J35: =PMT(($D$21+J$23)/12,240,-5000000) -> 38764.94678 | L35: forint | M35: =PMT(($D$21+M$23)/12,240,-5000000) -> 41822.00345 | O35: forint | W35: =VLOOKUP(MONTH(TODAY()),V23:W34,2,FALSE) -> február
A36: +10% változás | B36: =$W$21*1.1 -> 166229.8 | C36: forint | D36: JTM: | E36: =D38/$B36*100 -> 19.85070484 | F36: % | G36: JTM: | H36: =G38/$B36*100 -> 21.54941709 | I36: % | J36: JTM: | K36: =J38/$B36*100 -> 23.3200947 | L36: % | M36: JTM: | N36: =M38/$B36*100 -> 25.15914923 | O36: %
D37: Törlesztőrészlet: | G37: Törlesztőrészlet: | J37: Törlesztőrészlet: | M37: Törlesztőrészlet: | V37: Lakáshitel | W37: ='PD kamat'!M6 -> 0.029
D38: =PMT(($D$21+D$23)/12,240,-5000000) -> 32997.78696 | F38: forint | G38: =PMT(($D$21+G$23)/12,240,-5000000) -> 35821.55292 | I38: forint | J38: =PMT(($D$21+J$23)/12,240,-5000000) -> 38764.94678 | L38: forint | M38: =PMT(($D$21+M$23)/12,240,-5000000) -> 41822.00345 | O38: forint | V38: Személyi hitel | W38: ='PD kamat'!O6 -> 0.0575
A39: +20% változás | B39: =$W$21*1.2 -> 181341.6 | C39: forint | D39: JTM: | E39: =D41/$B39*100 -> 18.19647944 | F39: % | G39: JTM: | H39: =G41/$B39*100 -> 19.75363233 | I39: % | J39: JTM: | K39: =J41/$B39*100 -> 21.37675348 | L39: % | M39: JTM: | N39: =M41/$B39*100 -> 23.06255346 | O39: % | W39: =VLOOKUP(D2,V37:W38,2,FALSE) -> 0.029
D40: Törlesztőrészlet: | G40: Törlesztőrészlet: | J40: Törlesztőrészlet: | M40: Törlesztőrészlet:
D41: =PMT(($D$21+D$23)/12,240,-5000000) -> 32997.78696 | F41: forint | G41: =PMT(($D$21+G$23)/12,240,-5000000) -> 35821.55292 | I41: forint | J41: =PMT(($D$21+J$23)/12,240,-5000000) -> 38764.94678 | L41: forint | M41: =PMT(($D$21+M$23)/12,240,-5000000) -> 41822.00345 | O41: forint
A42: +30% változás | B42: =$W$21*1.3 -> 196453.4 | C42: forint | D42: JTM: | E42: =D44/$B42*100 -> 16.79675025 | F42: % | G42: JTM: | H42: =G44/$B42*100 -> 18.23412215 | I42: % | J42: JTM: | K42: =J44/$B42*100 -> 19.73238782 | L42: % | M42: JTM: | N42: =M44/$B42*100 -> 21.28851089 | O42: %
D43: Törlesztőrészlet: | G43: Törlesztőrészlet: | J43: Törlesztőrészlet: | M43: Törlesztőrészlet:
D44: =PMT(($D$21+D$23)/12,240,-5000000) -> 32997.78696 | F44: forint | G44: =PMT(($D$21+G$23)/12,240,-5000000) -> 35821.55292 | I44: forint | J44: =PMT(($D$21+J$23)/12,240,-5000000) -> 38764.94678 | L44: forint | M44: =PMT(($D$21+M$23)/12,240,-5000000) -> 41822.00345 | O44: forint
A46: Jelen táblázat az 56/2014. (XII. 31.) NGM rendelet (továbbiakban: Rendelet) 1. számú melléklete alapján készült.
A48: Magyarázat a táblázatban szereplő értékekhez A hitel típusa: A Rendelet szerint az igényelt hitel jellege alapján lakástakarék pénztár által nyújtott hitel, jelzáloghitel vagy az előző két csoportba nem tartozó hitel lehet. A hitel összege: A Rendelet alapján meghatározott összeg. A hitel futamideje: A Rendelet alapján meghatározott futamidő. A hitel kamata: A Rendelet alapján meghatározható reprezentatív kamat (jelen esetben: 3 havi BUBOR-hoz kötött, indulódíjas, K3 kategória szerint). Rendszeres jövedelem: A Rendelet alapján meghatározott, KSH szerinti átlagos havi nettó jövedelem. JTM (Jövedelemarányos Törlesztési Mutató): A 34/2014. MNB rendelet alapján meghatározott mutató százalékos értéke a Kamat emelkedése blokkban. Törlesztőrészlet: A Rendszeres jövedelem, Kamat és Jövedelemarányos Törlesztési Mutató alapján kalkulált, havonta fizetendő összeg.
A49: Hozzájárulok, hogy a jelen dokumentáció, valamint a K&H Banktól kapott további, aláírásommal ellátott dokumentumok egy példányát a tájékoztatás megtörténtének igazolása, továbbá az általam választott hitelügylet megvalósulása, az ahhoz kapcsolódó adatkezelés és –feldolgozás, valamint kapcsolattartás céljából a K&H Bank Zrt. megőrizze, a benne foglalt adatokat a létrejövő hiteljogviszony fennállása alatt, illetve a jogviszony létrejöttének meghiúsulása esetén a nyilatkozat keltétől számított 6 hónapig kezelje.
A52: =CONCATENATE("Kelt: …………………………………………………, ",YEAR(TODAY()),". ",W35,DAY(TODAY()),".") -> Kelt: …………………………………………………, 2015. február 4.
D55: Érdeklődő: | J55: Érdeklődő:
A56: Név:
A57: Lakcím:
A58: Telefonszám:
A59: Aláírás:

Sheet Ügyféladatok
B1: ADÓS | C1: ADÓSTÁRS-1 | D1: ADÓSTÁRS-2 | E1: ADÓSTÁRS-3
B2: Jövedelmével bevont szereplő | C2: Jövedelmével bevont szereplő | D2: Nincs | E2: Nincs
B3: S Z E M É L Y I A D A T O K
A4: Név
A5: Születési név
A6: Anyja neve
A7: Születési dátum
A8: Családi állapot
A9: Legmagasabb iskolai végzettség
B11: C Í M E K, T E L E F O N S Z Á M O K
A12: Állandó lakcím: irányító szám
A13: Állandó lakcím: város
A14: Állandó lakcím: utca, házszám
A15: Értesítési cím: irányító szám
A16: Értesítési cím: város
A17: Értesítési cím: utca, házszám
A18: Jogviszony a jelenlegi tartózkodási helyen
A19: Mióta él jelenlegi lakcímén
A20: Mobiltelefon
A21: Vezetékes telefon
A22: E-mail cím
B24: B A N K K A P C S O L A T O K
A25: Elsődleges bank (jövedelem átutalás)
A26: Hitelkártya keretösszeg
A27: Folyószámla hitelkeret összege | F27: Több szereplő közös terhét csak az egyiknél kell feltüntetni!
A28: Összes havi rendszeres törlesztés | F28: Több szereplő közös terhét csak az egyiknél kell feltüntetni!
B30: V A G Y O N I - P É N Z Ü G Y I A D A T O K
A31: Önállóan elfogadható jövedelem
A32: Kiegészítő jövedelem
A33: Levonás/letiltás a jövedelemből
A34: Jövedelemmel rendelkezők száma
A35: Eltartottak száma a háztartásban
B37: M U N K A H E L Y I A D A T O K
A38: Munkáltatói cégforma
A39: Gazdasági szektor
A40: Foglalkoztatás minősége
A41: Munkaviszony kezdete
B50: Egyedülálló | C50: K&H Bank | D50: Adminisztráció/könyvelés | E50: Alkalmazott
B51: Házas | C51: AEGON Magyarország Hitel Zrt | D51: Államigazgatás | E51: Köztisztviselő
B52: Elvált | C52: AXA Bank | D52: Bányászat | E52: A Magyar Honvédség hivatásos állományú tagja
B53: Élettársi viszony | C53: Banco Popolare | D53: Befektetés - osztalék | E53: Fegyveres szervek hivatásos állományú tagja
B54: Özvegy | C54: Banco Primus S.A. | D54: Biztosítási tevékenység | E54: Közalkalmazott
C55: Banif Plus Bank | D55: Egészségügy | E55: Bíró
B56: Alapítvány | C56: Bank of China Hitelintézet | D56: Egyéb | E56: Ügyész
B57: Állami részvénytársaság | C57: BNP Paribas Hungária Bank | D57: Élelmiszeripar | E57: Igazságügyi alkalmazott
B58: Betéti társaság | C58: Budapest Bank | D58: Energiaszolgáltatás | E58: GYES
B59: Egyéb | C59: CIB Bank | D59: Építőipar | E59: Nyugdíjas
B60: Egyéb szövetkezet | C60: Citibank | D60: Erdő-, vad- és Halgazdálkodás | E60: Vállalkozó
B61: Egyéni vállakozó | C61: Cofidis | D61: Fa- és papíripar | E61: Szerződéses
B62: Egyesülés | C62: Commerzbank | D62: Fegyveres testület | E62: Egyéb
B63: Gazdasági munkaközösség | C63: Credigen Bank | D63: Fémipar
B64: Kamara | C64: Credit Agricole Corporate And Investment Bank | D64: Gép-, jármű- és műszergyártás
B65: Korlátolt felelősségű társaság | C65: Deutsche Bank | D65: Gyógyszergyártás
B66: Közalapítvány | C66: DRB Dél-Dunántúli Regionális Bank | D66: Informatika | E66: Jövedelmével bevont szereplő
B67: Közigazgatási szerv | C67: egyéb | D67: Infrastruktuális beruházás | E67: Jövedelme nélküli szereplő
B68: Közkereseti társaság | C68: Erste Bank | D68: Ingatlan bérbeadás | E68: Nincs
B69: Közös vállalat | C69: FHB | D69: Ingatlankereskedelem és beruházás
B70: Közp. költségvetési intézmény tul. lévő kht | C70: Gránit Bank | D70: Kiadó, nyomda
B71: Központi költségvetési intézmény | C71: Hanwha Bank | D71: Kiskereskedelem
B72: Leányvállalat | C72: ING Bank | D72: Könnyűipar (egyéb)
B73: Részvénytársaság | C73: KDB Bank | D73: Kőolajfeldolgozás
B74: Nem közp. költségvetési intézmény tul. lévő kht | C74: Kinizsi Bank | D74: Közigazgatás
B75: Non-profit társaság | C75: Magnet Magyar Közösségi Bank | D75: Külkereskedelem
B76: Önk. költségvetési intézmény | C76: Magyar Cetelem | D76: Marketing, hirdetés
B77: Pénzügyi szolgáltatást nem végző tak.szöv | C77: Magyar Külkereskedelmi | D77: Mezőgazdaság
B78: Pénzügyi szolgáltatást végző takarékszövetkezet | C78: Magyar Takarékszövetkezeti Bank | D78: Nagyberuházás
B79: Szövetkezet | C79: Mohácsi Takarék Bank | D79: Nagykereskedelem
B80: Társadalmi szervezet | C80: Oberbank AG | D80: Nehézipar (egyéb)
B81: Ügyvéd, közjegyző | C81: OTP Bank | D81: Non-profit szektor (egyéb)
B82: Egyéb | C82: Pannon Takarék Bank | D82: Oktatás - PHD ösztöndíj
B83: Nincs info | C83: Raiffeisen Bank | D83: Oktatás, képzés
C84: Sopron Bank Burgenland | D84: Pénzügyi szolgáltatás
B85: 8 általános vagy kevesebb | C85: Széchenyi Kereskedelmi Bank | D85: Ruha- és textilipar
B86: Szakmunkás | C86: Takarékszövetkezetek | D86: Sporttevékenység
B87: Szakközép | C87: UniCredit Bank | D87: Szállítás, raktározás, posta
B88: Gimnázium | C88: Volksbank | D88: Szociális
B89: Főiskola | C89: WPB Capital, credit union | D89: Szociális - életjáradék, jogdíjak
B90: Egyetem | C90: ZUNO BANK AG | D90: Szociális - GYES, GYET, GYED, TGYÁS
B91: Tudományos fokozat | D91: Szociális-személyi járadék vakok részére
D92: Szolgáltatás - megbízásos alapon
D93: Szolgáltatás (egyéb)
B94: kevesebb, mint 1 éve | C94: Tulajdonos | D94: Szolgáltatás-jogi,ügyvéd,jogász,közjegyző
B95: 1 - 3 év | C95: Társtulajdonos | D95: Szórakozás, kultúra
B96: 4 - 10 év | C96: Bérlő | D96: Tanácsadás, audit
B97: több, mint 10 éve | C97: Albérlő | D97: Telekommunikáció
C98: Családdal él | D98: Tömegközlekedés
C99: Szolgálati lakás | D99: Tudományos kutatás
C100: Önkormányzati lakás | D100: Turizmus, vendéglátás
C101: Egyéb jogcím | D101: Vegyipar

Sheet Alapadatok
A1: =VLOOKUP(B2,I44:L46,4,FALSE) -> Csak kamatos lakáshitel | J1: DPM min lakás | K1: 7 | M1: min | AB1: 28 | AC1: 29 | AD1: 30 | AE1: 31 | AF1: 32 | AG1: 33 | AH1: 34 | AI1: 35 | AJ1: 36 | AL1: =SUM(AL5:AL37)+SUM(AM5:AO22) -> 37
A2: Hiteltípus | B2: Lakáshitel | J2: DPM min szabfel | K2: 8 | M2: =IF(M33=I57,K2,IF(B21>300,K1+1,K1))+IF(J17=I11,0.5,0) -> 7
A3: Lakáshitel esetén a hitelcél | B3: Használt lakás/ház vásárlása | L3: % | M3: dpm % | N3: margincél | O3: margin | P3: EUR % | Q3: év | R3: hó | S3: nap | U3: Bubor fix | V3: Bubor csök | W3: Bubor növ | AB3: A | AC3: A1 | AD3: A2 | AE3: A3 | AG3: A | AH3: A1 | AI3: A2 | AJ3: A3 | AL3: A | AM3: A1 | AN3: A2 | AO3: A3
I4: Lakás | J4: =35*12 -> 420 | K4: Szenzációs lakáshitel | L4: ='PD kamat'!B14*100 ->  | M4: =MAX(IF(B21=12,L4,L4-IF(B6=L17,IF(B7=I10,1.25,1.75),IF(B7=I10,1.5,2))),IF(B21>300,K1+1,K1)) ->  | N4: =IF(M32=J8,3.25,3.55)+IF(B11=L10,0.5,0) -> 4.05 | O4: =IF($J$17=$I$10,N4,N4+0.5)+IF(B6=L17,-0.25,0) -> 4.05 | P4: 9 | Q4: =YEAR(B25) ->  | R4: =MONTH(B25) ->  | S4: =DAY(B25) ->  | T4: 1 | U4: =N24*100 -> 2.11 | V4: =U4 -> 2.11 | W4: =V4 -> 2.11
A5: Induló díjakkal vagy csak kamattal | B5: Csak kamattal | I5: Lakáshitel - lakás-előtakarékossággal | J5: 420 | L5: ='PD kamat'!B14*100 ->  | Q5: =IF(R5=1,Q4+1,Q4) ->  | R5: =IF(R4=12,1,R4+1) ->  | S5: =S4 ->  | T5: =T4+1 -> 2 | U5: =$U$4 -> 2.11 | V5: =V4 -> 2.11 | W5: =W4 -> 2.11 | AA5: Születési dátum | AB5: =Ügyféladatok!B7 -> 00:00:00 | AC5: =IF(Ügyféladatok!C$2="Nincs","",Ügyféladatok!C7) -> 00:00:00 | AD5: =IF(Ügyféladatok!D$2="Nincs","",Ügyféladatok!D7) ->  | AE5: =IF(Ügyféladatok!E$2="Nincs","",Ügyféladatok!E7) ->  | AG5: 1985-10-10 | AL5: =IF(AB5=AG5,0,1) -> 1 | AM5: =IF(AC5=AH5,0,1) -> 1 | AN5: 0 | AO5: 0
A6: Kondíció | B6: Normál | C6: =IF(B6=L17,"-0,25% kamat","") ->  | I6: Személyi | J6: =25*12 -> 300 | K6: Szenzációs ingatlanfedezetű személyi hitel | L6: ='PD kamat'!B14*100 ->  | M6: =MAX(IF(B21=12,L6,L6-IF(B6=L17,IF(B7=I10,1.25,1.75),IF(B7=I10,1.5,2))),K2) ->  | N6: =IF(M32=J8,4.25,4.55)+IF(B11=L10,0.5,0) -> 5.05 | O6: =IF($J$17=$I$10,N6,N6+0.5)+IF(B6=L17,-0.25,0) -> 5.05 | P6: 10 | Q6: =IF(R6=1,Q5+1,Q5) ->  | R6: =IF(R5=12,1,R5+1) ->  | S6: =S5 ->  | T6: =T5+1 -> 3 | U6: =$U$4 -> 2.11 | V6: =IF($B$18=$M$20,V5-1,V5) -> 2.11 | W6: =IF($B$18=$M$20,W5+1,W5) -> 2.11 | AA6: Családi állapot | AB6: =Ügyféladatok!B8 -> 0 | AC6: =IF(Ügyféladatok!C$2="Nincs","",Ügyféladatok!C8) -> 0 | AD6: =IF(Ügyféladatok!D$2="Nincs","",Ügyféladatok!D8) ->  | AE6: =IF(Ügyféladatok!E$2="Nincs","",Ügyféladatok!E8) ->  | AG6: Egyedülálló | AL6: =IF(AB6=AG6,0,1) -> 1 | AM6: 1 | AN6: 0 | AO6: 0
A7: Bérátutalási feltételeket teljesíti vagy vállalja? I/N | B7: I | C7: =IF(B7="N","","-0,50% kamat") -> -0,50% kamat | I7: most | J7: =VLOOKUP(M33,I4:J6,2,FALSE) -> 420 | L7: =VLOOKUP($M$33,$I$4:$L$6,4,FALSE) ->  | M7: =MAX(VLOOKUP($M$33,$I$4:$O$6,5,FALSE),M2) ->  | P7: =VLOOKUP($M$33,$I$4:$P$6,8,FALSE) -> 9 | T7: 4 | U7: 2.11 | V7: =V6 -> 2.11 | W7: =W6 -> 2.11 | AA7: Legmagasabb iskolai végzettség | AB7: =Ügyféladatok!B9 -> 0 | AC7: =IF(Ügyféladatok!C$2="Nincs","",Ügyféladatok!C9) -> 0 | AD7: =IF(Ügyféladatok!D$2="Nincs","",Ügyféladatok!D9) ->  | AE7: =IF(Ügyféladatok!E$2="Nincs","",Ügyféladatok!E9) ->  | AG7: Főiskola | AL7: 1 | AM7: 1 | AN7: 0 | AO7: 0
A8: Vagyonbiztosítási kamatkedvezményre jogosult? I/N | B8: I | C8: =IF(B8="N","","-0,20% kamat") -> -0,20% kamat | I8: É | J8: Induló díjakkal | K8: Csak kamatos lakáshitel | T8: 5 | U8: 2.11 | V8: 2.11 | W8: =W7 -> 2.11 | AA8: Jogviszony a jelenlegi tartózkodási helyen | AB8: =Ügyféladatok!B18 -> 0 | AC8: =IF(Ügyféladatok!C$2="Nincs","",Ügyféladatok!C18) -> 0 | AD8: =IF(Ügyféladatok!D$2="Nincs","",Ügyféladatok!D18) ->  | AE8: =IF(Ügyféladatok!E$2="Nincs","",Ügyféladatok!E18) ->  | AG8: Tulajdonos | AL8: 1 | AM8: 1 | AN8: 0 | AO8: 0
A9: Életbiztosítási kamatkedvezményre jogosult? I/N | B9: N | C9: =IF(B9="N","","-0,30% kamat") ->  | I9: V | J9: Csak kamattal | K9: Csak kamatos ingatlanfedezetű személyi hitel | O9: EUR hitel jellemzői | T9: 6 | U9: 2.11 | V9: 2.11 | W9: =W8 -> 2.11 | AA9: Mióta él jelenlegi lakcímén | AB9: =Ügyféladatok!B19 -> 0 | AC9: =IF(Ügyféladatok!C$2="Nincs","",Ügyféladatok!C19) -> 0 | AD9: =IF(Ügyféladatok!D$2="Nincs","",Ügyféladatok!D19) ->  | AE9: =IF(Ügyféladatok!E$2="Nincs","",Ügyféladatok!E19) ->  | AG9: 4 - 10 év | AL9: 1 | AM9: 1 | AN9: 0 | AO9: 0
A10: Elért kamatkedvezmények összesen | B10: ='PD kamat'!B10 ->  | I10: I | J10: Szemle | K10: Otthon-korszerűsítő hitel | L10: Nem kampány | O10: EUR % | P10: =P7/100 -> 0.09 | T10: 7 | U10: 2.11 | V10: 2.11 | W10: 2.11 | AA10: Elsődleges bank (jövedelem átutalás) | AB10: =Ügyféladatok!B25 -> 0 | AC10: =IF(Ügyféladatok!C$2="Nincs","",Ügyféladatok!C25) -> 0 | AD10: =IF(Ügyféladatok!D$2="Nincs","",Ügyféladatok!D25) ->  | AE10: =IF(Ügyféladatok!E$2="Nincs","",Ügyféladatok!E25) ->  | AG10: Deutsche Bank | AL10: 1 | AM10: 1 | AN10: 0 | AO10: 0
A11: Kampánykedvezmény? | B11: Nem kampány | I11: N | J11: Számla | L11: Díjkedvezmény 50% | O11: FX margin | P11: 0 | T11: 8 | U11: 2.11 | V11: 2.11 | W11: 2.11 | AA11: Hitelkártya keretösszeg | AB11: =Ügyféladatok!B26 -> 0 | AC11: =IF(Ügyféladatok!C$2="Nincs","",Ügyféladatok!C26) -> 0 | AD11: =IF(Ügyféladatok!D$2="Nincs","",Ügyféladatok!D26) ->  | AE11: =IF(Ügyféladatok!E$2="Nincs","",Ügyféladatok!E26) ->  | AG11: 0 | AL11: 0 | AM11: 1 | AN11: 0 | AO11: 0
A12: Értékbecslések díja összesen HUF | B12: KITÖLTENI! | C12: =IF(AND(M32=J8,B11=L10),"Mindet írd be!","Az első értékbecslés díja nélkül írd be!") -> Az első értékbecslés díja nélkül írd be! | I12: Normál | L12: Díjkedvezmény 100% | O12: HUF/EUR | P12: 270 | T12: 9 | U12: 2.11 | V12: 2.11 | W12: 2.11 | AA12: Folyószámla hitelkeret összege | AB12: =Ügyféladatok!B27 -> 0 | AC12: =IF(Ügyféladatok!C$2="Nincs","",Ügyféladatok!C27) -> 0 | AD12: =IF(Ügyféladatok!D$2="Nincs","",Ügyféladatok!D27) ->  | AE12: =IF(Ügyféladatok!E$2="Nincs","",Ügyféladatok!E27) ->  | AG12: 0 | AL12: 0 | AM12: 1 | AN12: 0 | AO12: 0
A13: Helyszíni szemlék díja összesen HUF | B13: KITÖLTENI! | C13: =IF(AND(M32=J8,B11=L10),"Mindet írd be!","Az első helyszíni szemle díja nélkül írd be!") -> Az első helyszíni szemle díja nélkül írd be! | I13: 4000+ | L13: OC/DH kedvezmény | T13: 10 | U13: 2.11 | V13: 2.11 | W13: 2.11 | AA13: Összes havi rendszeres törlesztés | AB13: =Ügyféladatok!B28 -> 0 | AC13: =IF(Ügyféladatok!C$2="Nincs","",Ügyféladatok!C28) -> 0 | AD13: =IF(Ügyféladatok!D$2="Nincs","",Ügyféladatok!D28) ->  | AE13: =IF(Ügyféladatok!E$2="Nincs","",Ügyféladatok!E28) ->  | AG13: 0 | AL13: 0 | AM13: 1 | AN13: 0 | AO13: 0
A14: Tulajdoni lap lekérések száma (0 - 6) | B14: 2 | C14: =IF(AND(B5=J8,B11=L10),B14*3000,IF(B14>2,(B14-2)*3000,0)) -> 0 | I14: Minimálbéres finanszírozás? | J14: N | L14: Normál | T14: 11 | U14: 2.11 | V14: 2.11 | W14: 2.11 | AA14: Önállóan elfogadható jövedelem | AB14: =Ügyféladatok!B31 -> 0 | AC14: =IF(Ügyféladatok!C$2="Nincs","",Ügyféladatok!C31) -> 0 | AD14: =IF(Ügyféladatok!D$2="Nincs","",Ügyféladatok!D31) ->  | AE14: =IF(Ügyféladatok!E$2="Nincs","",Ügyféladatok!E31) ->  | AG14: 74981 | AL14: 1 | AM14: 1 | AN14: 0 | AO14: 0
A15: Értékbecsléshez helyszínrajz lekérések száma (0 - 3) | B15: 0 | C15: =IF(AND(B5=J8,B11=L10),B15*4000,IF(B15>1,(B15-1)*4000,0)) -> 0 | I15: Türelmi idő: I/N (hónap) | J15: =IF(B2=I45,"I","N") -> N | K15: =IF(J15=I10,60,0) -> 0 | L15: Csoportos bérszámla | P15: 0 | T15: 12 | U15: 2.11 | V15: =IF($B$18=$M$21,V14-1,V14) -> 1.11 | W15: =IF($B$18=$M$21,W14+1,W14) -> 3.11 | AA15: Kiegészítő jövedelem | AB15: =Ügyféladatok!B32 -> 0 | AC15: =IF(Ügyféladatok!C$2="Nincs","",Ügyféladatok!C32) -> 0 | AD15: =IF(Ügyféladatok!D$2="Nincs","",Ügyféladatok!D32) ->  | AE15: =IF(Ügyféladatok!E$2="Nincs","",Ügyféladatok!E32) ->  | AG15: 1 | AL15: 1 | AM15: 1 | AN15: 0 | AO15: 0
A16: Ingatlannal kapcsolatos költségek HUF | B16: =IF(AND(B2=K10,K94=J10),19050+C14+C15,IF(AND(J52=I8,M33<>I6),B12+B13+C14+C15,B12+C14+C15)) ->  | C16: =B16 ->  | I16: Kondíció | J16: Normál | L16: 4000+ | P16: =P15+1 -> 1 | T16: 13 | U16: 2.11 | V16: 1.11 | W16: =W15 -> 3.11 | AA16: Levonás/letiltás a jövedelemből | AB16: =Ügyféladatok!B33 -> 0 | AC16: =IF(Ügyféladatok!C$2="Nincs","",Ügyféladatok!C33) -> 0 | AD16: =IF(Ügyféladatok!D$2="Nincs","",Ügyféladatok!D33) ->  | AE16: =IF(Ügyféladatok!E$2="Nincs","",Ügyféladatok!E33) ->  | AG16: 0 | AL16: 0 | AM16: 1 | AN16: 0 | AO16: 0
A17: Szerződéskötési díj (folyósítási jut.) | B17: =IF(OR(B5=J9,B6=L16,B11=L12,B11=L13),0,IF(OR(B6=L15,B11=L11),0.5%,1%)) -> 0 | C17: =MIN(200000,B20*B17) -> 0 | I17: Van 3 hónapja bankszámlája? I/N | J17: I | K17: =IF(J17="I","","+0,5% kamat") ->  | L17: Prémium bankos | P17: 2 | T17: 14 | U17: 2.11 | V17: 1.11 | W17: 3.11 | AA17: Jövedelemmel rendelkezők száma | AB17: =Ügyféladatok!B34 -> 0 | AC17: =IF(Ügyféladatok!C$2="Nincs","",Ügyféladatok!C34) -> 0 | AD17: =IF(Ügyféladatok!D$2="Nincs","",Ügyféladatok!D34) ->  | AE17: =IF(Ügyféladatok!E$2="Nincs","",Ügyféladatok!E34) ->  | AG17: 2 | AL17: 1 | AM17: 1 | AN17: 0 | AO17: 0
A18: Kamatperiódus | B18: 1 év | I18: Ki van töltve az értékbecslés? | L18: Prémium bankos kezdeti ktg | P18: 3 | T18: 15 | U18: 2.11 | V18: 1.11 | W18: 3.11 | AA18: Eltartottak száma a háztartásban | AB18: =Ügyféladatok!B35 -> 0 | AC18: =IF(Ügyféladatok!C$2="Nincs","",Ügyféladatok!C35) -> 0 | AD18: =IF(Ügyféladatok!D$2="Nincs","",Ügyféladatok!D35) ->  | AE18: =IF(Ügyféladatok!E$2="Nincs","",Ügyféladatok!E35) ->  | AG18: 1 | AL18: 1 | AM18: 1 | AN18: 0 | AO18: 0
A19: =IF(B18=M20,"Aktuális 3 havi BUBOR (input cella: B41)",IF(B18=M21,"Aktuális 12 havi BUBOR (input cella: B42)","")) -> Aktuális 12 havi BUBOR (input cella: B42) | B19: =IF(B18=M20,N20,IF(B18=M21,N21,"")) -> 0.0211 | I19: =ISERR(B16) -> TRUE | J19: =ISERR(I19) -> FALSE | K19: =IF(I19=J19,1,0) -> 0 | P19: 4 | T19: 16 | U19: 2.11 | V19: 1.11 | W19: 3.11 | AA19: Munkáltatói cégforma | AB19: =Ügyféladatok!B38 -> 0 | AC19: =IF(Ügyféladatok!C$2="Nincs","",Ügyféladatok!C38) -> 0 | AD19: =IF(Ügyféladatok!D$2="Nincs","",Ügyféladatok!D38) ->  | AE19: =IF(Ügyféladatok!E$2="Nincs","",Ügyféladatok!E38) ->  | AG19: Egyesülés | AL19: 1 | AM19: 1 | AN19: 0 | AO19: 0
A20: Igényelt hitelösszeg (HUF) | B20: 5000000 | M20: 3 hónap | N20: =+B41 -> 0.021 | O20: 3 | P20: 5 | T20: 17 | U20: 2.11 | V20: 1.11 | W20: 3.11 | AA20: Gazdasági szektor | AB20: =Ügyféladatok!B39 -> 0 | AC20: =IF(Ügyféladatok!C$2="Nincs","",Ügyféladatok!C39) -> 0 | AD20: =IF(Ügyféladatok!D$2="Nincs","",Ügyféladatok!D39) ->  | AE20: =IF(Ügyféladatok!E$2="Nincs","",Ügyféladatok!E39) ->  | AG20: Élelmiszeripar | AL20: 1 | AM20: 1 | AN20: 0 | AO20: 0
A21: Futamidő (hónap) | B21: 240 | C21: =IF(B21>J7,"HIBA: Túl hosszú a futamidő!",IF(B21<J101,"HIBA: Túl rövid a futamidő!","")) ->  | I21: havi részlet a jövedelemkalkulációhoz | M21: 1 év | N21: =+B42 -> 0.0211 | O21: 12 | P21: 6 | T21: 18 | U21: 2.11 | V21: 1.11 | W21: 3.11 | AA21: Foglalkoztatás minősége | AB21: =Ügyféladatok!B40 -> 0 | AC21: =IF(Ügyféladatok!C$2="Nincs","",Ügyféladatok!C40) -> 0 | AD21: =IF(Ügyféladatok!D$2="Nincs","",Ügyféladatok!D40) ->  | AE21: =IF(Ügyféladatok!E$2="Nincs","",Ügyféladatok!E40) ->  | AG21: Alkalmazott | AL21: 1 | AM21: 1 | AN21: 0 | AO21: 0
A22: Törlesztési dátumok hónapon belül | I22: =PMT(B28/12,B21-K15,-B20) ->  | M22: 3 év | N22: =+K103 -> 0.0281 | O22: 36 | T22: 19 | U22: 2.11 | V22: 1.11 | W22: 3.11 | AA22: Munkaviszony kezdete | AB22: =Ügyféladatok!B41 -> 00:00:00 | AC22: =IF(Ügyféladatok!C$2="Nincs","",Ügyféladatok!C41) -> 00:00:00 | AD22: =IF(Ügyféladatok!D$2="Nincs","",Ügyféladatok!D41) ->  | AE22: =IF(Ügyféladatok!E$2="Nincs","",Ügyféladatok!E41) ->  | AG22: 2014-05-01 | AL22: 1 | AM22: 1 | AN22: 0 | AO22: 0
A23: Hitelkérelem befogadásának dátuma | C23: =IF(B23="","",IF(I60=6,"Ez szombat!",IF(I60=7,"Ez vasárnap!",""))) ->  | I23: =IF(OR('PD kamat'!D3="kevés adat",Stabil!H9<>"",B26<>I82,AL1<>0),"",IF(ISERROR('PD kamat'!D4)=TRUE,"Hiányos adatok!",IF(AND('PD kamat'!D27="OK",'PD kamat'!D51="OK"),'PD kamat'!D4,""))) ->  | J23: =ISERR(I23) -> TRUE | M23: 5 év | N23: =+K104 -> 0.033 | O23: 60 | T23: 20 | U23: 2.11 | V23: 1.11 | W23: 3.11 | AA23: Hiteltípus | AB23: =B2 -> Lakáshitel | AG23: Lakáshitel | AL23: 0
A24: Folyósítás várható dátuma | B24: =IF(B23="","",P116) ->  | I24: Kitölteni! | N24: =VLOOKUP(B18,M20:N23,2,FALSE) -> 0.0211 | T24: 21 | U24: 2.11 | V24: 1.11 | W24: 3.11 | AA24: Lakáshitel esetén a hitelcél | AB24: =B3 -> Használt lakás/ház vásárlása | AG24: Használt lakás/ház vásárlása | AL24: 0
A25: Első törlesztés dátuma | B25: =IF(B23="","",P122) ->  | C25: Első kamatperiódus vége: | D25: =IF(B23="","",J109) ->  | I25: Eladási árfolyamok | M25: Szenzációs | T25: 22 | U25: 2.11 | V25: 1.11 | W25: 3.11 | AA25: Induló díjakkal vagy csak kamattal | AB25: =B5 -> Csak kamattal | AG25: Csak kamattal | AL25: 0
A26: Kockázati besorolás (árkategória) | C26: =IF(OR(Stabil!H9<>"",B26<>I82,AL1<>0),"",IF(ISERROR('PD kamat'!D4)=TRUE,"Hiányos adatok!",IF(AND('PD kamat'!D27="OK",'PD kamat'!D51="OK"),'PD kamat'!D4,""))) ->  | I26: 2 szinuszgörbe | M26: Csak kamattal | T26: 23 | U26: 2.11 | V26: 1.11 | W26: 3.11 | AA26: Kondíció | AB26: =B6 -> Normál | AG26: Normál | AL26: 0
J27: periódus | K27: sáv +/- | M27: Induló díjakkal | O27: havi | P27: 12 | T27: 24 | U27: 2.11 | V27: 1.11 | W27: 3.11 | AA27: Bérátutalási feltételeket teljesíti vagy vállalja? I/N | AB27: =B7 -> I | AG27: I | AL27: 0
A28: A hitel kezdeti ügyleti kamatlába | B28: =IF(OR(AND(B26=I82,ISERROR('PD kamat'!D4)=TRUE),B26="",ISERR(VLOOKUP(M33,I4:M6,4,FALSE))=TRUE,AND(B2<>I44,OR(B26="K5",B26="K6"))),"",'PD kamat'!B14) ->  | C28: =IF(OR(B18=M22,B18=M23,B28=""),"",'PD kamat'!A14) ->  | I28: 1. görbe | J28: 30 | K28: 0.06 | L28: abs | O28: negyedéves | P28: 4 | T28: 25 | U28: 2.11 | V28: 1.11 | W28: 3.11 | AA28: Vagyonbiztosítási kamatkedvezményre jogosult? I/N | AB28: =B8 -> I | AG28: I | AL28: 0
I29: 2. görbe | J29: 7 | K29: 0.04 | L29: =IF(M32=J8,I79,I80) -> A hitel kezdeti törlesztési kamatlába | M29: =IF(M32=J9,B28,IF(ISERR(M7)=TRUE,"",M7/100)) ->  | O29: féléves | P29: 2 | T29: 26 | U29: 2.11 | V29: 1.11 | W29: 3.11 | AA29: Életbiztosítási kamatkedvezményre jogosult? I/N | AB29: =B9 -> N | AG29: N | AL29: 0
A30: Jövedelemkalkuláció eredménye: | C30: =IF(B26="","",IF(AND(B26=I82,ISERROR('PD kamat'!D4)=TRUE),"",IF('PD kamat'!D51<>"OK","A jövedelem nem elegendő!",""))) ->  | I30: alap | K30: 0.015 | O30: éves | P30: 1 | T30: 27 | U30: 2.11 | V30: 1.11 | W30: 3.11 | AA30: Kamatperiódus | AB30: =B18 -> 1 év | AG30: 3 év | AL30: 1
A31: Fedezet(ek) becsült forgalmi értéke (HUF) | C31: =IF('PD kamat'!D27<>"OK","A fedezet nem elegendő!","") ->  | I31: Szenzációs | P31: =IF(C38="",0,VLOOKUP(C38,O27:P30,2,FALSE)) -> 0 | T31: 28 | U31: 2.11 | V31: 1.11 | W31: 3.11 | AA31: Igényelt hitelösszeg (HUF) | AB31: =B20 -> 5000000 | AG31: 6000000 | AL31: 1
A32: Fedezet ingatlan irányítószáma | I32: Lakáshitel csak kamattal | L32: Induló díjakkal v. Csak kamatos? | M32: =IF(B5=J8,M27,M26) -> Csak kamattal | O32: csop. beszedés | T32: 29 | U32: 2.11 | V32: 1.11 | W32: 3.11 | AA32: Futamidő (hónap) | AB32: =B21 -> 240 | AG32: 240 | AL32: 0
A33: A fedezetre már bejegyzettből fennmaradó terhek (HUF) | I33: Otthon-korszerűsítő hitel | L33: Lakáshitel v. Célszabfel v. Ingatlanfedezetű személyi? | M33: =IF(B2=I46,I6,IF(B2=I45,I5,I4)) -> Lakás | O33: csekkes | T33: 30 | U33: 2.11 | V33: 1.11 | W33: 3.11 | AA33: Fedezet(ek) becsült forgalmi értéke (HUF) | AB33: =B31 -> 0 | AG33: 9000000 | AL33: 1
A34: Párhuzamosan igényelt bejegyzendő jelzáloghitel (HUF) | I34: Személyi hitel csak kamattal | O34: átutalás | T34: 31 | U34: 2.11 | V34: 1.11 | W34: 3.11 | AA34: Fedezet ingatlan irányítószáma | AB34: =B32 -> 0 | AG34: 1555 | AL34: 1
A35: Folyószámla havi számlavezetési díj | T35: 32 | U35: 2.11 | V35: 1.11 | W35: 3.11 | AA35: A fedezetre már bejegyzettből fennmaradó terhek (HUF) | AB35: =B33 -> 0 | AG35: 0 | AL35: 0
A36: Csoportos beszedés díja | I36: Lakáshitel csak kamattal | L36: Csak kamatos lakáshitel | T36: 33 | U36: 2.11 | V36: 1.11 | W36: 3.11 | AA36: Párhuzamosan igényelt bejegyzendő jelzáloghitel (HUF) | AB36: =B34 -> 0 | AG36: 0 | AL36: 0
A37: Földhivatali bejegyzések száma | C37: =B37*12600 -> 0 | I37: Otthon-korszerűsítő hitel csak kamattal | L37: Csak kamatos Otthon-korszerűsítő hitel | T37: 34 | U37: 2.11 | V37: 1.11 | W37: 3.11 | AA37: BUBOR | AB37: ='PD kamat'!I6 -> 0.0211 | AG37: 0.0281 | AL37: 1
A38: Kockázati életbiztosítás gyakoriság szerinti díja | I38: Személyi hitel csak kamattal | L38: Csak kamatos ingatlanfedezetű személyi hitel | T38: 35 | U38: 2.11 | V38: 1.11 | W38: 3.11
A39: Kockázati életbiztosítás egyszeri díja | I39: Lakáshitel kezdeti díjakkal | L39: Induló díjakkal lakáshitel | T39: 36 | U39: 2.11 | V39: =IF($B$18=$M$22,V38-1,V38) -> 1.11 | W39: =IF($B$18=$M$22,W38+1,W38) -> 3.11
A40: Hitelközvetítőnek fizetett díj | I40: Otthon-korszerűsítő hitel kezdeti díjakkal | L40: Induló díjakkal Otthon-korszerűsítő hitel | T40: 37 | U40: 2.11 | V40: 1.11 | W40: 3.11
A41: Aktuális 3 havi BUBOR | B41: 0.021 | I41: Személyi hitel kezdeti díjakkal | L41: Induló díjakkal ingatlanfedezetű személyi hitel | T41: 38 | U41: 2.11 | V41: 1.11 | W41: 3.11
A42: Aktuális 12 havi BUBOR | B42: 0.0211 | T42: 39 | U42: 2.11 | V42: 1.11 | W42: 3.11
T43: 40 | U43: 2.11 | V43: 1.11 | W43: 3.11
I44: Lakáshitel | L44: =CONCATENATE(VLOOKUP(B5,$I$49:$J$50,2,FALSE)," lakáshitel") -> Csak kamatos lakáshitel | Q44: =IF(R44=1,Q43+1,Q43) ->  | R44: =IF(R43=12,1,R43+1) ->  | S44: =S43 ->  | T44: 41 | U44: 2.11 | V44: 1.11 | W44: 3.11
A45: =IF(B2=I45,"Havi részlet a türelmi idő alatt:","Havi részlet:") -> Havi részlet: | B45: =IF(B26="","",IF(AND(B26=I82,ISERROR('PD kamat'!D4)=TRUE),"",IF(OR(A47="Ki kell tölteni az értékbecslési díjakat…",A47="Kattints a Kalkuláció indító gombra"),"",IF(B2=I45,Stabil!Z12,I22)))) ->  | I45: Lakáshitel - lakás-előtakarékossággal | L45: =CONCATENATE(VLOOKUP(B5,$I$49:$J$50,2,FALSE)," lakáshitel - lakás-előtakarékossággal") -> Csak kamatos lakáshitel - lakás-előtakarékossággal | T45: 42 | U45: 2.11 | V45: 1.11 | W45: 3.11
A46: =IF(B2=I45,"Havi részlet a türelmi idő után:","") ->  | B46: =IF(OR(B26="",B2<>I45,AND(B26=I82,ISERROR('PD kamat'!D4)=TRUE)),"",IF(OR(A47="Ki kell tölteni az értékbecslési díjakat…",A47="Kattints a Kalkuláció indító gombra"),"",I22)) ->  | I46: Személyi hitel | L46: =CONCATENATE(VLOOKUP(B5,$I$49:$J$50,2,FALSE)," ingatlanfedezetű személyi hitel") -> Csak kamatos ingatlanfedezetű személyi hitel | T46: 43 | U46: 2.11 | V46: 1.11 | W46: 3.11
A47: =IF(B26="","",IF(AND(B26=I82,ISERROR('PD kamat'!D4)=TRUE),"",IF(K19=0,"Ki kell tölteni az értékbecslési díjakat…",IF(Stabil!H9="",CONCATENATE("THM: ",Stabil!I8*100,"%"),"Kattints a Kalkuláció indító gombra")))) ->  | T47: 44 | U47: 2.11 | V47: 1.11 | W47: 3.11
L48: A hitel nyújtható. | T48: 45 | U48: 2.11 | V48: 1.11 | W48: 3.11
I49: =+J9 -> Csak kamattal | J49: Csak kamatos | L49: A hitel nem nyújtható. | T49: 46 | U49: 2.11 | V49: 1.11 | W49: 3.11
I50: =+J8 -> Induló díjakkal | J50: Induló díjas | T50: 47 | U50: 2.11 | V50: 1.11 | W50: 3.11
T51: 48 | U51: 2.11 | V51: 1.11 | W51: 3.11
I52: Ép/Vás | J52: =VLOOKUP(B3,Appl!Q8:T22,4,FALSE) -> V | T52: 49 | U52: 2.11 | V52: 1.11 | W52: 3.11
T53: 50 | U53: 2.11 | V53: 1.11 | W53: 3.11
J54: min | K54: max | T54: 51 | U54: 2.11 | V54: 1.11 | W54: 3.11
I55: Lakás | J55: 1000000 | K55: 100000000 | M55: Szenzációs lakáshitel | T55: 52 | U55: 2.11 | V55: 1.11 | W55: 3.11
I56: Lakáshitel - lakás-előtakarékossággal | J56: 1000000 | K56: 100000000 | M56: Lakáshitel csak kamattal | T56: 53 | U56: 2.11 | V56: 1.11 | W56: 3.11
I57: Személyi | J57: 500000 | K57: 100000000 | M57: Személyi hitel csak kamattal | T57: 54 | U57: 2.11 | V57: 1.11 | W57: 3.11
I58: most | J58: =VLOOKUP(M33,I55:K57,2,FALSE) -> 1000000 | K58: =VLOOKUP(M33,I55:K57,3,FALSE) -> 100000000 | O58: periódusok száma | T58: 55 | U58: 2.11 | V58: 1.11 | W58: 3.11
I59: hét napjai | O59: =ROUNDUP(B21/3,0) -> 80 | T59: 56 | U59: 2.11 | V59: 1.11 | W59: 3.11
I60: =WEEKDAY(B23,2) -> 6 | O60: =MIN(O59,72) -> 72 | T60: 57 | U60: 2.11 | V60: 1.11 | W60: 3.11
I61: =WEEKDAY(B25,2) ->  | T61: 58 | U61: 2.11 | V61: 1.11 | W61: 3.11
I62: Építési vagy Vásárlási? É/V | K62: =IF(OR(M33=I5,M33=I6),"É","fehér") -> fehér | T62: 59 | U62: 2.11 | V62: 1.11 | W62: =W61 -> 3.11
I63: nem kell építési vagy vásárlási? É/V | K63: =IF(OR(M33=I5,M33=I6),"V","fehér") -> fehér | T63: 60 | U63: 2.11 | V63: =IF($B$18=$M$23,V62-1,V62) -> 1.11 | W63: =IF($B$18=$M$23,W62+1,W62) -> 3.11
I64: Helyszíni szemle vagy számlás igazolás? | K64: =IF(M33<>I5,J10,"fehér") -> Szemle | T64: 61 | U64: 2.11 | V64: 1.11 | W64: 3.11
I65: nem kell Helyszíni szemle vagy számlás igazolás? | K65: =IF(M33<>I5,J11,"fehér") -> Számla | T65: 62 | U65: 2.11 | V65: 1.11 | W65: 3.11
L66: lakás | M66: személyi | T66: 63 | U66: 2.11 | V66: =V65 -> 1.11 | W66: 3.11
K67: normál ügyleti kamat | L67: =+U4+N4 -> 6.16 | M67: =U4+N6 -> 7.16 | T67: 64 | U67: 2.11 | V67: =V66 -> 1.11 | W67: 3.11
K68: DPM kalk | L68: =IF(B21=12,L67,(L67-2+IF(B21>300,1,0))) -> 4.16 | M68: =IF(B21=12,M67,M67-2) -> 5.16 | T68: 65 | U68: 2.11 | V68: =V67 -> 1.11 | W68: 3.11
K69: DPM min | L69: =IF(B21>300,K1+1,K1) -> 7 | M69: =K2 -> 8 | T69: 66 | U69: 2.11 | V69: =V68 -> 1.11 | W69: 3.11
K70: DPM | L70: =MAX(L68:L69) -> 7 | M70: =MAX(M68:M69) -> 8 | T70: =T69+1 -> 67 | U70: =$U$4 -> 2.11 | V70: =V69 -> 1.11 | W70: 3.11
K71: kamatfeláras ügyleti kamat | L71: =L67+0.5 -> 6.66 | M71: =M67+0.5 -> 7.66 | T71: 68 | U71: 2.11 | V71: =V70 -> 1.11 | W71: 3.11
K72: kamatfeláras DPM | L72: =L70+0.5 -> 7.5 | M72: =M70+0.5 -> 8.5 | T72: 69 | U72: 2.11 | V72: =V71 -> 1.11 | W72: 3.11
K73: ügyleti kamat | L73: =IF($J$17=$I$11,L71,L67) -> 6.16 | M73: =IF($J$17=$I$11,M71,M67) -> 7.16 | T73: 70 | U73: 2.11 | V73: =V72 -> 1.11 | W73: =W72 -> 3.11
K74: DPM kamat | L74: =IF($J$17=$I$11,L72,L70) -> 7 | M74: =IF($J$17=$I$11,M72,M70) -> 8 | T74: 71 | U74: 2.11 | V74: =V73 -> 1.11 | W74: 3.11
K75: ügyleti kamat | L75: =IF(M33=I4,L73,M73) -> 6.16 | T75: 72 | U75: 2.11 | V75: =V74 -> 1.11 | W75: 3.11
K76: DPM kamat | L76: =IF(M33=I4,L74,M74) -> 7 | T76: 73 | U76: 2.11 | V76: =V75 -> 1.11 | W76: 3.11
T77: 74 | U77: 2.11 | V77: =V76 -> 1.11 | W77: 3.11
T78: 75 | U78: 2.11 | V78: =V77 -> 1.11 | W78: 3.11
I79: A hitel kezdeti törlesztési kamatlába | O79: 0 | T79: 76 | U79: 2.11 | V79: =V78 -> 1.11 | W79: 3.11
I80: A hitel kezdeti törlesztési kamatlába | O80: =+O79+6 -> 6 | T80: 77 | U80: 2.11 | V80: =V79 -> 1.11 | W80: 3.11
O81: 12 | T81: 78 | U81: 2.11 | V81: =V80 -> 1.11 | W81: 3.11
I82: Kalkulált: | K82: adóstársakhoz | O82: 18 | T82: 79 | U82: 2.11 | V82: =V81 -> 1.11 | W82: 3.11
I83: Manuális: K1 | K83: Jövedelmével bevont szereplő | O83: 24 | T83: 80 | U83: 2.11 | V83: =V82 -> 1.11 | W83: 3.11
I84: Manuális: K2 | K84: Jövedelme nélküli szereplő | O84: 30 | T84: 81 | U84: 2.11 | V84: =V83 -> 1.11 | W84: 3.11
I85: Manuális: K3 | K85: Nincs | O85: 36 | T85: 82 | U85: 2.11 | V85: =V84 -> 1.11 | W85: 3.11
I86: Manuális: K4 | T86: 83 | U86: 2.11 | V86: =V85 -> 1.11 | W86: =W85 -> 3.11
I87: =IF(B2=I46,"","Manuális: K5") -> Manuális: K5 | O87: Használt lakás/ház vásárlása | T87: 84 | U87: 2.11 | V87: =V86 -> 1.11 | W87: 3.11
I88: =IF(B2=I46,"","Manuális: K6") -> Manuális: K6 | O88: Új lak./ház vásárlása (kulcsrakész) | T88: 85 | U88: 2.11 | V88: =V87 -> 1.11 | W88: 3.11
I89: Hiányos adatok! | O89: Lakásépítés | T89: 86 | U89: 2.11 | V89: =V88 -> 1.11 | W89: 3.11
O90: Felújítás | T90: 87 | U90: 2.11 | V90: =V89 -> 1.11 | W90: 3.11
O91: Bővítés | T91: 88 | U91: 2.11 | V91: =V90 -> 1.11 | W91: 3.11
O92: Korszerűsítés | T92: 89 | U92: 2.11 | V92: =V91 -> 1.11 | W92: 3.11
O93: Közmű bevezetése | T93: 90 | U93: 2.11 | V93: =V92 -> 1.11 | W93: 3.11
J94: =IF(M33=I5,I64,I65) -> nem kell Helyszíni szemle vagy számlás igazolás? | K94: Számla | O94: Szerkezetkész ingatlan megvásárlása | T94: 91 | U94: 2.11 | V94: =V93 -> 1.11 | W94: 3.11
O95: Egyéb ingatlan vásárlása | T95: 92 | U95: 2.11 | V95: =V94 -> 1.11 | W95: 3.11
O96: Egyéb ingatlan építés | T96: 93 | U96: 2.11 | V96: =V95 -> 1.11 | W96: 3.11
O97: Építési telek vásárlása | T97: 94 | U97: 2.11 | V97: =V96 -> 1.11 | W97: 3.11
I98: Lakás | J98: 12 | O98: Földvásárlás | T98: 95 | U98: 2.11 | V98: =V97 -> 1.11 | W98: 3.11
I99: Lakáshitel - lakás-előtakarékossággal | J99: 60 | O99: Belf. pénzintézet által nyújtott hitel kiváltása | T99: 96 | U99: 2.11 | V99: =V98 -> 1.11 | W99: 3.11
I100: Személyi | J100: 12 | O100: Külf. pénzintézet által nyújtott hitel kiváltása | T100: 97 | U100: 2.11 | V100: =V99 -> 1.11 | W100: 3.11
I101: most | J101: =VLOOKUP(M33,I98:J100,2,FALSE) -> 12 | O101: Egyéb | T101: 98 | U101: 2.11 | V101: =V100 -> 1.11 | W101: 3.11
T102: 99 | U102: 2.11 | V102: =V101 -> 1.11 | W102: 3.11
J103: 2015 feb 3 éves ÁKK | K103: 0.0281 | T103: 100 | U103: 2.11 | V103: =V102 -> 1.11 | W103: 3.11
J104: 2015 feb 5 éves ÁKK | K104: 0.033 | T104: 101 | U104: 2.11 | V104: =V103 -> 1.11 | W104: 3.11
T105: 102 | U105: 2.11 | V105: =V104 -> 1.11 | W105: 3.11
T106: 103 | U106: 2.11 | V106: =V105 -> 1.11 | W106: 3.11
T107: 104 | U107: 2.11 | V107: =V106 -> 1.11 | W107: 3.11
J108: =CONCATENATE("A ",VLOOKUP(B18,M20:O23,3,FALSE),". esedékesség") -> A 12. esedékesség | Q108: =IF(R108=1,Q107+1,Q107) ->  | R108: =IF(R107=12,1,R107+1) ->  | S108: =S107 ->  | T108: 105 | U108: 2.11 | V108: =V107 -> 1.11 | W108: 3.11
J109: =IF(B18=M20,DATE(Q6,R6,S6),IF(B18=M21,DATE(Q15,R15,S15),IF(B18=M22,DATE(Q39,R39,S39),DATE(Q63,R63,S63)))) ->  | T109: 106 | U109: 2.11 | V109: =V108 -> 1.11 | W109: 3.11
T110: 107 | U110: 2.11 | V110: =V109 -> 1.11 | W110: 3.11
T111: 108 | U111: 2.11 | V111: =V110 -> 1.11 | W111: 3.11
O112: folyósítás | P112: 25 | T112: 109 | U112: 2.11 | V112: =V111 -> 1.11 | W112: 3.11
O113: törlesztés | P113: 10 | T113: 110 | U113: 2.11 | V113: =V112 -> 1.11 | W113: 3.11
T114: 111 | U114: 2.11 | V114: =V113 -> 1.11 | W114: 3.11
T115: 112 | U115: 2.11 | V115: =V114 -> 1.11 | W115: 3.11
O116: folyósít | P116: =VLOOKUP(P112,M125:P296,4,FALSE) -> 1900-02-03 | T116: 113 | U116: 2.11 | V116: =V115 -> 1.11 | W116: 3.11
O117: törlesztene1 | P117: =VLOOKUP(P112+P113,M125:P296,4,FALSE) -> 1900-02-17 | T117: 114 | U117: 2.11 | V117: =V116 -> 1.11 | W117: 3.11
O118: törlesztene2 | P118: =DATE(YEAR(P117),MONTH(P117),B22) -> 1900-01-31 | T118: 115 | U118: 2.11 | V118: =V117 -> 1.11 | W118: 3.11
T119: 116 | U119: 2.11 | V119: =V118 -> 1.11 | W119: 3.11
L120: év | M120: hónap | N120: nap | T120: 117 | U120: 2.11 | V120: =V119 -> 1.11 | W120: 3.11
L121: =YEAR(P118) -> 1900 | M121: =MONTH(P118) -> 1 | N121: =DAY(P118) -> 31 | T121: 118 | U121: 2.11 | V121: =V120 -> 1.11 | W121: 3.11
L122: =IF(AND(P118<=P117,M121=12),L121+1,L121) -> 1900 | M122: =IF(AND(P118<=P117,M121=12),1,IF(P118<=P117,M121+1,M121)) -> 2 | N122: =N121 -> 31 | O122: törleszt | P122: =DATE(L122,M122,N122) -> 1900-03-02 | T122: 119 | U122: 2.11 | V122: =V121 -> 1.11 | W122: 3.11
T123: 120 | U123: 2.11 | V123: =V122 -> 1.11 | W123: 3.11
K124: hét napja | L124: munkanap | M124: kum munkanap | O124: Ünnepek | T124: 121 | U124: 2.11 | V124: =V123 -> 1.11 | W124: 3.11
I125: befogadás | J125: =+B23 -> 00:00:00 | K125: =WEEKDAY(J125,2) -> 6 | L125: =IF(OR(K125=6,K125=7),0,1)-N125 -> 0 | M125: 0 | N125: =IF(ISERROR(VLOOKUP(J125,$O$125:$O$156,1,FALSE))=TRUE,0,1) -> 0 | O125: 2014-01-01 | P125: =+J125 -> 00:00:00 | T125: 122 | U125: 2.11 | V125: =V124 -> 1.11 | W125: 3.11
J126: =J125+1 -> 1900-01-01 | K126: =WEEKDAY(J126,2) -> 7 | L126: =IF(OR(K126=6,K126=7),0,1)-N126 -> 0 | M126: =+L126+M125 -> 0 | N126: 0 | O126: 2014-03-15 | P126: =+J126 -> 1900-01-01 | T126: 123 | U126: 2.11 | V126: =V125 -> 1.11 | W126: 3.11
J127: =J126+1 -> 1900-01-02 | K127: =WEEKDAY(J127,2) -> 1 | L127: 1 | M127: =+L127+M126 -> 1 | N127: 0 | O127: 2014-04-20 | P127: 1900-01-02 | T127: 124 | U127: 2.11 | V127: =V126 -> 1.11 | W127: 3.11
J128: 1900-01-03 | K128: 2 | L128: 1 | M128: 2 | N128: 0 | O128: 2014-05-01 | P128: 1900-01-03 | T128: 125 | U128: 2.11 | V128: =V127 -> 1.11 | W128: 3.11
J129: 1900-01-04 | K129: 3 | L129: 1 | M129: 3 | N129: 0 | O129: 2014-06-09 | P129: 1900-01-04 | T129: 126 | U129: 2.11 | V129: 1.11 | W129: 3.11
J130: 1900-01-05 | K130: 4 | L130: 1 | M130: 4 | N130: 0 | O130: 2014-08-20 | P130: 1900-01-05 | T130: 127 | U130: 2.11 | V130: 1.11 | W130: 3.11
J131: 1900-01-06 | K131: 5 | L131: 1 | M131: 5 | N131: 0 | O131: 2014-10-23 | P131: 1900-01-06 | T131: 128 | U131: 2.11 | V131: 1.11 | W131: 3.11
J132: 1900-01-07 | K132: 6 | L132: 0 | M132: 5 | N132: 0 | O132: 2014-10-24 | P132: 1900-01-07 | T132: 129 | U132: 2.11 | V132: 1.11 | W132: 3.11
J133: 1900-01-08 | K133: 7 | L133: 0 | M133: 5 | N133: 0 | O133: 2014-11-01 | P133: 1900-01-08 | T133: 130 | U133: 2.11 | V133: 1.11 | W133: 3.11
J134: 1900-01-09 | K134: 1 | L134: 1 | M134: 6 | N134: 0 | O134: 2014-12-24 | P134: 1900-01-09 | T134: =T133+1 -> 131 | U134: =$U$4 -> 2.11 | V134: =V133 -> 1.11 | W134: 3.11
J135: 1900-01-10 | K135: 2 | L135: 1 | M135: 7 | N135: 0 | O135: 2014-12-25 | P135: 1900-01-10 | T135: 132 | U135: 2.11 | V135: 1.11 | W135: 3.11
J136: 1900-01-11 | K136: 3 | L136: 1 | M136: 8 | N136: 0 | O136: 2014-12-26 | P136: 1900-01-11 | T136: 133 | U136: 2.11 | V136: 1.11 | W136: 3.11
J137: 1900-01-12 | K137: 4 | L137: 1 | M137: 9 | N137: 0 | O137: 2015-01-01 | P137: 1900-01-12 | T137: 134 | U137: 2.11 | V137: 1.11 | W137: 3.11
J138: 1900-01-13 | K138: 5 | L138: 1 | M138: 10 | N138: 0 | O138: 2015-01-02 | P138: 1900-01-13 | T138: 135 | U138: 2.11 | V138: 1.11 | W138: 3.11
J139: 1900-01-14 | K139: 6 | L139: 0 | M139: 10 | N139: 0 | O139: 2015-03-15 | P139: 1900-01-14 | T139: 136 | U139: 2.11 | V139: 1.11 | W139: 3.11
J140: 1900-01-15 | K140: 7 | L140: 0 | M140: 10 | N140: 0 | O140: 2015-04-06 | P140: 1900-01-15 | T140: 137 | U140: 2.11 | V140: 1.11 | W140: 3.11
J141: 1900-01-16 | K141: 1 | L141: 1 | M141: 11 | N141: 0 | O141: 2015-05-01 | P141: 1900-01-16 | T141: 138 | U141: 2.11 | V141: 1.11 | W141: 3.11
J142: 1900-01-17 | K142: 2 | L142: 1 | M142: 12 | N142: 0 | O142: 2015-05-25 | P142: 1900-01-17 | T142: 139 | U142: 2.11 | V142: 1.11 | W142: 3.11
J143: 1900-01-18 | K143: 3 | L143: 1 | M143: 13 | N143: 0 | O143: 2015-08-20 | P143: 1900-01-18 | T143: 140 | U143: 2.11 | V143: 1.11 | W143: 3.11
J144: 1900-01-19 | K144: 4 | L144: 1 | M144: 14 | N144: 0 | O144: 2015-08-21 | P144: 1900-01-19 | T144: 141 | U144: 2.11 | V144: 1.11 | W144: 3.11
J145: 1900-01-20 | K145: 5 | L145: 1 | M145: 15 | N145: 0 | O145: 2015-10-23 | P145: 1900-01-20 | T145: 142 | U145: 2.11 | V145: 1.11 | W145: 3.11
J146: 1900-01-21 | K146: 6 | L146: 0 | M146: 15 | N146: 0 | O146: 2015-11-01 | P146: 1900-01-21 | T146: 143 | U146: 2.11 | V146: 1.11 | W146: 3.11
J147: 1900-01-22 | K147: 7 | L147: 0 | M147: 15 | N147: 0 | O147: 2015-12-24 | P147: 1900-01-22 | T147: 144 | U147: 2.11 | V147: 1.11 | W147: 3.11
J148: 1900-01-23 | K148: 1 | L148: 1 | M148: 16 | N148: 0 | O148: 2015-12-25 | P148: 1900-01-23 | T148: 145 | U148: 2.11 | V148: 1.11 | W148: 3.11
J149: 1900-01-24 | K149: 2 | L149: 1 | M149: 17 | N149: 0 | O149: 2015-12-26 | P149: 1900-01-24 | T149: 146 | U149: 2.11 | V149: 1.11 | W149: 3.11
J150: 1900-01-25 | K150: 3 | L150: 1 | M150: 18 | N150: 0 | O150: 2016-01-01 | P150: 1900-01-25 | T150: 147 | U150: 2.11 | V150: 1.11 | W150: 3.11
J151: 1900-01-26 | K151: 4 | L151: 1 | M151: 19 | N151: 0 | O151: 2016-03-15 | P151: 1900-01-26 | T151: 148 | U151: 2.11 | V151: 1.11 | W151: 3.11
J152: 1900-01-27 | K152: 5 | L152: 1 | M152: 20 | N152: 0 | O152: 2016-03-28 | P152: 1900-01-27 | T152: 149 | U152: 2.11 | V152: 1.11 | W152: 3.11
J153: 1900-01-28 | K153: 6 | L153: 0 | M153: 20 | N153: 0 | O153: 2016-05-01 | P153: 1900-01-28 | T153: 150 | U153: 2.11 | V153: 1.11 | W153: 3.11
J154: 1900-01-29 | K154: 7 | L154: 0 | M154: 20 | N154: 0 | O154: 2016-05-16 | P154: 1900-01-29 | T154: 151 | U154: 2.11 | V154: 1.11 | W154: 3.11
J155: 1900-01-30 | K155: 1 | L155: 1 | M155: 21 | N155: 0 | O155: 2016-08-20 | P155: 1900-01-30 | T155: 152 | U155: 2.11 | V155: 1.11 | W155: 3.11
J156: 1900-01-31 | K156: 2 | L156: 1 | M156: 22 | N156: 0 | O156: 2016-10-23 | P156: 1900-01-31 | T156: 153 | U156: 2.11 | V156: 1.11 | W156: 3.11
J157: 1900-02-01 | K157: 3 | L157: 1 | M157: 23 | N157: =IF(ISERROR(VLOOKUP(J157,$O$125:$O$156,1,FALSE))=TRUE,0,1) -> 0 | P157: 1900-02-01 | T157: 154 | U157: 2.11 | V157: 1.11 | W157: 3.11
J158: 1900-02-02 | K158: 4 | L158: 1 | M158: 24 | N158: 0 | P158: 1900-02-02 | T158: 155 | U158: 2.11 | V158: 1.11 | W158: 3.11
J159: 1900-02-03 | K159: 5 | L159: 1 | M159: 25 | N159: 0 | P159: 1900-02-03 | T159: 156 | U159: 2.11 | V159: 1.11 | W159: 3.11
J160: 1900-02-04 | K160: 6 | L160: 0 | M160: 25 | N160: 0 | P160: 1900-02-04 | T160: 157 | U160: 2.11 | V160: 1.11 | W160: 3.11
J161: 1900-02-05 | K161: 7 | L161: 0 | M161: 25 | N161: 0 | P161: 1900-02-05 | T161: 158 | U161: 2.11 | V161: 1.11 | W161: 3.11
J162: 1900-02-06 | K162: 1 | L162: 1 | M162: 26 | N162: 0 | P162: 1900-02-06 | T162: 159 | U162: 2.11 | V162: 1.11 | W162: 3.11
J163: 1900-02-07 | K163: 2 | L163: 1 | M163: 27 | N163: 0 | P163: 1900-02-07 | T163: 160 | U163: 2.11 | V163: 1.11 | W163: 3.11
J164: 1900-02-08 | K164: 3 | L164: 1 | M164: 28 | N164: 0 | P164: 1900-02-08 | T164: 161 | U164: 2.11 | V164: 1.11 | W164: 3.11
J165: 1900-02-09 | K165: 4 | L165: 1 | M165: 29 | N165: 0 | P165: 1900-02-09 | T165: 162 | U165: 2.11 | V165: 1.11 | W165: 3.11
J166: 1900-02-10 | K166: 5 | L166: 1 | M166: 30 | N166: 0 | P166: 1900-02-10 | T166: 163 | U166: 2.11 | V166: 1.11 | W166: 3.11
J167: 1900-02-11 | K167: 6 | L167: 0 | M167: 30 | N167: 0 | P167: 1900-02-11 | T167: 164 | U167: 2.11 | V167: 1.11 | W167: 3.11
J168: 1900-02-12 | K168: 7 | L168: 0 | M168: 30 | N168: 0 | P168: 1900-02-12 | T168: 165 | U168: 2.11 | V168: 1.11 | W168: 3.11
J169: 1900-02-13 | K169: 1 | L169: 1 | M169: 31 | N169: 0 | P169: 1900-02-13 | T169: 166 | U169: 2.11 | V169: 1.11 | W169: 3.11
J170: 1900-02-14 | K170: 2 | L170: 1 | M170: 32 | N170: 0 | P170: 1900-02-14 | T170: 167 | U170: 2.11 | V170: 1.11 | W170: 3.11
J171: 1900-02-15 | K171: 3 | L171: 1 | M171: 33 | N171: 0 | P171: 1900-02-15 | T171: 168 | U171: 2.11 | V171: 1.11 | W171: 3.11
J172: 1900-02-16 | K172: 4 | L172: 1 | M172: 34 | N172: 0 | P172: 1900-02-16 | Q172: =IF(R172=1,Q171+1,Q171) ->  | R172: =IF(R171=12,1,R171+1) ->  | S172: =S171 ->  | T172: 169 | U172: 2.11 | V172: 1.11 | W172: 3.11
J173: 1900-02-17 | K173: 5 | L173: 1 | M173: 35 | N173: 0 | P173: 1900-02-17 | T173: 170 | U173: 2.11 | V173: 1.11 | W173: 3.11
J174: 1900-02-18 | K174: 6 | L174: 0 | M174: 35 | N174: 0 | P174: 1900-02-18 | T174: 171 | U174: 2.11 | V174: 1.11 | W174: 3.11
J175: 1900-02-19 | K175: 7 | L175: 0 | M175: 35 | N175: 0 | P175: 1900-02-19 | T175: 172 | U175: 2.11 | V175: 1.11 | W175: 3.11
J176: 1900-02-20 | K176: 1 | L176: 1 | M176: 36 | N176: 0 | P176: 1900-02-20 | T176: 173 | U176: 2.11 | V176: 1.11 | W176: 3.11
J177: 1900-02-21 | K177: 2 | L177: 1 | M177: 37 | N177: 0 | P177: 1900-02-21 | T177: 174 | U177: 2.11 | V177: 1.11 | W177: 3.11
J178: 1900-02-22 | K178: 3 | L178: 1 | M178: 38 | N178: 0 | P178: 1900-02-22 | T178: 175 | U178: 2.11 | V178: 1.11 | W178: 3.11
J179: 1900-02-23 | K179: 4 | L179: 1 | M179: 39 | N179: 0 | P179: 1900-02-23 | T179: 176 | U179: 2.11 | V179: 1.11 | W179: 3.11
J180: 1900-02-24 | K180: 5 | L180: 1 | M180: 40 | N180: 0 | P180: 1900-02-24 | T180: 177 | U180: 2.11 | V180: 1.11 | W180: 3.11
J181: 1900-02-25 | K181: 6 | L181: 0 | M181: 40 | N181: 0 | P181: 1900-02-25 | T181: 178 | U181: 2.11 | V181: 1.11 | W181: 3.11
J182: 1900-02-26 | K182: 7 | L182: 0 | M182: 40 | N182: 0 | P182: 1900-02-26 | T182: 179 | U182: 2.11 | V182: 1.11 | W182: 3.11
J183: 1900-02-27 | K183: 1 | L183: 1 | M183: 41 | N183: 0 | P183: 1900-02-27 | T183: 180 | U183: 2.11 | V183: 1.11 | W183: 3.11
J184: 1900-02-28 | K184: 2 | L184: 1 | M184: 42 | N184: 0 | P184: 1900-02-28 | T184: 181 | U184: 2.11 | V184: 1.11 | W184: 3.11
J185: 60 | K185: 3 | L185: 1 | M185: 43 | N185: 0 | P185: 60 | T185: 182 | U185: 2.11 | V185: 1.11 | W185: 3.11
J186: 1900-03-01 | K186: 4 | L186: 1 | M186: 44 | N186: 0 | P186: 1900-03-01 | T186: 183 | U186: 2.11 | V186: 1.11 | W186: 3.11
J187: 1900-03-02 | K187: 5 | L187: 1 | M187: 45 | N187: 0 | P187: 1900-03-02 | T187: 184 | U187: 2.11 | V187: 1.11 | W187: 3.11
J188: 1900-03-03 | K188: 6 | L188: 0 | M188: 45 | N188: 0 | P188: 1900-03-03 | T188: 185 | U188: 2.11 | V188: 1.11 | W188: 3.11
J189: 1900-03-04 | K189: 7 | L189: 0 | M189: 45 | N189: =IF(ISERROR(VLOOKUP(J189,$O$125:$O$156,1,FALSE))=TRUE,0,1) -> 0 | P189: 1900-03-04 | T189: 186 | U189: 2.11 | V189: 1.11 | W189: 3.11
J190: 1900-03-05 | K190: 1 | L190: =IF(OR(K190=6,K190=7),0,1)-N190 -> 1 | M190: 46 | N190: 0 | P190: =+J190 -> 1900-03-05 | T190: 187 | U190: 2.11 | V190: 1.11 | W190: 3.11
J191: =J190+1 -> 1900-03-06 | K191: =WEEKDAY(J191,2) -> 2 | L191: 1 | M191: =+L191+M190 -> 47 | N191: 0 | P191: 1900-03-06 | T191: 188 | U191: 2.11 | V191: 1.11 | W191: 3.11
J192: 1900-03-07 | K192: 3 | L192: 1 | M192: 48 | N192: 0 | P192: 1900-03-07 | T192: 189 | U192: 2.11 | V192: 1.11 | W192: 3.11
J193: 1900-03-08 | K193: 4 | L193: 1 | M193: 49 | N193: 0 | P193: 1900-03-08 | T193: 190 | U193: 2.11 | V193: 1.11 | W193: 3.11
J194: 1900-03-09 | K194: 5 | L194: 1 | M194: 50 | N194: 0 | P194: 1900-03-09 | T194: 191 | U194: 2.11 | V194: 1.11 | W194: 3.11
J195: 1900-03-10 | K195: 6 | L195: 0 | M195: 50 | N195: 0 | P195: 1900-03-10 | T195: 192 | U195: 2.11 | V195: 1.11 | W195: 3.11
J196: 1900-03-11 | K196: 7 | L196: 0 | M196: 50 | N196: 0 | P196: 1900-03-11 | T196: 193 | U196: 2.11 | V196: 1.11 | W196: 3.11
J197: 1900-03-12 | K197: 1 | L197: 1 | M197: 51 | N197: 0 | P197: 1900-03-12 | T197: 194 | U197: 2.11 | V197: 1.11 | W197: 3.11
T198: =T197+1 -> 195 | U198: =$U$4 -> 2.11 | V198: =V197 -> 1.11 | W198: 3.11
T199: 196 | U199: 2.11 | V199: 1.11 | W199: 3.11
T200: 197 | U200: 2.11 | V200: 1.11 | W200: 3.11
... 223 more rows

Sheet Stabil
C4: =CONCATENATE(Alapadatok!A1," ",VLOOKUP(AI8,AI5:AJ7,2,FALSE)," mellett") -> Csak kamatos lakáshitel stabil kamatszint mellett | Q4: =X11*F11*W8/36000 ->  | Y4: 4468207.4
U5: első részlet eltérítése türelmi idő esetén | Y5: =Y4-Y9 ->  | AD5: EUR | AE5: Árfolyam | AH5: MNB fix | AI5: 1 | AJ5: stabil kamatszint
C6: Hitelösszeg | D6: =+Alapadatok!B20 -> 5000000 | G6: Folyósítás | I6: =Alapadatok!B24 ->  | U6: napok száma | W6: =I7-I6 ->  | AA6: tőke | AD6: =Alapadatok!B20/(Alapadatok!P12*(1-Alapadatok!P11)) -> 18518.51852 | AE6: stabil | AF6: stabil | AH6: MNB csök | AI6: 2 | AJ6: csökkenő kamatszint
C7: Futamidő | D7: =CONCATENATE(Alapadatok!B21," hónap") -> 240 hónap | G7: Első törlesztés | I7: =Alapadatok!B25 ->  | U7: kamatnapok száma | W7: =30-DAY(I6)+(MONTH(I7)-MONTH(I6))*30+DAY(I7)-30+(YEAR(I7)-YEAR(I6))*360 ->  | AA7: részlet | AD7: =PMT(Alapadatok!P10/12,Alapadatok!B21,-AD6,FALSE) -> 166.6159178 | AF7: változó | AH7: MNB növ | AI7: 3 | AJ7: megemelt kamatszint
C8: Türelmi idő | D8: =CONCATENATE(Alapadatok!K15," hónap") -> 0 hónap | G8: THM | I8: =IF(H9="",ROUND(AB9,3),"") ->  | U8: extra napok száma | W8: =W7-30 ->  | AA8: Ft részlet | AB8: THM | AD8: =AD7*Alapadatok!P12*(1+Alapadatok!P11) -> 44986.29779 | AE8: MNB fix | AI8: =VLOOKUP(AE8,AH5:AI7,2,FALSE) -> 1
H9: =IF(ABS(AB10*100)<1,"","Kattints a grafikonra --->") ->  | Y9: =SUM(Y11:Y430) ->  | AB9: 0.069268533 | AF9: 2 szinusz
C10: Év | D10: Kamat periódus | E10: Bubor kamatláb % | F10: Ügyleti kamatláb % | G10: Havi részlet HUF | H10: Tőketartozás HUF | I10: éves növ % | M10: Törlesztési kamatláb % | N10: év | O10: periódus | P10: sorszám | Q10: dátum | R10: év | S10: hónap | T10: nap | U10: startól eltelt nap | V10: ügyleti kamatláb % | W10: törlesztési kamatláb % | X10: nyitó | Y10: kamat | Z10: törlesztés | AA10: záró | AB10: =Alapadatok!$B$20-Alapadatok!$C$16-Alapadatok!$C$17-Alapadatok!$C$37-Alapadatok!$B$39-Alapadatok!$B$40-AB430 ->  | AC10: díjak | AD10: EUR részlet | AF10: fő | AG10: kis | AH10: alap | AI10: együtt | AJ10: bizosítás | AM10: =IF(Alapadatok!M32=Alapadatok!J9,"","Törlesztési kamatláb %") ->  | AW10: Annuitásos havi részlet
A11: 1 | B11: =IF(E11="",2,1) -> 1 | C11: =IF(Alapadatok!$K$15=0,1,"1 (türelmi idő)") -> 1 | D11: 1 | E11: =VLOOKUP(D11*3-2,Alapadatok!$T$4:$W$423,$AI$8+1,FALSE) -> 2.11 | F11: =+Alapadatok!B28*100 ->  | G11: =IF(H9="",Z12,"") ->  | H11: =IF(H9<>"","",VLOOKUP(D11*3,$P$11:$AA$430,12,FALSE)) ->  | M11: =F11 ->  | N11: 1 | O11: 1 | P11: 1 | Q11: =I7 ->  | R11: =YEAR(Q11) ->  | S11: =MONTH(Q11) ->  | T11: =DAY(Q11) ->  | U11: =+Q11-$I$6 ->  | V11: =VLOOKUP(O11,$D$11:$M$150,3,FALSE) ->  | W11: =VLOOKUP(O11,$D$11:$M$150,10,FALSE) ->  | X11: =D6 -> 5000000 | Y11: =IF(P11>Alapadatok!$B$21,0,X11*V11/1200+X11*V11*W8/36000) ->  | Z11: =IF(P11>Alapadatok!$B$21,0,IF(P11<=Alapadatok!$K$15,Y11-X11*F11*W8/36000,IF(O11=O10,Z10,PMT(W11/1200,Alapadatok!$B$21-O11*3+3,-X11))))+X11*F11*W8/36000 ->  | AA11: =X11+Y11-Z11 ->  | AB11: =(Z11+AC11)/(1+$AB$9)^(U11/365) ->  | AC11: =IF(P11>Alapadatok!$B$21,0,Alapadatok!$B$35+AK11) -> 0 | AD11: =IF(P11>Alapadatok!$B$21,0,IF($AE$6=$AF$6,($AD$7+AD6*Alapadatok!P10*W8/36000)*Alapadatok!$P$12,($AD$7+AD6*Alapadatok!P10*W8/36000)*AE11))*(1+Alapadatok!$P$11) ->  | AE11: =Alapadatok!$P$12 -> 270 | AF11: =SIN(360/Alapadatok!$J$28*P11*PI()/180) -> 0.2079116908 | AG11: =SIN(360/Alapadatok!$J$29*P11*PI()/180) -> 0.7818314825 | AH11: =Alapadatok!$K$30 -> 0.015 | AI11: =ABS(AF11*Alapadatok!$K$28)+(AG11*Alapadatok!$K$29)+AH11 -> 0.05874796075 | AJ11: 1 | AK11: =IF(AJ11>Alapadatok!$P$31,0,Alapadatok!$B$38+IF(Alapadatok!$D$38=Alapadatok!$O$32,Alapadatok!$B$36,0)) -> 0 | AM11: =IF(Alapadatok!$K$15=0,IF(F11=M11," ",M11)," ") ->  | AW11: =AD8 -> 44986.29779
B12: 1 | D12: =+D11+1 -> 2 | E12: =IF(D11*3>=Alapadatok!$B$21,"",VLOOKUP(D12*3-2,Alapadatok!$T$4:$W$423,$AI$8+1,FALSE)) -> 2.11 | F12: =IF(D11*3>=Alapadatok!$B$21,"",E12+$F$11-$E$11) ->  | G12: =IF(OR($H$9<>"",D11*3>=Alapadatok!$B$21),"",VLOOKUP(D12,$O$11:$AA$430,12,FALSE)) ->  | H12: =IF(OR($H$9<>"",D11*3>=Alapadatok!$B$21),"",VLOOKUP(D12*3,$P$11:$AA$430,12,FALSE)) ->  | M12: =IF(D11*3>=Alapadatok!$B$21,"n",F12) ->  | N12: =N11 -> 1 | O12: 1 | P12: =P11+1 -> 2 | Q12: =DATE(R12,S12,T12) ->  | R12: =IF(S12=1,R11+1,R11) ->  | S12: =IF(S11=12,1,S11+1) ->  | T12: =IF($T$11<29,$T$11,IF(S12=2,28,IF(AND(T11=31,OR(S12=4,S12=6,S12=9,S12=11)),30,$T$11))) ->  | V12: =VLOOKUP(O12,$D$11:$M$150,3,FALSE) ->  | W12: =VLOOKUP(O12,$D$11:$M$150,10,FALSE) ->  | X12: =+AA11 ->  | Y12: =IF(P12>Alapadatok!$B$21,0,X12*V12/1200) ->  | Z12: =IF(P12>Alapadatok!$B$21,0,IF(P12<=Alapadatok!$K$15,Y12+X11*F11*W8/36000,IF(O12=O11,Z11,PMT(W12/1200,Alapadatok!$B$21-O12*3+3,-X12))))-X11*F11*W8/36000 ->  | AB12: =AB11+(Z12+AC12)/(1+$AB$9)^(U12/365) ->  | AC12: =IF(P12>Alapadatok!$B$21,0,Alapadatok!$B$35+AK12) -> 0 | AD12: =IF(P12>Alapadatok!$B$21,0,IF($AE$6=$AF$6,$AD$7*Alapadatok!$P$12,$AD$7*AE12))*(1+Alapadatok!$P$11) -> 44986.29779 | AE12: =(($AE$17-$AE$11)/6)*P11+$AE$11 -> 273.3602091 | AF12: =SIN(360/Alapadatok!$J$28*P12*PI()/180) -> 0.4067366431 | AG12: =SIN(360/Alapadatok!$J$29*P12*PI()/180) -> 0.9749279122 | AH12: =Alapadatok!$K$30 -> 0.015 | AI12: =ABS(AF12*Alapadatok!$K$28)+(AG12*Alapadatok!$K$29)+AH12 -> 0.07840131507 | AJ12: 12 | AK12: =IF(AJ12>Alapadatok!$P$31,0,Alapadatok!$B$38+IF(Alapadatok!$D$38=Alapadatok!$O$32,Alapadatok!$B$36,0)) -> 0 | AM12: =IF(Alapadatok!$K$15=0,IF(F12=M12," ",M12)," ") ->  | AW12: =IF(D11*6>=Alapadatok!$B$21,"",VLOOKUP(D12,$O$11:$AD$430,16,FALSE)) -> 44986.29779
B13: 1 | D13: =+D12+1 -> 3 | E13: =IF(D12*3>=Alapadatok!$B$21,"",VLOOKUP(D13*3-2,Alapadatok!$T$4:$W$423,$AI$8+1,FALSE)) -> 2.11 | F13: =IF(D12*3>=Alapadatok!$B$21,"",E13+$F$11-$E$11) ->  | G13: =IF(OR($H$9<>"",D12*3>=Alapadatok!$B$21),"",VLOOKUP(D13,$O$11:$AA$430,12,FALSE)) ->  | H13: =IF(OR($H$9<>"",D12*3>=Alapadatok!$B$21),"",VLOOKUP(D13*3,$P$11:$AA$430,12,FALSE)) ->  | M13: =IF(D12*3>=Alapadatok!$B$21,"n",F13) ->  | N13: 1 | O13: 1 | P13: 3 | Y13: =IF(P13>Alapadatok!$B$21,0,X13*V13/1200) ->  | Z13: =IF(P13>Alapadatok!$B$21,0,IF(AND(Alapadatok!$J$15="I",P13=Alapadatok!$B$21),Z12+X13,IF(P13<=Alapadatok!$K$15,Y13,IF(O13=O12,Z12,PMT(W13/1200,Alapadatok!$B$21-O13*3+3,-X13))))) ->  | AB13: =AB12+(Z13+AC13)/(1+$AB$9)^(U13/365) ->  | AC13: =IF(P13>Alapadatok!$B$21,0,Alapadatok!$B$35+AK13) -> 0 | AD13: =IF(P13>Alapadatok!$B$21,0,IF($AE$6=$AF$6,$AD$7*Alapadatok!$P$12,$AD$7*AE13))*(1+Alapadatok!$P$11) -> 44986.29779 | AE13: =(($AE$17-$AE$11)/6)*P12+$AE$11 -> 276.7204182 | AF13: =SIN(360/Alapadatok!$J$28*P13*PI()/180) -> 0.5877852523 | AG13: =SIN(360/Alapadatok!$J$29*P13*PI()/180) -> 0.4338837391 | AH13: =Alapadatok!$K$30 -> 0.015 | AI13: =ABS(AF13*Alapadatok!$K$28)+(AG13*Alapadatok!$K$29)+AH13 -> 0.0676224647 | AJ13: 12 | AK13: =IF(AJ13>Alapadatok!$P$31,0,Alapadatok!$B$38+IF(Alapadatok!$D$38=Alapadatok!$O$32,Alapadatok!$B$36,0)) -> 0 | AM13: =IF(Alapadatok!$K$15=0,IF(F13=M13," ",M13)," ") ->  | AW13: =IF(D12*6>=Alapadatok!$B$21,"",VLOOKUP(D13,$O$11:$AD$430,16,FALSE)) -> 44986.29779
B14: 1 | D14: 4 | E14: =IF(D13*3>=Alapadatok!$B$21,"",VLOOKUP(D14*3-2,Alapadatok!$T$4:$W$423,$AI$8+1,FALSE)) -> 2.11 | F14: =IF(D13*3>=Alapadatok!$B$21,"",E14+$F$11-$E$11) ->  | G14: =IF(OR($H$9<>"",D13*3>=Alapadatok!$B$21),"",VLOOKUP(D14,$O$11:$AA$430,12,FALSE)) ->  | H14: =IF(OR($H$9<>"",D13*3>=Alapadatok!$B$21),"",VLOOKUP(D14*3,$P$11:$AA$430,12,FALSE)) ->  | M14: =IF(D13*3>=Alapadatok!$B$21,"n",F14) ->  | N14: 1 | O14: =O11+1 -> 2 | P14: 4 | Y14: =IF(P14>Alapadatok!$B$21,0,X14*V14/1200) ->  | Z14: =IF(P14>Alapadatok!$B$21,0,IF(AND(Alapadatok!$J$15="I",P14=Alapadatok!$B$21),Z13+X14,IF(P14<=Alapadatok!$K$15,Y14,IF(O14=O13,Z13,PMT(W14/1200,Alapadatok!$B$21-O14*3+3,-X14))))) ->  | AC14: =IF(P14>Alapadatok!$B$21,0,Alapadatok!$B$35+AK14) -> 0 | AD14: =IF(P14>Alapadatok!$B$21,0,IF($AE$6=$AF$6,$AD$7*Alapadatok!$P$12,$AD$7*AE14))*(1+Alapadatok!$P$11) -> 44986.29779 | AE14: =(($AE$17-$AE$11)/6)*P13+$AE$11 -> 280.0806274 | AF14: =SIN(360/Alapadatok!$J$28*P14*PI()/180) -> 0.7431448255 | AG14: =SIN(360/Alapadatok!$J$29*P14*PI()/180) -> -0.4338837391 | AH14: =Alapadatok!$K$30 -> 0.015 | AI14: =ABS(AF14*Alapadatok!$K$28)+(AG14*Alapadatok!$K$29)+AH14 -> 0.04223333996 | AJ14: 4 | AK14: =IF(AJ14>Alapadatok!$P$31,0,Alapadatok!$B$38+IF(Alapadatok!$D$38=Alapadatok!$O$32,Alapadatok!$B$36,0)) -> 0 | AM14: =IF(Alapadatok!$K$15=0,IF(F14=M14," ",M14)," ") ->  | AW14: =IF(D13*6>=Alapadatok!$B$21,"",VLOOKUP(D14,$O$11:$AD$430,16,FALSE)) -> 44986.29779
A15: 2 | B15: 1 | C15: =IF(Alapadatok!$K$15=0,2,"2 (türelmi idő)") -> 2 | D15: 5 | E15: =IF(D14*3>=Alapadatok!$B$21,"",VLOOKUP(D15*3-2,Alapadatok!$T$4:$W$423,$AI$8+1,FALSE)) -> 2.11 | F15: =IF(D14*3>=Alapadatok!$B$21,"",E15+$F$11-$E$11) ->  | G15: =IF(OR($H$9<>"",D14*3>=Alapadatok!$B$21),"",VLOOKUP(D15,$O$11:$AA$430,12,FALSE)) ->  | H15: =IF(OR($H$9<>"",D14*3>=Alapadatok!$B$21),"",VLOOKUP(D15*3,$P$11:$AA$430,12,FALSE)) ->  | I15: =IF($H$9<>"","",(G15/G11)-1) ->  | M15: =IF(D14*3>=Alapadatok!$B$21,"n",F15) ->  | N15: 1 | O15: =O12+1 -> 2 | P15: 5 | Y15: =IF(P15>Alapadatok!$B$21,0,X15*V15/1200) ->  | Z15: =IF(P15>Alapadatok!$B$21,0,IF(AND(Alapadatok!$J$15="I",P15=Alapadatok!$B$21),Z14+X15,IF(P15<=Alapadatok!$K$15,Y15,IF(O15=O14,Z14,PMT(W15/1200,Alapadatok!$B$21-O15*3+3,-X15))))) ->  | AC15: =IF(P15>Alapadatok!$B$21,0,Alapadatok!$B$35+AK15) -> 0 | AD15: =IF(P15>Alapadatok!$B$21,0,IF($AE$6=$AF$6,$AD$7*Alapadatok!$P$12,$AD$7*AE15))*(1+Alapadatok!$P$11) -> 44986.29779 | AE15: =(($AE$17-$AE$11)/6)*P14+$AE$11 -> 283.4408365 | AF15: =SIN(360/Alapadatok!$J$28*P15*PI()/180) -> 0.8660254038 | AG15: =SIN(360/Alapadatok!$J$29*P15*PI()/180) -> -0.9749279122 | AH15: =Alapadatok!$K$30 -> 0.015 | AI15: =ABS(AF15*Alapadatok!$K$28)+(AG15*Alapadatok!$K$29)+AH15 -> 0.02796440774 | AJ15: 12 | AK15: =IF(AJ15>Alapadatok!$P$31,0,Alapadatok!$B$38+IF(Alapadatok!$D$38=Alapadatok!$O$32,Alapadatok!$B$36,0)) -> 0 | AM15: =IF(Alapadatok!$K$15<24,IF(F15=M15," ",M15)," ") ->  | AW15: =IF(D14*6>=Alapadatok!$B$21,"",VLOOKUP(D15,$O$11:$AD$430,16,FALSE)) -> 44986.29779
B16: 1 | D16: 6 | E16: =IF(D15*3>=Alapadatok!$B$21,"",VLOOKUP(D16*3-2,Alapadatok!$T$4:$W$423,$AI$8+1,FALSE)) -> 2.11 | F16: =IF(D15*3>=Alapadatok!$B$21,"",E16+$F$11-$E$11) ->  | G16: =IF(OR($H$9<>"",D15*3>=Alapadatok!$B$21),"",VLOOKUP(D16,$O$11:$AA$430,12,FALSE)) ->  | H16: =IF(OR($H$9<>"",D15*3>=Alapadatok!$B$21),"",VLOOKUP(D16*3,$P$11:$AA$430,12,FALSE)) ->  | I16: =IF($H$9<>"","",(G16/G12)-1) ->  | M16: =IF(D15*3>=Alapadatok!$B$21,"n",F16) ->  | N16: 1 | O16: 2 | P16: 6 | Y16: =IF(P16>Alapadatok!$B$21,0,X16*V16/1200) ->  | Z16: =IF(P16>Alapadatok!$B$21,0,IF(AND(Alapadatok!$J$15="I",P16=Alapadatok!$B$21),Z15+X16,IF(P16<=Alapadatok!$K$15,Y16,IF(O16=O15,Z15,PMT(W16/1200,Alapadatok!$B$21-O16*3+3,-X16))))) ->  | AC16: =IF(P16>Alapadatok!$B$21,0,Alapadatok!$B$35+AK16) -> 0 | AD16: =IF(P16>Alapadatok!$B$21,0,IF($AE$6=$AF$6,$AD$7*Alapadatok!$P$12,$AD$7*AE16))*(1+Alapadatok!$P$11) -> 44986.29779 | AE16: =(($AE$17-$AE$11)/6)*P15+$AE$11 -> 286.8010456 | AF16: =SIN(360/Alapadatok!$J$28*P16*PI()/180) -> 0.9510565163 | AG16: =SIN(360/Alapadatok!$J$29*P16*PI()/180) -> -0.7818314825 | AH16: =Alapadatok!$K$30 -> 0.015 | AI16: =ABS(AF16*Alapadatok!$K$28)+(AG16*Alapadatok!$K$29)+AH16 -> 0.04079013168 | AJ16: 12 | AK16: =IF(AJ16>Alapadatok!$P$31,0,Alapadatok!$B$38+IF(Alapadatok!$D$38=Alapadatok!$O$32,Alapadatok!$B$36,0)) -> 0 | AM16: =IF(Alapadatok!$K$15<24,IF(F16=M16," ",M16)," ") ->  | AW16: =IF(D15*6>=Alapadatok!$B$21,"",VLOOKUP(D16,$O$11:$AD$430,16,FALSE)) -> 44986.29779
B17: 1 | D17: 7 | E17: =IF(D16*3>=Alapadatok!$B$21,"",VLOOKUP(D17*3-2,Alapadatok!$T$4:$W$423,$AI$8+1,FALSE)) -> 2.11 | F17: =IF(D16*3>=Alapadatok!$B$21,"",E17+$F$11-$E$11) ->  | G17: =IF(OR($H$9<>"",D16*3>=Alapadatok!$B$21),"",VLOOKUP(D17,$O$11:$AA$430,12,FALSE)) ->  | H17: =IF(OR($H$9<>"",D16*3>=Alapadatok!$B$21),"",VLOOKUP(D17*3,$P$11:$AA$430,12,FALSE)) ->  | I17: =IF($H$9<>"","",(G17/G13)-1) ->  | M17: =IF(D16*3>=Alapadatok!$B$21,"n",F17) ->  | N17: =N16 -> 1 | O17: 3 | P17: 7 | Y17: =IF(P17>Alapadatok!$B$21,0,X17*V17/1200) ->  | Z17: =IF(P17>Alapadatok!$B$21,0,IF(AND(Alapadatok!$J$15="I",P17=Alapadatok!$B$21),Z16+X17,IF(P17<=Alapadatok!$K$15,Y17,IF(O17=O16,Z16,PMT(W17/1200,Alapadatok!$B$21-O17*3+3,-X17))))) ->  | AC17: =IF(P17>Alapadatok!$B$21,0,Alapadatok!$B$35+AK17) -> 0 | AD17: =IF(P17>Alapadatok!$B$21,0,IF($AE$6=$AF$6,$AD$7*Alapadatok!$P$12,$AD$7*AE17))*(1+Alapadatok!$P$11) -> 44986.29779 | AE17: =Alapadatok!$P$12*(1+AI17) -> 290.1612547 | AF17: =SIN(360/Alapadatok!$J$28*P17*PI()/180) -> 0.9945218954 | AG17: =SIN(360/Alapadatok!$J$29*P17*PI()/180) -> -2.45029691e-16 | AH17: =Alapadatok!$K$30 -> 0.015 | AI17: =ABS(AF17*Alapadatok!$K$28)+(AG17*Alapadatok!$K$29)+AH17 -> 0.07467131372 | AJ17: 2 | AK17: =IF(AJ17>Alapadatok!$P$31,0,Alapadatok!$B$38+IF(Alapadatok!$D$38=Alapadatok!$O$32,Alapadatok!$B$36,0)) -> 0 | AM17: =IF(Alapadatok!$K$15<24,IF(F17=M17," ",M17)," ") ->  | AW17: =IF(D16*6>=Alapadatok!$B$21,"",VLOOKUP(D17,$O$11:$AD$430,16,FALSE)) -> 44986.29779
B18: 1 | D18: 8 | E18: =IF(D17*3>=Alapadatok!$B$21,"",VLOOKUP(D18*3-2,Alapadatok!$T$4:$W$423,$AI$8+1,FALSE)) -> 2.11 | F18: =IF(D17*3>=Alapadatok!$B$21,"",E18+$F$11-$E$11) ->  | G18: =IF(OR($H$9<>"",D17*3>=Alapadatok!$B$21),"",VLOOKUP(D18,$O$11:$AA$430,12,FALSE)) ->  | H18: =IF(OR($H$9<>"",D17*3>=Alapadatok!$B$21),"",VLOOKUP(D18*3,$P$11:$AA$430,12,FALSE)) ->  | M18: =IF(D17*3>=Alapadatok!$B$21,"n",F18) ->  | N18: 1 | O18: 3 | P18: 8 | Y18: =IF(P18>Alapadatok!$B$21,0,X18*V18/1200) ->  | Z18: =IF(P18>Alapadatok!$B$21,0,IF(AND(Alapadatok!$J$15="I",P18=Alapadatok!$B$21),Z17+X18,IF(P18<=Alapadatok!$K$15,Y18,IF(O18=O17,Z17,PMT(W18/1200,Alapadatok!$B$21-O18*3+3,-X18))))) ->  | AC18: =IF(P18>Alapadatok!$B$21,0,Alapadatok!$B$35+AK18) -> 0 | AD18: =IF(P18>Alapadatok!$B$21,0,IF($AE$6=$AF$6,$AD$7*Alapadatok!$P$12,$AD$7*AE18))*(1+Alapadatok!$P$11) -> 44986.29779 | AE18: =Alapadatok!$P$12*(1+AI18) -> 298.6050347 | AF18: =SIN(360/Alapadatok!$J$28*P18*PI()/180) -> 0.9945218954 | AG18: =SIN(360/Alapadatok!$J$29*P18*PI()/180) -> 0.7818314825 | AH18: =Alapadatok!$K$30 -> 0.015 | AI18: =ABS(AF18*Alapadatok!$K$28)+(AG18*Alapadatok!$K$29)+AH18 -> 0.105944573 | AJ18: 12 | AK18: =IF(AJ18>Alapadatok!$P$31,0,Alapadatok!$B$38+IF(Alapadatok!$D$38=Alapadatok!$O$32,Alapadatok!$B$36,0)) -> 0 | AM18: =IF(Alapadatok!$K$15<24,IF(F18=M18," ",M18)," ") ->  | AW18: =IF(D17*6>=Alapadatok!$B$21,"",VLOOKUP(D18,$O$11:$AD$430,16,FALSE)) -> 44986.29779
A19: =C19 -> 3 | B19: 1 | C19: =IF(Alapadatok!$K$15=0,3,"3 (türelmi idő)") -> 3 | D19: 9 | E19: =IF(D18*3>=Alapadatok!$B$21,"",VLOOKUP(D19*3-2,Alapadatok!$T$4:$W$423,$AI$8+1,FALSE)) -> 2.11 | F19: =IF(D18*3>=Alapadatok!$B$21,"",E19+$F$11-$E$11) ->  | G19: =IF(OR($H$9<>"",D18*3>=Alapadatok!$B$21),"",VLOOKUP(D19,$O$11:$AA$430,12,FALSE)) ->  | H19: =IF(OR($H$9<>"",D18*3>=Alapadatok!$B$21),"",VLOOKUP(D19*3,$P$11:$AA$430,12,FALSE)) ->  | M19: =IF(D18*3>=Alapadatok!$B$21,"n",F19) ->  | N19: 1 | O19: 3 | P19: 9 | Y19: =IF(P19>Alapadatok!$B$21,0,X19*V19/1200) ->  | Z19: =IF(P19>Alapadatok!$B$21,0,IF(AND(Alapadatok!$J$15="I",P19=Alapadatok!$B$21),Z18+X19,IF(P19<=Alapadatok!$K$15,Y19,IF(O19=O18,Z18,PMT(W19/1200,Alapadatok!$B$21-O19*3+3,-X19))))) ->  | AC19: =IF(P19>Alapadatok!$B$21,0,Alapadatok!$B$35+AK19) -> 0 | AD19: =IF(P19>Alapadatok!$B$21,0,IF($AE$6=$AF$6,$AD$7*Alapadatok!$P$12,$AD$7*AE19))*(1+Alapadatok!$P$11) -> 44986.29779 | AE19: =Alapadatok!$P$12*(1+AI19) -> 299.986337 | AF19: =SIN(360/Alapadatok!$J$28*P19*PI()/180) -> 0.9510565163 | AG19: =SIN(360/Alapadatok!$J$29*P19*PI()/180) -> 0.9749279122 | AH19: =Alapadatok!$K$30 -> 0.015 | AI19: =ABS(AF19*Alapadatok!$K$28)+(AG19*Alapadatok!$K$29)+AH19 -> 0.1110605075 | AJ19: 12 | AK19: =IF(AJ19>Alapadatok!$P$31,0,Alapadatok!$B$38+IF(Alapadatok!$D$38=Alapadatok!$O$32,Alapadatok!$B$36,0)) -> 0 | AM19: =IF(F19=M19," ",M19) ->  | AW19: =IF(D18*6>=Alapadatok!$B$21,"",VLOOKUP(D19,$O$11:$AD$430,16,FALSE)) -> 44986.29779
B20: 1 | D20: 10 | E20: =IF(D19*3>=Alapadatok!$B$21,"",VLOOKUP(D20*3-2,Alapadatok!$T$4:$W$423,$AI$8+1,FALSE)) -> 2.11 | F20: =IF(D19*3>=Alapadatok!$B$21,"",E20+$F$11-$E$11) ->  | G20: =IF(OR($H$9<>"",D19*3>=Alapadatok!$B$21),"",VLOOKUP(D20,$O$11:$AA$430,12,FALSE)) ->  | H20: =IF(OR($H$9<>"",D19*3>=Alapadatok!$B$21),"",VLOOKUP(D20*3,$P$11:$AA$430,12,FALSE)) ->  | M20: =IF(D19*3>=Alapadatok!$B$21,"n",F20) ->  | N20: 1 | O20: 4 | P20: 10 | Y20: =IF(P20>Alapadatok!$B$21,0,X20*V20/1200) ->  | Z20: =IF(P20>Alapadatok!$B$21,0,IF(AND(Alapadatok!$J$15="I",P20=Alapadatok!$B$21),Z19+X20,IF(P20<=Alapadatok!$K$15,Y20,IF(O20=O19,Z19,PMT(W20/1200,Alapadatok!$B$21-O20*3+3,-X20))))) ->  | AC20: =IF(P20>Alapadatok!$B$21,0,Alapadatok!$B$35+AK20) -> 0 | AD20: =IF(P20>Alapadatok!$B$21,0,IF($AE$6=$AF$6,$AD$7*Alapadatok!$P$12,$AD$7*AE20))*(1+Alapadatok!$P$11) -> 44986.29779 | AE20: =Alapadatok!$P$12*(1+AI20) -> 292.7655559 | AF20: =SIN(360/Alapadatok!$J$28*P20*PI()/180) -> 0.8660254038 | AG20: =SIN(360/Alapadatok!$J$29*P20*PI()/180) -> 0.4338837391 | AH20: =Alapadatok!$K$30 -> 0.015 | AI20: =ABS(AF20*Alapadatok!$K$28)+(AG20*Alapadatok!$K$29)+AH20 -> 0.08431687379 | AJ20: 4 | AK20: =IF(AJ20>Alapadatok!$P$31,0,Alapadatok!$B$38+IF(Alapadatok!$D$38=Alapadatok!$O$32,Alapadatok!$B$36,0)) -> 0 | AW20: =IF(D19*6>=Alapadatok!$B$21,"",VLOOKUP(D20,$O$11:$AD$430,16,FALSE)) -> 44986.29779
B21: 1 | D21: 11 | E21: =IF(D20*3>=Alapadatok!$B$21,"",VLOOKUP(D21*3-2,Alapadatok!$T$4:$W$423,$AI$8+1,FALSE)) -> 2.11 | F21: =IF(D20*3>=Alapadatok!$B$21,"",E21+$F$11-$E$11) ->  | G21: =IF(OR($H$9<>"",D20*3>=Alapadatok!$B$21),"",VLOOKUP(D21,$O$11:$AA$430,12,FALSE)) ->  | H21: =IF(OR($H$9<>"",D20*3>=Alapadatok!$B$21),"",VLOOKUP(D21*3,$P$11:$AA$430,12,FALSE)) ->  | M21: =IF(D20*3>=Alapadatok!$B$21,"n",F21) ->  | N21: 1 | O21: 4 | P21: 11 | Y21: =IF(P21>Alapadatok!$B$21,0,X21*V21/1200) ->  | Z21: =IF(P21>Alapadatok!$B$21,0,IF(AND(Alapadatok!$J$15="I",P21=Alapadatok!$B$21),Z20+X21,IF(P21<=Alapadatok!$K$15,Y21,IF(O21=O20,Z20,PMT(W21/1200,Alapadatok!$B$21-O21*3+3,-X21))))) ->  | AC21: =IF(P21>Alapadatok!$B$21,0,Alapadatok!$B$35+AK21) -> 0 | AD21: =IF(P21>Alapadatok!$B$21,0,IF($AE$6=$AF$6,$AD$7*Alapadatok!$P$12,$AD$7*AE21))*(1+Alapadatok!$P$11) -> 44986.29779 | AE21: =Alapadatok!$P$12*(1+AI21) -> 281.4030018 | AF21: =SIN(360/Alapadatok!$J$28*P21*PI()/180) -> 0.7431448255 | AG21: =SIN(360/Alapadatok!$J$29*P21*PI()/180) -> -0.4338837391 | AH21: =Alapadatok!$K$30 -> 0.015 | AI21: =ABS(AF21*Alapadatok!$K$28)+(AG21*Alapadatok!$K$29)+AH21 -> 0.04223333996 | AJ21: 12 | AK21: =IF(AJ21>Alapadatok!$P$31,0,Alapadatok!$B$38+IF(Alapadatok!$D$38=Alapadatok!$O$32,Alapadatok!$B$36,0)) -> 0 | AW21: =IF(D20*6>=Alapadatok!$B$21,"",VLOOKUP(D21,$O$11:$AD$430,16,FALSE)) -> 44986.29779
B22: 1 | D22: 12 | E22: =IF(D21*3>=Alapadatok!$B$21,"",VLOOKUP(D22*3-2,Alapadatok!$T$4:$W$423,$AI$8+1,FALSE)) -> 2.11 | F22: =IF(D21*3>=Alapadatok!$B$21,"",E22+$F$11-$E$11) ->  | G22: =IF(OR($H$9<>"",D21*3>=Alapadatok!$B$21),"",VLOOKUP(D22,$O$11:$AA$430,12,FALSE)) ->  | H22: =IF(OR($H$9<>"",D21*3>=Alapadatok!$B$21),"",VLOOKUP(D22*3,$P$11:$AA$430,12,FALSE)) ->  | M22: =IF(D21*3>=Alapadatok!$B$21,"n",F22) ->  | N22: 1 | O22: 4 | P22: 12 | Y22: =IF(P22>Alapadatok!$B$21,0,X22*V22/1200) ->  | Z22: =IF(P22>Alapadatok!$B$21,0,IF(AND(Alapadatok!$J$15="I",P22=Alapadatok!$B$21),Z21+X22,IF(P22<=Alapadatok!$K$15,Y22,IF(O22=O21,Z21,PMT(W22/1200,Alapadatok!$B$21-O22*3+3,-X22))))) ->  | AC22: =IF(P22>Alapadatok!$B$21,0,Alapadatok!$B$35+AK22) -> 0 | AD22: =IF(P22>Alapadatok!$B$21,0,IF($AE$6=$AF$6,$AD$7*Alapadatok!$P$12,$AD$7*AE22))*(1+Alapadatok!$P$11) -> 44986.29779 | AE22: =Alapadatok!$P$12*(1+AI22) -> 273.0428996 | AF22: =SIN(360/Alapadatok!$J$28*P22*PI()/180) -> 0.5877852523 | AG22: =SIN(360/Alapadatok!$J$29*P22*PI()/180) -> -0.9749279122 | AH22: =Alapadatok!$K$30 -> 0.015 | AI22: =ABS(AF22*Alapadatok!$K$28)+(AG22*Alapadatok!$K$29)+AH22 -> 0.01126999865 | AJ22: 12 | AK22: =IF(AJ22>Alapadatok!$P$31,0,Alapadatok!$B$38+IF(Alapadatok!$D$38=Alapadatok!$O$32,Alapadatok!$B$36,0)) -> 0 | AW22: =IF(D21*6>=Alapadatok!$B$21,"",VLOOKUP(D22,$O$11:$AD$430,16,FALSE)) -> 44986.29779
A23: =C23 -> 4 | B23: 1 | C23: =IF(Alapadatok!$K$15=0,4,"4 (türelmi idő)") -> 4 | D23: 13 | E23: =IF(D22*3>=Alapadatok!$B$21,"",VLOOKUP(D23*3-2,Alapadatok!$T$4:$W$423,$AI$8+1,FALSE)) -> 2.11 | F23: =IF(D22*3>=Alapadatok!$B$21,"",E23+$F$11-$E$11) ->  | G23: =IF(OR($H$9<>"",D22*3>=Alapadatok!$B$21),"",VLOOKUP(D23,$O$11:$AA$430,12,FALSE)) ->  | H23: =IF(OR($H$9<>"",D22*3>=Alapadatok!$B$21),"",VLOOKUP(D23*3,$P$11:$AA$430,12,FALSE)) ->  | M23: =IF(D22*3>=Alapadatok!$B$21,"n",F23) ->  | N23: =N11+1 -> 2 | O23: 5 | P23: 13 | Y23: =IF(P23>Alapadatok!$B$21,0,X23*V23/1200) ->  | Z23: =IF(P23>Alapadatok!$B$21,0,IF(AND(Alapadatok!$J$15="I",P23=Alapadatok!$B$21),Z22+X23,IF(P23<=Alapadatok!$K$15,Y23,IF(O23=O22,Z22,PMT(W23/1200,Alapadatok!$B$21-O23*3+3,-X23))))) ->  | AC23: =IF(P23>Alapadatok!$B$21,0,Alapadatok!$B$35+AK23) -> 0 | AD23: =IF(P23>Alapadatok!$B$21,0,IF($AE$6=$AF$6,$AD$7*Alapadatok!$P$12,$AD$7*AE23))*(1+Alapadatok!$P$11) -> 44986.29779 | AE23: =Alapadatok!$P$12*(1+AI23) -> 272.1953536 | AF23: =SIN(360/Alapadatok!$J$28*P23*PI()/180) -> 0.4067366431 | AG23: =SIN(360/Alapadatok!$J$29*P23*PI()/180) -> -0.7818314825 | AH23: =Alapadatok!$K$30 -> 0.015 | AI23: =ABS(AF23*Alapadatok!$K$28)+(AG23*Alapadatok!$K$29)+AH23 -> 0.008130939286 | AJ23: 1 | AK23: =IF(AJ23>Alapadatok!$P$31,0,Alapadatok!$B$38+IF(Alapadatok!$D$38=Alapadatok!$O$32,Alapadatok!$B$36,0)) -> 0 | AW23: =IF(D22*6>=Alapadatok!$B$21,"",VLOOKUP(D23,$O$11:$AD$430,16,FALSE)) -> 44986.29779
B24: 1 | D24: 14 | E24: =IF(D23*3>=Alapadatok!$B$21,"",VLOOKUP(D24*3-2,Alapadatok!$T$4:$W$423,$AI$8+1,FALSE)) -> 2.11 | F24: =IF(D23*3>=Alapadatok!$B$21,"",E24+$F$11-$E$11) ->  | G24: =IF(OR($H$9<>"",D23*3>=Alapadatok!$B$21),"",VLOOKUP(D24,$O$11:$AA$430,12,FALSE)) ->  | H24: =IF(OR($H$9<>"",D23*3>=Alapadatok!$B$21),"",VLOOKUP(D24*3,$P$11:$AA$430,12,FALSE)) ->  | M24: =IF(D23*3>=Alapadatok!$B$21,"n",F24) ->  | N24: 2 | O24: 5 | P24: 14 | Y24: =IF(P24>Alapadatok!$B$21,0,X24*V24/1200) ->  | Z24: =IF(P24>Alapadatok!$B$21,0,IF(AND(Alapadatok!$J$15="I",P24=Alapadatok!$B$21),Z23+X24,IF(P24<=Alapadatok!$K$15,Y24,IF(O24=O23,Z23,PMT(W24/1200,Alapadatok!$B$21-O24*3+3,-X24))))) ->  | AC24: =IF(P24>Alapadatok!$B$21,0,Alapadatok!$B$35+AK24) -> 0 | AD24: =IF(P24>Alapadatok!$B$21,0,IF($AE$6=$AF$6,$AD$7*Alapadatok!$P$12,$AD$7*AE24))*(1+Alapadatok!$P$11) -> 44986.29779 | AE24: =Alapadatok!$P$12*(1+AI24) -> 277.4181694 | AF24: =SIN(360/Alapadatok!$J$28*P24*PI()/180) -> 0.2079116908 | AG24: =SIN(360/Alapadatok!$J$29*P24*PI()/180) -> -4.90059382e-16 | AH24: =Alapadatok!$K$30 -> 0.015 | AI24: =ABS(AF24*Alapadatok!$K$28)+(AG24*Alapadatok!$K$29)+AH24 -> 0.02747470145 | AJ24: 12 | AK24: =IF(AJ24>Alapadatok!$P$31,0,Alapadatok!$B$38+IF(Alapadatok!$D$38=Alapadatok!$O$32,Alapadatok!$B$36,0)) -> 0 | AW24: =IF(D23*6>=Alapadatok!$B$21,"",VLOOKUP(D24,$O$11:$AD$430,16,FALSE)) -> 44986.29779
B25: 1 | D25: 15 | E25: =IF(D24*3>=Alapadatok!$B$21,"",VLOOKUP(D25*3-2,Alapadatok!$T$4:$W$423,$AI$8+1,FALSE)) -> 2.11 | F25: =IF(D24*3>=Alapadatok!$B$21,"",E25+$F$11-$E$11) ->  | G25: =IF(OR($H$9<>"",D24*3>=Alapadatok!$B$21),"",VLOOKUP(D25,$O$11:$AA$430,12,FALSE)) ->  | H25: =IF(OR($H$9<>"",D24*3>=Alapadatok!$B$21),"",VLOOKUP(D25*3,$P$11:$AA$430,12,FALSE)) ->  | M25: =IF(D24*3>=Alapadatok!$B$21,"n",F25) ->  | N25: 2 | O25: 5 | P25: 15 | Y25: =IF(P25>Alapadatok!$B$21,0,X25*V25/1200) ->  | Z25: =IF(P25>Alapadatok!$B$21,0,IF(AND(Alapadatok!$J$15="I",P25=Alapadatok!$B$21),Z24+X25,IF(P25<=Alapadatok!$K$15,Y25,IF(O25=O24,Z24,PMT(W25/1200,Alapadatok!$B$21-O25*3+3,-X25))))) ->  | AC25: =IF(P25>Alapadatok!$B$21,0,Alapadatok!$B$35+AK25) -> 0 | AD25: =IF(P25>Alapadatok!$B$21,0,IF($AE$6=$AF$6,$AD$7*Alapadatok!$P$12,$AD$7*AE25))*(1+Alapadatok!$P$11) -> 44986.29779 | AE25: =Alapadatok!$P$12*(1+AI25) -> 282.49378 | AF25: =SIN(360/Alapadatok!$J$28*P25*PI()/180) -> 1.225148455e-16 | AG25: =SIN(360/Alapadatok!$J$29*P25*PI()/180) -> 0.7818314825 | AH25: =Alapadatok!$K$30 -> 0.015 | AI25: =ABS(AF25*Alapadatok!$K$28)+(AG25*Alapadatok!$K$29)+AH25 -> 0.0462732593 | AJ25: 12 | AK25: =IF(AJ25>Alapadatok!$P$31,0,Alapadatok!$B$38+IF(Alapadatok!$D$38=Alapadatok!$O$32,Alapadatok!$B$36,0)) -> 0 | AW25: =IF(D24*6>=Alapadatok!$B$21,"",VLOOKUP(D25,$O$11:$AD$430,16,FALSE)) -> 44986.29779
B26: 1 | D26: 16 | E26: =IF(D25*3>=Alapadatok!$B$21,"",VLOOKUP(D26*3-2,Alapadatok!$T$4:$W$423,$AI$8+1,FALSE)) -> 2.11 | F26: =IF(D25*3>=Alapadatok!$B$21,"",E26+$F$11-$E$11) ->  | G26: =IF(OR($H$9<>"",D25*3>=Alapadatok!$B$21),"",VLOOKUP(D26,$O$11:$AA$430,12,FALSE)) ->  | H26: =IF(OR($H$9<>"",D25*3>=Alapadatok!$B$21),"",VLOOKUP(D26*3,$P$11:$AA$430,12,FALSE)) ->  | M26: =IF(D25*3>=Alapadatok!$B$21,"n",F26) ->  | N26: 2 | O26: 6 | P26: 16 | Y26: =IF(P26>Alapadatok!$B$21,0,X26*V26/1200) ->  | Z26: =IF(P26>Alapadatok!$B$21,0,IF(AND(Alapadatok!$J$15="I",P26=Alapadatok!$B$21),Z25+X26,IF(P26<=Alapadatok!$K$15,Y26,IF(O26=O25,Z25,PMT(W26/1200,Alapadatok!$B$21-O26*3+3,-X26))))) ->  | AC26: =IF(P26>Alapadatok!$B$21,0,Alapadatok!$B$35+AK26) -> 0 | AD26: =IF(P26>Alapadatok!$B$21,0,IF($AE$6=$AF$6,$AD$7*Alapadatok!$P$12,$AD$7*AE26))*(1+Alapadatok!$P$11) -> 44986.29779 | AE26: =Alapadatok!$P$12*(1+AI26) -> 287.9473908 | AF26: =SIN(360/Alapadatok!$J$28*P26*PI()/180) -> -0.2079116908 | AG26: =SIN(360/Alapadatok!$J$29*P26*PI()/180) -> 0.9749279122 | AH26: =Alapadatok!$K$30 -> 0.015 | AI26: =ABS(AF26*Alapadatok!$K$28)+(AG26*Alapadatok!$K$29)+AH26 -> 0.06647181794 | AJ26: 4 | AK26: =IF(AJ26>Alapadatok!$P$31,0,Alapadatok!$B$38+IF(Alapadatok!$D$38=Alapadatok!$O$32,Alapadatok!$B$36,0)) -> 0 | AW26: =IF(D25*6>=Alapadatok!$B$21,"",VLOOKUP(D26,$O$11:$AD$430,16,FALSE)) -> 44986.29779
A27: =C27 -> 5 | B27: 1 | C27: =IF(Alapadatok!$K$15=0,5,"5 (türelmi idő)") -> 5 | D27: 17 | E27: =IF(D26*3>=Alapadatok!$B$21,"",VLOOKUP(D27*3-2,Alapadatok!$T$4:$W$423,$AI$8+1,FALSE)) -> 2.11 | F27: =IF(D26*3>=Alapadatok!$B$21,"",E27+$F$11-$E$11) ->  | G27: =IF(OR($H$9<>"",D26*3>=Alapadatok!$B$21),"",VLOOKUP(D27,$O$11:$AA$430,12,FALSE)) ->  | H27: =IF(OR($H$9<>"",D26*3>=Alapadatok!$B$21),"",VLOOKUP(D27*3,$P$11:$AA$430,12,FALSE)) ->  | M27: =IF(D26*3>=Alapadatok!$B$21,"n",F27) ->  | N27: 2 | O27: 6 | P27: 17 | Y27: =IF(P27>Alapadatok!$B$21,0,X27*V27/1200) ->  | Z27: =IF(P27>Alapadatok!$B$21,0,IF(AND(Alapadatok!$J$15="I",P27=Alapadatok!$B$21),Z26+X27,IF(P27<=Alapadatok!$K$15,Y27,IF(O27=O26,Z26,PMT(W27/1200,Alapadatok!$B$21-O27*3+3,-X27))))) ->  | AC27: =IF(P27>Alapadatok!$B$21,0,Alapadatok!$B$35+AK27) -> 0 | AD27: =IF(P27>Alapadatok!$B$21,0,IF($AE$6=$AF$6,$AD$7*Alapadatok!$P$12,$AD$7*AE27))*(1+Alapadatok!$P$11) -> 44986.29779 | AE27: =Alapadatok!$P$12*(1+AI27) -> 285.325078 | AF27: =SIN(360/Alapadatok!$J$28*P27*PI()/180) -> -0.4067366431 | AG27: =SIN(360/Alapadatok!$J$29*P27*PI()/180) -> 0.4338837391 | AH27: =Alapadatok!$K$30 -> 0.015 | AI27: =ABS(AF27*Alapadatok!$K$28)+(AG27*Alapadatok!$K$29)+AH27 -> 0.05675954815 | AJ27: 12 | AK27: =IF(AJ27>Alapadatok!$P$31,0,Alapadatok!$B$38+IF(Alapadatok!$D$38=Alapadatok!$O$32,Alapadatok!$B$36,0)) -> 0 | AW27: =IF(D26*6>=Alapadatok!$B$21,"",VLOOKUP(D27,$O$11:$AD$430,16,FALSE)) -> 44986.29779
B28: 1 | D28: 18 | E28: =IF(D27*3>=Alapadatok!$B$21,"",VLOOKUP(D28*3-2,Alapadatok!$T$4:$W$423,$AI$8+1,FALSE)) -> 2.11 | F28: =IF(D27*3>=Alapadatok!$B$21,"",E28+$F$11-$E$11) ->  | G28: =IF(OR($H$9<>"",D27*3>=Alapadatok!$B$21),"",VLOOKUP(D28,$O$11:$AA$430,12,FALSE)) ->  | H28: =IF(OR($H$9<>"",D27*3>=Alapadatok!$B$21),"",VLOOKUP(D28*3,$P$11:$AA$430,12,FALSE)) ->  | M28: =IF(D27*3>=Alapadatok!$B$21,"n",F28) ->  | N28: 2 | O28: 6 | P28: 18 | Y28: =IF(P28>Alapadatok!$B$21,0,X28*V28/1200) ->  | Z28: =IF(P28>Alapadatok!$B$21,0,IF(AND(Alapadatok!$J$15="I",P28=Alapadatok!$B$21),Z27+X28,IF(P28<=Alapadatok!$K$15,Y28,IF(O28=O27,Z27,PMT(W28/1200,Alapadatok!$B$21-O28*3+3,-X28))))) ->  | AC28: =IF(P28>Alapadatok!$B$21,0,Alapadatok!$B$35+AK28) -> 0 | AD28: =IF(P28>Alapadatok!$B$21,0,IF($AE$6=$AF$6,$AD$7*Alapadatok!$P$12,$AD$7*AE28))*(1+Alapadatok!$P$11) -> 44986.29779 | AE28: =Alapadatok!$P$12*(1+AI28) -> 278.8861767 | AF28: =SIN(360/Alapadatok!$J$28*P28*PI()/180) -> -0.5877852523 | AG28: =SIN(360/Alapadatok!$J$29*P28*PI()/180) -> -0.4338837391 | AH28: =Alapadatok!$K$30 -> 0.015 | AI28: =ABS(AF28*Alapadatok!$K$28)+(AG28*Alapadatok!$K$29)+AH28 -> 0.03291176557 | AJ28: 12 | AK28: =IF(AJ28>Alapadatok!$P$31,0,Alapadatok!$B$38+IF(Alapadatok!$D$38=Alapadatok!$O$32,Alapadatok!$B$36,0)) -> 0 | AW28: =IF(D27*6>=Alapadatok!$B$21,"",VLOOKUP(D28,$O$11:$AD$430,16,FALSE)) -> 44986.29779
B29: 1 | D29: 19 | E29: =IF(D28*3>=Alapadatok!$B$21,"",VLOOKUP(D29*3-2,Alapadatok!$T$4:$W$423,$AI$8+1,FALSE)) -> 2.11 | F29: =IF(D28*3>=Alapadatok!$B$21,"",E29+$F$11-$E$11) ->  | G29: =IF(OR($H$9<>"",D28*3>=Alapadatok!$B$21),"",VLOOKUP(D29,$O$11:$AA$430,12,FALSE)) ->  | H29: =IF(OR($H$9<>"",D28*3>=Alapadatok!$B$21),"",VLOOKUP(D29*3,$P$11:$AA$430,12,FALSE)) ->  | M29: =IF(D28*3>=Alapadatok!$B$21,"n",F29) ->  | N29: 2 | O29: 7 | P29: 19 | Y29: =IF(P29>Alapadatok!$B$21,0,X29*V29/1200) ->  | Z29: =IF(P29>Alapadatok!$B$21,0,IF(AND(Alapadatok!$J$15="I",P29=Alapadatok!$B$21),Z28+X29,IF(P29<=Alapadatok!$K$15,Y29,IF(O29=O28,Z28,PMT(W29/1200,Alapadatok!$B$21-O29*3+3,-X29))))) ->  | AC29: =IF(P29>Alapadatok!$B$21,0,Alapadatok!$B$35+AK29) -> 0 | AD29: =IF(P29>Alapadatok!$B$21,0,IF($AE$6=$AF$6,$AD$7*Alapadatok!$P$12,$AD$7*AE29))*(1+Alapadatok!$P$11) -> 44986.29779 | AE29: =Alapadatok!$P$12*(1+AI29) -> 275.5597247 | AF29: =SIN(360/Alapadatok!$J$28*P29*PI()/180) -> -0.7431448255 | AG29: =SIN(360/Alapadatok!$J$29*P29*PI()/180) -> -0.9749279122 | AH29: =Alapadatok!$K$30 -> 0.015 | AI29: =ABS(AF29*Alapadatok!$K$28)+(AG29*Alapadatok!$K$29)+AH29 -> 0.02059157304 | AJ29: 2 | AK29: =IF(AJ29>Alapadatok!$P$31,0,Alapadatok!$B$38+IF(Alapadatok!$D$38=Alapadatok!$O$32,Alapadatok!$B$36,0)) -> 0 | AW29: =IF(D28*6>=Alapadatok!$B$21,"",VLOOKUP(D29,$O$11:$AD$430,16,FALSE)) -> 44986.29779
B30: 1 | D30: 20 | E30: =IF(D29*3>=Alapadatok!$B$21,"",VLOOKUP(D30*3-2,Alapadatok!$T$4:$W$423,$AI$8+1,FALSE)) -> 2.11 | F30: =IF(D29*3>=Alapadatok!$B$21,"",E30+$F$11-$E$11) ->  | G30: =IF(OR($H$9<>"",D29*3>=Alapadatok!$B$21),"",VLOOKUP(D30,$O$11:$AA$430,12,FALSE)) ->  | H30: =IF(OR($H$9<>"",D29*3>=Alapadatok!$B$21),"",VLOOKUP(D30*3,$P$11:$AA$430,12,FALSE)) ->  | M30: =IF(D29*3>=Alapadatok!$B$21,"n",F30) ->  | N30: 2 | O30: 7 | P30: 20 | Y30: =IF(P30>Alapadatok!$B$21,0,X30*V30/1200) ->  | Z30: =IF(P30>Alapadatok!$B$21,0,IF(AND(Alapadatok!$J$15="I",P30=Alapadatok!$B$21),Z29+X30,IF(P30<=Alapadatok!$K$15,Y30,IF(O30=O29,Z29,PMT(W30/1200,Alapadatok!$B$21-O30*3+3,-X30))))) ->  | AC30: =IF(P30>Alapadatok!$B$21,0,Alapadatok!$B$35+AK30) -> 0 | AD30: =IF(P30>Alapadatok!$B$21,0,IF($AE$6=$AF$6,$AD$7*Alapadatok!$P$12,$AD$7*AE30))*(1+Alapadatok!$P$11) -> 44986.29779 | AE30: =Alapadatok!$P$12*(1+AI30) -> 279.6358315 | AF30: =SIN(360/Alapadatok!$J$28*P30*PI()/180) -> -0.8660254038 | AG30: =SIN(360/Alapadatok!$J$29*P30*PI()/180) -> -0.7818314825 | AH30: =Alapadatok!$K$30 -> 0.015 | AI30: =ABS(AF30*Alapadatok!$K$28)+(AG30*Alapadatok!$K$29)+AH30 -> 0.03568826493 | AJ30: 12 | AK30: =IF(AJ30>Alapadatok!$P$31,0,Alapadatok!$B$38+IF(Alapadatok!$D$38=Alapadatok!$O$32,Alapadatok!$B$36,0)) -> 0 | AW30: =IF(D29*6>=Alapadatok!$B$21,"",VLOOKUP(D30,$O$11:$AD$430,16,FALSE)) -> 44986.29779
A31: =C31 -> 6 | B31: 1 | C31: 6 | D31: 21 | E31: =IF(D30*3>=Alapadatok!$B$21,"",VLOOKUP(D31*3-2,Alapadatok!$T$4:$W$423,$AI$8+1,FALSE)) -> 2.11 | F31: =IF(D30*3>=Alapadatok!$B$21,"",E31+$F$11-$E$11) ->  | G31: =IF(OR($H$9<>"",D30*3>=Alapadatok!$B$21),"",VLOOKUP(D31,$O$11:$AA$430,12,FALSE)) ->  | H31: =IF(OR($H$9<>"",D30*3>=Alapadatok!$B$21),"",VLOOKUP(D31*3,$P$11:$AA$430,12,FALSE)) ->  | M31: =IF(D30*3>=Alapadatok!$B$21,"n",F31) ->  | N31: 2 | O31: 7 | P31: 21 | Y31: =IF(P31>Alapadatok!$B$21,0,X31*V31/1200) ->  | Z31: =IF(P31>Alapadatok!$B$21,0,IF(AND(Alapadatok!$J$15="I",P31=Alapadatok!$B$21),Z30+X31,IF(P31<=Alapadatok!$K$15,Y31,IF(O31=O30,Z30,PMT(W31/1200,Alapadatok!$B$21-O31*3+3,-X31))))) ->  | AC31: =IF(P31>Alapadatok!$B$21,0,Alapadatok!$B$35+AK31) -> 0 | AD31: =IF(P31>Alapadatok!$B$21,0,IF($AE$6=$AF$6,$AD$7*Alapadatok!$P$12,$AD$7*AE31))*(1+Alapadatok!$P$11) -> 44986.29779 | AE31: =Alapadatok!$P$12*(1+AI31) -> 289.4571156 | AF31: =SIN(360/Alapadatok!$J$28*P31*PI()/180) -> -0.9510565163 | AG31: =SIN(360/Alapadatok!$J$29*P31*PI()/180) -> -7.350890729e-16 | AH31: =Alapadatok!$K$30 -> 0.015 | AI31: =ABS(AF31*Alapadatok!$K$28)+(AG31*Alapadatok!$K$29)+AH31 -> 0.07206339098 | AJ31: 12 | AK31: =IF(AJ31>Alapadatok!$P$31,0,Alapadatok!$B$38+IF(Alapadatok!$D$38=Alapadatok!$O$32,Alapadatok!$B$36,0)) -> 0 | AW31: =IF(D30*6>=Alapadatok!$B$21,"",VLOOKUP(D31,$O$11:$AD$430,16,FALSE)) -> 44986.29779
B32: 1 | D32: 22 | E32: =IF(D31*3>=Alapadatok!$B$21,"",VLOOKUP(D32*3-2,Alapadatok!$T$4:$W$423,$AI$8+1,FALSE)) -> 2.11 | F32: =IF(D31*3>=Alapadatok!$B$21,"",E32+$F$11-$E$11) ->  | G32: =IF(OR($H$9<>"",D31*3>=Alapadatok!$B$21),"",VLOOKUP(D32,$O$11:$AA$430,12,FALSE)) ->  | H32: =IF(OR($H$9<>"",D31*3>=Alapadatok!$B$21),"",VLOOKUP(D32*3,$P$11:$AA$430,12,FALSE)) ->  | M32: =IF(D31*3>=Alapadatok!$B$21,"n",F32) ->  | N32: 2 | O32: 8 | P32: 22 | Y32: =IF(P32>Alapadatok!$B$21,0,X32*V32/1200) ->  | Z32: =IF(P32>Alapadatok!$B$21,0,IF(AND(Alapadatok!$J$15="I",P32=Alapadatok!$B$21),Z31+X32,IF(P32<=Alapadatok!$K$15,Y32,IF(O32=O31,Z31,PMT(W32/1200,Alapadatok!$B$21-O32*3+3,-X32))))) ->  | AC32: =IF(P32>Alapadatok!$B$21,0,Alapadatok!$B$35+AK32) -> 0 | AD32: =IF(P32>Alapadatok!$B$21,0,IF($AE$6=$AF$6,$AD$7*Alapadatok!$P$12,$AD$7*AE32))*(1+Alapadatok!$P$11) -> 44986.29779 | AE32: =Alapadatok!$P$12*(1+AI32) -> 298.6050347 | AF32: =SIN(360/Alapadatok!$J$28*P32*PI()/180) -> -0.9945218954 | AG32: =SIN(360/Alapadatok!$J$29*P32*PI()/180) -> 0.7818314825 | AH32: =Alapadatok!$K$30 -> 0.015 | AI32: =ABS(AF32*Alapadatok!$K$28)+(AG32*Alapadatok!$K$29)+AH32 -> 0.105944573 | AJ32: 4 | AK32: =IF(AJ32>Alapadatok!$P$31,0,Alapadatok!$B$38+IF(Alapadatok!$D$38=Alapadatok!$O$32,Alapadatok!$B$36,0)) -> 0 | AW32: =IF(D31*6>=Alapadatok!$B$21,"",VLOOKUP(D32,$O$11:$AD$430,16,FALSE)) -> 44986.29779
B33: 1 | D33: 23 | E33: =IF(D32*3>=Alapadatok!$B$21,"",VLOOKUP(D33*3-2,Alapadatok!$T$4:$W$423,$AI$8+1,FALSE)) -> 2.11 | F33: =IF(D32*3>=Alapadatok!$B$21,"",E33+$F$11-$E$11) ->  | G33: =IF(OR($H$9<>"",D32*3>=Alapadatok!$B$21),"",VLOOKUP(D33,$O$11:$AA$430,12,FALSE)) ->  | H33: =IF(OR($H$9<>"",D32*3>=Alapadatok!$B$21),"",VLOOKUP(D33*3,$P$11:$AA$430,12,FALSE)) ->  | M33: =IF(D32*3>=Alapadatok!$B$21,"n",F33) ->  | N33: 2 | O33: 8 | P33: 23 | Y33: =IF(P33>Alapadatok!$B$21,0,X33*V33/1200) ->  | Z33: =IF(P33>Alapadatok!$B$21,0,IF(AND(Alapadatok!$J$15="I",P33=Alapadatok!$B$21),Z32+X33,IF(P33<=Alapadatok!$K$15,Y33,IF(O33=O32,Z32,PMT(W33/1200,Alapadatok!$B$21-O33*3+3,-X33))))) ->  | AC33: =IF(P33>Alapadatok!$B$21,0,Alapadatok!$B$35+AK33) -> 0 | AD33: =IF(P33>Alapadatok!$B$21,0,IF($AE$6=$AF$6,$AD$7*Alapadatok!$P$12,$AD$7*AE33))*(1+Alapadatok!$P$11) -> 44986.29779 | AE33: =Alapadatok!$P$12*(1+AI33) -> 300.6904762 | AF33: =SIN(360/Alapadatok!$J$28*P33*PI()/180) -> -0.9945218954 | AG33: =SIN(360/Alapadatok!$J$29*P33*PI()/180) -> 0.9749279122 | AH33: =Alapadatok!$K$30 -> 0.015 | AI33: =ABS(AF33*Alapadatok!$K$28)+(AG33*Alapadatok!$K$29)+AH33 -> 0.1136684302 | AJ33: 12 | AK33: =IF(AJ33>Alapadatok!$P$31,0,Alapadatok!$B$38+IF(Alapadatok!$D$38=Alapadatok!$O$32,Alapadatok!$B$36,0)) -> 0 | AW33: =IF(D32*6>=Alapadatok!$B$21,"",VLOOKUP(D33,$O$11:$AD$430,16,FALSE)) -> 44986.29779
B34: 1 | D34: 24 | E34: =IF(D33*3>=Alapadatok!$B$21,"",VLOOKUP(D34*3-2,Alapadatok!$T$4:$W$423,$AI$8+1,FALSE)) -> 2.11 | F34: =IF(D33*3>=Alapadatok!$B$21,"",E34+$F$11-$E$11) ->  | G34: =IF(OR($H$9<>"",D33*3>=Alapadatok!$B$21),"",VLOOKUP(D34,$O$11:$AA$430,12,FALSE)) ->  | H34: =IF(OR($H$9<>"",D33*3>=Alapadatok!$B$21),"",VLOOKUP(D34*3,$P$11:$AA$430,12,FALSE)) ->  | M34: =IF(D33*3>=Alapadatok!$B$21,"n",F34) ->  | N34: 2 | O34: 8 | P34: 24 | Y34: =IF(P34>Alapadatok!$B$21,0,X34*V34/1200) ->  | Z34: =IF(P34>Alapadatok!$B$21,0,IF(AND(Alapadatok!$J$15="I",P34=Alapadatok!$B$21),Z33+X34,IF(P34<=Alapadatok!$K$15,Y34,IF(O34=O33,Z33,PMT(W34/1200,Alapadatok!$B$21-O34*3+3,-X34))))) ->  | AC34: =IF(P34>Alapadatok!$B$21,0,Alapadatok!$B$35+AK34) -> 0 | AD34: =IF(P34>Alapadatok!$B$21,0,IF($AE$6=$AF$6,$AD$7*Alapadatok!$P$12,$AD$7*AE34))*(1+Alapadatok!$P$11) -> 44986.29779 | AE34: =Alapadatok!$P$12*(1+AI34) -> 294.1430599 | AF34: =SIN(360/Alapadatok!$J$28*P34*PI()/180) -> -0.9510565163 | AG34: =SIN(360/Alapadatok!$J$29*P34*PI()/180) -> 0.4338837391 | AH34: =Alapadatok!$K$30 -> 0.015 | AI34: =ABS(AF34*Alapadatok!$K$28)+(AG34*Alapadatok!$K$29)+AH34 -> 0.08941874054 | AJ34: 12 | AK34: =IF(AJ34>Alapadatok!$P$31,0,Alapadatok!$B$38+IF(Alapadatok!$D$38=Alapadatok!$O$32,Alapadatok!$B$36,0)) -> 0 | AW34: =IF(D33*6>=Alapadatok!$B$21,"",VLOOKUP(D34,$O$11:$AD$430,16,FALSE)) -> 44986.29779
A35: =C35 -> 7 | B35: 1 | C35: =C31+1 -> 7 | D35: 25 | E35: =IF(D34*3>=Alapadatok!$B$21,"",VLOOKUP(D35*3-2,Alapadatok!$T$4:$W$423,$AI$8+1,FALSE)) -> 2.11 | F35: =IF(D34*3>=Alapadatok!$B$21,"",E35+$F$11-$E$11) ->  | G35: =IF(OR($H$9<>"",D34*3>=Alapadatok!$B$21),"",VLOOKUP(D35,$O$11:$AA$430,12,FALSE)) ->  | H35: =IF(OR($H$9<>"",D34*3>=Alapadatok!$B$21),"",VLOOKUP(D35*3,$P$11:$AA$430,12,FALSE)) ->  | M35: =IF(D34*3>=Alapadatok!$B$21,"n",F35) ->  | N35: 3 | O35: 9 | P35: 25 | Y35: =IF(P35>Alapadatok!$B$21,0,X35*V35/1200) ->  | Z35: =IF(P35>Alapadatok!$B$21,0,IF(AND(Alapadatok!$J$15="I",P35=Alapadatok!$B$21),Z34+X35,IF(P35<=Alapadatok!$K$15,Y35,IF(O35=O34,Z34,PMT(W35/1200,Alapadatok!$B$21-O35*3+3,-X35))))) ->  | AC35: =IF(P35>Alapadatok!$B$21,0,Alapadatok!$B$35+AK35) -> 0 | AD35: =IF(P35>Alapadatok!$B$21,0,IF($AE$6=$AF$6,$AD$7*Alapadatok!$P$12,$AD$7*AE35))*(1+Alapadatok!$P$11) -> 44986.29779 | AE35: =Alapadatok!$P$12*(1+AI35) -> 283.3936672 | AF35: =SIN(360/Alapadatok!$J$28*P35*PI()/180) -> -0.8660254038 | AG35: =SIN(360/Alapadatok!$J$29*P35*PI()/180) -> -0.4338837391 | AH35: =Alapadatok!$K$30 -> 0.015 | AI35: =ABS(AF35*Alapadatok!$K$28)+(AG35*Alapadatok!$K$29)+AH35 -> 0.04960617466 | AJ35: 1 | AK35: =IF(AJ35>Alapadatok!$P$31,0,Alapadatok!$B$38+IF(Alapadatok!$D$38=Alapadatok!$O$32,Alapadatok!$B$36,0)) -> 0 | AW35: =IF(D34*6>=Alapadatok!$B$21,"",VLOOKUP(D35,$O$11:$AD$430,16,FALSE)) -> 44986.29779
B36: 1 | D36: 26 | E36: =IF(D35*3>=Alapadatok!$B$21,"",VLOOKUP(D36*3-2,Alapadatok!$T$4:$W$423,$AI$8+1,FALSE)) -> 2.11 | F36: =IF(D35*3>=Alapadatok!$B$21,"",E36+$F$11-$E$11) ->  | G36: =IF(OR($H$9<>"",D35*3>=Alapadatok!$B$21),"",VLOOKUP(D36,$O$11:$AA$430,12,FALSE)) ->  | H36: =IF(OR($H$9<>"",D35*3>=Alapadatok!$B$21),"",VLOOKUP(D36*3,$P$11:$AA$430,12,FALSE)) ->  | M36: =IF(D35*3>=Alapadatok!$B$21,"n",F36) ->  | N36: 3 | O36: 9 | P36: 26 | Y36: =IF(P36>Alapadatok!$B$21,0,X36*V36/1200) ->  | Z36: =IF(P36>Alapadatok!$B$21,0,IF(AND(Alapadatok!$J$15="I",P36=Alapadatok!$B$21),Z35+X36,IF(P36<=Alapadatok!$K$15,Y36,IF(O36=O35,Z35,PMT(W36/1200,Alapadatok!$B$21-O36*3+3,-X36))))) ->  | AC36: =IF(P36>Alapadatok!$B$21,0,Alapadatok!$B$35+AK36) -> 0 | AD36: =IF(P36>Alapadatok!$B$21,0,IF($AE$6=$AF$6,$AD$7*Alapadatok!$P$12,$AD$7*AE36))*(1+Alapadatok!$P$11) -> 44986.29779 | AE36: =Alapadatok!$P$12*(1+AI36) -> 275.5597247 | AF36: =SIN(360/Alapadatok!$J$28*P36*PI()/180) -> -0.7431448255 | AG36: =SIN(360/Alapadatok!$J$29*P36*PI()/180) -> -0.9749279122 | AH36: =Alapadatok!$K$30 -> 0.015 | AI36: =ABS(AF36*Alapadatok!$K$28)+(AG36*Alapadatok!$K$29)+AH36 -> 0.02059157304 | AJ36: 12 | AK36: =IF(AJ36>Alapadatok!$P$31,0,Alapadatok!$B$38+IF(Alapadatok!$D$38=Alapadatok!$O$32,Alapadatok!$B$36,0)) -> 0 | AW36: =IF(D35*6>=Alapadatok!$B$21,"",VLOOKUP(D36,$O$11:$AD$430,16,FALSE)) -> 44986.29779
B37: 1 | D37: 27 | E37: =IF(D36*3>=Alapadatok!$B$21,"",VLOOKUP(D37*3-2,Alapadatok!$T$4:$W$423,$AI$8+1,FALSE)) -> 2.11 | F37: =IF(D36*3>=Alapadatok!$B$21,"",E37+$F$11-$E$11) ->  | G37: =IF(OR($H$9<>"",D36*3>=Alapadatok!$B$21),"",VLOOKUP(D37,$O$11:$AA$430,12,FALSE)) ->  | H37: =IF(OR($H$9<>"",D36*3>=Alapadatok!$B$21),"",VLOOKUP(D37*3,$P$11:$AA$430,12,FALSE)) ->  | M37: =IF(D36*3>=Alapadatok!$B$21,"n",F37) ->  | N37: 3 | O37: 9 | P37: 27 | Y37: =IF(P37>Alapadatok!$B$21,0,X37*V37/1200) ->  | Z37: =IF(P37>Alapadatok!$B$21,0,IF(AND(Alapadatok!$J$15="I",P37=Alapadatok!$B$21),Z36+X37,IF(P37<=Alapadatok!$K$15,Y37,IF(O37=O36,Z36,PMT(W37/1200,Alapadatok!$B$21-O37*3+3,-X37))))) ->  | AC37: =IF(P37>Alapadatok!$B$21,0,Alapadatok!$B$35+AK37) -> 0 | AD37: =IF(P37>Alapadatok!$B$21,0,IF($AE$6=$AF$6,$AD$7*Alapadatok!$P$12,$AD$7*AE37))*(1+Alapadatok!$P$11) -> 44986.29779 | AE37: =Alapadatok!$P$12*(1+AI37) -> 275.1283411 | AF37: =SIN(360/Alapadatok!$J$28*P37*PI()/180) -> -0.5877852523 | AG37: =SIN(360/Alapadatok!$J$29*P37*PI()/180) -> -0.7818314825 | AH37: =Alapadatok!$K$30 -> 0.015 | AI37: =ABS(AF37*Alapadatok!$K$28)+(AG37*Alapadatok!$K$29)+AH37 -> 0.01899385584 | AJ37: 12 | AK37: =IF(AJ37>Alapadatok!$P$31,0,Alapadatok!$B$38+IF(Alapadatok!$D$38=Alapadatok!$O$32,Alapadatok!$B$36,0)) -> 0 | AW37: =IF(D36*6>=Alapadatok!$B$21,"",VLOOKUP(D37,$O$11:$AD$430,16,FALSE)) -> 44986.29779
B38: 1 | D38: 28 | E38: =IF(D37*3>=Alapadatok!$B$21,"",VLOOKUP(D38*3-2,Alapadatok!$T$4:$W$423,$AI$8+1,FALSE)) -> 2.11 | F38: =IF(D37*3>=Alapadatok!$B$21,"",E38+$F$11-$E$11) ->  | G38: =IF(OR($H$9<>"",D37*3>=Alapadatok!$B$21),"",VLOOKUP(D38,$O$11:$AA$430,12,FALSE)) ->  | H38: =IF(OR($H$9<>"",D37*3>=Alapadatok!$B$21),"",VLOOKUP(D38*3,$P$11:$AA$430,12,FALSE)) ->  | M38: =IF(D37*3>=Alapadatok!$B$21,"n",F38) ->  | N38: 3 | O38: 10 | P38: 28 | Y38: =IF(P38>Alapadatok!$B$21,0,X38*V38/1200) ->  | Z38: =IF(P38>Alapadatok!$B$21,0,IF(AND(Alapadatok!$J$15="I",P38=Alapadatok!$B$21),Z37+X38,IF(P38<=Alapadatok!$K$15,Y38,IF(O38=O37,Z37,PMT(W38/1200,Alapadatok!$B$21-O38*3+3,-X38))))) ->  | AC38: =IF(P38>Alapadatok!$B$21,0,Alapadatok!$B$35+AK38) -> 0 | AD38: =IF(P38>Alapadatok!$B$21,0,IF($AE$6=$AF$6,$AD$7*Alapadatok!$P$12,$AD$7*AE38))*(1+Alapadatok!$P$11) -> 44986.29779 | AE38: =Alapadatok!$P$12*(1+AI38) -> 280.6391336 | AF38: =SIN(360/Alapadatok!$J$28*P38*PI()/180) -> -0.4067366431 | AG38: =SIN(360/Alapadatok!$J$29*P38*PI()/180) -> -9.801187639e-16 | AH38: =Alapadatok!$K$30 -> 0.015 | AI38: =ABS(AF38*Alapadatok!$K$28)+(AG38*Alapadatok!$K$29)+AH38 -> 0.03940419858 | AJ38: 4 | AK38: =IF(AJ38>Alapadatok!$P$31,0,Alapadatok!$B$38+IF(Alapadatok!$D$38=Alapadatok!$O$32,Alapadatok!$B$36,0)) -> 0 | AW38: =IF(D37*6>=Alapadatok!$B$21,"",VLOOKUP(D38,$O$11:$AD$430,16,FALSE)) -> 44986.29779
A39: =C39 -> 8 | B39: 1 | C39: =C35+1 -> 8 | D39: 29 | E39: =IF(D38*3>=Alapadatok!$B$21,"",VLOOKUP(D39*3-2,Alapadatok!$T$4:$W$423,$AI$8+1,FALSE)) -> 2.11 | F39: =IF(D38*3>=Alapadatok!$B$21,"",E39+$F$11-$E$11) ->  | G39: =IF(OR($H$9<>"",D38*3>=Alapadatok!$B$21),"",VLOOKUP(D39,$O$11:$AA$430,12,FALSE)) ->  | H39: =IF(OR($H$9<>"",D38*3>=Alapadatok!$B$21),"",VLOOKUP(D39*3,$P$11:$AA$430,12,FALSE)) ->  | M39: =IF(D38*3>=Alapadatok!$B$21,"n",F39) ->  | N39: 3 | O39: 10 | P39: 29 | Y39: =IF(P39>Alapadatok!$B$21,0,X39*V39/1200) ->  | Z39: =IF(P39>Alapadatok!$B$21,0,IF(AND(Alapadatok!$J$15="I",P39=Alapadatok!$B$21),Z38+X39,IF(P39<=Alapadatok!$K$15,Y39,IF(O39=O38,Z38,PMT(W39/1200,Alapadatok!$B$21-O39*3+3,-X39))))) ->  | AC39: =IF(P39>Alapadatok!$B$21,0,Alapadatok!$B$35+AK39) -> 0 | AD39: =IF(P39>Alapadatok!$B$21,0,IF($AE$6=$AF$6,$AD$7*Alapadatok!$P$12,$AD$7*AE39))*(1+Alapadatok!$P$11) -> 44986.29779 | AE39: =Alapadatok!$P$12*(1+AI39) -> 285.8619494 | AF39: =SIN(360/Alapadatok!$J$28*P39*PI()/180) -> -0.2079116908 | AG39: =SIN(360/Alapadatok!$J$29*P39*PI()/180) -> 0.7818314825 | AH39: =Alapadatok!$K$30 -> 0.015 | AI39: =ABS(AF39*Alapadatok!$K$28)+(AG39*Alapadatok!$K$29)+AH39 -> 0.05874796075 | AJ39: 12 | AK39: =IF(AJ39>Alapadatok!$P$31,0,Alapadatok!$B$38+IF(Alapadatok!$D$38=Alapadatok!$O$32,Alapadatok!$B$36,0)) -> 0 | AW39: =IF(D38*6>=Alapadatok!$B$21,"",VLOOKUP(D39,$O$11:$AD$430,16,FALSE)) -> 44986.29779
B40: 1 | D40: 30 | E40: =IF(D39*3>=Alapadatok!$B$21,"",VLOOKUP(D40*3-2,Alapadatok!$T$4:$W$423,$AI$8+1,FALSE)) -> 2.11 | F40: =IF(D39*3>=Alapadatok!$B$21,"",E40+$F$11-$E$11) ->  | G40: =IF(OR($H$9<>"",D39*3>=Alapadatok!$B$21),"",VLOOKUP(D40,$O$11:$AA$430,12,FALSE)) ->  | H40: =IF(OR($H$9<>"",D39*3>=Alapadatok!$B$21),"",VLOOKUP(D40*3,$P$11:$AA$430,12,FALSE)) ->  | M40: =IF(D39*3>=Alapadatok!$B$21,"n",F40) ->  | N40: 3 | O40: 10 | P40: 30 | Y40: =IF(P40>Alapadatok!$B$21,0,X40*V40/1200) ->  | Z40: =IF(P40>Alapadatok!$B$21,0,IF(AND(Alapadatok!$J$15="I",P40=Alapadatok!$B$21),Z39+X40,IF(P40<=Alapadatok!$K$15,Y40,IF(O40=O39,Z39,PMT(W40/1200,Alapadatok!$B$21-O40*3+3,-X40))))) ->  | AC40: =IF(P40>Alapadatok!$B$21,0,Alapadatok!$B$35+AK40) -> 0 | AD40: =IF(P40>Alapadatok!$B$21,0,IF($AE$6=$AF$6,$AD$7*Alapadatok!$P$12,$AD$7*AE40))*(1+Alapadatok!$P$11) -> 44986.29779 | AE40: =Alapadatok!$P$12*(1+AI40) -> 284.5792215 | AF40: =SIN(360/Alapadatok!$J$28*P40*PI()/180) -> -2.45029691e-16 | AG40: =SIN(360/Alapadatok!$J$29*P40*PI()/180) -> 0.9749279122 | AH40: =Alapadatok!$K$30 -> 0.015 | AI40: =ABS(AF40*Alapadatok!$K$28)+(AG40*Alapadatok!$K$29)+AH40 -> 0.05399711649 | AJ40: 12 | AK40: =IF(AJ40>Alapadatok!$P$31,0,Alapadatok!$B$38+IF(Alapadatok!$D$38=Alapadatok!$O$32,Alapadatok!$B$36,0)) -> 0 | AW40: =IF(D39*6>=Alapadatok!$B$21,"",VLOOKUP(D40,$O$11:$AD$430,16,FALSE)) -> 44986.29779
B41: 1 | D41: 31 | E41: =IF(D40*3>=Alapadatok!$B$21,"",VLOOKUP(D41*3-2,Alapadatok!$T$4:$W$423,$AI$8+1,FALSE)) -> 2.11 | F41: =IF(D40*3>=Alapadatok!$B$21,"",E41+$F$11-$E$11) ->  | G41: =IF(OR($H$9<>"",D40*3>=Alapadatok!$B$21),"",VLOOKUP(D41,$O$11:$AA$430,12,FALSE)) ->  | H41: =IF(OR($H$9<>"",D40*3>=Alapadatok!$B$21),"",VLOOKUP(D41*3,$P$11:$AA$430,12,FALSE)) ->  | M41: =IF(D40*3>=Alapadatok!$B$21,"n",F41) ->  | N41: 3 | O41: 11 | P41: 31 | Y41: =IF(P41>Alapadatok!$B$21,0,X41*V41/1200) ->  | Z41: =IF(P41>Alapadatok!$B$21,0,IF(AND(Alapadatok!$J$15="I",P41=Alapadatok!$B$21),Z40+X41,IF(P41<=Alapadatok!$K$15,Y41,IF(O41=O40,Z40,PMT(W41/1200,Alapadatok!$B$21-O41*3+3,-X41))))) ->  | AC41: =IF(P41>Alapadatok!$B$21,0,Alapadatok!$B$35+AK41) -> 0 | AD41: =IF(P41>Alapadatok!$B$21,0,IF($AE$6=$AF$6,$AD$7*Alapadatok!$P$12,$AD$7*AE41))*(1+Alapadatok!$P$11) -> 44986.29779 | AE41: =Alapadatok!$P$12*(1+AI41) -> 282.1041138 | AF41: =SIN(360/Alapadatok!$J$28*P41*PI()/180) -> 0.2079116908 | AG41: =SIN(360/Alapadatok!$J$29*P41*PI()/180) -> 0.4338837391 | AH41: =Alapadatok!$K$30 -> 0.015 | AI41: =ABS(AF41*Alapadatok!$K$28)+(AG41*Alapadatok!$K$29)+AH41 -> 0.04483005101 | AJ41: 2 | AK41: =IF(AJ41>Alapadatok!$P$31,0,Alapadatok!$B$38+IF(Alapadatok!$D$38=Alapadatok!$O$32,Alapadatok!$B$36,0)) -> 0 | AW41: =IF(D40*6>=Alapadatok!$B$21,"",VLOOKUP(D41,$O$11:$AD$430,16,FALSE)) -> 44986.29779
B42: 1 | D42: 32 | E42: =IF(D41*3>=Alapadatok!$B$21,"",VLOOKUP(D42*3-2,Alapadatok!$T$4:$W$423,$AI$8+1,FALSE)) -> 2.11 | F42: =IF(D41*3>=Alapadatok!$B$21,"",E42+$F$11-$E$11) ->  | G42: =IF(OR($H$9<>"",D41*3>=Alapadatok!$B$21),"",VLOOKUP(D42,$O$11:$AA$430,12,FALSE)) ->  | H42: =IF(OR($H$9<>"",D41*3>=Alapadatok!$B$21),"",VLOOKUP(D42*3,$P$11:$AA$430,12,FALSE)) ->  | M42: =IF(D41*3>=Alapadatok!$B$21,"n",F42) ->  | N42: 3 | O42: 11 | P42: 32 | Y42: =IF(P42>Alapadatok!$B$21,0,X42*V42/1200) ->  | Z42: =IF(P42>Alapadatok!$B$21,0,IF(AND(Alapadatok!$J$15="I",P42=Alapadatok!$B$21),Z41+X42,IF(P42<=Alapadatok!$K$15,Y42,IF(O42=O41,Z41,PMT(W42/1200,Alapadatok!$B$21-O42*3+3,-X42))))) ->  | AC42: =IF(P42>Alapadatok!$B$21,0,Alapadatok!$B$35+AK42) -> 0 | AD42: =IF(P42>Alapadatok!$B$21,0,IF($AE$6=$AF$6,$AD$7*Alapadatok!$P$12,$AD$7*AE42))*(1+Alapadatok!$P$11) -> 44986.29779 | AE42: =Alapadatok!$P$12*(1+AI42) -> 275.9531892 | AF42: =SIN(360/Alapadatok!$J$28*P42*PI()/180) -> 0.4067366431 | AG42: =SIN(360/Alapadatok!$J$29*P42*PI()/180) -> -0.4338837391 | AH42: =Alapadatok!$K$30 -> 0.015 | AI42: =ABS(AF42*Alapadatok!$K$28)+(AG42*Alapadatok!$K$29)+AH42 -> 0.02204884902 | AJ42: 12 | AK42: =IF(AJ42>Alapadatok!$P$31,0,Alapadatok!$B$38+IF(Alapadatok!$D$38=Alapadatok!$O$32,Alapadatok!$B$36,0)) -> 0 | AW42: =IF(D41*6>=Alapadatok!$B$21,"",VLOOKUP(D42,$O$11:$AD$430,16,FALSE)) -> 44986.29779
A43: =C43 -> 9 | B43: =IF(E43="",2,1) -> 1 | C43: =C39+1 -> 9 | D43: 33 | E43: =IF(D42*3>=Alapadatok!$B$21,"",VLOOKUP(D43*3-2,Alapadatok!$T$4:$W$423,$AI$8+1,FALSE)) -> 2.11 | F43: =IF(D42*3>=Alapadatok!$B$21,"",E43+$F$11-$E$11) ->  | G43: =IF(OR($H$9<>"",D42*3>=Alapadatok!$B$21),"",VLOOKUP(D43,$O$11:$AA$430,12,FALSE)) ->  | H43: =IF(OR($H$9<>"",D42*3>=Alapadatok!$B$21),"",VLOOKUP(D43*3,$P$11:$AA$430,12,FALSE)) ->  | M43: =IF(D42*3>=Alapadatok!$B$21,"n",F43) ->  | N43: 3 | O43: 11 | P43: 33 | Y43: =IF(P43>Alapadatok!$B$21,0,X43*V43/1200) ->  | Z43: =IF(P43>Alapadatok!$B$21,0,IF(AND(Alapadatok!$J$15="I",P43=Alapadatok!$B$21),Z42+X43,IF(P43<=Alapadatok!$K$15,Y43,IF(O43=O42,Z42,PMT(W43/1200,Alapadatok!$B$21-O43*3+3,-X43))))) ->  | AC43: =IF(P43>Alapadatok!$B$21,0,Alapadatok!$B$35+AK43) -> 0 | AD43: =IF(P43>Alapadatok!$B$21,0,IF($AE$6=$AF$6,$AD$7*Alapadatok!$P$12,$AD$7*AE43))*(1+Alapadatok!$P$11) -> 44986.29779 | AE43: =Alapadatok!$P$12*(1+AI43) -> 273.0428996 | AF43: =SIN(360/Alapadatok!$J$28*P43*PI()/180) -> 0.5877852523 | AG43: =SIN(360/Alapadatok!$J$29*P43*PI()/180) -> -0.9749279122 | AH43: =Alapadatok!$K$30 -> 0.015 | AI43: =ABS(AF43*Alapadatok!$K$28)+(AG43*Alapadatok!$K$29)+AH43 -> 0.01126999865 | AJ43: 12 | AK43: =IF(AJ43>Alapadatok!$P$31,0,Alapadatok!$B$38+IF(Alapadatok!$D$38=Alapadatok!$O$32,Alapadatok!$B$36,0)) -> 0 | AW43: =IF(D42*6>=Alapadatok!$B$21,"",VLOOKUP(D43,$O$11:$AD$430,16,FALSE)) -> 44986.29779
B44: 1 | D44: 34 | E44: =IF(D43*3>=Alapadatok!$B$21,"",VLOOKUP(D44*3-2,Alapadatok!$T$4:$W$423,$AI$8+1,FALSE)) -> 2.11 | F44: =IF(D43*3>=Alapadatok!$B$21,"",E44+$F$11-$E$11) ->  | G44: =IF(OR($H$9<>"",D43*3>=Alapadatok!$B$21),"",VLOOKUP(D44,$O$11:$AA$430,12,FALSE)) ->  | H44: =IF(OR($H$9<>"",D43*3>=Alapadatok!$B$21),"",VLOOKUP(D44*3,$P$11:$AA$430,12,FALSE)) ->  | M44: =IF(D43*3>=Alapadatok!$B$21,"n",F44) ->  | N44: 3 | O44: 12 | P44: 34 | Y44: =IF(P44>Alapadatok!$B$21,0,X44*V44/1200) ->  | Z44: =IF(P44>Alapadatok!$B$21,0,IF(AND(Alapadatok!$J$15="I",P44=Alapadatok!$B$21),Z43+X44,IF(P44<=Alapadatok!$K$15,Y44,IF(O44=O43,Z43,PMT(W44/1200,Alapadatok!$B$21-O44*3+3,-X44))))) ->  | AC44: =IF(P44>Alapadatok!$B$21,0,Alapadatok!$B$35+AK44) -> 0 | AD44: =IF(P44>Alapadatok!$B$21,0,IF($AE$6=$AF$6,$AD$7*Alapadatok!$P$12,$AD$7*AE44))*(1+Alapadatok!$P$11) -> 44986.29779 | AE44: =Alapadatok!$P$12*(1+AI44) -> 277.6451662 | AF44: =SIN(360/Alapadatok!$J$28*P44*PI()/180) -> 0.7431448255 | AG44: =SIN(360/Alapadatok!$J$29*P44*PI()/180) -> -0.7818314825 | AH44: =Alapadatok!$K$30 -> 0.015 | AI44: =ABS(AF44*Alapadatok!$K$28)+(AG44*Alapadatok!$K$29)+AH44 -> 0.02831543023 | AJ44: 4 | AK44: =IF(AJ44>Alapadatok!$P$31,0,Alapadatok!$B$38+IF(Alapadatok!$D$38=Alapadatok!$O$32,Alapadatok!$B$36,0)) -> 0 | AW44: =IF(D43*6>=Alapadatok!$B$21,"",VLOOKUP(D44,$O$11:$AD$430,16,FALSE)) -> 44986.29779
B45: 1 | D45: 35 | E45: =IF(D44*3>=Alapadatok!$B$21,"",VLOOKUP(D45*3-2,Alapadatok!$T$4:$W$423,$AI$8+1,FALSE)) -> 2.11 | F45: =IF(D44*3>=Alapadatok!$B$21,"",E45+$F$11-$E$11) ->  | G45: =IF(OR($H$9<>"",D44*3>=Alapadatok!$B$21),"",VLOOKUP(D45,$O$11:$AA$430,12,FALSE)) ->  | H45: =IF(OR($H$9<>"",D44*3>=Alapadatok!$B$21),"",VLOOKUP(D45*3,$P$11:$AA$430,12,FALSE)) ->  | M45: =IF(D44*3>=Alapadatok!$B$21,"n",F45) ->  | N45: 3 | O45: 12 | P45: 35 | Y45: =IF(P45>Alapadatok!$B$21,0,X45*V45/1200) ->  | Z45: =IF(P45>Alapadatok!$B$21,0,IF(AND(Alapadatok!$J$15="I",P45=Alapadatok!$B$21),Z44+X45,IF(P45<=Alapadatok!$K$15,Y45,IF(O45=O44,Z44,PMT(W45/1200,Alapadatok!$B$21-O45*3+3,-X45))))) ->  | AC45: =IF(P45>Alapadatok!$B$21,0,Alapadatok!$B$35+AK45) -> 0 | AD45: =IF(P45>Alapadatok!$B$21,0,IF($AE$6=$AF$6,$AD$7*Alapadatok!$P$12,$AD$7*AE45))*(1+Alapadatok!$P$11) -> 44986.29779 | AE45: =Alapadatok!$P$12*(1+AI45) -> 288.0796115 | AF45: =SIN(360/Alapadatok!$J$28*P45*PI()/180) -> 0.8660254038 | AG45: =SIN(360/Alapadatok!$J$29*P45*PI()/180) -> -1.225148455e-15 | AH45: =Alapadatok!$K$30 -> 0.015 | AI45: =ABS(AF45*Alapadatok!$K$28)+(AG45*Alapadatok!$K$29)+AH45 -> 0.06696152423 | AJ45: 12 | AK45: =IF(AJ45>Alapadatok!$P$31,0,Alapadatok!$B$38+IF(Alapadatok!$D$38=Alapadatok!$O$32,Alapadatok!$B$36,0)) -> 0 | AW45: =IF(D44*6>=Alapadatok!$B$21,"",VLOOKUP(D45,$O$11:$AD$430,16,FALSE)) -> 44986.29779
B46: 1 | D46: 36 | E46: =IF(D45*3>=Alapadatok!$B$21,"",VLOOKUP(D46*3-2,Alapadatok!$T$4:$W$423,$AI$8+1,FALSE)) -> 2.11 | F46: =IF(D45*3>=Alapadatok!$B$21,"",E46+$F$11-$E$11) ->  | G46: =IF(OR($H$9<>"",D45*3>=Alapadatok!$B$21),"",VLOOKUP(D46,$O$11:$AA$430,12,FALSE)) ->  | H46: =IF(OR($H$9<>"",D45*3>=Alapadatok!$B$21),"",VLOOKUP(D46*3,$P$11:$AA$430,12,FALSE)) ->  | M46: =IF(D45*3>=Alapadatok!$B$21,"n",F46) ->  | N46: 3 | O46: 12 | P46: 36 | Y46: =IF(P46>Alapadatok!$B$21,0,X46*V46/1200) ->  | Z46: =IF(P46>Alapadatok!$B$21,0,IF(AND(Alapadatok!$J$15="I",P46=Alapadatok!$B$21),Z45+X46,IF(P46<=Alapadatok!$K$15,Y46,IF(O46=O45,Z45,PMT(W46/1200,Alapadatok!$B$21-O46*3+3,-X46))))) ->  | AC46: =IF(P46>Alapadatok!$B$21,0,Alapadatok!$B$35+AK46) -> 0 | AD46: =IF(P46>Alapadatok!$B$21,0,IF($AE$6=$AF$6,$AD$7*Alapadatok!$P$12,$AD$7*AE46))*(1+Alapadatok!$P$11) -> 44986.29779 | AE46: =Alapadatok!$P$12*(1+AI46) -> 297.9008956 | AF46: =SIN(360/Alapadatok!$J$28*P46*PI()/180) -> 0.9510565163 | AG46: =SIN(360/Alapadatok!$J$29*P46*PI()/180) -> 0.7818314825 | AH46: =Alapadatok!$K$30 -> 0.015 | AI46: =ABS(AF46*Alapadatok!$K$28)+(AG46*Alapadatok!$K$29)+AH46 -> 0.1033366503 | AJ46: 12 | AK46: =IF(AJ46>Alapadatok!$P$31,0,Alapadatok!$B$38+IF(Alapadatok!$D$38=Alapadatok!$O$32,Alapadatok!$B$36,0)) -> 0 | AW46: =IF(D45*6>=Alapadatok!$B$21,"",VLOOKUP(D46,$O$11:$AD$430,16,FALSE)) -> 44986.29779
A47: =C47 -> 10 | B47: 1 | C47: =C43+1 -> 10 | D47: 37 | E47: =IF(D46*3>=Alapadatok!$B$21,"",VLOOKUP(D47*3-2,Alapadatok!$T$4:$W$423,$AI$8+1,FALSE)) -> 2.11 | F47: =IF(D46*3>=Alapadatok!$B$21,"",E47+$F$11-$E$11) ->  | G47: =IF(OR($H$9<>"",D46*3>=Alapadatok!$B$21),"",VLOOKUP(D47,$O$11:$AA$430,12,FALSE)) ->  | H47: =IF(OR($H$9<>"",D46*3>=Alapadatok!$B$21),"",VLOOKUP(D47*3,$P$11:$AA$430,12,FALSE)) ->  | M47: =IF(D46*3>=Alapadatok!$B$21,"n",F47) ->  | N47: 4 | O47: 13 | P47: 37 | Y47: =IF(P47>Alapadatok!$B$21,0,X47*V47/1200) ->  | Z47: =IF(P47>Alapadatok!$B$21,0,IF(AND(Alapadatok!$J$15="I",P47=Alapadatok!$B$21),Z46+X47,IF(P47<=Alapadatok!$K$15,Y47,IF(O47=O46,Z46,PMT(W47/1200,Alapadatok!$B$21-O47*3+3,-X47))))) ->  | AC47: =IF(P47>Alapadatok!$B$21,0,Alapadatok!$B$35+AK47) -> 0 | AD47: =IF(P47>Alapadatok!$B$21,0,IF($AE$6=$AF$6,$AD$7*Alapadatok!$P$12,$AD$7*AE47))*(1+Alapadatok!$P$11) -> 44986.29779 | AE47: =Alapadatok!$P$12*(1+AI47) -> 300.6904762 | AF47: =SIN(360/Alapadatok!$J$28*P47*PI()/180) -> 0.9945218954 | AG47: =SIN(360/Alapadatok!$J$29*P47*PI()/180) -> 0.9749279122 | AH47: =Alapadatok!$K$30 -> 0.015 | AI47: =ABS(AF47*Alapadatok!$K$28)+(AG47*Alapadatok!$K$29)+AH47 -> 0.1136684302 | AJ47: 1 | AK47: =IF(AJ47>Alapadatok!$P$31,0,Alapadatok!$B$38+IF(Alapadatok!$D$38=Alapadatok!$O$32,Alapadatok!$B$36,0)) -> 0 | AW47: =IF(D46*6>=Alapadatok!$B$21,"",VLOOKUP(D47,$O$11:$AD$430,16,FALSE)) -> 44986.29779
B48: 1 | D48: 38 | E48: =IF(D47*3>=Alapadatok!$B$21,"",VLOOKUP(D48*3-2,Alapadatok!$T$4:$W$423,$AI$8+1,FALSE)) -> 2.11 | F48: =IF(D47*3>=Alapadatok!$B$21,"",E48+$F$11-$E$11) ->  | G48: =IF(OR($H$9<>"",D47*3>=Alapadatok!$B$21),"",VLOOKUP(D48,$O$11:$AA$430,12,FALSE)) ->  | H48: =IF(OR($H$9<>"",D47*3>=Alapadatok!$B$21),"",VLOOKUP(D48*3,$P$11:$AA$430,12,FALSE)) ->  | M48: =IF(D47*3>=Alapadatok!$B$21,"n",F48) ->  | N48: 4 | O48: 13 | P48: 38 | Y48: =IF(P48>Alapadatok!$B$21,0,X48*V48/1200) ->  | Z48: =IF(P48>Alapadatok!$B$21,0,IF(AND(Alapadatok!$J$15="I",P48=Alapadatok!$B$21),Z47+X48,IF(P48<=Alapadatok!$K$15,Y48,IF(O48=O47,Z47,PMT(W48/1200,Alapadatok!$B$21-O48*3+3,-X48))))) ->  | AC48: =IF(P48>Alapadatok!$B$21,0,Alapadatok!$B$35+AK48) -> 0 | AD48: =IF(P48>Alapadatok!$B$21,0,IF($AE$6=$AF$6,$AD$7*Alapadatok!$P$12,$AD$7*AE48))*(1+Alapadatok!$P$11) -> 44986.29779 | AE48: =Alapadatok!$P$12*(1+AI48) -> 294.8471991 | AF48: =SIN(360/Alapadatok!$J$28*P48*PI()/180) -> 0.9945218954 | AG48: =SIN(360/Alapadatok!$J$29*P48*PI()/180) -> 0.4338837391 | AH48: =Alapadatok!$K$30 -> 0.015 | AI48: =ABS(AF48*Alapadatok!$K$28)+(AG48*Alapadatok!$K$29)+AH48 -> 0.09202666329 | AJ48: 12 | AK48: =IF(AJ48>Alapadatok!$P$31,0,Alapadatok!$B$38+IF(Alapadatok!$D$38=Alapadatok!$O$32,Alapadatok!$B$36,0)) -> 0 | AW48: =IF(D47*6>=Alapadatok!$B$21,"",VLOOKUP(D48,$O$11:$AD$430,16,FALSE)) -> 44986.29779
B49: 1 | D49: 39 | E49: =IF(D48*3>=Alapadatok!$B$21,"",VLOOKUP(D49*3-2,Alapadatok!$T$4:$W$423,$AI$8+1,FALSE)) -> 2.11 | F49: =IF(D48*3>=Alapadatok!$B$21,"",E49+$F$11-$E$11) ->  | G49: =IF(OR($H$9<>"",D48*3>=Alapadatok!$B$21),"",VLOOKUP(D49,$O$11:$AA$430,12,FALSE)) ->  | H49: =IF(OR($H$9<>"",D48*3>=Alapadatok!$B$21),"",VLOOKUP(D49*3,$P$11:$AA$430,12,FALSE)) ->  | M49: =IF(D48*3>=Alapadatok!$B$21,"n",F49) ->  | N49: 4 | O49: 13 | P49: 39 | Y49: =IF(P49>Alapadatok!$B$21,0,X49*V49/1200) ->  | Z49: =IF(P49>Alapadatok!$B$21,0,IF(AND(Alapadatok!$J$15="I",P49=Alapadatok!$B$21),Z48+X49,IF(P49<=Alapadatok!$K$15,Y49,IF(O49=O48,Z48,PMT(W49/1200,Alapadatok!$B$21-O49*3+3,-X49))))) ->  | AC49: =IF(P49>Alapadatok!$B$21,0,Alapadatok!$B$35+AK49) -> 0 | AD49: =IF(P49>Alapadatok!$B$21,0,IF($AE$6=$AF$6,$AD$7*Alapadatok!$P$12,$AD$7*AE49))*(1+Alapadatok!$P$11) -> 44986.29779 | AE49: =Alapadatok!$P$12*(1+AI49) -> 284.7711712 | AF49: =SIN(360/Alapadatok!$J$28*P49*PI()/180) -> 0.9510565163 | AG49: =SIN(360/Alapadatok!$J$29*P49*PI()/180) -> -0.4338837391 | AH49: =Alapadatok!$K$30 -> 0.015 | AI49: =ABS(AF49*Alapadatok!$K$28)+(AG49*Alapadatok!$K$29)+AH49 -> 0.05470804141 | AJ49: 12 | AK49: =IF(AJ49>Alapadatok!$P$31,0,Alapadatok!$B$38+IF(Alapadatok!$D$38=Alapadatok!$O$32,Alapadatok!$B$36,0)) -> 0 | AW49: =IF(D48*6>=Alapadatok!$B$21,"",VLOOKUP(D49,$O$11:$AD$430,16,FALSE)) -> 44986.29779
B50: 1 | D50: 40 | E50: =IF(D49*3>=Alapadatok!$B$21,"",VLOOKUP(D50*3-2,Alapadatok!$T$4:$W$423,$AI$8+1,FALSE)) -> 2.11 | F50: =IF(D49*3>=Alapadatok!$B$21,"",E50+$F$11-$E$11) ->  | G50: =IF(OR($H$9<>"",D49*3>=Alapadatok!$B$21),"",VLOOKUP(D50,$O$11:$AA$430,12,FALSE)) ->  | H50: =IF(OR($H$9<>"",D49*3>=Alapadatok!$B$21),"",VLOOKUP(D50*3,$P$11:$AA$430,12,FALSE)) ->  | M50: =IF(D49*3>=Alapadatok!$B$21,"n",F50) ->  | N50: 4 | O50: 14 | P50: 40 | Y50: =IF(P50>Alapadatok!$B$21,0,X50*V50/1200) ->  | Z50: =IF(P50>Alapadatok!$B$21,0,IF(AND(Alapadatok!$J$15="I",P50=Alapadatok!$B$21),Z49+X50,IF(P50<=Alapadatok!$K$15,Y50,IF(O50=O49,Z49,PMT(W50/1200,Alapadatok!$B$21-O50*3+3,-X50))))) ->  | AC50: =IF(P50>Alapadatok!$B$21,0,Alapadatok!$B$35+AK50) -> 0 | AD50: =IF(P50>Alapadatok!$B$21,0,IF($AE$6=$AF$6,$AD$7*Alapadatok!$P$12,$AD$7*AE50))*(1+Alapadatok!$P$11) -> 44986.29779 | AE50: =Alapadatok!$P$12*(1+AI50) -> 277.5503901 | AF50: =SIN(360/Alapadatok!$J$28*P50*PI()/180) -> 0.8660254038 | AG50: =SIN(360/Alapadatok!$J$29*P50*PI()/180) -> -0.9749279122 | AH50: =Alapadatok!$K$30 -> 0.015 | AI50: =ABS(AF50*Alapadatok!$K$28)+(AG50*Alapadatok!$K$29)+AH50 -> 0.02796440774 | AJ50: 4 | AK50: =IF(AJ50>Alapadatok!$P$31,0,Alapadatok!$B$38+IF(Alapadatok!$D$38=Alapadatok!$O$32,Alapadatok!$B$36,0)) -> 0 | AW50: =IF(D49*6>=Alapadatok!$B$21,"",VLOOKUP(D50,$O$11:$AD$430,16,FALSE)) -> 44986.29779
A51: =C51 -> 11 | B51: 1 | C51: =C47+1 -> 11 | D51: 41 | E51: =IF(D50*3>=Alapadatok!$B$21,"",VLOOKUP(D51*3-2,Alapadatok!$T$4:$W$423,$AI$8+1,FALSE)) -> 2.11 | F51: =IF(D50*3>=Alapadatok!$B$21,"",E51+$F$11-$E$11) ->  | G51: =IF(OR($H$9<>"",D50*3>=Alapadatok!$B$21),"",VLOOKUP(D51,$O$11:$AA$430,12,FALSE)) ->  | H51: =IF(OR($H$9<>"",D50*3>=Alapadatok!$B$21),"",VLOOKUP(D51*3,$P$11:$AA$430,12,FALSE)) ->  | M51: =IF(D50*3>=Alapadatok!$B$21,"n",F51) ->  | N51: 4 | O51: 14 | P51: 41 | Y51: =IF(P51>Alapadatok!$B$21,0,X51*V51/1200) ->  | Z51: =IF(P51>Alapadatok!$B$21,0,IF(AND(Alapadatok!$J$15="I",P51=Alapadatok!$B$21),Z50+X51,IF(P51<=Alapadatok!$K$15,Y51,IF(O51=O50,Z50,PMT(W51/1200,Alapadatok!$B$21-O51*3+3,-X51))))) ->  | AC51: =IF(P51>Alapadatok!$B$21,0,Alapadatok!$B$35+AK51) -> 0 | AD51: =IF(P51>Alapadatok!$B$21,0,IF($AE$6=$AF$6,$AD$7*Alapadatok!$P$12,$AD$7*AE51))*(1+Alapadatok!$P$11) -> 44986.29779 | AE51: =Alapadatok!$P$12*(1+AI51) -> 277.6451662 | AF51: =SIN(360/Alapadatok!$J$28*P51*PI()/180) -> 0.7431448255 | AG51: =SIN(360/Alapadatok!$J$29*P51*PI()/180) -> -0.7818314825 | AH51: =Alapadatok!$K$30 -> 0.015 | AI51: =ABS(AF51*Alapadatok!$K$28)+(AG51*Alapadatok!$K$29)+AH51 -> 0.02831543023 | AJ51: 12 | AK51: =IF(AJ51>Alapadatok!$P$31,0,Alapadatok!$B$38+IF(Alapadatok!$D$38=Alapadatok!$O$32,Alapadatok!$B$36,0)) -> 0 | AM51: =IF(F51=M51," ",M51) ->  | AW51: =IF(D50*6>=Alapadatok!$B$21,"",VLOOKUP(D51,$O$11:$AD$430,16,FALSE)) -> 
B52: 1 | D52: 42 | E52: =IF(D51*3>=Alapadatok!$B$21,"",VLOOKUP(D52*3-2,Alapadatok!$T$4:$W$423,$AI$8+1,FALSE)) -> 2.11 | F52: =IF(D51*3>=Alapadatok!$B$21,"",E52+$F$11-$E$11) ->  | G52: =IF(OR($H$9<>"",D51*3>=Alapadatok!$B$21),"",VLOOKUP(D52,$O$11:$AA$430,12,FALSE)) ->  | H52: =IF(OR($H$9<>"",D51*3>=Alapadatok!$B$21),"",VLOOKUP(D52*3,$P$11:$AA$430,12,FALSE)) ->  | M52: =IF(D51*3>=Alapadatok!$B$21,"n",F52) ->  | N52: 4 | O52: 14 | P52: 42 | Y52: =IF(P52>Alapadatok!$B$21,0,X52*V52/1200) ->  | Z52: =IF(P52>Alapadatok!$B$21,0,IF(AND(Alapadatok!$J$15="I",P52=Alapadatok!$B$21),Z51+X52,IF(P52<=Alapadatok!$K$15,Y52,IF(O52=O51,Z51,PMT(W52/1200,Alapadatok!$B$21-O52*3+3,-X52))))) ->  | AC52: =IF(P52>Alapadatok!$B$21,0,Alapadatok!$B$35+AK52) -> 0 | AD52: =IF(P52>Alapadatok!$B$21,0,IF($AE$6=$AF$6,$AD$7*Alapadatok!$P$12,$AD$7*AE52))*(1+Alapadatok!$P$11) -> 44986.29779 | AE52: =Alapadatok!$P$12*(1+AI52) -> 283.5721211 | AF52: =SIN(360/Alapadatok!$J$28*P52*PI()/180) -> 0.5877852523 | AG52: =SIN(360/Alapadatok!$J$29*P52*PI()/180) -> -1.470178146e-15 | AH52: =Alapadatok!$K$30 -> 0.015 | AI52: =ABS(AF52*Alapadatok!$K$28)+(AG52*Alapadatok!$K$29)+AH52 -> 0.05026711514 | AJ52: 12 | AK52: =IF(AJ52>Alapadatok!$P$31,0,Alapadatok!$B$38+IF(Alapadatok!$D$38=Alapadatok!$O$32,Alapadatok!$B$36,0)) -> 0 | AW52: =IF(D51*6>=Alapadatok!$B$21,"",VLOOKUP(D52,$O$11:$AD$430,16,FALSE)) -> 
B53: 1 | D53: 43 | E53: =IF(D52*3>=Alapadatok!$B$21,"",VLOOKUP(D53*3-2,Alapadatok!$T$4:$W$423,$AI$8+1,FALSE)) -> 2.11 | F53: =IF(D52*3>=Alapadatok!$B$21,"",E53+$F$11-$E$11) ->  | G53: =IF(OR($H$9<>"",D52*3>=Alapadatok!$B$21),"",VLOOKUP(D53,$O$11:$AA$430,12,FALSE)) ->  | H53: =IF(OR($H$9<>"",D52*3>=Alapadatok!$B$21),"",VLOOKUP(D53*3,$P$11:$AA$430,12,FALSE)) ->  | M53: =IF(D52*3>=Alapadatok!$B$21,"n",F53) ->  | N53: 4 | O53: 15 | P53: 43 | Y53: =IF(P53>Alapadatok!$B$21,0,X53*V53/1200) ->  | Z53: =IF(P53>Alapadatok!$B$21,0,IF(AND(Alapadatok!$J$15="I",P53=Alapadatok!$B$21),Z52+X53,IF(P53<=Alapadatok!$K$15,Y53,IF(O53=O52,Z52,PMT(W53/1200,Alapadatok!$B$21-O53*3+3,-X53))))) ->  | AC53: =IF(P53>Alapadatok!$B$21,0,Alapadatok!$B$35+AK53) -> 0 | AD53: =IF(P53>Alapadatok!$B$21,0,IF($AE$6=$AF$6,$AD$7*Alapadatok!$P$12,$AD$7*AE53))*(1+Alapadatok!$P$11) -> 44986.29779 | AE53: =Alapadatok!$P$12*(1+AI53) -> 289.0829136 | AF53: =SIN(360/Alapadatok!$J$28*P53*PI()/180) -> 0.4067366431 | AG53: =SIN(360/Alapadatok!$J$29*P53*PI()/180) -> 0.7818314825 | AH53: =Alapadatok!$K$30 -> 0.015 | AI53: =ABS(AF53*Alapadatok!$K$28)+(AG53*Alapadatok!$K$29)+AH53 -> 0.07067745788 | AJ53: 2 | AK53: =IF(AJ53>Alapadatok!$P$31,0,Alapadatok!$B$38+IF(Alapadatok!$D$38=Alapadatok!$O$32,Alapadatok!$B$36,0)) -> 0 | AW53: =IF(D52*6>=Alapadatok!$B$21,"",VLOOKUP(D53,$O$11:$AD$430,16,FALSE)) -> 
B54: 1 | D54: 44 | E54: =IF(D53*3>=Alapadatok!$B$21,"",VLOOKUP(D54*3-2,Alapadatok!$T$4:$W$423,$AI$8+1,FALSE)) -> 2.11 | F54: =IF(D53*3>=Alapadatok!$B$21,"",E54+$F$11-$E$11) ->  | G54: =IF(OR($H$9<>"",D53*3>=Alapadatok!$B$21),"",VLOOKUP(D54,$O$11:$AA$430,12,FALSE)) ->  | H54: =IF(OR($H$9<>"",D53*3>=Alapadatok!$B$21),"",VLOOKUP(D54*3,$P$11:$AA$430,12,FALSE)) ->  | M54: =IF(D53*3>=Alapadatok!$B$21,"n",F54) ->  | N54: 4 | O54: 15 | P54: 44 | Y54: =IF(P54>Alapadatok!$B$21,0,X54*V54/1200) ->  | Z54: =IF(P54>Alapadatok!$B$21,0,IF(AND(Alapadatok!$J$15="I",P54=Alapadatok!$B$21),Z53+X54,IF(P54<=Alapadatok!$K$15,Y54,IF(O54=O53,Z53,PMT(W54/1200,Alapadatok!$B$21-O54*3+3,-X54))))) ->  | AC54: =IF(P54>Alapadatok!$B$21,0,Alapadatok!$B$35+AK54) -> 0 | AD54: =IF(P54>Alapadatok!$B$21,0,IF($AE$6=$AF$6,$AD$7*Alapadatok!$P$12,$AD$7*AE54))*(1+Alapadatok!$P$11) -> 44986.29779 | AE54: =Alapadatok!$P$12*(1+AI54) -> 287.9473908 | AF54: =SIN(360/Alapadatok!$J$28*P54*PI()/180) -> 0.2079116908 | AG54: =SIN(360/Alapadatok!$J$29*P54*PI()/180) -> 0.9749279122 | AH54: =Alapadatok!$K$30 -> 0.015 | AI54: =ABS(AF54*Alapadatok!$K$28)+(AG54*Alapadatok!$K$29)+AH54 -> 0.06647181794 | AJ54: 12 | AK54: =IF(AJ54>Alapadatok!$P$31,0,Alapadatok!$B$38+IF(Alapadatok!$D$38=Alapadatok!$O$32,Alapadatok!$B$36,0)) -> 0 | AW54: =IF(D53*6>=Alapadatok!$B$21,"",VLOOKUP(D54,$O$11:$AD$430,16,FALSE)) -> 
A55: =C55 -> 12 | B55: 1 | C55: =C51+1 -> 12 | D55: 45 | E55: =IF(D54*3>=Alapadatok!$B$21,"",VLOOKUP(D55*3-2,Alapadatok!$T$4:$W$423,$AI$8+1,FALSE)) -> 2.11 | F55: =IF(D54*3>=Alapadatok!$B$21,"",E55+$F$11-$E$11) ->  | G55: =IF(OR($H$9<>"",D54*3>=Alapadatok!$B$21),"",VLOOKUP(D55,$O$11:$AA$430,12,FALSE)) ->  | H55: =IF(OR($H$9<>"",D54*3>=Alapadatok!$B$21),"",VLOOKUP(D55*3,$P$11:$AA$430,12,FALSE)) ->  | M55: =IF(D54*3>=Alapadatok!$B$21,"n",F55) ->  | N55: 4 | O55: 15 | P55: 45 | Y55: =IF(P55>Alapadatok!$B$21,0,X55*V55/1200) ->  | Z55: =IF(P55>Alapadatok!$B$21,0,IF(AND(Alapadatok!$J$15="I",P55=Alapadatok!$B$21),Z54+X55,IF(P55<=Alapadatok!$K$15,Y55,IF(O55=O54,Z54,PMT(W55/1200,Alapadatok!$B$21-O55*3+3,-X55))))) ->  | AC55: =IF(P55>Alapadatok!$B$21,0,Alapadatok!$B$35+AK55) -> 0 | AD55: =IF(P55>Alapadatok!$B$21,0,IF($AE$6=$AF$6,$AD$7*Alapadatok!$P$12,$AD$7*AE55))*(1+Alapadatok!$P$11) -> 44986.29779 | AE55: =Alapadatok!$P$12*(1+AI55) -> 278.7359444 | AF55: =SIN(360/Alapadatok!$J$28*P55*PI()/180) -> 3.675445365e-16 | AG55: =SIN(360/Alapadatok!$J$29*P55*PI()/180) -> 0.4338837391 | AH55: =Alapadatok!$K$30 -> 0.015 | AI55: =ABS(AF55*Alapadatok!$K$28)+(AG55*Alapadatok!$K$29)+AH55 -> 0.03235534956 | AJ55: 12 | AK55: =IF(AJ55>Alapadatok!$P$31,0,Alapadatok!$B$38+IF(Alapadatok!$D$38=Alapadatok!$O$32,Alapadatok!$B$36,0)) -> 0 | AW55: =IF(D54*6>=Alapadatok!$B$21,"",VLOOKUP(D55,$O$11:$AD$430,16,FALSE)) -> 
B56: 1 | D56: 46 | E56: =IF(D55*3>=Alapadatok!$B$21,"",VLOOKUP(D56*3-2,Alapadatok!$T$4:$W$423,$AI$8+1,FALSE)) -> 2.11 | F56: =IF(D55*3>=Alapadatok!$B$21,"",E56+$F$11-$E$11) ->  | G56: =IF(OR($H$9<>"",D55*3>=Alapadatok!$B$21),"",VLOOKUP(D56,$O$11:$AA$430,12,FALSE)) ->  | H56: =IF(OR($H$9<>"",D55*3>=Alapadatok!$B$21),"",VLOOKUP(D56*3,$P$11:$AA$430,12,FALSE)) ->  | M56: =IF(D55*3>=Alapadatok!$B$21,"n",F56) ->  | N56: 4 | O56: 16 | P56: 46 | Y56: =IF(P56>Alapadatok!$B$21,0,X56*V56/1200) ->  | Z56: =IF(P56>Alapadatok!$B$21,0,IF(AND(Alapadatok!$J$15="I",P56=Alapadatok!$B$21),Z55+X56,IF(P56<=Alapadatok!$K$15,Y56,IF(O56=O55,Z55,PMT(W56/1200,Alapadatok!$B$21-O56*3+3,-X56))))) ->  | AC56: =IF(P56>Alapadatok!$B$21,0,Alapadatok!$B$35+AK56) -> 0 | AD56: =IF(P56>Alapadatok!$B$21,0,IF($AE$6=$AF$6,$AD$7*Alapadatok!$P$12,$AD$7*AE56))*(1+Alapadatok!$P$11) -> 44986.29779 | AE56: =Alapadatok!$P$12*(1+AI56) -> 272.732225 | AF56: =SIN(360/Alapadatok!$J$28*P56*PI()/180) -> -0.2079116908 | AG56: =SIN(360/Alapadatok!$J$29*P56*PI()/180) -> -0.4338837391 | AH56: =Alapadatok!$K$30 -> 0.015 | AI56: =ABS(AF56*Alapadatok!$K$28)+(AG56*Alapadatok!$K$29)+AH56 -> 0.01011935188 | AJ56: 4 | AK56: =IF(AJ56>Alapadatok!$P$31,0,Alapadatok!$B$38+IF(Alapadatok!$D$38=Alapadatok!$O$32,Alapadatok!$B$36,0)) -> 0 | AW56: =IF(D55*6>=Alapadatok!$B$21,"",VLOOKUP(D56,$O$11:$AD$430,16,FALSE)) -> 
B57: 1 | D57: 47 | E57: =IF(D56*3>=Alapadatok!$B$21,"",VLOOKUP(D57*3-2,Alapadatok!$T$4:$W$423,$AI$8+1,FALSE)) -> 2.11 | F57: =IF(D56*3>=Alapadatok!$B$21,"",E57+$F$11-$E$11) ->  | G57: =IF(OR($H$9<>"",D56*3>=Alapadatok!$B$21),"",VLOOKUP(D57,$O$11:$AA$430,12,FALSE)) ->  | H57: =IF(OR($H$9<>"",D56*3>=Alapadatok!$B$21),"",VLOOKUP(D57*3,$P$11:$AA$430,12,FALSE)) ->  | M57: =IF(D56*3>=Alapadatok!$B$21,"n",F57) ->  | N57: 4 | O57: 16 | P57: 47 | Y57: =IF(P57>Alapadatok!$B$21,0,X57*V57/1200) ->  | Z57: =IF(P57>Alapadatok!$B$21,0,IF(AND(Alapadatok!$J$15="I",P57=Alapadatok!$B$21),Z56+X57,IF(P57<=Alapadatok!$K$15,Y57,IF(O57=O56,Z56,PMT(W57/1200,Alapadatok!$B$21-O57*3+3,-X57))))) ->  | AC57: =IF(P57>Alapadatok!$B$21,0,Alapadatok!$B$35+AK57) -> 0 | AD57: =IF(P57>Alapadatok!$B$21,0,IF($AE$6=$AF$6,$AD$7*Alapadatok!$P$12,$AD$7*AE57))*(1+Alapadatok!$P$11) -> 44986.29779 | AE57: =Alapadatok!$P$12*(1+AI57) -> 270.1099122 | AF57: =SIN(360/Alapadatok!$J$28*P57*PI()/180) -> -0.4067366431 | AG57: =SIN(360/Alapadatok!$J$29*P57*PI()/180) -> -0.9749279122 | AH57: =Alapadatok!$K$30 -> 0.015 | AI57: =ABS(AF57*Alapadatok!$K$28)+(AG57*Alapadatok!$K$29)+AH57 -> 0.0004070820973 | AJ57: 12 | AK57: =IF(AJ57>Alapadatok!$P$31,0,Alapadatok!$B$38+IF(Alapadatok!$D$38=Alapadatok!$O$32,Alapadatok!$B$36,0)) -> 0 | AW57: =IF(D56*6>=Alapadatok!$B$21,"",VLOOKUP(D57,$O$11:$AD$430,16,FALSE)) -> 
B58: 1 | D58: 48 | E58: =IF(D57*3>=Alapadatok!$B$21,"",VLOOKUP(D58*3-2,Alapadatok!$T$4:$W$423,$AI$8+1,FALSE)) -> 2.11 | F58: =IF(D57*3>=Alapadatok!$B$21,"",E58+$F$11-$E$11) ->  | G58: =IF(OR($H$9<>"",D57*3>=Alapadatok!$B$21),"",VLOOKUP(D58,$O$11:$AA$430,12,FALSE)) ->  | H58: =IF(OR($H$9<>"",D57*3>=Alapadatok!$B$21),"",VLOOKUP(D58*3,$P$11:$AA$430,12,FALSE)) ->  | M58: =IF(D57*3>=Alapadatok!$B$21,"n",F58) ->  | N58: 4 | O58: 16 | P58: 48 | Y58: =IF(P58>Alapadatok!$B$21,0,X58*V58/1200) ->  | Z58: =IF(P58>Alapadatok!$B$21,0,IF(AND(Alapadatok!$J$15="I",P58=Alapadatok!$B$21),Z57+X58,IF(P58<=Alapadatok!$K$15,Y58,IF(O58=O57,Z57,PMT(W58/1200,Alapadatok!$B$21-O58*3+3,-X58))))) ->  | AC58: =IF(P58>Alapadatok!$B$21,0,Alapadatok!$B$35+AK58) -> 0 | AD58: =IF(P58>Alapadatok!$B$21,0,IF($AE$6=$AF$6,$AD$7*Alapadatok!$P$12,$AD$7*AE58))*(1+Alapadatok!$P$11) -> 44986.29779 | AE58: =Alapadatok!$P$12*(1+AI58) -> 275.1283411 | AF58: =SIN(360/Alapadatok!$J$28*P58*PI()/180) -> -0.5877852523 | AG58: =SIN(360/Alapadatok!$J$29*P58*PI()/180) -> -0.7818314825 | AH58: =Alapadatok!$K$30 -> 0.015 | AI58: =ABS(AF58*Alapadatok!$K$28)+(AG58*Alapadatok!$K$29)+AH58 -> 0.01899385584 | AJ58: 12 | AK58: =IF(AJ58>Alapadatok!$P$31,0,Alapadatok!$B$38+IF(Alapadatok!$D$38=Alapadatok!$O$32,Alapadatok!$B$36,0)) -> 0 | AW58: =IF(D57*6>=Alapadatok!$B$21,"",VLOOKUP(D58,$O$11:$AD$430,16,FALSE)) -> 
A59: =C59 -> 13 | B59: 1 | C59: =C55+1 -> 13 | D59: 49 | E59: =IF(D58*3>=Alapadatok!$B$21,"",VLOOKUP(D59*3-2,Alapadatok!$T$4:$W$423,$AI$8+1,FALSE)) -> 2.11 | F59: =IF(D58*3>=Alapadatok!$B$21,"",E59+$F$11-$E$11) ->  | G59: =IF(OR($H$9<>"",D58*3>=Alapadatok!$B$21),"",VLOOKUP(D59,$O$11:$AA$430,12,FALSE)) ->  | H59: =IF(OR($H$9<>"",D58*3>=Alapadatok!$B$21),"",VLOOKUP(D59*3,$P$11:$AA$430,12,FALSE)) ->  | M59: =IF(D58*3>=Alapadatok!$B$21,"n",F59) ->  | N59: 5 | O59: 17 | P59: 49 | Y59: =IF(P59>Alapadatok!$B$21,0,X59*V59/1200) ->  | Z59: =IF(P59>Alapadatok!$B$21,0,IF(AND(Alapadatok!$J$15="I",P59=Alapadatok!$B$21),Z58+X59,IF(P59<=Alapadatok!$K$15,Y59,IF(O59=O58,Z58,PMT(W59/1200,Alapadatok!$B$21-O59*3+3,-X59))))) ->  | AC59: =IF(P59>Alapadatok!$B$21,0,Alapadatok!$B$35+AK59) -> 0 | AD59: =IF(P59>Alapadatok!$B$21,0,IF($AE$6=$AF$6,$AD$7*Alapadatok!$P$12,$AD$7*AE59))*(1+Alapadatok!$P$11) -> 44986.29779 | AE59: =Alapadatok!$P$12*(1+AI59) -> 286.0889462 | AF59: =SIN(360/Alapadatok!$J$28*P59*PI()/180) -> -0.7431448255 | AG59: =SIN(360/Alapadatok!$J$29*P59*PI()/180) -> -1.715207837e-15 | AH59: =Alapadatok!$K$30 -> 0.015 | AI59: =ABS(AF59*Alapadatok!$K$28)+(AG59*Alapadatok!$K$29)+AH59 -> 0.05958868953 | AJ59: 1 | AK59: =IF(AJ59>Alapadatok!$P$31,0,Alapadatok!$B$38+IF(Alapadatok!$D$38=Alapadatok!$O$32,Alapadatok!$B$36,0)) -> 0 | AW59: =IF(D58*6>=Alapadatok!$B$21,"",VLOOKUP(D59,$O$11:$AD$430,16,FALSE)) -> 
B60: 1 | D60: 50 | E60: =IF(D59*3>=Alapadatok!$B$21,"",VLOOKUP(D60*3-2,Alapadatok!$T$4:$W$423,$AI$8+1,FALSE)) -> 2.11 | F60: =IF(D59*3>=Alapadatok!$B$21,"",E60+$F$11-$E$11) ->  | G60: =IF(OR($H$9<>"",D59*3>=Alapadatok!$B$21),"",VLOOKUP(D60,$O$11:$AA$430,12,FALSE)) ->  | H60: =IF(OR($H$9<>"",D59*3>=Alapadatok!$B$21),"",VLOOKUP(D60*3,$P$11:$AA$430,12,FALSE)) ->  | M60: =IF(D59*3>=Alapadatok!$B$21,"n",F60) ->  | N60: 5 | O60: 17 | P60: 50 | Y60: =IF(P60>Alapadatok!$B$21,0,X60*V60/1200) ->  | Z60: =IF(P60>Alapadatok!$B$21,0,IF(AND(Alapadatok!$J$15="I",P60=Alapadatok!$B$21),Z59+X60,IF(P60<=Alapadatok!$K$15,Y60,IF(O60=O59,Z59,PMT(W60/1200,Alapadatok!$B$21-O60*3+3,-X60))))) ->  | AC60: =IF(P60>Alapadatok!$B$21,0,Alapadatok!$B$35+AK60) -> 0 | AD60: =IF(P60>Alapadatok!$B$21,0,IF($AE$6=$AF$6,$AD$7*Alapadatok!$P$12,$AD$7*AE60))*(1+Alapadatok!$P$11) -> 44986.29779 | AE60: =Alapadatok!$P$12*(1+AI60) -> 296.5233916 | AF60: =SIN(360/Alapadatok!$J$28*P60*PI()/180) -> -0.8660254038 | AG60: =SIN(360/Alapadatok!$J$29*P60*PI()/180) -> 0.7818314825 | AH60: =Alapadatok!$K$30 -> 0.015 | AI60: =ABS(AF60*Alapadatok!$K$28)+(AG60*Alapadatok!$K$29)+AH60 -> 0.09823478353 | AJ60: 12 | AK60: =IF(AJ60>Alapadatok!$P$31,0,Alapadatok!$B$38+IF(Alapadatok!$D$38=Alapadatok!$O$32,Alapadatok!$B$36,0)) -> 0 | AW60: =IF(D59*6>=Alapadatok!$B$21,"",VLOOKUP(D60,$O$11:$AD$430,16,FALSE)) -> 
B61: 1 | D61: 51 | E61: =IF(D60*3>=Alapadatok!$B$21,"",VLOOKUP(D61*3-2,Alapadatok!$T$4:$W$423,$AI$8+1,FALSE)) -> 2.11 | F61: =IF(D60*3>=Alapadatok!$B$21,"",E61+$F$11-$E$11) ->  | G61: =IF(OR($H$9<>"",D60*3>=Alapadatok!$B$21),"",VLOOKUP(D61,$O$11:$AA$430,12,FALSE)) ->  | H61: =IF(OR($H$9<>"",D60*3>=Alapadatok!$B$21),"",VLOOKUP(D61*3,$P$11:$AA$430,12,FALSE)) ->  | M61: =IF(D60*3>=Alapadatok!$B$21,"n",F61) ->  | N61: 5 | O61: 17 | P61: 51 | Y61: =IF(P61>Alapadatok!$B$21,0,X61*V61/1200) ->  | Z61: =IF(P61>Alapadatok!$B$21,0,IF(AND(Alapadatok!$J$15="I",P61=Alapadatok!$B$21),Z60+X61,IF(P61<=Alapadatok!$K$15,Y61,IF(O61=O60,Z60,PMT(W61/1200,Alapadatok!$B$21-O61*3+3,-X61))))) ->  | AC61: =IF(P61>Alapadatok!$B$21,0,Alapadatok!$B$35+AK61) -> 0 | AD61: =IF(P61>Alapadatok!$B$21,0,IF($AE$6=$AF$6,$AD$7*Alapadatok!$P$12,$AD$7*AE61))*(1+Alapadatok!$P$11) -> 44986.29779 | AE61: =Alapadatok!$P$12*(1+AI61) -> 299.986337 | AF61: =SIN(360/Alapadatok!$J$28*P61*PI()/180) -> -0.9510565163 | AG61: =SIN(360/Alapadatok!$J$29*P61*PI()/180) -> 0.9749279122 | AH61: =Alapadatok!$K$30 -> 0.015 | AI61: =ABS(AF61*Alapadatok!$K$28)+(AG61*Alapadatok!$K$29)+AH61 -> 0.1110605075 | AJ61: 12 | AK61: =IF(AJ61>Alapadatok!$P$31,0,Alapadatok!$B$38+IF(Alapadatok!$D$38=Alapadatok!$O$32,Alapadatok!$B$36,0)) -> 0 | AW61: =IF(D60*6>=Alapadatok!$B$21,"",VLOOKUP(D61,$O$11:$AD$430,16,FALSE)) -> 
B62: 1 | D62: 52 | E62: =IF(D61*3>=Alapadatok!$B$21,"",VLOOKUP(D62*3-2,Alapadatok!$T$4:$W$423,$AI$8+1,FALSE)) -> 2.11 | F62: =IF(D61*3>=Alapadatok!$B$21,"",E62+$F$11-$E$11) ->  | G62: =IF(OR($H$9<>"",D61*3>=Alapadatok!$B$21),"",VLOOKUP(D62,$O$11:$AA$430,12,FALSE)) ->  | H62: =IF(OR($H$9<>"",D61*3>=Alapadatok!$B$21),"",VLOOKUP(D62*3,$P$11:$AA$430,12,FALSE)) ->  | M62: =IF(D61*3>=Alapadatok!$B$21,"n",F62) ->  | N62: 5 | O62: 18 | P62: 52 | Y62: =IF(P62>Alapadatok!$B$21,0,X62*V62/1200) ->  | Z62: =IF(P62>Alapadatok!$B$21,0,IF(AND(Alapadatok!$J$15="I",P62=Alapadatok!$B$21),Z61+X62,IF(P62<=Alapadatok!$K$15,Y62,IF(O62=O61,Z61,PMT(W62/1200,Alapadatok!$B$21-O62*3+3,-X62))))) ->  | AC62: =IF(P62>Alapadatok!$B$21,0,Alapadatok!$B$35+AK62) -> 0 | AD62: =IF(P62>Alapadatok!$B$21,0,IF($AE$6=$AF$6,$AD$7*Alapadatok!$P$12,$AD$7*AE62))*(1+Alapadatok!$P$11) -> 44986.29779 | AE62: =Alapadatok!$P$12*(1+AI62) -> 294.8471991 | AF62: =SIN(360/Alapadatok!$J$28*P62*PI()/180) -> -0.9945218954 | AG62: =SIN(360/Alapadatok!$J$29*P62*PI()/180) -> 0.4338837391 | AH62: =Alapadatok!$K$30 -> 0.015 | AI62: =ABS(AF62*Alapadatok!$K$28)+(AG62*Alapadatok!$K$29)+AH62 -> 0.09202666329 | AJ62: 4 | AK62: =IF(AJ62>Alapadatok!$P$31,0,Alapadatok!$B$38+IF(Alapadatok!$D$38=Alapadatok!$O$32,Alapadatok!$B$36,0)) -> 0 | AW62: =IF(D61*6>=Alapadatok!$B$21,"",VLOOKUP(D62,$O$11:$AD$430,16,FALSE)) -> 
A63: =C63 -> 14 | B63: 1 | C63: =C59+1 -> 14 | D63: 53 | E63: =IF(D62*3>=Alapadatok!$B$21,"",VLOOKUP(D63*3-2,Alapadatok!$T$4:$W$423,$AI$8+1,FALSE)) -> 2.11 | F63: =IF(D62*3>=Alapadatok!$B$21,"",E63+$F$11-$E$11) ->  | G63: =IF(OR($H$9<>"",D62*3>=Alapadatok!$B$21),"",VLOOKUP(D63,$O$11:$AA$430,12,FALSE)) ->  | H63: =IF(OR($H$9<>"",D62*3>=Alapadatok!$B$21),"",VLOOKUP(D63*3,$P$11:$AA$430,12,FALSE)) ->  | M63: =IF(D62*3>=Alapadatok!$B$21,"n",F63) ->  | N63: 5 | O63: 18 | P63: 53 | Y63: =IF(P63>Alapadatok!$B$21,0,X63*V63/1200) ->  | Z63: =IF(P63>Alapadatok!$B$21,0,IF(AND(Alapadatok!$J$15="I",P63=Alapadatok!$B$21),Z62+X63,IF(P63<=Alapadatok!$K$15,Y63,IF(O63=O62,Z62,PMT(W63/1200,Alapadatok!$B$21-O63*3+3,-X63))))) ->  | AC63: =IF(P63>Alapadatok!$B$21,0,Alapadatok!$B$35+AK63) -> 0 | AD63: =IF(P63>Alapadatok!$B$21,0,IF($AE$6=$AF$6,$AD$7*Alapadatok!$P$12,$AD$7*AE63))*(1+Alapadatok!$P$11) -> 44986.29779 | AE63: =Alapadatok!$P$12*(1+AI63) -> 285.4753103 | AF63: =SIN(360/Alapadatok!$J$28*P63*PI()/180) -> -0.9945218954 | AG63: =SIN(360/Alapadatok!$J$29*P63*PI()/180) -> -0.4338837391 | AH63: =Alapadatok!$K$30 -> 0.015 | AI63: =ABS(AF63*Alapadatok!$K$28)+(AG63*Alapadatok!$K$29)+AH63 -> 0.05731596416 | AJ63: 12 | AK63: =IF(AJ63>Alapadatok!$P$31,0,Alapadatok!$B$38+IF(Alapadatok!$D$38=Alapadatok!$O$32,Alapadatok!$B$36,0)) -> 0 | AW63: =IF(D62*6>=Alapadatok!$B$21,"",VLOOKUP(D63,$O$11:$AD$430,16,FALSE)) -> 
B64: 1 | D64: 54 | E64: =IF(D63*3>=Alapadatok!$B$21,"",VLOOKUP(D64*3-2,Alapadatok!$T$4:$W$423,$AI$8+1,FALSE)) -> 2.11 | F64: =IF(D63*3>=Alapadatok!$B$21,"",E64+$F$11-$E$11) ->  | G64: =IF(OR($H$9<>"",D63*3>=Alapadatok!$B$21),"",VLOOKUP(D64,$O$11:$AA$430,12,FALSE)) ->  | H64: =IF(OR($H$9<>"",D63*3>=Alapadatok!$B$21),"",VLOOKUP(D64*3,$P$11:$AA$430,12,FALSE)) ->  | M64: =IF(D63*3>=Alapadatok!$B$21,"n",F64) ->  | N64: 5 | O64: 18 | P64: 54 | Y64: =IF(P64>Alapadatok!$B$21,0,X64*V64/1200) ->  | Z64: =IF(P64>Alapadatok!$B$21,0,IF(AND(Alapadatok!$J$15="I",P64=Alapadatok!$B$21),Z63+X64,IF(P64<=Alapadatok!$K$15,Y64,IF(O64=O63,Z63,PMT(W64/1200,Alapadatok!$B$21-O64*3+3,-X64))))) ->  | AC64: =IF(P64>Alapadatok!$B$21,0,Alapadatok!$B$35+AK64) -> 0 | AD64: =IF(P64>Alapadatok!$B$21,0,IF($AE$6=$AF$6,$AD$7*Alapadatok!$P$12,$AD$7*AE64))*(1+Alapadatok!$P$11) -> 44986.29779 | AE64: =Alapadatok!$P$12*(1+AI64) -> 278.9278941 | AF64: =SIN(360/Alapadatok!$J$28*P64*PI()/180) -> -0.9510565163 | AG64: =SIN(360/Alapadatok!$J$29*P64*PI()/180) -> -0.9749279122 | AH64: =Alapadatok!$K$30 -> 0.015 | AI64: =ABS(AF64*Alapadatok!$K$28)+(AG64*Alapadatok!$K$29)+AH64 -> 0.03306627449 | AJ64: 12 | AK64: =IF(AJ64>Alapadatok!$P$31,0,Alapadatok!$B$38+IF(Alapadatok!$D$38=Alapadatok!$O$32,Alapadatok!$B$36,0)) -> 0 | AW64: =IF(D63*6>=Alapadatok!$B$21,"",VLOOKUP(D64,$O$11:$AD$430,16,FALSE)) -> 
B65: 1 | D65: 55 | E65: =IF(D64*3>=Alapadatok!$B$21,"",VLOOKUP(D65*3-2,Alapadatok!$T$4:$W$423,$AI$8+1,FALSE)) -> 2.11 | F65: =IF(D64*3>=Alapadatok!$B$21,"",E65+$F$11-$E$11) ->  | G65: =IF(OR($H$9<>"",D64*3>=Alapadatok!$B$21),"",VLOOKUP(D65,$O$11:$AA$430,12,FALSE)) ->  | H65: =IF(OR($H$9<>"",D64*3>=Alapadatok!$B$21),"",VLOOKUP(D65*3,$P$11:$AA$430,12,FALSE)) ->  | M65: =IF(D64*3>=Alapadatok!$B$21,"n",F65) ->  | N65: 5 | O65: 19 | P65: 55 | Y65: =IF(P65>Alapadatok!$B$21,0,X65*V65/1200) ->  | Z65: =IF(P65>Alapadatok!$B$21,0,IF(AND(Alapadatok!$J$15="I",P65=Alapadatok!$B$21),Z64+X65,IF(P65<=Alapadatok!$K$15,Y65,IF(O65=O64,Z64,PMT(W65/1200,Alapadatok!$B$21-O65*3+3,-X65))))) ->  | AC65: =IF(P65>Alapadatok!$B$21,0,Alapadatok!$B$35+AK65) -> 0 | AD65: =IF(P65>Alapadatok!$B$21,0,IF($AE$6=$AF$6,$AD$7*Alapadatok!$P$12,$AD$7*AE65))*(1+Alapadatok!$P$11) -> 44986.29779 | AE65: =Alapadatok!$P$12*(1+AI65) -> 279.6358315 | AF65: =SIN(360/Alapadatok!$J$28*P65*PI()/180) -> -0.8660254038 | AG65: =SIN(360/Alapadatok!$J$29*P65*PI()/180) -> -0.7818314825 | AH65: =Alapadatok!$K$30 -> 0.015 | AI65: =ABS(AF65*Alapadatok!$K$28)+(AG65*Alapadatok!$K$29)+AH65 -> 0.03568826493 | AJ65: 2 | AK65: =IF(AJ65>Alapadatok!$P$31,0,Alapadatok!$B$38+IF(Alapadatok!$D$38=Alapadatok!$O$32,Alapadatok!$B$36,0)) -> 0 | AW65: =IF(D64*6>=Alapadatok!$B$21,"",VLOOKUP(D65,$O$11:$AD$430,16,FALSE)) -> 
B66: 1 | D66: 56 | E66: =IF(D65*3>=Alapadatok!$B$21,"",VLOOKUP(D66*3-2,Alapadatok!$T$4:$W$423,$AI$8+1,FALSE)) -> 2.11 | F66: =IF(D65*3>=Alapadatok!$B$21,"",E66+$F$11-$E$11) ->  | G66: =IF(OR($H$9<>"",D65*3>=Alapadatok!$B$21),"",VLOOKUP(D66,$O$11:$AA$430,12,FALSE)) ->  | H66: =IF(OR($H$9<>"",D65*3>=Alapadatok!$B$21),"",VLOOKUP(D66*3,$P$11:$AA$430,12,FALSE)) ->  | M66: =IF(D65*3>=Alapadatok!$B$21,"n",F66) ->  | N66: 5 | O66: 19 | P66: 56 | Y66: =IF(P66>Alapadatok!$B$21,0,X66*V66/1200) ->  | Z66: =IF(P66>Alapadatok!$B$21,0,IF(AND(Alapadatok!$J$15="I",P66=Alapadatok!$B$21),Z65+X66,IF(P66<=Alapadatok!$K$15,Y66,IF(O66=O65,Z65,PMT(W66/1200,Alapadatok!$B$21-O66*3+3,-X66))))) ->  | AC66: =IF(P66>Alapadatok!$B$21,0,Alapadatok!$B$35+AK66) -> 0 | AD66: =IF(P66>Alapadatok!$B$21,0,IF($AE$6=$AF$6,$AD$7*Alapadatok!$P$12,$AD$7*AE66))*(1+Alapadatok!$P$11) -> 44986.29779 | AE66: =Alapadatok!$P$12*(1+AI66) -> 286.0889462 | AF66: =SIN(360/Alapadatok!$J$28*P66*PI()/180) -> -0.7431448255 | AG66: =SIN(360/Alapadatok!$J$29*P66*PI()/180) -> -1.960237528e-15 | AH66: =Alapadatok!$K$30 -> 0.015 | AI66: =ABS(AF66*Alapadatok!$K$28)+(AG66*Alapadatok!$K$29)+AH66 -> 0.05958868953 | AJ66: 12 | AK66: =IF(AJ66>Alapadatok!$P$31,0,Alapadatok!$B$38+IF(Alapadatok!$D$38=Alapadatok!$O$32,Alapadatok!$B$36,0)) -> 0 | AW66: =IF(D65*6>=Alapadatok!$B$21,"",VLOOKUP(D66,$O$11:$AD$430,16,FALSE)) -> 
A67: =C67 -> 15 | B67: 1 | C67: =C63+1 -> 15 | D67: 57 | E67: =IF(D66*3>=Alapadatok!$B$21,"",VLOOKUP(D67*3-2,Alapadatok!$T$4:$W$423,$AI$8+1,FALSE)) -> 2.11 | F67: =IF(D66*3>=Alapadatok!$B$21,"",E67+$F$11-$E$11) ->  | G67: =IF(OR($H$9<>"",D66*3>=Alapadatok!$B$21),"",VLOOKUP(D67,$O$11:$AA$430,12,FALSE)) ->  | H67: =IF(OR($H$9<>"",D66*3>=Alapadatok!$B$21),"",VLOOKUP(D67*3,$P$11:$AA$430,12,FALSE)) ->  | M67: =IF(D66*3>=Alapadatok!$B$21,"n",F67) ->  | N67: 5 | O67: 19 | P67: 57 | Y67: =IF(P67>Alapadatok!$B$21,0,X67*V67/1200) ->  | Z67: =IF(P67>Alapadatok!$B$21,0,IF(AND(Alapadatok!$J$15="I",P67=Alapadatok!$B$21),Z66+X67,IF(P67<=Alapadatok!$K$15,Y67,IF(O67=O66,Z66,PMT(W67/1200,Alapadatok!$B$21-O67*3+3,-X67))))) ->  | AC67: =IF(P67>Alapadatok!$B$21,0,Alapadatok!$B$35+AK67) -> 0 | AD67: =IF(P67>Alapadatok!$B$21,0,IF($AE$6=$AF$6,$AD$7*Alapadatok!$P$12,$AD$7*AE67))*(1+Alapadatok!$P$11) -> 44986.29779 | AE67: =Alapadatok!$P$12*(1+AI67) -> 292.0159011 | AF67: =SIN(360/Alapadatok!$J$28*P67*PI()/180) -> -0.5877852523 | AG67: =SIN(360/Alapadatok!$J$29*P67*PI()/180) -> 0.7818314825 | AH67: =Alapadatok!$K$30 -> 0.015 | AI67: =ABS(AF67*Alapadatok!$K$28)+(AG67*Alapadatok!$K$29)+AH67 -> 0.08154037444 | AJ67: 12 | AK67: =IF(AJ67>Alapadatok!$P$31,0,Alapadatok!$B$38+IF(Alapadatok!$D$38=Alapadatok!$O$32,Alapadatok!$B$36,0)) -> 0 | AW67: =IF(D66*6>=Alapadatok!$B$21,"",VLOOKUP(D67,$O$11:$AD$430,16,FALSE)) -> 
B68: 1 | D68: 58 | E68: =IF(D67*3>=Alapadatok!$B$21,"",VLOOKUP(D68*3-2,Alapadatok!$T$4:$W$423,$AI$8+1,FALSE)) -> 2.11 | F68: =IF(D67*3>=Alapadatok!$B$21,"",E68+$F$11-$E$11) ->  | G68: =IF(OR($H$9<>"",D67*3>=Alapadatok!$B$21),"",VLOOKUP(D68,$O$11:$AA$430,12,FALSE)) ->  | H68: =IF(OR($H$9<>"",D67*3>=Alapadatok!$B$21),"",VLOOKUP(D68*3,$P$11:$AA$430,12,FALSE)) ->  | M68: =IF(D67*3>=Alapadatok!$B$21,"n",F68) ->  | N68: 5 | O68: 20 | P68: 58 | Y68: =IF(P68>Alapadatok!$B$21,0,X68*V68/1200) ->  | Z68: =IF(P68>Alapadatok!$B$21,0,IF(AND(Alapadatok!$J$15="I",P68=Alapadatok!$B$21),Z67+X68,IF(P68<=Alapadatok!$K$15,Y68,IF(O68=O67,Z67,PMT(W68/1200,Alapadatok!$B$21-O68*3+3,-X68))))) ->  | AC68: =IF(P68>Alapadatok!$B$21,0,Alapadatok!$B$35+AK68) -> 0 | AD68: =IF(P68>Alapadatok!$B$21,0,IF($AE$6=$AF$6,$AD$7*Alapadatok!$P$12,$AD$7*AE68))*(1+Alapadatok!$P$11) -> 44986.29779 | AE68: =Alapadatok!$P$12*(1+AI68) -> 291.1683551 | AF68: =SIN(360/Alapadatok!$J$28*P68*PI()/180) -> -0.4067366431 | AG68: =SIN(360/Alapadatok!$J$29*P68*PI()/180) -> 0.9749279122 | AH68: =Alapadatok!$K$30 -> 0.015 | AI68: =ABS(AF68*Alapadatok!$K$28)+(AG68*Alapadatok!$K$29)+AH68 -> 0.07840131507 | AJ68: 4 | AK68: =IF(AJ68>Alapadatok!$P$31,0,Alapadatok!$B$38+IF(Alapadatok!$D$38=Alapadatok!$O$32,Alapadatok!$B$36,0)) -> 0 | AW68: =IF(D67*6>=Alapadatok!$B$21,"",VLOOKUP(D68,$O$11:$AD$430,16,FALSE)) -> 
B69: 1 | D69: 59 | E69: =IF(D68*3>=Alapadatok!$B$21,"",VLOOKUP(D69*3-2,Alapadatok!$T$4:$W$423,$AI$8+1,FALSE)) -> 2.11 | F69: =IF(D68*3>=Alapadatok!$B$21,"",E69+$F$11-$E$11) ->  | G69: =IF(OR($H$9<>"",D68*3>=Alapadatok!$B$21),"",VLOOKUP(D69,$O$11:$AA$430,12,FALSE)) ->  | H69: =IF(OR($H$9<>"",D68*3>=Alapadatok!$B$21),"",VLOOKUP(D69*3,$P$11:$AA$430,12,FALSE)) ->  | M69: =IF(D68*3>=Alapadatok!$B$21,"n",F69) ->  | N69: 5 | O69: 20 | P69: 59 | Y69: =IF(P69>Alapadatok!$B$21,0,X69*V69/1200) ->  | Z69: =IF(P69>Alapadatok!$B$21,0,IF(AND(Alapadatok!$J$15="I",P69=Alapadatok!$B$21),Z68+X69,IF(P69<=Alapadatok!$K$15,Y69,IF(O69=O68,Z68,PMT(W69/1200,Alapadatok!$B$21-O69*3+3,-X69))))) ->  | AC69: =IF(P69>Alapadatok!$B$21,0,Alapadatok!$B$35+AK69) -> 0 | AD69: =IF(P69>Alapadatok!$B$21,0,IF($AE$6=$AF$6,$AD$7*Alapadatok!$P$12,$AD$7*AE69))*(1+Alapadatok!$P$11) -> 44986.29779 | AE69: =Alapadatok!$P$12*(1+AI69) -> 282.1041138 | AF69: =SIN(360/Alapadatok!$J$28*P69*PI()/180) -> -0.2079116908 | AG69: =SIN(360/Alapadatok!$J$29*P69*PI()/180) -> 0.4338837391 | AH69: =Alapadatok!$K$30 -> 0.015 | AI69: =ABS(AF69*Alapadatok!$K$28)+(AG69*Alapadatok!$K$29)+AH69 -> 0.04483005101 | AJ69: 12 | AK69: =IF(AJ69>Alapadatok!$P$31,0,Alapadatok!$B$38+IF(Alapadatok!$D$38=Alapadatok!$O$32,Alapadatok!$B$36,0)) -> 0 | AW69: =IF(D68*6>=Alapadatok!$B$21,"",VLOOKUP(D69,$O$11:$AD$430,16,FALSE)) -> 
B70: 1 | D70: 60 | E70: =IF(D69*3>=Alapadatok!$B$21,"",VLOOKUP(D70*3-2,Alapadatok!$T$4:$W$423,$AI$8+1,FALSE)) -> 2.11 | F70: =IF(D69*3>=Alapadatok!$B$21,"",E70+$F$11-$E$11) ->  | G70: =IF(OR($H$9<>"",D69*3>=Alapadatok!$B$21),"",VLOOKUP(D70,$O$11:$AA$430,12,FALSE)) ->  | H70: =IF(OR($H$9<>"",D69*3>=Alapadatok!$B$21),"",VLOOKUP(D70*3,$P$11:$AA$430,12,FALSE)) ->  | M70: =IF(D69*3>=Alapadatok!$B$21,"n",F70) ->  | N70: 5 | O70: 20 | P70: 60 | Y70: =IF(P70>Alapadatok!$B$21,0,X70*V70/1200) ->  | Z70: =IF(P70>Alapadatok!$B$21,0,IF(AND(Alapadatok!$J$15="I",P70=Alapadatok!$B$21),Z69+X70,IF(P70<=Alapadatok!$K$15,Y70,IF(O70=O69,Z69,PMT(W70/1200,Alapadatok!$B$21-O70*3+3,-X70))))) ->  | AC70: =IF(P70>Alapadatok!$B$21,0,Alapadatok!$B$35+AK70) -> 0 | AD70: =IF(P70>Alapadatok!$B$21,0,IF($AE$6=$AF$6,$AD$7*Alapadatok!$P$12,$AD$7*AE70))*(1+Alapadatok!$P$11) -> 44986.29779 | AE70: =Alapadatok!$P$12*(1+AI70) -> 269.3640556 | AF70: =SIN(360/Alapadatok!$J$28*P70*PI()/180) -> -4.90059382e-16 | AG70: =SIN(360/Alapadatok!$J$29*P70*PI()/180) -> -0.4338837391 | AH70: =Alapadatok!$K$30 -> 0.015 | AI70: =ABS(AF70*Alapadatok!$K$28)+(AG70*Alapadatok!$K$29)+AH70 -> -0.002355349565 | AJ70: 12 | AK70: =IF(AJ70>Alapadatok!$P$31,0,Alapadatok!$B$38+IF(Alapadatok!$D$38=Alapadatok!$O$32,Alapadatok!$B$36,0)) -> 0 | AW70: =IF(D69*6>=Alapadatok!$B$21,"",VLOOKUP(D70,$O$11:$AD$430,16,FALSE)) -> 
A71: =C71 -> 16 | B71: 1 | C71: =C67+1 -> 16 | D71: 61 | E71: =IF(D70*3>=Alapadatok!$B$21,"",VLOOKUP(D71*3-2,Alapadatok!$T$4:$W$423,$AI$8+1,FALSE)) -> 2.11 | F71: =IF(D70*3>=Alapadatok!$B$21,"",E71+$F$11-$E$11) ->  | G71: =IF(OR($H$9<>"",D70*3>=Alapadatok!$B$21),"",VLOOKUP(D71,$O$11:$AA$430,12,FALSE)) ->  | H71: =IF(OR($H$9<>"",D70*3>=Alapadatok!$B$21),"",VLOOKUP(D71*3,$P$11:$AA$430,12,FALSE)) ->  | M71: =IF(D70*3>=Alapadatok!$B$21,"n",F71) ->  | N71: 6 | O71: 21 | P71: 61 | Y71: =IF(P71>Alapadatok!$B$21,0,X71*V71/1200) ->  | Z71: =IF(P71>Alapadatok!$B$21,0,IF(P71<=Alapadatok!$K$15,Y71,IF(O71=O70,Z70,PMT(W71/1200,Alapadatok!$B$21-O71*3+3,-X71)))) ->  | AC71: =IF(P71>Alapadatok!$B$21,0,Alapadatok!$B$35+AK71) -> 0 | AD71: =IF(P71>Alapadatok!$B$21,0,IF($AE$6=$AF$6,$AD$7*Alapadatok!$P$12,$AD$7*AE71))*(1+Alapadatok!$P$11) -> 44986.29779 | AE71: =Alapadatok!$P$12*(1+AI71) -> 266.8889479 | AF71: =SIN(360/Alapadatok!$J$28*P71*PI()/180) -> 0.2079116908 | AG71: =SIN(360/Alapadatok!$J$29*P71*PI()/180) -> -0.9749279122 | AH71: =Alapadatok!$K$30 -> 0.015 | AI71: =ABS(AF71*Alapadatok!$K$28)+(AG71*Alapadatok!$K$29)+AH71 -> -0.01152241504 | AJ71: 1 | AK71: =IF(AJ71>Alapadatok!$P$31,0,Alapadatok!$B$38+IF(Alapadatok!$D$38=Alapadatok!$O$32,Alapadatok!$B$36,0)) -> 0 | AW71: =IF(D70*6>=Alapadatok!$B$21,"",VLOOKUP(D71,$O$11:$AD$430,16,FALSE)) -> 
B72: 1 | D72: 62 | E72: =IF(D71*3>=Alapadatok!$B$21,"",VLOOKUP(D72*3-2,Alapadatok!$T$4:$W$423,$AI$8+1,FALSE)) -> 2.11 | F72: =IF(D71*3>=Alapadatok!$B$21,"",E72+$F$11-$E$11) ->  | G72: =IF(OR($H$9<>"",D71*3>=Alapadatok!$B$21),"",VLOOKUP(D72,$O$11:$AA$430,12,FALSE)) ->  | H72: =IF(OR($H$9<>"",D71*3>=Alapadatok!$B$21),"",VLOOKUP(D72*3,$P$11:$AA$430,12,FALSE)) ->  | M72: =IF(D71*3>=Alapadatok!$B$21,"n",F72) ->  | N72: 6 | O72: 21 | P72: 62 | Y72: =IF(P72>Alapadatok!$B$21,0,X72*V72/1200) ->  | Z72: =IF(P72>Alapadatok!$B$21,0,IF(P72<=Alapadatok!$K$15,Y72,IF(O72=O71,Z71,PMT(W72/1200,Alapadatok!$B$21-O72*3+3,-X72)))) ->  | AC72: =IF(P72>Alapadatok!$B$21,0,Alapadatok!$B$35+AK72) -> 0 | AD72: =IF(P72>Alapadatok!$B$21,0,IF($AE$6=$AF$6,$AD$7*Alapadatok!$P$12,$AD$7*AE72))*(1+Alapadatok!$P$11) -> 44986.29779 | AE72: =Alapadatok!$P$12*(1+AI72) -> 272.1953536 | AF72: =SIN(360/Alapadatok!$J$28*P72*PI()/180) -> 0.4067366431 | AG72: =SIN(360/Alapadatok!$J$29*P72*PI()/180) -> -0.7818314825 | AH72: =Alapadatok!$K$30 -> 0.015 | AI72: =ABS(AF72*Alapadatok!$K$28)+(AG72*Alapadatok!$K$29)+AH72 -> 0.008130939286 | AJ72: 12 | AK72: =IF(AJ72>Alapadatok!$P$31,0,Alapadatok!$B$38+IF(Alapadatok!$D$38=Alapadatok!$O$32,Alapadatok!$B$36,0)) -> 0 | AW72: =IF(D71*6>=Alapadatok!$B$21,"",VLOOKUP(D72,$O$11:$AD$430,16,FALSE)) -> 
B73: 1 | D73: 63 | E73: =IF(D72*3>=Alapadatok!$B$21,"",VLOOKUP(D73*3-2,Alapadatok!$T$4:$W$423,$AI$8+1,FALSE)) -> 2.11 | F73: =IF(D72*3>=Alapadatok!$B$21,"",E73+$F$11-$E$11) ->  | G73: =IF(OR($H$9<>"",D72*3>=Alapadatok!$B$21),"",VLOOKUP(D73,$O$11:$AA$430,12,FALSE)) ->  | H73: =IF(OR($H$9<>"",D72*3>=Alapadatok!$B$21),"",VLOOKUP(D73*3,$P$11:$AA$430,12,FALSE)) ->  | M73: =IF(D72*3>=Alapadatok!$B$21,"n",F73) ->  | N73: 6 | O73: 21 | P73: 63 | Y73: =IF(P73>Alapadatok!$B$21,0,X73*V73/1200) ->  | Z73: =IF(P73>Alapadatok!$B$21,0,IF(P73<=Alapadatok!$K$15,Y73,IF(O73=O72,Z72,PMT(W73/1200,Alapadatok!$B$21-O73*3+3,-X73)))) ->  | AC73: =IF(P73>Alapadatok!$B$21,0,Alapadatok!$B$35+AK73) -> 0 | AD73: =IF(P73>Alapadatok!$B$21,0,IF($AE$6=$AF$6,$AD$7*Alapadatok!$P$12,$AD$7*AE73))*(1+Alapadatok!$P$11) -> 44986.29779 | AE73: =Alapadatok!$P$12*(1+AI73) -> 283.5721211 | AF73: =SIN(360/Alapadatok!$J$28*P73*PI()/180) -> 0.5877852523 | AG73: =SIN(360/Alapadatok!$J$29*P73*PI()/180) -> -9.310694576e-15 | AH73: =Alapadatok!$K$30 -> 0.015 | AI73: =ABS(AF73*Alapadatok!$K$28)+(AG73*Alapadatok!$K$29)+AH73 -> 0.05026711514 | AJ73: 12 | AK73: =IF(AJ73>Alapadatok!$P$31,0,Alapadatok!$B$38+IF(Alapadatok!$D$38=Alapadatok!$O$32,Alapadatok!$B$36,0)) -> 0 | AW73: =IF(D72*6>=Alapadatok!$B$21,"",VLOOKUP(D73,$O$11:$AD$430,16,FALSE)) -> 
B74: 1 | D74: 64 | E74: =IF(D73*3>=Alapadatok!$B$21,"",VLOOKUP(D74*3-2,Alapadatok!$T$4:$W$423,$AI$8+1,FALSE)) -> 2.11 | F74: =IF(D73*3>=Alapadatok!$B$21,"",E74+$F$11-$E$11) ->  | G74: =IF(OR($H$9<>"",D73*3>=Alapadatok!$B$21),"",VLOOKUP(D74,$O$11:$AA$430,12,FALSE)) ->  | H74: =IF(OR($H$9<>"",D73*3>=Alapadatok!$B$21),"",VLOOKUP(D74*3,$P$11:$AA$430,12,FALSE)) ->  | M74: =IF(D73*3>=Alapadatok!$B$21,"n",F74) ->  | N74: 6 | O74: 22 | P74: 64 | Y74: =IF(P74>Alapadatok!$B$21,0,X74*V74/1200) ->  | Z74: =IF(P74>Alapadatok!$B$21,0,IF(P74<=Alapadatok!$K$15,Y74,IF(O74=O73,Z73,PMT(W74/1200,Alapadatok!$B$21-O74*3+3,-X74)))) ->  | AC74: =IF(P74>Alapadatok!$B$21,0,Alapadatok!$B$35+AK74) -> 0 | AD74: =IF(P74>Alapadatok!$B$21,0,IF($AE$6=$AF$6,$AD$7*Alapadatok!$P$12,$AD$7*AE74))*(1+Alapadatok!$P$11) -> 44986.29779 | AE74: =Alapadatok!$P$12*(1+AI74) -> 294.5327262 | AF74: =SIN(360/Alapadatok!$J$28*P74*PI()/180) -> 0.7431448255 | AG74: =SIN(360/Alapadatok!$J$29*P74*PI()/180) -> 0.7818314825 | AH74: =Alapadatok!$K$30 -> 0.015 | AI74: =ABS(AF74*Alapadatok!$K$28)+(AG74*Alapadatok!$K$29)+AH74 -> 0.09086194883 | AJ74: 4 | AK74: =IF(AJ74>Alapadatok!$P$31,0,Alapadatok!$B$38+IF(Alapadatok!$D$38=Alapadatok!$O$32,Alapadatok!$B$36,0)) -> 0 | AW74: =IF(D73*6>=Alapadatok!$B$21,"",VLOOKUP(D74,$O$11:$AD$430,16,FALSE)) -> 
A75: =C75 -> 17 | B75: 1 | C75: =C71+1 -> 17 | D75: 65 | E75: =IF(D74*3>=Alapadatok!$B$21,"",VLOOKUP(D75*3-2,Alapadatok!$T$4:$W$423,$AI$8+1,FALSE)) -> 2.11 | F75: =IF(D74*3>=Alapadatok!$B$21,"",E75+$F$11-$E$11) ->  | G75: =IF(OR($H$9<>"",D74*3>=Alapadatok!$B$21),"",VLOOKUP(D75,$O$11:$AA$430,12,FALSE)) ->  | H75: =IF(OR($H$9<>"",D74*3>=Alapadatok!$B$21),"",VLOOKUP(D75*3,$P$11:$AA$430,12,FALSE)) ->  | M75: =IF(D74*3>=Alapadatok!$B$21,"n",F75) ->  | N75: 6 | O75: 22 | P75: 65 | U75: =+Q75-$I$6 ->  | Y75: =IF(P75>Alapadatok!$B$21,0,X75*V75/1200) ->  | Z75: =IF(P75>Alapadatok!$B$21,0,IF(P75<=Alapadatok!$K$15,Y75,IF(O75=O74,Z74,PMT(W75/1200,Alapadatok!$B$21-O75*3+3,-X75)))) ->  | AA75: =X75+Y75-Z75 ->  | AC75: =IF(P75>Alapadatok!$B$21,0,Alapadatok!$B$35+AK75) -> 0 | AD75: =IF(P75>Alapadatok!$B$21,0,IF($AE$6=$AF$6,$AD$7*Alapadatok!$P$12,$AD$7*AE75))*(1+Alapadatok!$P$11) -> 44986.29779 | AE75: =Alapadatok!$P$12*(1+AI75) -> 298.608833 | AF75: =SIN(360/Alapadatok!$J$28*P75*PI()/180) -> 0.8660254038 | AG75: =SIN(360/Alapadatok!$J$29*P75*PI()/180) -> 0.9749279122 | AH75: =Alapadatok!$K$30 -> 0.015 | AI75: =ABS(AF75*Alapadatok!$K$28)+(AG75*Alapadatok!$K$29)+AH75 -> 0.1059586407 | AJ75: 12 | AK75: =IF(AJ75>Alapadatok!$P$31,0,Alapadatok!$B$38+IF(Alapadatok!$D$38=Alapadatok!$O$32,Alapadatok!$B$36,0)) -> 0 | AW75: =IF(D74*6>=Alapadatok!$B$21,"",VLOOKUP(D75,$O$11:$AD$430,16,FALSE)) -> 
B76: 1 | D76: 66 | E76: =IF(D75*3>=Alapadatok!$B$21,"",VLOOKUP(D76*3-2,Alapadatok!$T$4:$W$423,$AI$8+1,FALSE)) -> 2.11 | F76: =IF(D75*3>=Alapadatok!$B$21,"",E76+$F$11-$E$11) ->  | G76: =IF(OR($H$9<>"",D75*3>=Alapadatok!$B$21),"",VLOOKUP(D76,$O$11:$AA$430,12,FALSE)) ->  | H76: =IF(OR($H$9<>"",D75*3>=Alapadatok!$B$21),"",VLOOKUP(D76*3,$P$11:$AA$430,12,FALSE)) ->  | M76: =IF(D75*3>=Alapadatok!$B$21,"n",F76) ->  | N76: 6 | O76: 22 | P76: =P75+1 -> 66 | Q76: =DATE(R76,S76,T76) ->  | R76: =IF(S76=1,R75+1,R75) ->  | S76: =IF(S75=12,1,S75+1) ->  | T76: =IF($T$11<29,$T$11,IF(S76=2,28,IF(AND(T75=31,OR(S76=4,S76=6,S76=9,S76=11)),30,$T$11))) ->  | V76: =VLOOKUP(O76,$D$11:$M$150,3,FALSE) ->  | W76: =VLOOKUP(O76,$D$11:$M$150,10,FALSE) ->  | X76: =+AA75 ->  | Y76: =IF(P76>Alapadatok!$B$21,0,X76*V76/1200) ->  | Z76: =IF(P76>Alapadatok!$B$21,0,IF(P76<=Alapadatok!$K$15,Y76,IF(O76=O75,Z75,PMT(W76/1200,Alapadatok!$B$21-O76*3+3,-X76)))) ->  | AC76: =IF(P76>Alapadatok!$B$21,0,Alapadatok!$B$35+AK76) -> 0 | AD76: =IF(P76>Alapadatok!$B$21,0,IF($AE$6=$AF$6,$AD$7*Alapadatok!$P$12,$AD$7*AE76))*(1+Alapadatok!$P$11) -> 44986.29779 | AE76: =Alapadatok!$P$12*(1+AI76) -> 294.1430599 | AF76: =SIN(360/Alapadatok!$J$28*P76*PI()/180) -> 0.9510565163 | AG76: =SIN(360/Alapadatok!$J$29*P76*PI()/180) -> 0.4338837391 | AH76: =Alapadatok!$K$30 -> 0.015 | AI76: =ABS(AF76*Alapadatok!$K$28)+(AG76*Alapadatok!$K$29)+AH76 -> 0.08941874054 | AJ76: 12 | AK76: =IF(AJ76>Alapadatok!$P$31,0,Alapadatok!$B$38+IF(Alapadatok!$D$38=Alapadatok!$O$32,Alapadatok!$B$36,0)) -> 0 | AW76: =IF(D75*6>=Alapadatok!$B$21,"",VLOOKUP(D76,$O$11:$AD$430,16,FALSE)) -> 
B77: 1 | D77: =+D76+1 -> 67 | E77: =IF(D76*3>=Alapadatok!$B$21,"",VLOOKUP(D77*3-2,Alapadatok!$T$4:$W$423,$AI$8+1,FALSE)) -> 2.11 | F77: =IF(D76*3>=Alapadatok!$B$21,"",E77+$F$11-$E$11) ->  | G77: =IF(OR($H$9<>"",D76*3>=Alapadatok!$B$21),"",VLOOKUP(D77,$O$11:$AA$430,12,FALSE)) ->  | H77: =IF(OR($H$9<>"",D76*3>=Alapadatok!$B$21),"",VLOOKUP(D77*3,$P$11:$AA$430,12,FALSE)) ->  | M77: =IF(D76*3>=Alapadatok!$B$21,"n",F77) ->  | N77: 6 | O77: 23 | P77: 67 | Y77: =IF(P77>Alapadatok!$B$21,0,X77*V77/1200) ->  | Z77: =IF(P77>Alapadatok!$B$21,0,IF(P77<=Alapadatok!$K$15,Y77,IF(O77=O76,Z76,PMT(W77/1200,Alapadatok!$B$21-O77*3+3,-X77)))) ->  | AB77: =AB76+(Z77+AC77)/(1+$AB$9)^(U77/365) ->  | AC77: =IF(P77>Alapadatok!$B$21,0,Alapadatok!$B$35+AK77) -> 0 | AD77: =IF(P77>Alapadatok!$B$21,0,IF($AE$6=$AF$6,$AD$7*Alapadatok!$P$12,$AD$7*AE77))*(1+Alapadatok!$P$11) -> 44986.29779 | AE77: =Alapadatok!$P$12*(1+AI77) -> 285.4753103 | AF77: =SIN(360/Alapadatok!$J$28*P77*PI()/180) -> 0.9945218954 | AG77: =SIN(360/Alapadatok!$J$29*P77*PI()/180) -> -0.4338837391 | AH77: =Alapadatok!$K$30 -> 0.015 | AI77: =ABS(AF77*Alapadatok!$K$28)+(AG77*Alapadatok!$K$29)+AH77 -> 0.05731596416 | AJ77: 2 | AK77: =IF(AJ77>Alapadatok!$P$31,0,Alapadatok!$B$38+IF(Alapadatok!$D$38=Alapadatok!$O$32,Alapadatok!$B$36,0)) -> 0 | AW77: =IF(D76*6>=Alapadatok!$B$21,"",VLOOKUP(D77,$O$11:$AD$430,16,FALSE)) -> 
B78: 1 | D78: 68 | E78: =IF(D77*3>=Alapadatok!$B$21,"",VLOOKUP(D78*3-2,Alapadatok!$T$4:$W$423,$AI$8+1,FALSE)) -> 2.11 | F78: =IF(D77*3>=Alapadatok!$B$21,"",E78+$F$11-$E$11) ->  | G78: =IF(OR($H$9<>"",D77*3>=Alapadatok!$B$21),"",VLOOKUP(D78,$O$11:$AA$430,12,FALSE)) ->  | H78: =IF(OR($H$9<>"",D77*3>=Alapadatok!$B$21),"",VLOOKUP(D78*3,$P$11:$AA$430,12,FALSE)) ->  | M78: =IF(D77*3>=Alapadatok!$B$21,"n",F78) ->  | N78: 6 | O78: 23 | P78: 68 | Y78: =IF(P78>Alapadatok!$B$21,0,X78*V78/1200) ->  | Z78: =IF(P78>Alapadatok!$B$21,0,IF(P78<=Alapadatok!$K$15,Y78,IF(O78=O77,Z77,PMT(W78/1200,Alapadatok!$B$21-O78*3+3,-X78)))) ->  | AC78: =IF(P78>Alapadatok!$B$21,0,Alapadatok!$B$35+AK78) -> 0 | AD78: =IF(P78>Alapadatok!$B$21,0,IF($AE$6=$AF$6,$AD$7*Alapadatok!$P$12,$AD$7*AE78))*(1+Alapadatok!$P$11) -> 44986.29779 | AE78: =Alapadatok!$P$12*(1+AI78) -> 279.6320333 | AF78: =SIN(360/Alapadatok!$J$28*P78*PI()/180) -> 0.9945218954 | AG78: =SIN(360/Alapadatok!$J$29*P78*PI()/180) -> -0.9749279122 | AH78: =Alapadatok!$K$30 -> 0.015 | AI78: =ABS(AF78*Alapadatok!$K$28)+(AG78*Alapadatok!$K$29)+AH78 -> 0.03567419723 | AJ78: 12 | AK78: =IF(AJ78>Alapadatok!$P$31,0,Alapadatok!$B$38+IF(Alapadatok!$D$38=Alapadatok!$O$32,Alapadatok!$B$36,0)) -> 0 | AW78: =IF(D77*6>=Alapadatok!$B$21,"",VLOOKUP(D78,$O$11:$AD$430,16,FALSE)) -> 
A79: =C79 -> 18 | B79: 1 | C79: =C75+1 -> 18 | D79: 69 | E79: =IF(D78*3>=Alapadatok!$B$21,"",VLOOKUP(D79*3-2,Alapadatok!$T$4:$W$423,$AI$8+1,FALSE)) -> 2.11 | F79: =IF(D78*3>=Alapadatok!$B$21,"",E79+$F$11-$E$11) ->  | G79: =IF(OR($H$9<>"",D78*3>=Alapadatok!$B$21),"",VLOOKUP(D79,$O$11:$AA$430,12,FALSE)) ->  | H79: =IF(OR($H$9<>"",D78*3>=Alapadatok!$B$21),"",VLOOKUP(D79*3,$P$11:$AA$430,12,FALSE)) ->  | M79: =IF(D78*3>=Alapadatok!$B$21,"n",F79) ->  | N79: 6 | O79: =O76+1 -> 23 | P79: 69 | Y79: =IF(P79>Alapadatok!$B$21,0,X79*V79/1200) ->  | Z79: =IF(P79>Alapadatok!$B$21,0,IF(P79<=Alapadatok!$K$15,Y79,IF(O79=O78,Z78,PMT(W79/1200,Alapadatok!$B$21-O79*3+3,-X79)))) ->  | AC79: =IF(P79>Alapadatok!$B$21,0,Alapadatok!$B$35+AK79) -> 0 | AD79: =IF(P79>Alapadatok!$B$21,0,IF($AE$6=$AF$6,$AD$7*Alapadatok!$P$12,$AD$7*AE79))*(1+Alapadatok!$P$11) -> 44986.29779 | AE79: =Alapadatok!$P$12*(1+AI79) -> 281.0133356 | AF79: =SIN(360/Alapadatok!$J$28*P79*PI()/180) -> 0.9510565163 | AG79: =SIN(360/Alapadatok!$J$29*P79*PI()/180) -> -0.7818314825 | AH79: =Alapadatok!$K$30 -> 0.015 | AI79: =ABS(AF79*Alapadatok!$K$28)+(AG79*Alapadatok!$K$29)+AH79 -> 0.04079013168 | AJ79: 12 | AK79: =IF(AJ79>Alapadatok!$P$31,0,Alapadatok!$B$38+IF(Alapadatok!$D$38=Alapadatok!$O$32,Alapadatok!$B$36,0)) -> 0 | AW79: =IF(D78*6>=Alapadatok!$B$21,"",VLOOKUP(D79,$O$11:$AD$430,16,FALSE)) -> 
B80: 1 | D80: 70 | E80: =IF(D79*3>=Alapadatok!$B$21,"",VLOOKUP(D80*3-2,Alapadatok!$T$4:$W$423,$AI$8+1,FALSE)) -> 2.11 | F80: =IF(D79*3>=Alapadatok!$B$21,"",E80+$F$11-$E$11) ->  | G80: =IF(OR($H$9<>"",D79*3>=Alapadatok!$B$21),"",VLOOKUP(D80,$O$11:$AA$430,12,FALSE)) ->  | H80: =IF(OR($H$9<>"",D79*3>=Alapadatok!$B$21),"",VLOOKUP(D80*3,$P$11:$AA$430,12,FALSE)) ->  | M80: =IF(D79*3>=Alapadatok!$B$21,"n",F80) ->  | N80: 6 | O80: 24 | P80: 70 | Y80: =IF(P80>Alapadatok!$B$21,0,X80*V80/1200) ->  | Z80: =IF(P80>Alapadatok!$B$21,0,IF(P80<=Alapadatok!$K$15,Y80,IF(O80=O79,Z79,PMT(W80/1200,Alapadatok!$B$21-O80*3+3,-X80)))) ->  | AC80: =IF(P80>Alapadatok!$B$21,0,Alapadatok!$B$35+AK80) -> 0 | AD80: =IF(P80>Alapadatok!$B$21,0,IF($AE$6=$AF$6,$AD$7*Alapadatok!$P$12,$AD$7*AE80))*(1+Alapadatok!$P$11) -> 44986.29779 | AE80: =Alapadatok!$P$12*(1+AI80) -> 288.0796115 | AF80: =SIN(360/Alapadatok!$J$28*P80*PI()/180) -> 0.8660254038 | AG80: =SIN(360/Alapadatok!$J$29*P80*PI()/180) -> -2.45029691e-15 | AH80: =Alapadatok!$K$30 -> 0.015 | AI80: =ABS(AF80*Alapadatok!$K$28)+(AG80*Alapadatok!$K$29)+AH80 -> 0.06696152423 | AJ80: 4 | AK80: =IF(AJ80>Alapadatok!$P$31,0,Alapadatok!$B$38+IF(Alapadatok!$D$38=Alapadatok!$O$32,Alapadatok!$B$36,0)) -> 0 | AW80: =IF(D79*6>=Alapadatok!$B$21,"",VLOOKUP(D80,$O$11:$AD$430,16,FALSE)) -> 
B81: 1 | D81: 71 | E81: =IF(D80*3>=Alapadatok!$B$21,"",VLOOKUP(D81*3-2,Alapadatok!$T$4:$W$423,$AI$8+1,FALSE)) -> 2.11 | F81: =IF(D80*3>=Alapadatok!$B$21,"",E81+$F$11-$E$11) ->  | G81: =IF(OR($H$9<>"",D80*3>=Alapadatok!$B$21),"",VLOOKUP(D81,$O$11:$AA$430,12,FALSE)) ->  | H81: =IF(OR($H$9<>"",D80*3>=Alapadatok!$B$21),"",VLOOKUP(D81*3,$P$11:$AA$430,12,FALSE)) ->  | I81: =IF($H$9<>"","",(G81/G77)-1) ->  | M81: =IF(D80*3>=Alapadatok!$B$21,"n",F81) ->  | N81: 6 | O81: 24 | P81: 71 | Y81: =IF(P81>Alapadatok!$B$21,0,X81*V81/1200) ->  | Z81: =IF(P81>Alapadatok!$B$21,0,IF(P81<=Alapadatok!$K$15,Y81,IF(O81=O80,Z80,PMT(W81/1200,Alapadatok!$B$21-O81*3+3,-X81)))) ->  | AC81: =IF(P81>Alapadatok!$B$21,0,Alapadatok!$B$35+AK81) -> 0 | AD81: =IF(P81>Alapadatok!$B$21,0,IF($AE$6=$AF$6,$AD$7*Alapadatok!$P$12,$AD$7*AE81))*(1+Alapadatok!$P$11) -> 44986.29779 | AE81: =Alapadatok!$P$12*(1+AI81) -> 294.5327262 | AF81: =SIN(360/Alapadatok!$J$28*P81*PI()/180) -> 0.7431448255 | AG81: =SIN(360/Alapadatok!$J$29*P81*PI()/180) -> 0.7818314825 | AH81: =Alapadatok!$K$30 -> 0.015 | AI81: =ABS(AF81*Alapadatok!$K$28)+(AG81*Alapadatok!$K$29)+AH81 -> 0.09086194883 | AJ81: 12 | AK81: =IF(AJ81>Alapadatok!$P$31,0,Alapadatok!$B$38+IF(Alapadatok!$D$38=Alapadatok!$O$32,Alapadatok!$B$36,0)) -> 0
B82: 1 | D82: 72 | E82: =IF(D81*3>=Alapadatok!$B$21,"",VLOOKUP(D82*3-2,Alapadatok!$T$4:$W$423,$AI$8+1,FALSE)) -> 2.11 | F82: =IF(D81*3>=Alapadatok!$B$21,"",E82+$F$11-$E$11) ->  | G82: =IF(OR($H$9<>"",D81*3>=Alapadatok!$B$21),"",VLOOKUP(D82,$O$11:$AA$430,12,FALSE)) ->  | H82: =IF(OR($H$9<>"",D81*3>=Alapadatok!$B$21),"",VLOOKUP(D82*3,$P$11:$AA$430,12,FALSE)) ->  | M82: =IF(D81*3>=Alapadatok!$B$21,"n",F82) ->  | N82: 6 | O82: 24 | P82: 72 | Y82: =IF(P82>Alapadatok!$B$21,0,X82*V82/1200) ->  | Z82: =IF(P82>Alapadatok!$B$21,0,IF(P82<=Alapadatok!$K$15,Y82,IF(O82=O81,Z81,PMT(W82/1200,Alapadatok!$B$21-O82*3+3,-X82)))) ->  | AC82: =IF(P82>Alapadatok!$B$21,0,Alapadatok!$B$35+AK82) -> 0 | AD82: =IF(P82>Alapadatok!$B$21,0,IF($AE$6=$AF$6,$AD$7*Alapadatok!$P$12,$AD$7*AE82))*(1+Alapadatok!$P$11) -> 44986.29779 | AE82: =Alapadatok!$P$12*(1+AI82) -> 294.1013425 | AF82: =SIN(360/Alapadatok!$J$28*P82*PI()/180) -> 0.5877852523 | AG82: =SIN(360/Alapadatok!$J$29*P82*PI()/180) -> 0.9749279122 | AH82: =Alapadatok!$K$30 -> 0.015 | AI82: =ABS(AF82*Alapadatok!$K$28)+(AG82*Alapadatok!$K$29)+AH82 -> 0.08926423162 | AJ82: 12 | AK82: =IF(AJ82>Alapadatok!$P$31,0,Alapadatok!$B$38+IF(Alapadatok!$D$38=Alapadatok!$O$32,Alapadatok!$B$36,0)) -> 0
A83: =C83 -> 19 | B83: 1 | C83: =C79+1 -> 19 | D83: 73 | E83: =IF(D82*3>=Alapadatok!$B$21,"",VLOOKUP(D83*3-2,Alapadatok!$T$4:$W$423,$AI$8+1,FALSE)) -> 2.11 | F83: =IF(D82*3>=Alapadatok!$B$21,"",E83+$F$11-$E$11) ->  | G83: =IF(OR($H$9<>"",D82*3>=Alapadatok!$B$21),"",VLOOKUP(D83,$O$11:$AA$430,12,FALSE)) ->  | H83: =IF(OR($H$9<>"",D82*3>=Alapadatok!$B$21),"",VLOOKUP(D83*3,$P$11:$AA$430,12,FALSE)) ->  | M83: =IF(D82*3>=Alapadatok!$B$21,"n",F83) ->  | N83: 7 | O83: 25 | P83: 73 | Y83: =IF(P83>Alapadatok!$B$21,0,X83*V83/1200) ->  | Z83: =IF(P83>Alapadatok!$B$21,0,IF(P83<=Alapadatok!$K$15,Y83,IF(O83=O82,Z82,PMT(W83/1200,Alapadatok!$B$21-O83*3+3,-X83)))) ->  | AC83: =IF(P83>Alapadatok!$B$21,0,Alapadatok!$B$35+AK83) -> 0 | AD83: =IF(P83>Alapadatok!$B$21,0,IF($AE$6=$AF$6,$AD$7*Alapadatok!$P$12,$AD$7*AE83))*(1+Alapadatok!$P$11) -> 44986.29779 | AE83: =Alapadatok!$P$12*(1+AI83) -> 285.325078 | AF83: =SIN(360/Alapadatok!$J$28*P83*PI()/180) -> 0.4067366431 | AG83: =SIN(360/Alapadatok!$J$29*P83*PI()/180) -> 0.4338837391 | AH83: =Alapadatok!$K$30 -> 0.015 | AI83: =ABS(AF83*Alapadatok!$K$28)+(AG83*Alapadatok!$K$29)+AH83 -> 0.05675954815 | AJ83: 1 | AK83: =IF(AJ83>Alapadatok!$P$31,0,Alapadatok!$B$38+IF(Alapadatok!$D$38=Alapadatok!$O$32,Alapadatok!$B$36,0)) -> 0 | AM83: =IF(F83=M83," ",M83) -> 
B84: 1 | D84: 74 | E84: =IF(D83*3>=Alapadatok!$B$21,"",VLOOKUP(D84*3-2,Alapadatok!$T$4:$W$423,$AI$8+1,FALSE)) -> 2.11 | F84: =IF(D83*3>=Alapadatok!$B$21,"",E84+$F$11-$E$11) ->  | G84: =IF(OR($H$9<>"",D83*3>=Alapadatok!$B$21),"",VLOOKUP(D84,$O$11:$AA$430,12,FALSE)) ->  | H84: =IF(OR($H$9<>"",D83*3>=Alapadatok!$B$21),"",VLOOKUP(D84*3,$P$11:$AA$430,12,FALSE)) ->  | M84: =IF(D83*3>=Alapadatok!$B$21,"n",F84) ->  | N84: 7 | O84: 25 | P84: 74 | Y84: =IF(P84>Alapadatok!$B$21,0,X84*V84/1200) ->  | Z84: =IF(P84>Alapadatok!$B$21,0,IF(P84<=Alapadatok!$K$15,Y84,IF(O84=O83,Z83,PMT(W84/1200,Alapadatok!$B$21-O84*3+3,-X84)))) ->  | AC84: =IF(P84>Alapadatok!$B$21,0,Alapadatok!$B$35+AK84) -> 0 | AD84: =IF(P84>Alapadatok!$B$21,0,IF($AE$6=$AF$6,$AD$7*Alapadatok!$P$12,$AD$7*AE84))*(1+Alapadatok!$P$11) -> 44986.29779 | AE84: =Alapadatok!$P$12*(1+AI84) -> 272.732225 | AF84: =SIN(360/Alapadatok!$J$28*P84*PI()/180) -> 0.2079116908 | AG84: =SIN(360/Alapadatok!$J$29*P84*PI()/180) -> -0.4338837391 | AH84: =Alapadatok!$K$30 -> 0.015 | AI84: =ABS(AF84*Alapadatok!$K$28)+(AG84*Alapadatok!$K$29)+AH84 -> 0.01011935188 | AJ84: 12 | AK84: =IF(AJ84>Alapadatok!$P$31,0,Alapadatok!$B$38+IF(Alapadatok!$D$38=Alapadatok!$O$32,Alapadatok!$B$36,0)) -> 0
B85: 1 | D85: 75 | E85: =IF(D84*3>=Alapadatok!$B$21,"",VLOOKUP(D85*3-2,Alapadatok!$T$4:$W$423,$AI$8+1,FALSE)) -> 2.11 | F85: =IF(D84*3>=Alapadatok!$B$21,"",E85+$F$11-$E$11) ->  | G85: =IF(OR($H$9<>"",D84*3>=Alapadatok!$B$21),"",VLOOKUP(D85,$O$11:$AA$430,12,FALSE)) ->  | H85: =IF(OR($H$9<>"",D84*3>=Alapadatok!$B$21),"",VLOOKUP(D85*3,$P$11:$AA$430,12,FALSE)) ->  | M85: =IF(D84*3>=Alapadatok!$B$21,"n",F85) ->  | N85: 7 | O85: 25 | P85: 75 | Y85: =IF(P85>Alapadatok!$B$21,0,X85*V85/1200) ->  | Z85: =IF(P85>Alapadatok!$B$21,0,IF(P85<=Alapadatok!$K$15,Y85,IF(O85=O84,Z84,PMT(W85/1200,Alapadatok!$B$21-O85*3+3,-X85)))) ->  | AC85: =IF(P85>Alapadatok!$B$21,0,Alapadatok!$B$35+AK85) -> 0 | AD85: =IF(P85>Alapadatok!$B$21,0,IF($AE$6=$AF$6,$AD$7*Alapadatok!$P$12,$AD$7*AE85))*(1+Alapadatok!$P$11) -> 44986.29779 | AE85: =Alapadatok!$P$12*(1+AI85) -> 263.5207785 | AF85: =SIN(360/Alapadatok!$J$28*P85*PI()/180) -> 6.125742275e-16 | AG85: =SIN(360/Alapadatok!$J$29*P85*PI()/180) -> -0.9749279122 | AH85: =Alapadatok!$K$30 -> 0.015 | AI85: =ABS(AF85*Alapadatok!$K$28)+(AG85*Alapadatok!$K$29)+AH85 -> -0.02399711649 | AJ85: 12 | AK85: =IF(AJ85>Alapadatok!$P$31,0,Alapadatok!$B$38+IF(Alapadatok!$D$38=Alapadatok!$O$32,Alapadatok!$B$36,0)) -> 0
B86: 1 | D86: 76 | E86: =IF(D85*3>=Alapadatok!$B$21,"",VLOOKUP(D86*3-2,Alapadatok!$T$4:$W$423,$AI$8+1,FALSE)) -> 2.11 | F86: =IF(D85*3>=Alapadatok!$B$21,"",E86+$F$11-$E$11) ->  | G86: =IF(OR($H$9<>"",D85*3>=Alapadatok!$B$21),"",VLOOKUP(D86,$O$11:$AA$430,12,FALSE)) ->  | H86: =IF(OR($H$9<>"",D85*3>=Alapadatok!$B$21),"",VLOOKUP(D86*3,$P$11:$AA$430,12,FALSE)) ->  | M86: =IF(D85*3>=Alapadatok!$B$21,"n",F86) ->  | N86: 7 | O86: 26 | P86: 76 | Y86: =IF(P86>Alapadatok!$B$21,0,X86*V86/1200) ->  | Z86: =IF(P86>Alapadatok!$B$21,0,IF(P86<=Alapadatok!$K$15,Y86,IF(O86=O85,Z85,PMT(W86/1200,Alapadatok!$B$21-O86*3+3,-X86)))) ->  | AC86: =IF(P86>Alapadatok!$B$21,0,Alapadatok!$B$35+AK86) -> 0 | AD86: =IF(P86>Alapadatok!$B$21,0,IF($AE$6=$AF$6,$AD$7*Alapadatok!$P$12,$AD$7*AE86))*(1+Alapadatok!$P$11) -> 44986.29779 | AE86: =Alapadatok!$P$12*(1+AI86) -> 268.9743894 | AF86: =SIN(360/Alapadatok!$J$28*P86*PI()/180) -> -0.2079116908 | AG86: =SIN(360/Alapadatok!$J$29*P86*PI()/180) -> -0.7818314825 | AH86: =Alapadatok!$K$30 -> 0.015 | AI86: =ABS(AF86*Alapadatok!$K$28)+(AG86*Alapadatok!$K$29)+AH86 -> -0.00379855785 | AJ86: 4 | AK86: =IF(AJ86>Alapadatok!$P$31,0,Alapadatok!$B$38+IF(Alapadatok!$D$38=Alapadatok!$O$32,Alapadatok!$B$36,0)) -> 0
A87: =C87 -> 20 | B87: 1 | C87: =C83+1 -> 20 | D87: 77 | E87: =IF(D86*3>=Alapadatok!$B$21,"",VLOOKUP(D87*3-2,Alapadatok!$T$4:$W$423,$AI$8+1,FALSE)) -> 2.11 | F87: =IF(D86*3>=Alapadatok!$B$21,"",E87+$F$11-$E$11) ->  | G87: =IF(OR($H$9<>"",D86*3>=Alapadatok!$B$21),"",VLOOKUP(D87,$O$11:$AA$430,12,FALSE)) ->  | H87: =IF(OR($H$9<>"",D86*3>=Alapadatok!$B$21),"",VLOOKUP(D87*3,$P$11:$AA$430,12,FALSE)) ->  | M87: =IF(D86*3>=Alapadatok!$B$21,"n",F87) ->  | N87: =N75+1 -> 7 | O87: 26 | P87: 77 | Y87: =IF(P87>Alapadatok!$B$21,0,X87*V87/1200) ->  | Z87: =IF(P87>Alapadatok!$B$21,0,IF(P87<=Alapadatok!$K$15,Y87,IF(O87=O86,Z86,PMT(W87/1200,Alapadatok!$B$21-O87*3+3,-X87)))) ->  | AC87: =IF(P87>Alapadatok!$B$21,0,Alapadatok!$B$35+AK87) -> 0 | AD87: =IF(P87>Alapadatok!$B$21,0,IF($AE$6=$AF$6,$AD$7*Alapadatok!$P$12,$AD$7*AE87))*(1+Alapadatok!$P$11) -> 44986.29779 | AE87: =Alapadatok!$P$12*(1+AI87) -> 280.6391336 | AF87: =SIN(360/Alapadatok!$J$28*P87*PI()/180) -> -0.4067366431 | AG87: =SIN(360/Alapadatok!$J$29*P87*PI()/180) -> 4.410100757e-15 | AH87: =Alapadatok!$K$30 -> 0.015 | AI87: =ABS(AF87*Alapadatok!$K$28)+(AG87*Alapadatok!$K$29)+AH87 -> 0.03940419858 | AJ87: 12 | AK87: =IF(AJ87>Alapadatok!$P$31,0,Alapadatok!$B$38+IF(Alapadatok!$D$38=Alapadatok!$O$32,Alapadatok!$B$36,0)) -> 0
B88: 1 | D88: 78 | E88: =IF(D87*3>=Alapadatok!$B$21,"",VLOOKUP(D88*3-2,Alapadatok!$T$4:$W$423,$AI$8+1,FALSE)) -> 2.11 | F88: =IF(D87*3>=Alapadatok!$B$21,"",E88+$F$11-$E$11) ->  | G88: =IF(OR($H$9<>"",D87*3>=Alapadatok!$B$21),"",VLOOKUP(D88,$O$11:$AA$430,12,FALSE)) ->  | H88: =IF(OR($H$9<>"",D87*3>=Alapadatok!$B$21),"",VLOOKUP(D88*3,$P$11:$AA$430,12,FALSE)) ->  | M88: =IF(D87*3>=Alapadatok!$B$21,"n",F88) ->  | N88: 7 | O88: 26 | P88: 78 | Y88: =IF(P88>Alapadatok!$B$21,0,X88*V88/1200) ->  | Z88: =IF(P88>Alapadatok!$B$21,0,IF(P88<=Alapadatok!$K$15,Y88,IF(O88=O87,Z87,PMT(W88/1200,Alapadatok!$B$21-O88*3+3,-X88)))) ->  | AC88: =IF(P88>Alapadatok!$B$21,0,Alapadatok!$B$35+AK88) -> 0 | AD88: =IF(P88>Alapadatok!$B$21,0,IF($AE$6=$AF$6,$AD$7*Alapadatok!$P$12,$AD$7*AE88))*(1+Alapadatok!$P$11) -> 44986.29779 | AE88: =Alapadatok!$P$12*(1+AI88) -> 292.0159011 | AF88: =SIN(360/Alapadatok!$J$28*P88*PI()/180) -> -0.5877852523 | AG88: =SIN(360/Alapadatok!$J$29*P88*PI()/180) -> 0.7818314825 | AH88: =Alapadatok!$K$30 -> 0.015 | AI88: =ABS(AF88*Alapadatok!$K$28)+(AG88*Alapadatok!$K$29)+AH88 -> 0.08154037444 | AJ88: 12 | AK88: =IF(AJ88>Alapadatok!$P$31,0,Alapadatok!$B$38+IF(Alapadatok!$D$38=Alapadatok!$O$32,Alapadatok!$B$36,0)) -> 0
B89: 1 | D89: 79 | E89: =IF(D88*3>=Alapadatok!$B$21,"",VLOOKUP(D89*3-2,Alapadatok!$T$4:$W$423,$AI$8+1,FALSE)) -> 2.11 | F89: =IF(D88*3>=Alapadatok!$B$21,"",E89+$F$11-$E$11) ->  | G89: =IF(OR($H$9<>"",D88*3>=Alapadatok!$B$21),"",VLOOKUP(D89,$O$11:$AA$430,12,FALSE)) ->  | H89: =IF(OR($H$9<>"",D88*3>=Alapadatok!$B$21),"",VLOOKUP(D89*3,$P$11:$AA$430,12,FALSE)) ->  | M89: =IF(D88*3>=Alapadatok!$B$21,"n",F89) ->  | N89: 7 | O89: 27 | P89: 79 | Y89: =IF(P89>Alapadatok!$B$21,0,X89*V89/1200) ->  | Z89: =IF(P89>Alapadatok!$B$21,0,IF(P89<=Alapadatok!$K$15,Y89,IF(O89=O88,Z88,PMT(W89/1200,Alapadatok!$B$21-O89*3+3,-X89)))) ->  | AC89: =IF(P89>Alapadatok!$B$21,0,Alapadatok!$B$35+AK89) -> 0 | AD89: =IF(P89>Alapadatok!$B$21,0,IF($AE$6=$AF$6,$AD$7*Alapadatok!$P$12,$AD$7*AE89))*(1+Alapadatok!$P$11) -> 44986.29779 | AE89: =Alapadatok!$P$12*(1+AI89) -> 296.6181676 | AF89: =SIN(360/Alapadatok!$J$28*P89*PI()/180) -> -0.7431448255 | AG89: =SIN(360/Alapadatok!$J$29*P89*PI()/180) -> 0.9749279122 | AH89: =Alapadatok!$K$30 -> 0.015 | AI89: =ABS(AF89*Alapadatok!$K$28)+(AG89*Alapadatok!$K$29)+AH89 -> 0.09858580602 | AJ89: 2 | AK89: =IF(AJ89>Alapadatok!$P$31,0,Alapadatok!$B$38+IF(Alapadatok!$D$38=Alapadatok!$O$32,Alapadatok!$B$36,0)) -> 0
B90: 1 | D90: 80 | E90: =IF(D89*3>=Alapadatok!$B$21,"",VLOOKUP(D90*3-2,Alapadatok!$T$4:$W$423,$AI$8+1,FALSE)) -> 2.11 | F90: =IF(D89*3>=Alapadatok!$B$21,"",E90+$F$11-$E$11) ->  | G90: =IF(OR($H$9<>"",D89*3>=Alapadatok!$B$21),"",VLOOKUP(D90,$O$11:$AA$430,12,FALSE)) ->  | H90: =IF(OR($H$9<>"",D89*3>=Alapadatok!$B$21),"",VLOOKUP(D90*3,$P$11:$AA$430,12,FALSE)) ->  | M90: =IF(D89*3>=Alapadatok!$B$21,"n",F90) ->  | N90: 7 | O90: 27 | P90: 80 | Y90: =IF(P90>Alapadatok!$B$21,0,X90*V90/1200) ->  | Z90: =IF(P90>Alapadatok!$B$21,0,IF(P90<=Alapadatok!$K$15,Y90,IF(O90=O89,Z89,PMT(W90/1200,Alapadatok!$B$21-O90*3+3,-X90)))) ->  | AC90: =IF(P90>Alapadatok!$B$21,0,Alapadatok!$B$35+AK90) -> 0 | AD90: =IF(P90>Alapadatok!$B$21,0,IF($AE$6=$AF$6,$AD$7*Alapadatok!$P$12,$AD$7*AE90))*(1+Alapadatok!$P$11) -> 44986.29779 | AE90: =Alapadatok!$P$12*(1+AI90) -> 292.7655559 | AF90: =SIN(360/Alapadatok!$J$28*P90*PI()/180) -> -0.8660254038 | AG90: =SIN(360/Alapadatok!$J$29*P90*PI()/180) -> 0.4338837391 | AH90: =Alapadatok!$K$30 -> 0.015 | AI90: =ABS(AF90*Alapadatok!$K$28)+(AG90*Alapadatok!$K$29)+AH90 -> 0.08431687379 | AJ90: 12 | AK90: =IF(AJ90>Alapadatok!$P$31,0,Alapadatok!$B$38+IF(Alapadatok!$D$38=Alapadatok!$O$32,Alapadatok!$B$36,0)) -> 0
A91: =C91 -> 21 | B91: 2 | C91: =C87+1 -> 21 | D91: 81 | E91: =IF(D90*3>=Alapadatok!$B$21,"",VLOOKUP(D91*3-2,Alapadatok!$T$4:$W$423,$AI$8+1,FALSE)) ->  | F91: =IF(D90*3>=Alapadatok!$B$21,"",E91+$F$11-$E$11) ->  | G91: =IF(OR($H$9<>"",D90*3>=Alapadatok!$B$21),"",VLOOKUP(D91,$O$11:$AA$430,12,FALSE)) ->  | H91: =IF(OR($H$9<>"",D90*3>=Alapadatok!$B$21),"",VLOOKUP(D91*3,$P$11:$AA$430,12,FALSE)) ->  | M91: =IF(D90*3>=Alapadatok!$B$21,"n",F91) -> n | N91: 7 | O91: 27 | P91: 81 | Y91: =IF(P91>Alapadatok!$B$21,0,X91*V91/1200) ->  | Z91: =IF(P91>Alapadatok!$B$21,0,IF(P91<=Alapadatok!$K$15,Y91,IF(O91=O90,Z90,PMT(W91/1200,Alapadatok!$B$21-O91*3+3,-X91)))) ->  | AC91: =IF(P91>Alapadatok!$B$21,0,Alapadatok!$B$35+AK91) -> 0 | AD91: =IF(P91>Alapadatok!$B$21,0,IF($AE$6=$AF$6,$AD$7*Alapadatok!$P$12,$AD$7*AE91))*(1+Alapadatok!$P$11) -> 44986.29779 | AE91: =Alapadatok!$P$12*(1+AI91) -> 284.7711712 | AF91: =SIN(360/Alapadatok!$J$28*P91*PI()/180) -> -0.9510565163 | AG91: =SIN(360/Alapadatok!$J$29*P91*PI()/180) -> -0.4338837391 | AH91: =Alapadatok!$K$30 -> 0.015 | AI91: =ABS(AF91*Alapadatok!$K$28)+(AG91*Alapadatok!$K$29)+AH91 -> 0.05470804141 | AJ91: 12 | AK91: =IF(AJ91>Alapadatok!$P$31,0,Alapadatok!$B$38+IF(Alapadatok!$D$38=Alapadatok!$O$32,Alapadatok!$B$36,0)) -> 0 | AM91: n
B92: 2 | D92: 82 | E92: =IF(D91*3>=Alapadatok!$B$21,"",VLOOKUP(D92*3-2,Alapadatok!$T$4:$W$423,$AI$8+1,FALSE)) ->  | F92: =IF(D91*3>=Alapadatok!$B$21,"",E92+$F$11-$E$11) ->  | G92: =IF(OR($H$9<>"",D91*3>=Alapadatok!$B$21),"",VLOOKUP(D92,$O$11:$AA$430,12,FALSE)) ->  | H92: =IF(OR($H$9<>"",D91*3>=Alapadatok!$B$21),"",VLOOKUP(D92*3,$P$11:$AA$430,12,FALSE)) ->  | M92: =IF(D91*3>=Alapadatok!$B$21,"n",F92) -> n | N92: 7 | O92: 28 | P92: 82 | Y92: =IF(P92>Alapadatok!$B$21,0,X92*V92/1200) ->  | Z92: =IF(P92>Alapadatok!$B$21,0,IF(P92<=Alapadatok!$K$15,Y92,IF(O92=O91,Z91,PMT(W92/1200,Alapadatok!$B$21-O92*3+3,-X92)))) ->  | AC92: =IF(P92>Alapadatok!$B$21,0,Alapadatok!$B$35+AK92) -> 0 | AD92: =IF(P92>Alapadatok!$B$21,0,IF($AE$6=$AF$6,$AD$7*Alapadatok!$P$12,$AD$7*AE92))*(1+Alapadatok!$P$11) -> 44986.29779 | AE92: =Alapadatok!$P$12*(1+AI92) -> 279.6320333 | AF92: =SIN(360/Alapadatok!$J$28*P92*PI()/180) -> -0.9945218954 | AG92: =SIN(360/Alapadatok!$J$29*P92*PI()/180) -> -0.9749279122 | AH92: =Alapadatok!$K$30 -> 0.015 | AI92: =ABS(AF92*Alapadatok!$K$28)+(AG92*Alapadatok!$K$29)+AH92 -> 0.03567419723 | AJ92: 4 | AK92: =IF(AJ92>Alapadatok!$P$31,0,Alapadatok!$B$38+IF(Alapadatok!$D$38=Alapadatok!$O$32,Alapadatok!$B$36,0)) -> 0 | AM92: n
B93: 2 | D93: 83 | E93: =IF(D92*3>=Alapadatok!$B$21,"",VLOOKUP(D93*3-2,Alapadatok!$T$4:$W$423,$AI$8+1,FALSE)) ->  | F93: =IF(D92*3>=Alapadatok!$B$21,"",E93+$F$11-$E$11) ->  | G93: =IF(OR($H$9<>"",D92*3>=Alapadatok!$B$21),"",VLOOKUP(D93,$O$11:$AA$430,12,FALSE)) ->  | H93: =IF(OR($H$9<>"",D92*3>=Alapadatok!$B$21),"",VLOOKUP(D93*3,$P$11:$AA$430,12,FALSE)) ->  | M93: =IF(D92*3>=Alapadatok!$B$21,"n",F93) -> n | N93: 7 | O93: 28 | P93: 83 | Y93: =IF(P93>Alapadatok!$B$21,0,X93*V93/1200) ->  | Z93: =IF(P93>Alapadatok!$B$21,0,IF(P93<=Alapadatok!$K$15,Y93,IF(O93=O92,Z92,PMT(W93/1200,Alapadatok!$B$21-O93*3+3,-X93)))) ->  | AC93: =IF(P93>Alapadatok!$B$21,0,Alapadatok!$B$35+AK93) -> 0 | AD93: =IF(P93>Alapadatok!$B$21,0,IF($AE$6=$AF$6,$AD$7*Alapadatok!$P$12,$AD$7*AE93))*(1+Alapadatok!$P$11) -> 44986.29779 | AE93: =Alapadatok!$P$12*(1+AI93) -> 281.7174747 | AF93: =SIN(360/Alapadatok!$J$28*P93*PI()/180) -> -0.9945218954 | AG93: =SIN(360/Alapadatok!$J$29*P93*PI()/180) -> -0.7818314825 | AH93: =Alapadatok!$K$30 -> 0.015 | AI93: =ABS(AF93*Alapadatok!$K$28)+(AG93*Alapadatok!$K$29)+AH93 -> 0.04339805442 | AJ93: 12 | AK93: =IF(AJ93>Alapadatok!$P$31,0,Alapadatok!$B$38+IF(Alapadatok!$D$38=Alapadatok!$O$32,Alapadatok!$B$36,0)) -> 0 | AM93: n
B94: 2 | D94: 84 | E94: =IF(D93*3>=Alapadatok!$B$21,"",VLOOKUP(D94*3-2,Alapadatok!$T$4:$W$423,$AI$8+1,FALSE)) ->  | F94: =IF(D93*3>=Alapadatok!$B$21,"",E94+$F$11-$E$11) ->  | G94: =IF(OR($H$9<>"",D93*3>=Alapadatok!$B$21),"",VLOOKUP(D94,$O$11:$AA$430,12,FALSE)) ->  | H94: =IF(OR($H$9<>"",D93*3>=Alapadatok!$B$21),"",VLOOKUP(D94*3,$P$11:$AA$430,12,FALSE)) ->  | M94: =IF(D93*3>=Alapadatok!$B$21,"n",F94) -> n | N94: 7 | O94: 28 | P94: 84 | Y94: =IF(P94>Alapadatok!$B$21,0,X94*V94/1200) ->  | Z94: =IF(P94>Alapadatok!$B$21,0,IF(P94<=Alapadatok!$K$15,Y94,IF(O94=O93,Z93,PMT(W94/1200,Alapadatok!$B$21-O94*3+3,-X94)))) ->  | AC94: =IF(P94>Alapadatok!$B$21,0,Alapadatok!$B$35+AK94) -> 0 | AD94: =IF(P94>Alapadatok!$B$21,0,IF($AE$6=$AF$6,$AD$7*Alapadatok!$P$12,$AD$7*AE94))*(1+Alapadatok!$P$11) -> 44986.29779 | AE94: =Alapadatok!$P$12*(1+AI94) -> 289.4571156 | AF94: =SIN(360/Alapadatok!$J$28*P94*PI()/180) -> -0.9510565163 | AG94: =SIN(360/Alapadatok!$J$29*P94*PI()/180) -> -2.940356292e-15 | AH94: =Alapadatok!$K$30 -> 0.015 | AI94: =ABS(AF94*Alapadatok!$K$28)+(AG94*Alapadatok!$K$29)+AH94 -> 0.07206339098 | AJ94: 12 | AK94: =IF(AJ94>Alapadatok!$P$31,0,Alapadatok!$B$38+IF(Alapadatok!$D$38=Alapadatok!$O$32,Alapadatok!$B$36,0)) -> 0 | AM94: n
A95: =C95 -> 22 | B95: 2 | C95: =C91+1 -> 22 | D95: 85 | E95: =IF(D94*3>=Alapadatok!$B$21,"",VLOOKUP(D95*3-2,Alapadatok!$T$4:$W$423,$AI$8+1,FALSE)) ->  | F95: =IF(D94*3>=Alapadatok!$B$21,"",E95+$F$11-$E$11) ->  | G95: =IF(OR($H$9<>"",D94*3>=Alapadatok!$B$21),"",VLOOKUP(D95,$O$11:$AA$430,12,FALSE)) ->  | H95: =IF(OR($H$9<>"",D94*3>=Alapadatok!$B$21),"",VLOOKUP(D95*3,$P$11:$AA$430,12,FALSE)) ->  | M95: =IF(D94*3>=Alapadatok!$B$21,"n",F95) -> n | N95: 8 | O95: 29 | P95: 85 | Y95: =IF(P95>Alapadatok!$B$21,0,X95*V95/1200) ->  | Z95: =IF(P95>Alapadatok!$B$21,0,IF(P95<=Alapadatok!$K$15,Y95,IF(O95=O94,Z94,PMT(W95/1200,Alapadatok!$B$21-O95*3+3,-X95)))) ->  | AC95: =IF(P95>Alapadatok!$B$21,0,Alapadatok!$B$35+AK95) -> 0 | AD95: =IF(P95>Alapadatok!$B$21,0,IF($AE$6=$AF$6,$AD$7*Alapadatok!$P$12,$AD$7*AE95))*(1+Alapadatok!$P$11) -> 44986.29779 | AE95: =Alapadatok!$P$12*(1+AI95) -> 296.5233916 | AF95: =SIN(360/Alapadatok!$J$28*P95*PI()/180) -> -0.8660254038 | AG95: =SIN(360/Alapadatok!$J$29*P95*PI()/180) -> 0.7818314825 | AH95: =Alapadatok!$K$30 -> 0.015 | AI95: =ABS(AF95*Alapadatok!$K$28)+(AG95*Alapadatok!$K$29)+AH95 -> 0.09823478353 | AJ95: 1 | AK95: =IF(AJ95>Alapadatok!$P$31,0,Alapadatok!$B$38+IF(Alapadatok!$D$38=Alapadatok!$O$32,Alapadatok!$B$36,0)) -> 0 | AM95: n
B96: 2 | D96: 86 | E96: =IF(D95*3>=Alapadatok!$B$21,"",VLOOKUP(D96*3-2,Alapadatok!$T$4:$W$423,$AI$8+1,FALSE)) ->  | F96: =IF(D95*3>=Alapadatok!$B$21,"",E96+$F$11-$E$11) ->  | G96: =IF(OR($H$9<>"",D95*3>=Alapadatok!$B$21),"",VLOOKUP(D96,$O$11:$AA$430,12,FALSE)) ->  | H96: =IF(OR($H$9<>"",D95*3>=Alapadatok!$B$21),"",VLOOKUP(D96*3,$P$11:$AA$430,12,FALSE)) ->  | M96: =IF(D95*3>=Alapadatok!$B$21,"n",F96) -> n | N96: 8 | O96: 29 | P96: 86 | Y96: =IF(P96>Alapadatok!$B$21,0,X96*V96/1200) ->  | Z96: =IF(P96>Alapadatok!$B$21,0,IF(P96<=Alapadatok!$K$15,Y96,IF(O96=O95,Z95,PMT(W96/1200,Alapadatok!$B$21-O96*3+3,-X96)))) ->  | AC96: =IF(P96>Alapadatok!$B$21,0,Alapadatok!$B$35+AK96) -> 0 | AD96: =IF(P96>Alapadatok!$B$21,0,IF($AE$6=$AF$6,$AD$7*Alapadatok!$P$12,$AD$7*AE96))*(1+Alapadatok!$P$11) -> 44986.29779 | AE96: =Alapadatok!$P$12*(1+AI96) -> 296.6181676 | AF96: =SIN(360/Alapadatok!$J$28*P96*PI()/180) -> -0.7431448255 | AG96: =SIN(360/Alapadatok!$J$29*P96*PI()/180) -> 0.9749279122 | AH96: =Alapadatok!$K$30 -> 0.015 | AI96: =ABS(AF96*Alapadatok!$K$28)+(AG96*Alapadatok!$K$29)+AH96 -> 0.09858580602 | AJ96: 12 | AK96: =IF(AJ96>Alapadatok!$P$31,0,Alapadatok!$B$38+IF(Alapadatok!$D$38=Alapadatok!$O$32,Alapadatok!$B$36,0)) -> 0 | AM96: n
B97: 2 | D97: 87 | E97: =IF(D96*3>=Alapadatok!$B$21,"",VLOOKUP(D97*3-2,Alapadatok!$T$4:$W$423,$AI$8+1,FALSE)) ->  | F97: =IF(D96*3>=Alapadatok!$B$21,"",E97+$F$11-$E$11) ->  | G97: =IF(OR($H$9<>"",D96*3>=Alapadatok!$B$21),"",VLOOKUP(D97,$O$11:$AA$430,12,FALSE)) ->  | H97: =IF(OR($H$9<>"",D96*3>=Alapadatok!$B$21),"",VLOOKUP(D97*3,$P$11:$AA$430,12,FALSE)) ->  | M97: =IF(D96*3>=Alapadatok!$B$21,"n",F97) -> n | N97: 8 | O97: 29 | P97: 87 | Y97: =IF(P97>Alapadatok!$B$21,0,X97*V97/1200) ->  | Z97: =IF(P97>Alapadatok!$B$21,0,IF(P97<=Alapadatok!$K$15,Y97,IF(O97=O96,Z96,PMT(W97/1200,Alapadatok!$B$21-O97*3+3,-X97)))) ->  | AC97: =IF(P97>Alapadatok!$B$21,0,Alapadatok!$B$35+AK97) -> 0 | AD97: =IF(P97>Alapadatok!$B$21,0,IF($AE$6=$AF$6,$AD$7*Alapadatok!$P$12,$AD$7*AE97))*(1+Alapadatok!$P$11) -> 44986.29779 | AE97: =Alapadatok!$P$12*(1+AI97) -> 288.2580655 | AF97: =SIN(360/Alapadatok!$J$28*P97*PI()/180) -> -0.5877852523 | AG97: =SIN(360/Alapadatok!$J$29*P97*PI()/180) -> 0.4338837391 | AH97: =Alapadatok!$K$30 -> 0.015 | AI97: =ABS(AF97*Alapadatok!$K$28)+(AG97*Alapadatok!$K$29)+AH97 -> 0.0676224647 | AJ97: 12 | AK97: =IF(AJ97>Alapadatok!$P$31,0,Alapadatok!$B$38+IF(Alapadatok!$D$38=Alapadatok!$O$32,Alapadatok!$B$36,0)) -> 0 | AM97: n
B98: 2 | D98: 88 | E98: =IF(D97*3>=Alapadatok!$B$21,"",VLOOKUP(D98*3-2,Alapadatok!$T$4:$W$423,$AI$8+1,FALSE)) ->  | F98: =IF(D97*3>=Alapadatok!$B$21,"",E98+$F$11-$E$11) ->  | G98: =IF(OR($H$9<>"",D97*3>=Alapadatok!$B$21),"",VLOOKUP(D98,$O$11:$AA$430,12,FALSE)) ->  | H98: =IF(OR($H$9<>"",D97*3>=Alapadatok!$B$21),"",VLOOKUP(D98*3,$P$11:$AA$430,12,FALSE)) ->  | M98: =IF(D97*3>=Alapadatok!$B$21,"n",F98) -> n | N98: 8 | O98: 30 | P98: 88 | Y98: =IF(P98>Alapadatok!$B$21,0,X98*V98/1200) ->  | Z98: =IF(P98>Alapadatok!$B$21,0,IF(P98<=Alapadatok!$K$15,Y98,IF(O98=O97,Z97,PMT(W98/1200,Alapadatok!$B$21-O98*3+3,-X98)))) ->  | AC98: =IF(P98>Alapadatok!$B$21,0,Alapadatok!$B$35+AK98) -> 0 | AD98: =IF(P98>Alapadatok!$B$21,0,IF($AE$6=$AF$6,$AD$7*Alapadatok!$P$12,$AD$7*AE98))*(1+Alapadatok!$P$11) -> 44986.29779 | AE98: =Alapadatok!$P$12*(1+AI98) -> 275.9531892 | AF98: =SIN(360/Alapadatok!$J$28*P98*PI()/180) -> -0.4067366431 | AG98: =SIN(360/Alapadatok!$J$29*P98*PI()/180) -> -0.4338837391 | AH98: =Alapadatok!$K$30 -> 0.015 | AI98: =ABS(AF98*Alapadatok!$K$28)+(AG98*Alapadatok!$K$29)+AH98 -> 0.02204884902 | AJ98: 4 | AK98: =IF(AJ98>Alapadatok!$P$31,0,Alapadatok!$B$38+IF(Alapadatok!$D$38=Alapadatok!$O$32,Alapadatok!$B$36,0)) -> 0 | AM98: n
A99: =C99 -> 23 | B99: 2 | C99: =C95+1 -> 23 | D99: 89 | E99: =IF(D98*3>=Alapadatok!$B$21,"",VLOOKUP(D99*3-2,Alapadatok!$T$4:$W$423,$AI$8+1,FALSE)) ->  | F99: =IF(D98*3>=Alapadatok!$B$21,"",E99+$F$11-$E$11) ->  | G99: =IF(OR($H$9<>"",D98*3>=Alapadatok!$B$21),"",VLOOKUP(D99,$O$11:$AA$430,12,FALSE)) ->  | H99: =IF(OR($H$9<>"",D98*3>=Alapadatok!$B$21),"",VLOOKUP(D99*3,$P$11:$AA$430,12,FALSE)) ->  | M99: =IF(D98*3>=Alapadatok!$B$21,"n",F99) -> n | N99: 8 | O99: 30 | P99: 89 | Y99: =IF(P99>Alapadatok!$B$21,0,X99*V99/1200) ->  | Z99: =IF(P99>Alapadatok!$B$21,0,IF(P99<=Alapadatok!$K$15,Y99,IF(O99=O98,Z98,PMT(W99/1200,Alapadatok!$B$21-O99*3+3,-X99)))) ->  | AC99: =IF(P99>Alapadatok!$B$21,0,Alapadatok!$B$35+AK99) -> 0 | AD99: =IF(P99>Alapadatok!$B$21,0,IF($AE$6=$AF$6,$AD$7*Alapadatok!$P$12,$AD$7*AE99))*(1+Alapadatok!$P$11) -> 44986.29779 | AE99: =Alapadatok!$P$12*(1+AI99) -> 266.8889479 | AF99: =SIN(360/Alapadatok!$J$28*P99*PI()/180) -> -0.2079116908 | AG99: =SIN(360/Alapadatok!$J$29*P99*PI()/180) -> -0.9749279122 | AH99: =Alapadatok!$K$30 -> 0.015 | AI99: =ABS(AF99*Alapadatok!$K$28)+(AG99*Alapadatok!$K$29)+AH99 -> -0.01152241504 | AJ99: 12 | AK99: =IF(AJ99>Alapadatok!$P$31,0,Alapadatok!$B$38+IF(Alapadatok!$D$38=Alapadatok!$O$32,Alapadatok!$B$36,0)) -> 0 | AM99: n
B100: 2 | D100: 90 | E100: =IF(D99*3>=Alapadatok!$B$21,"",VLOOKUP(D100*3-2,Alapadatok!$T$4:$W$423,$AI$8+1,FALSE)) ->  | F100: =IF(D99*3>=Alapadatok!$B$21,"",E100+$F$11-$E$11) ->  | G100: =IF(OR($H$9<>"",D99*3>=Alapadatok!$B$21),"",VLOOKUP(D100,$O$11:$AA$430,12,FALSE)) ->  | H100: =IF(OR($H$9<>"",D99*3>=Alapadatok!$B$21),"",VLOOKUP(D100*3,$P$11:$AA$430,12,FALSE)) ->  | M100: =IF(D99*3>=Alapadatok!$B$21,"n",F100) -> n | N100: 8 | O100: 30 | P100: 90 | Y100: =IF(P100>Alapadatok!$B$21,0,X100*V100/1200) ->  | Z100: =IF(P100>Alapadatok!$B$21,0,IF(P100<=Alapadatok!$K$15,Y100,IF(O100=O99,Z99,PMT(W100/1200,Alapadatok!$B$21-O100*3+3,-X100)))) ->  | AC100: =IF(P100>Alapadatok!$B$21,0,Alapadatok!$B$35+AK100) -> 0 | AD100: =IF(P100>Alapadatok!$B$21,0,IF($AE$6=$AF$6,$AD$7*Alapadatok!$P$12,$AD$7*AE100))*(1+Alapadatok!$P$11) -> 44986.29779 | AE100: =Alapadatok!$P$12*(1+AI100) -> 265.60622 | AF100: =SIN(360/Alapadatok!$J$28*P100*PI()/180) -> -7.350890729e-16 | AG100: =SIN(360/Alapadatok!$J$29*P100*PI()/180) -> -0.7818314825 | AH100: =Alapadatok!$K$30 -> 0.015 | AI100: =ABS(AF100*Alapadatok!$K$28)+(AG100*Alapadatok!$K$29)+AH100 -> -0.0162732593 | AJ100: 12 | AK100: =IF(AJ100>Alapadatok!$P$31,0,Alapadatok!$B$38+IF(Alapadatok!$D$38=Alapadatok!$O$32,Alapadatok!$B$36,0)) -> 0 | AM100: n
B101: 2 | D101: 91 | E101: =IF(D100*3>=Alapadatok!$B$21,"",VLOOKUP(D101*3-2,Alapadatok!$T$4:$W$423,$AI$8+1,FALSE)) ->  | F101: =IF(D100*3>=Alapadatok!$B$21,"",E101+$F$11-$E$11) ->  | G101: =IF(OR($H$9<>"",D100*3>=Alapadatok!$B$21),"",VLOOKUP(D101,$O$11:$AA$430,12,FALSE)) ->  | H101: =IF(OR($H$9<>"",D100*3>=Alapadatok!$B$21),"",VLOOKUP(D101*3,$P$11:$AA$430,12,FALSE)) ->  | M101: =IF(D100*3>=Alapadatok!$B$21,"n",F101) -> n | N101: 8 | O101: 31 | P101: 91 | Y101: =IF(P101>Alapadatok!$B$21,0,X101*V101/1200) ->  | Z101: =IF(P101>Alapadatok!$B$21,0,IF(P101<=Alapadatok!$K$15,Y101,IF(O101=O100,Z100,PMT(W101/1200,Alapadatok!$B$21-O101*3+3,-X101)))) ->  | AC101: =IF(P101>Alapadatok!$B$21,0,Alapadatok!$B$35+AK101) -> 0 | AD101: =IF(P101>Alapadatok!$B$21,0,IF($AE$6=$AF$6,$AD$7*Alapadatok!$P$12,$AD$7*AE101))*(1+Alapadatok!$P$11) -> 44986.29779 | AE101: =Alapadatok!$P$12*(1+AI101) -> 277.4181694 | AF101: =SIN(360/Alapadatok!$J$28*P101*PI()/180) -> 0.2079116908 | AG101: =SIN(360/Alapadatok!$J$29*P101*PI()/180) -> 3.920041375e-15 | AH101: =Alapadatok!$K$30 -> 0.015 | AI101: =ABS(AF101*Alapadatok!$K$28)+(AG101*Alapadatok!$K$29)+AH101 -> 0.02747470145 | AJ101: 2 | AK101: =IF(AJ101>Alapadatok!$P$31,0,Alapadatok!$B$38+IF(Alapadatok!$D$38=Alapadatok!$O$32,Alapadatok!$B$36,0)) -> 0 | AM101: n
B102: 2 | D102: 92 | E102: =IF(D101*3>=Alapadatok!$B$21,"",VLOOKUP(D102*3-2,Alapadatok!$T$4:$W$423,$AI$8+1,FALSE)) ->  | F102: =IF(D101*3>=Alapadatok!$B$21,"",E102+$F$11-$E$11) ->  | G102: =IF(OR($H$9<>"",D101*3>=Alapadatok!$B$21),"",VLOOKUP(D102,$O$11:$AA$430,12,FALSE)) ->  | H102: =IF(OR($H$9<>"",D101*3>=Alapadatok!$B$21),"",VLOOKUP(D102*3,$P$11:$AA$430,12,FALSE)) ->  | M102: =IF(D101*3>=Alapadatok!$B$21,"n",F102) -> n | N102: 8 | O102: 31 | P102: 92 | Y102: =IF(P102>Alapadatok!$B$21,0,X102*V102/1200) ->  | Z102: =IF(P102>Alapadatok!$B$21,0,IF(P102<=Alapadatok!$K$15,Y102,IF(O102=O101,Z101,PMT(W102/1200,Alapadatok!$B$21-O102*3+3,-X102)))) ->  | AC102: =IF(P102>Alapadatok!$B$21,0,Alapadatok!$B$35+AK102) -> 0 | AD102: =IF(P102>Alapadatok!$B$21,0,IF($AE$6=$AF$6,$AD$7*Alapadatok!$P$12,$AD$7*AE102))*(1+Alapadatok!$P$11) -> 44986.29779 | AE102: =Alapadatok!$P$12*(1+AI102) -> 289.0829136 | AF102: =SIN(360/Alapadatok!$J$28*P102*PI()/180) -> 0.4067366431 | AG102: =SIN(360/Alapadatok!$J$29*P102*PI()/180) -> 0.7818314825 | AH102: =Alapadatok!$K$30 -> 0.015 | AI102: =ABS(AF102*Alapadatok!$K$28)+(AG102*Alapadatok!$K$29)+AH102 -> 0.07067745788 | AJ102: 12 | AK102: =IF(AJ102>Alapadatok!$P$31,0,Alapadatok!$B$38+IF(Alapadatok!$D$38=Alapadatok!$O$32,Alapadatok!$B$36,0)) -> 0 | AM102: n
A103: =C103 -> 24 | B103: 2 | C103: =C99+1 -> 24 | D103: 93 | E103: =IF(D102*3>=Alapadatok!$B$21,"",VLOOKUP(D103*3-2,Alapadatok!$T$4:$W$423,$AI$8+1,FALSE)) ->  | F103: =IF(D102*3>=Alapadatok!$B$21,"",E103+$F$11-$E$11) ->  | G103: =IF(OR($H$9<>"",D102*3>=Alapadatok!$B$21),"",VLOOKUP(D103,$O$11:$AA$430,12,FALSE)) ->  | H103: =IF(OR($H$9<>"",D102*3>=Alapadatok!$B$21),"",VLOOKUP(D103*3,$P$11:$AA$430,12,FALSE)) ->  | M103: =IF(D102*3>=Alapadatok!$B$21,"n",F103) -> n | N103: 8 | O103: 31 | P103: 93 | Y103: =IF(P103>Alapadatok!$B$21,0,X103*V103/1200) ->  | Z103: =IF(P103>Alapadatok!$B$21,0,IF(P103<=Alapadatok!$K$15,Y103,IF(O103=O102,Z102,PMT(W103/1200,Alapadatok!$B$21-O103*3+3,-X103)))) ->  | AC103: =IF(P103>Alapadatok!$B$21,0,Alapadatok!$B$35+AK103) -> 0 | AD103: =IF(P103>Alapadatok!$B$21,0,IF($AE$6=$AF$6,$AD$7*Alapadatok!$P$12,$AD$7*AE103))*(1+Alapadatok!$P$11) -> 44986.29779 | AE103: =Alapadatok!$P$12*(1+AI103) -> 294.1013425 | AF103: =SIN(360/Alapadatok!$J$28*P103*PI()/180) -> 0.5877852523 | AG103: =SIN(360/Alapadatok!$J$29*P103*PI()/180) -> 0.9749279122 | AH103: =Alapadatok!$K$30 -> 0.015 | AI103: =ABS(AF103*Alapadatok!$K$28)+(AG103*Alapadatok!$K$29)+AH103 -> 0.08926423162 | AJ103: 12 | AK103: =IF(AJ103>Alapadatok!$P$31,0,Alapadatok!$B$38+IF(Alapadatok!$D$38=Alapadatok!$O$32,Alapadatok!$B$36,0)) -> 0 | AM103: n
B104: 2 | D104: 94 | E104: =IF(D103*3>=Alapadatok!$B$21,"",VLOOKUP(D104*3-2,Alapadatok!$T$4:$W$423,$AI$8+1,FALSE)) ->  | F104: =IF(D103*3>=Alapadatok!$B$21,"",E104+$F$11-$E$11) ->  | G104: =IF(OR($H$9<>"",D103*3>=Alapadatok!$B$21),"",VLOOKUP(D104,$O$11:$AA$430,12,FALSE)) ->  | H104: =IF(OR($H$9<>"",D103*3>=Alapadatok!$B$21),"",VLOOKUP(D104*3,$P$11:$AA$430,12,FALSE)) ->  | M104: =IF(D103*3>=Alapadatok!$B$21,"n",F104) -> n | N104: 8 | O104: 32 | P104: 94 | Y104: =IF(P104>Alapadatok!$B$21,0,X104*V104/1200) ->  | Z104: =IF(P104>Alapadatok!$B$21,0,IF(P104<=Alapadatok!$K$15,Y104,IF(O104=O103,Z103,PMT(W104/1200,Alapadatok!$B$21-O104*3+3,-X104)))) ->  | AC104: =IF(P104>Alapadatok!$B$21,0,Alapadatok!$B$35+AK104) -> 0 | AD104: =IF(P104>Alapadatok!$B$21,0,IF($AE$6=$AF$6,$AD$7*Alapadatok!$P$12,$AD$7*AE104))*(1+Alapadatok!$P$11) -> 44986.29779 | AE104: =Alapadatok!$P$12*(1+AI104) -> 290.7748906 | AF104: =SIN(360/Alapadatok!$J$28*P104*PI()/180) -> 0.7431448255 | AG104: =SIN(360/Alapadatok!$J$29*P104*PI()/180) -> 0.4338837391 | AH104: =Alapadatok!$K$30 -> 0.015 | AI104: =ABS(AF104*Alapadatok!$K$28)+(AG104*Alapadatok!$K$29)+AH104 -> 0.07694403909 | AJ104: 4 | AK104: =IF(AJ104>Alapadatok!$P$31,0,Alapadatok!$B$38+IF(Alapadatok!$D$38=Alapadatok!$O$32,Alapadatok!$B$36,0)) -> 0 | AM104: n
B105: 2 | D105: 95 | E105: =IF(D104*3>=Alapadatok!$B$21,"",VLOOKUP(D105*3-2,Alapadatok!$T$4:$W$423,$AI$8+1,FALSE)) ->  | F105: =IF(D104*3>=Alapadatok!$B$21,"",E105+$F$11-$E$11) ->  | G105: =IF(OR($H$9<>"",D104*3>=Alapadatok!$B$21),"",VLOOKUP(D105,$O$11:$AA$430,12,FALSE)) ->  | H105: =IF(OR($H$9<>"",D104*3>=Alapadatok!$B$21),"",VLOOKUP(D105*3,$P$11:$AA$430,12,FALSE)) ->  | M105: =IF(D104*3>=Alapadatok!$B$21,"n",F105) -> n | N105: 8 | O105: 32 | P105: 95 | Y105: =IF(P105>Alapadatok!$B$21,0,X105*V105/1200) ->  | Z105: =IF(P105>Alapadatok!$B$21,0,IF(P105<=Alapadatok!$K$15,Y105,IF(O105=O104,Z104,PMT(W105/1200,Alapadatok!$B$21-O105*3+3,-X105)))) ->  | AC105: =IF(P105>Alapadatok!$B$21,0,Alapadatok!$B$35+AK105) -> 0 | AD105: =IF(P105>Alapadatok!$B$21,0,IF($AE$6=$AF$6,$AD$7*Alapadatok!$P$12,$AD$7*AE105))*(1+Alapadatok!$P$11) -> 44986.29779 | AE105: =Alapadatok!$P$12*(1+AI105) -> 283.3936672 | AF105: =SIN(360/Alapadatok!$J$28*P105*PI()/180) -> 0.8660254038 | AG105: =SIN(360/Alapadatok!$J$29*P105*PI()/180) -> -0.4338837391 | AH105: =Alapadatok!$K$30 -> 0.015 | AI105: =ABS(AF105*Alapadatok!$K$28)+(AG105*Alapadatok!$K$29)+AH105 -> 0.04960617466 | AJ105: 12 | AK105: =IF(AJ105>Alapadatok!$P$31,0,Alapadatok!$B$38+IF(Alapadatok!$D$38=Alapadatok!$O$32,Alapadatok!$B$36,0)) -> 0 | AM105: n
B106: 2 | D106: 96 | E106: =IF(D105*3>=Alapadatok!$B$21,"",VLOOKUP(D106*3-2,Alapadatok!$T$4:$W$423,$AI$8+1,FALSE)) ->  | F106: =IF(D105*3>=Alapadatok!$B$21,"",E106+$F$11-$E$11) ->  | G106: =IF(OR($H$9<>"",D105*3>=Alapadatok!$B$21),"",VLOOKUP(D106,$O$11:$AA$430,12,FALSE)) ->  | H106: =IF(OR($H$9<>"",D105*3>=Alapadatok!$B$21),"",VLOOKUP(D106*3,$P$11:$AA$430,12,FALSE)) ->  | M106: =IF(D105*3>=Alapadatok!$B$21,"n",F106) -> n | N106: 8 | O106: 32 | P106: 96 | Y106: =IF(P106>Alapadatok!$B$21,0,X106*V106/1200) ->  | Z106: =IF(P106>Alapadatok!$B$21,0,IF(P106<=Alapadatok!$K$15,Y106,IF(O106=O105,Z105,PMT(W106/1200,Alapadatok!$B$21-O106*3+3,-X106)))) ->  | AC106: =IF(P106>Alapadatok!$B$21,0,Alapadatok!$B$35+AK106) -> 0 | AD106: =IF(P106>Alapadatok!$B$21,0,IF($AE$6=$AF$6,$AD$7*Alapadatok!$P$12,$AD$7*AE106))*(1+Alapadatok!$P$11) -> 44986.29779 | AE106: =Alapadatok!$P$12*(1+AI106) -> 278.9278941 | AF106: =SIN(360/Alapadatok!$J$28*P106*PI()/180) -> 0.9510565163 | AG106: =SIN(360/Alapadatok!$J$29*P106*PI()/180) -> -0.9749279122 | AH106: =Alapadatok!$K$30 -> 0.015 | AI106: =ABS(AF106*Alapadatok!$K$28)+(AG106*Alapadatok!$K$29)+AH106 -> 0.03306627449 | AJ106: 12 | AK106: =IF(AJ106>Alapadatok!$P$31,0,Alapadatok!$B$38+IF(Alapadatok!$D$38=Alapadatok!$O$32,Alapadatok!$B$36,0)) -> 0 | AM106: n
A107: =C107 -> 25 | B107: =IF(E107="",2,1) -> 2 | C107: =C103+1 -> 25 | D107: 97 | E107: =IF(D106*3>=Alapadatok!$B$21,"",VLOOKUP(D107*3-2,Alapadatok!$T$4:$W$423,$AI$8+1,FALSE)) ->  | F107: =IF(D106*3>=Alapadatok!$B$21,"",E107+$F$11-$E$11) ->  | G107: =IF(OR($H$9<>"",D106*3>=Alapadatok!$B$21),"",VLOOKUP(D107,$O$11:$AA$430,12,FALSE)) ->  | H107: =IF(OR($H$9<>"",D106*3>=Alapadatok!$B$21),"",VLOOKUP(D107*3,$P$11:$AA$430,12,FALSE)) ->  | M107: =IF(D106*3>=Alapadatok!$B$21,"n",F107) -> n | N107: 9 | O107: 33 | P107: 97 | Y107: =IF(P107>Alapadatok!$B$21,0,X107*V107/1200) ->  | Z107: =IF(P107>Alapadatok!$B$21,0,IF(P107<=Alapadatok!$K$15,Y107,IF(O107=O106,Z106,PMT(W107/1200,Alapadatok!$B$21-O107*3+3,-X107)))) ->  | AC107: =IF(P107>Alapadatok!$B$21,0,Alapadatok!$B$35+AK107) -> 0 | AD107: =IF(P107>Alapadatok!$B$21,0,IF($AE$6=$AF$6,$AD$7*Alapadatok!$P$12,$AD$7*AE107))*(1+Alapadatok!$P$11) -> 44986.29779 | AE107: =Alapadatok!$P$12*(1+AI107) -> 281.7174747 | AF107: =SIN(360/Alapadatok!$J$28*P107*PI()/180) -> 0.9945218954 | AG107: =SIN(360/Alapadatok!$J$29*P107*PI()/180) -> -0.7818314825 | AH107: =Alapadatok!$K$30 -> 0.015 | AI107: =ABS(AF107*Alapadatok!$K$28)+(AG107*Alapadatok!$K$29)+AH107 -> 0.04339805442 | AJ107: 1 | AK107: =IF(AJ107>Alapadatok!$P$31,0,Alapadatok!$B$38+IF(Alapadatok!$D$38=Alapadatok!$O$32,Alapadatok!$B$36,0)) -> 0 | AM107: n
B108: 2 | D108: 98 | E108: =IF(D107*3>=Alapadatok!$B$21,"",VLOOKUP(D108*3-2,Alapadatok!$T$4:$W$423,$AI$8+1,FALSE)) ->  | F108: =IF(D107*3>=Alapadatok!$B$21,"",E108+$F$11-$E$11) ->  | G108: =IF(OR($H$9<>"",D107*3>=Alapadatok!$B$21),"",VLOOKUP(D108,$O$11:$AA$430,12,FALSE)) ->  | H108: =IF(OR($H$9<>"",D107*3>=Alapadatok!$B$21),"",VLOOKUP(D108*3,$P$11:$AA$430,12,FALSE)) ->  | M108: =IF(D107*3>=Alapadatok!$B$21,"n",F108) -> n | N108: 9 | O108: 33 | P108: 98 | Y108: =IF(P108>Alapadatok!$B$21,0,X108*V108/1200) ->  | Z108: =IF(P108>Alapadatok!$B$21,0,IF(P108<=Alapadatok!$K$15,Y108,IF(O108=O107,Z107,PMT(W108/1200,Alapadatok!$B$21-O108*3+3,-X108)))) ->  | AC108: =IF(P108>Alapadatok!$B$21,0,Alapadatok!$B$35+AK108) -> 0 | AD108: =IF(P108>Alapadatok!$B$21,0,IF($AE$6=$AF$6,$AD$7*Alapadatok!$P$12,$AD$7*AE108))*(1+Alapadatok!$P$11) -> 44986.29779 | AE108: =Alapadatok!$P$12*(1+AI108) -> 290.1612547 | AF108: =SIN(360/Alapadatok!$J$28*P108*PI()/180) -> 0.9945218954 | AG108: =SIN(360/Alapadatok!$J$29*P108*PI()/180) -> -3.430415674e-15 | AH108: =Alapadatok!$K$30 -> 0.015 | AI108: =ABS(AF108*Alapadatok!$K$28)+(AG108*Alapadatok!$K$29)+AH108 -> 0.07467131372 | AJ108: 12 | AK108: =IF(AJ108>Alapadatok!$P$31,0,Alapadatok!$B$38+IF(Alapadatok!$D$38=Alapadatok!$O$32,Alapadatok!$B$36,0)) -> 0 | AM108: n
B109: 2 | D109: 99 | E109: =IF(D108*3>=Alapadatok!$B$21,"",VLOOKUP(D109*3-2,Alapadatok!$T$4:$W$423,$AI$8+1,FALSE)) ->  | F109: =IF(D108*3>=Alapadatok!$B$21,"",E109+$F$11-$E$11) ->  | G109: =IF(OR($H$9<>"",D108*3>=Alapadatok!$B$21),"",VLOOKUP(D109,$O$11:$AA$430,12,FALSE)) ->  | H109: =IF(OR($H$9<>"",D108*3>=Alapadatok!$B$21),"",VLOOKUP(D109*3,$P$11:$AA$430,12,FALSE)) ->  | M109: =IF(D108*3>=Alapadatok!$B$21,"n",F109) -> n | N109: 9 | O109: 33 | P109: 99 | Y109: =IF(P109>Alapadatok!$B$21,0,X109*V109/1200) ->  | Z109: =IF(P109>Alapadatok!$B$21,0,IF(P109<=Alapadatok!$K$15,Y109,IF(O109=O108,Z108,PMT(W109/1200,Alapadatok!$B$21-O109*3+3,-X109)))) ->  | AC109: =IF(P109>Alapadatok!$B$21,0,Alapadatok!$B$35+AK109) -> 0 | AD109: =IF(P109>Alapadatok!$B$21,0,IF($AE$6=$AF$6,$AD$7*Alapadatok!$P$12,$AD$7*AE109))*(1+Alapadatok!$P$11) -> 44986.29779 | AE109: =Alapadatok!$P$12*(1+AI109) -> 297.9008956 | AF109: =SIN(360/Alapadatok!$J$28*P109*PI()/180) -> 0.9510565163 | AG109: =SIN(360/Alapadatok!$J$29*P109*PI()/180) -> 0.7818314825 | AH109: =Alapadatok!$K$30 -> 0.015 | AI109: =ABS(AF109*Alapadatok!$K$28)+(AG109*Alapadatok!$K$29)+AH109 -> 0.1033366503 | AJ109: 12 | AK109: =IF(AJ109>Alapadatok!$P$31,0,Alapadatok!$B$38+IF(Alapadatok!$D$38=Alapadatok!$O$32,Alapadatok!$B$36,0)) -> 0 | AM109: n
B110: 2 | D110: 100 | E110: =IF(D109*3>=Alapadatok!$B$21,"",VLOOKUP(D110*3-2,Alapadatok!$T$4:$W$423,$AI$8+1,FALSE)) ->  | F110: =IF(D109*3>=Alapadatok!$B$21,"",E110+$F$11-$E$11) ->  | G110: =IF(OR($H$9<>"",D109*3>=Alapadatok!$B$21),"",VLOOKUP(D110,$O$11:$AA$430,12,FALSE)) ->  | H110: =IF(OR($H$9<>"",D109*3>=Alapadatok!$B$21),"",VLOOKUP(D110*3,$P$11:$AA$430,12,FALSE)) ->  | M110: =IF(D109*3>=Alapadatok!$B$21,"n",F110) -> n | N110: 9 | O110: 34 | P110: 100 | Y110: =IF(P110>Alapadatok!$B$21,0,X110*V110/1200) ->  | Z110: =IF(P110>Alapadatok!$B$21,0,IF(P110<=Alapadatok!$K$15,Y110,IF(O110=O109,Z109,PMT(W110/1200,Alapadatok!$B$21-O110*3+3,-X110)))) ->  | AC110: =IF(P110>Alapadatok!$B$21,0,Alapadatok!$B$35+AK110) -> 0 | AD110: =IF(P110>Alapadatok!$B$21,0,IF($AE$6=$AF$6,$AD$7*Alapadatok!$P$12,$AD$7*AE110))*(1+Alapadatok!$P$11) -> 44986.29779 | AE110: =Alapadatok!$P$12*(1+AI110) -> 298.608833 | AF110: =SIN(360/Alapadatok!$J$28*P110*PI()/180) -> 0.8660254038 | AG110: =SIN(360/Alapadatok!$J$29*P110*PI()/180) -> 0.9749279122 | AH110: =Alapadatok!$K$30 -> 0.015 | AI110: =ABS(AF110*Alapadatok!$K$28)+(AG110*Alapadatok!$K$29)+AH110 -> 0.1059586407 | AJ110: 4 | AK110: =IF(AJ110>Alapadatok!$P$31,0,Alapadatok!$B$38+IF(Alapadatok!$D$38=Alapadatok!$O$32,Alapadatok!$B$36,0)) -> 0 | AM110: n
A111: =C111 -> 26 | B111: 2 | C111: =C107+1 -> 26 | D111: 101 | E111: =IF(D110*3>=Alapadatok!$B$21,"",VLOOKUP(D111*3-2,Alapadatok!$T$4:$W$423,$AI$8+1,FALSE)) ->  | F111: =IF(D110*3>=Alapadatok!$B$21,"",E111+$F$11-$E$11) ->  | G111: =IF(OR($H$9<>"",D110*3>=Alapadatok!$B$21),"",VLOOKUP(D111,$O$11:$AA$430,12,FALSE)) ->  | H111: =IF(OR($H$9<>"",D110*3>=Alapadatok!$B$21),"",VLOOKUP(D111*3,$P$11:$AA$430,12,FALSE)) ->  | M111: =IF(D110*3>=Alapadatok!$B$21,"n",F111) -> n | N111: 9 | O111: 34 | P111: 101 | Y111: =IF(P111>Alapadatok!$B$21,0,X111*V111/1200) ->  | Z111: =IF(P111>Alapadatok!$B$21,0,IF(P111<=Alapadatok!$K$15,Y111,IF(O111=O110,Z110,PMT(W111/1200,Alapadatok!$B$21-O111*3+3,-X111)))) ->  | AC111: =IF(P111>Alapadatok!$B$21,0,Alapadatok!$B$35+AK111) -> 0 | AD111: =IF(P111>Alapadatok!$B$21,0,IF($AE$6=$AF$6,$AD$7*Alapadatok!$P$12,$AD$7*AE111))*(1+Alapadatok!$P$11) -> 44986.29779 | AE111: =Alapadatok!$P$12*(1+AI111) -> 290.7748906 | AF111: =SIN(360/Alapadatok!$J$28*P111*PI()/180) -> 0.7431448255 | AG111: =SIN(360/Alapadatok!$J$29*P111*PI()/180) -> 0.4338837391 | AH111: =Alapadatok!$K$30 -> 0.015 | AI111: =ABS(AF111*Alapadatok!$K$28)+(AG111*Alapadatok!$K$29)+AH111 -> 0.07694403909 | AJ111: 12 | AK111: =IF(AJ111>Alapadatok!$P$31,0,Alapadatok!$B$38+IF(Alapadatok!$D$38=Alapadatok!$O$32,Alapadatok!$B$36,0)) -> 0 | AM111: n
B112: 2 | D112: 102 | E112: =IF(D111*3>=Alapadatok!$B$21,"",VLOOKUP(D112*3-2,Alapadatok!$T$4:$W$423,$AI$8+1,FALSE)) ->  | F112: =IF(D111*3>=Alapadatok!$B$21,"",E112+$F$11-$E$11) ->  | G112: =IF(OR($H$9<>"",D111*3>=Alapadatok!$B$21),"",VLOOKUP(D112,$O$11:$AA$430,12,FALSE)) ->  | H112: =IF(OR($H$9<>"",D111*3>=Alapadatok!$B$21),"",VLOOKUP(D112*3,$P$11:$AA$430,12,FALSE)) ->  | M112: =IF(D111*3>=Alapadatok!$B$21,"n",F112) -> n | N112: 9 | O112: 34 | P112: 102 | Y112: =IF(P112>Alapadatok!$B$21,0,X112*V112/1200) ->  | Z112: =IF(P112>Alapadatok!$B$21,0,IF(P112<=Alapadatok!$K$15,Y112,IF(O112=O111,Z111,PMT(W112/1200,Alapadatok!$B$21-O112*3+3,-X112)))) ->  | AC112: =IF(P112>Alapadatok!$B$21,0,Alapadatok!$B$35+AK112) -> 0 | AD112: =IF(P112>Alapadatok!$B$21,0,IF($AE$6=$AF$6,$AD$7*Alapadatok!$P$12,$AD$7*AE112))*(1+Alapadatok!$P$11) -> 44986.29779 | AE112: =Alapadatok!$P$12*(1+AI112) -> 278.8861767 | AF112: =SIN(360/Alapadatok!$J$28*P112*PI()/180) -> 0.5877852523 | AG112: =SIN(360/Alapadatok!$J$29*P112*PI()/180) -> -0.4338837391 | AH112: =Alapadatok!$K$30 -> 0.015 | AI112: =ABS(AF112*Alapadatok!$K$28)+(AG112*Alapadatok!$K$29)+AH112 -> 0.03291176557 | AJ112: 12 | AK112: =IF(AJ112>Alapadatok!$P$31,0,Alapadatok!$B$38+IF(Alapadatok!$D$38=Alapadatok!$O$32,Alapadatok!$B$36,0)) -> 0 | AM112: n
B113: 2 | D113: 103 | E113: =IF(D112*3>=Alapadatok!$B$21,"",VLOOKUP(D113*3-2,Alapadatok!$T$4:$W$423,$AI$8+1,FALSE)) ->  | F113: =IF(D112*3>=Alapadatok!$B$21,"",E113+$F$11-$E$11) ->  | G113: =IF(OR($H$9<>"",D112*3>=Alapadatok!$B$21),"",VLOOKUP(D113,$O$11:$AA$430,12,FALSE)) ->  | H113: =IF(OR($H$9<>"",D112*3>=Alapadatok!$B$21),"",VLOOKUP(D113*3,$P$11:$AA$430,12,FALSE)) ->  | M113: =IF(D112*3>=Alapadatok!$B$21,"n",F113) -> n | N113: 9 | O113: 35 | P113: 103 | Y113: =IF(P113>Alapadatok!$B$21,0,X113*V113/1200) ->  | Z113: =IF(P113>Alapadatok!$B$21,0,IF(P113<=Alapadatok!$K$15,Y113,IF(O113=O112,Z112,PMT(W113/1200,Alapadatok!$B$21-O113*3+3,-X113)))) ->  | AC113: =IF(P113>Alapadatok!$B$21,0,Alapadatok!$B$35+AK113) -> 0 | AD113: =IF(P113>Alapadatok!$B$21,0,IF($AE$6=$AF$6,$AD$7*Alapadatok!$P$12,$AD$7*AE113))*(1+Alapadatok!$P$11) -> 44986.29779 | AE113: =Alapadatok!$P$12*(1+AI113) -> 270.1099122 | AF113: =SIN(360/Alapadatok!$J$28*P113*PI()/180) -> 0.4067366431 | AG113: =SIN(360/Alapadatok!$J$29*P113*PI()/180) -> -0.9749279122 | AH113: =Alapadatok!$K$30 -> 0.015 | AI113: =ABS(AF113*Alapadatok!$K$28)+(AG113*Alapadatok!$K$29)+AH113 -> 0.0004070820973 | AJ113: 2 | AK113: =IF(AJ113>Alapadatok!$P$31,0,Alapadatok!$B$38+IF(Alapadatok!$D$38=Alapadatok!$O$32,Alapadatok!$B$36,0)) -> 0 | AM113: n
B114: 2 | D114: 104 | E114: =IF(D113*3>=Alapadatok!$B$21,"",VLOOKUP(D114*3-2,Alapadatok!$T$4:$W$423,$AI$8+1,FALSE)) ->  | F114: =IF(D113*3>=Alapadatok!$B$21,"",E114+$F$11-$E$11) ->  | G114: =IF(OR($H$9<>"",D113*3>=Alapadatok!$B$21),"",VLOOKUP(D114,$O$11:$AA$430,12,FALSE)) ->  | H114: =IF(OR($H$9<>"",D113*3>=Alapadatok!$B$21),"",VLOOKUP(D114*3,$P$11:$AA$430,12,FALSE)) ->  | M114: =IF(D113*3>=Alapadatok!$B$21,"n",F114) -> n | N114: 9 | O114: 35 | P114: 104 | Y114: =IF(P114>Alapadatok!$B$21,0,X114*V114/1200) ->  | Z114: =IF(P114>Alapadatok!$B$21,0,IF(P114<=Alapadatok!$K$15,Y114,IF(O114=O113,Z113,PMT(W114/1200,Alapadatok!$B$21-O114*3+3,-X114)))) ->  | AC114: =IF(P114>Alapadatok!$B$21,0,Alapadatok!$B$35+AK114) -> 0 | AD114: =IF(P114>Alapadatok!$B$21,0,IF($AE$6=$AF$6,$AD$7*Alapadatok!$P$12,$AD$7*AE114))*(1+Alapadatok!$P$11) -> 44986.29779 | AE114: =Alapadatok!$P$12*(1+AI114) -> 268.9743894 | AF114: =SIN(360/Alapadatok!$J$28*P114*PI()/180) -> 0.2079116908 | AG114: =SIN(360/Alapadatok!$J$29*P114*PI()/180) -> -0.7818314825 | AH114: =Alapadatok!$K$30 -> 0.015 | AI114: =ABS(AF114*Alapadatok!$K$28)+(AG114*Alapadatok!$K$29)+AH114 -> -0.00379855785 | AJ114: 12 | AK114: =IF(AJ114>Alapadatok!$P$31,0,Alapadatok!$B$38+IF(Alapadatok!$D$38=Alapadatok!$O$32,Alapadatok!$B$36,0)) -> 0 | AM114: n
A115: =C115 -> 27 | B115: 2 | C115: =C111+1 -> 27 | D115: 105 | E115: =IF(D114*3>=Alapadatok!$B$21,"",VLOOKUP(D115*3-2,Alapadatok!$T$4:$W$423,$AI$8+1,FALSE)) ->  | F115: =IF(D114*3>=Alapadatok!$B$21,"",E115+$F$11-$E$11) ->  | G115: =IF(OR($H$9<>"",D114*3>=Alapadatok!$B$21),"",VLOOKUP(D115,$O$11:$AA$430,12,FALSE)) ->  | H115: =IF(OR($H$9<>"",D114*3>=Alapadatok!$B$21),"",VLOOKUP(D115*3,$P$11:$AA$430,12,FALSE)) ->  | M115: =IF(D114*3>=Alapadatok!$B$21,"n",F115) -> n | N115: 9 | O115: 35 | P115: 105 | Y115: =IF(P115>Alapadatok!$B$21,0,X115*V115/1200) ->  | Z115: =IF(P115>Alapadatok!$B$21,0,IF(P115<=Alapadatok!$K$15,Y115,IF(O115=O114,Z114,PMT(W115/1200,Alapadatok!$B$21-O115*3+3,-X115)))) ->  | AC115: =IF(P115>Alapadatok!$B$21,0,Alapadatok!$B$35+AK115) -> 0 | AD115: =IF(P115>Alapadatok!$B$21,0,IF($AE$6=$AF$6,$AD$7*Alapadatok!$P$12,$AD$7*AE115))*(1+Alapadatok!$P$11) -> 44986.29779 | AE115: =Alapadatok!$P$12*(1+AI115) -> 274.05 | AF115: =SIN(360/Alapadatok!$J$28*P115*PI()/180) -> 8.576039184e-16 | AG115: =SIN(360/Alapadatok!$J$29*P115*PI()/180) -> 3.429981993e-15 | AH115: =Alapadatok!$K$30 -> 0.015 | AI115: =ABS(AF115*Alapadatok!$K$28)+(AG115*Alapadatok!$K$29)+AH115 -> 0.015 | AJ115: 12 | AK115: =IF(AJ115>Alapadatok!$P$31,0,Alapadatok!$B$38+IF(Alapadatok!$D$38=Alapadatok!$O$32,Alapadatok!$B$36,0)) -> 0 | AM115: =IF(F115=M115," ",M115) -> n
B116: 2 | D116: 106 | E116: =IF(D115*3>=Alapadatok!$B$21,"",VLOOKUP(D116*3-2,Alapadatok!$T$4:$W$423,$AI$8+1,FALSE)) ->  | F116: =IF(D115*3>=Alapadatok!$B$21,"",E116+$F$11-$E$11) ->  | G116: =IF(OR($H$9<>"",D115*3>=Alapadatok!$B$21),"",VLOOKUP(D116,$O$11:$AA$430,12,FALSE)) ->  | H116: =IF(OR($H$9<>"",D115*3>=Alapadatok!$B$21),"",VLOOKUP(D116*3,$P$11:$AA$430,12,FALSE)) ->  | M116: =IF(D115*3>=Alapadatok!$B$21,"n",F116) -> n | N116: 9 | O116: 36 | P116: 106 | Y116: =IF(P116>Alapadatok!$B$21,0,X116*V116/1200) ->  | Z116: =IF(P116>Alapadatok!$B$21,0,IF(P116<=Alapadatok!$K$15,Y116,IF(O116=O115,Z115,PMT(W116/1200,Alapadatok!$B$21-O116*3+3,-X116)))) ->  | AC116: =IF(P116>Alapadatok!$B$21,0,Alapadatok!$B$35+AK116) -> 0 | AD116: =IF(P116>Alapadatok!$B$21,0,IF($AE$6=$AF$6,$AD$7*Alapadatok!$P$12,$AD$7*AE116))*(1+Alapadatok!$P$11) -> 44986.29779 | AE116: =Alapadatok!$P$12*(1+AI116) -> 285.8619494 | AF116: =SIN(360/Alapadatok!$J$28*P116*PI()/180) -> -0.2079116908 | AG116: =SIN(360/Alapadatok!$J$29*P116*PI()/180) -> 0.7818314825 | AH116: =Alapadatok!$K$30 -> 0.015 | AI116: =ABS(AF116*Alapadatok!$K$28)+(AG116*Alapadatok!$K$29)+AH116 -> 0.05874796075 | AJ116: 4 | AK116: =IF(AJ116>Alapadatok!$P$31,0,Alapadatok!$B$38+IF(Alapadatok!$D$38=Alapadatok!$O$32,Alapadatok!$B$36,0)) -> 0 | AM116: n
B117: 2 | D117: 107 | E117: =IF(D116*3>=Alapadatok!$B$21,"",VLOOKUP(D117*3-2,Alapadatok!$T$4:$W$423,$AI$8+1,FALSE)) ->  | F117: =IF(D116*3>=Alapadatok!$B$21,"",E117+$F$11-$E$11) ->  | G117: =IF(OR($H$9<>"",D116*3>=Alapadatok!$B$21),"",VLOOKUP(D117,$O$11:$AA$430,12,FALSE)) ->  | H117: =IF(OR($H$9<>"",D116*3>=Alapadatok!$B$21),"",VLOOKUP(D117*3,$P$11:$AA$430,12,FALSE)) ->  | M117: =IF(D116*3>=Alapadatok!$B$21,"n",F117) -> n | N117: 9 | O117: 36 | P117: 107 | Y117: =IF(P117>Alapadatok!$B$21,0,X117*V117/1200) ->  | Z117: =IF(P117>Alapadatok!$B$21,0,IF(P117<=Alapadatok!$K$15,Y117,IF(O117=O116,Z116,PMT(W117/1200,Alapadatok!$B$21-O117*3+3,-X117)))) ->  | AC117: =IF(P117>Alapadatok!$B$21,0,Alapadatok!$B$35+AK117) -> 0 | AD117: =IF(P117>Alapadatok!$B$21,0,IF($AE$6=$AF$6,$AD$7*Alapadatok!$P$12,$AD$7*AE117))*(1+Alapadatok!$P$11) -> 44986.29779 | AE117: =Alapadatok!$P$12*(1+AI117) -> 291.1683551 | AF117: =SIN(360/Alapadatok!$J$28*P117*PI()/180) -> -0.4067366431 | AG117: =SIN(360/Alapadatok!$J$29*P117*PI()/180) -> 0.9749279122 | AH117: =Alapadatok!$K$30 -> 0.015 | AI117: =ABS(AF117*Alapadatok!$K$28)+(AG117*Alapadatok!$K$29)+AH117 -> 0.07840131507 | AJ117: 12 | AK117: =IF(AJ117>Alapadatok!$P$31,0,Alapadatok!$B$38+IF(Alapadatok!$D$38=Alapadatok!$O$32,Alapadatok!$B$36,0)) -> 0 | AM117: n
B118: 2 | D118: 108 | E118: =IF(D117*3>=Alapadatok!$B$21,"",VLOOKUP(D118*3-2,Alapadatok!$T$4:$W$423,$AI$8+1,FALSE)) ->  | F118: =IF(D117*3>=Alapadatok!$B$21,"",E118+$F$11-$E$11) ->  | G118: =IF(OR($H$9<>"",D117*3>=Alapadatok!$B$21),"",VLOOKUP(D118,$O$11:$AA$430,12,FALSE)) ->  | H118: =IF(OR($H$9<>"",D117*3>=Alapadatok!$B$21),"",VLOOKUP(D118*3,$P$11:$AA$430,12,FALSE)) ->  | M118: =IF(D117*3>=Alapadatok!$B$21,"n",F118) -> n | N118: 9 | O118: 36 | P118: 108 | Y118: =IF(P118>Alapadatok!$B$21,0,X118*V118/1200) ->  | Z118: =IF(P118>Alapadatok!$B$21,0,IF(P118<=Alapadatok!$K$15,Y118,IF(O118=O117,Z117,PMT(W118/1200,Alapadatok!$B$21-O118*3+3,-X118)))) ->  | AC118: =IF(P118>Alapadatok!$B$21,0,Alapadatok!$B$35+AK118) -> 0 | AD118: =IF(P118>Alapadatok!$B$21,0,IF($AE$6=$AF$6,$AD$7*Alapadatok!$P$12,$AD$7*AE118))*(1+Alapadatok!$P$11) -> 44986.29779 | AE118: =Alapadatok!$P$12*(1+AI118) -> 288.2580655 | AF118: =SIN(360/Alapadatok!$J$28*P118*PI()/180) -> -0.5877852523 | AG118: =SIN(360/Alapadatok!$J$29*P118*PI()/180) -> 0.4338837391 | AH118: =Alapadatok!$K$30 -> 0.015 | AI118: =ABS(AF118*Alapadatok!$K$28)+(AG118*Alapadatok!$K$29)+AH118 -> 0.0676224647 | AJ118: 12 | AK118: =IF(AJ118>Alapadatok!$P$31,0,Alapadatok!$B$38+IF(Alapadatok!$D$38=Alapadatok!$O$32,Alapadatok!$B$36,0)) -> 0 | AM118: n
A119: =C119 -> 28 | B119: 2 | C119: =C115+1 -> 28 | D119: 109 | E119: =IF(D118*3>=Alapadatok!$B$21,"",VLOOKUP(D119*3-2,Alapadatok!$T$4:$W$423,$AI$8+1,FALSE)) ->  | F119: =IF(D118*3>=Alapadatok!$B$21,"",E119+$F$11-$E$11) ->  | G119: =IF(OR($H$9<>"",D118*3>=Alapadatok!$B$21),"",VLOOKUP(D119,$O$11:$AA$430,12,FALSE)) ->  | H119: =IF(OR($H$9<>"",D118*3>=Alapadatok!$B$21),"",VLOOKUP(D119*3,$P$11:$AA$430,12,FALSE)) ->  | M119: =IF(D118*3>=Alapadatok!$B$21,"n",F119) -> n | N119: 10 | O119: 37 | P119: 109 | Y119: =IF(P119>Alapadatok!$B$21,0,X119*V119/1200) ->  | Z119: =IF(P119>Alapadatok!$B$21,0,IF(P119<=Alapadatok!$K$15,Y119,IF(O119=O118,Z118,PMT(W119/1200,Alapadatok!$B$21-O119*3+3,-X119)))) ->  | AC119: =IF(P119>Alapadatok!$B$21,0,Alapadatok!$B$35+AK119) -> 0 | AD119: =IF(P119>Alapadatok!$B$21,0,IF($AE$6=$AF$6,$AD$7*Alapadatok!$P$12,$AD$7*AE119))*(1+Alapadatok!$P$11) -> 44986.29779 | AE119: =Alapadatok!$P$12*(1+AI119) -> 281.4030018 | AF119: =SIN(360/Alapadatok!$J$28*P119*PI()/180) -> -0.7431448255 | AG119: =SIN(360/Alapadatok!$J$29*P119*PI()/180) -> -0.4338837391 | AH119: =Alapadatok!$K$30 -> 0.015 | AI119: =ABS(AF119*Alapadatok!$K$28)+(AG119*Alapadatok!$K$29)+AH119 -> 0.04223333996 | AJ119: 1 | AK119: =IF(AJ119>Alapadatok!$P$31,0,Alapadatok!$B$38+IF(Alapadatok!$D$38=Alapadatok!$O$32,Alapadatok!$B$36,0)) -> 0 | AM119: n
B120: 2 | D120: 110 | E120: =IF(D119*3>=Alapadatok!$B$21,"",VLOOKUP(D120*3-2,Alapadatok!$T$4:$W$423,$AI$8+1,FALSE)) ->  | F120: =IF(D119*3>=Alapadatok!$B$21,"",E120+$F$11-$E$11) ->  | G120: =IF(OR($H$9<>"",D119*3>=Alapadatok!$B$21),"",VLOOKUP(D120,$O$11:$AA$430,12,FALSE)) ->  | H120: =IF(OR($H$9<>"",D119*3>=Alapadatok!$B$21),"",VLOOKUP(D120*3,$P$11:$AA$430,12,FALSE)) ->  | M120: =IF(D119*3>=Alapadatok!$B$21,"n",F120) -> n | N120: 10 | O120: 37 | P120: 110 | Y120: =IF(P120>Alapadatok!$B$21,0,X120*V120/1200) ->  | Z120: =IF(P120>Alapadatok!$B$21,0,IF(P120<=Alapadatok!$K$15,Y120,IF(O120=O119,Z119,PMT(W120/1200,Alapadatok!$B$21-O120*3+3,-X120)))) ->  | AC120: =IF(P120>Alapadatok!$B$21,0,Alapadatok!$B$35+AK120) -> 0 | AD120: =IF(P120>Alapadatok!$B$21,0,IF($AE$6=$AF$6,$AD$7*Alapadatok!$P$12,$AD$7*AE120))*(1+Alapadatok!$P$11) -> 44986.29779 | AE120: =Alapadatok!$P$12*(1+AI120) -> 277.5503901 | AF120: =SIN(360/Alapadatok!$J$28*P120*PI()/180) -> -0.8660254038 | AG120: =SIN(360/Alapadatok!$J$29*P120*PI()/180) -> -0.9749279122 | AH120: =Alapadatok!$K$30 -> 0.015 | AI120: =ABS(AF120*Alapadatok!$K$28)+(AG120*Alapadatok!$K$29)+AH120 -> 0.02796440774 | AJ120: 12 | AK120: =IF(AJ120>Alapadatok!$P$31,0,Alapadatok!$B$38+IF(Alapadatok!$D$38=Alapadatok!$O$32,Alapadatok!$B$36,0)) -> 0 | AM120: n
B121: 2 | D121: 111 | E121: =IF(D120*3>=Alapadatok!$B$21,"",VLOOKUP(D121*3-2,Alapadatok!$T$4:$W$423,$AI$8+1,FALSE)) ->  | F121: =IF(D120*3>=Alapadatok!$B$21,"",E121+$F$11-$E$11) ->  | G121: =IF(OR($H$9<>"",D120*3>=Alapadatok!$B$21),"",VLOOKUP(D121,$O$11:$AA$430,12,FALSE)) ->  | H121: =IF(OR($H$9<>"",D120*3>=Alapadatok!$B$21),"",VLOOKUP(D121*3,$P$11:$AA$430,12,FALSE)) ->  | M121: =IF(D120*3>=Alapadatok!$B$21,"n",F121) -> n | N121: 10 | O121: 37 | P121: 111 | Y121: =IF(P121>Alapadatok!$B$21,0,X121*V121/1200) ->  | Z121: =IF(P121>Alapadatok!$B$21,0,IF(P121<=Alapadatok!$K$15,Y121,IF(O121=O120,Z120,PMT(W121/1200,Alapadatok!$B$21-O121*3+3,-X121)))) ->  | AC121: =IF(P121>Alapadatok!$B$21,0,Alapadatok!$B$35+AK121) -> 0 | AD121: =IF(P121>Alapadatok!$B$21,0,IF($AE$6=$AF$6,$AD$7*Alapadatok!$P$12,$AD$7*AE121))*(1+Alapadatok!$P$11) -> 44986.29779 | AE121: =Alapadatok!$P$12*(1+AI121) -> 281.0133356 | AF121: =SIN(360/Alapadatok!$J$28*P121*PI()/180) -> -0.9510565163 | AG121: =SIN(360/Alapadatok!$J$29*P121*PI()/180) -> -0.7818314825 | AH121: =Alapadatok!$K$30 -> 0.015 | AI121: =ABS(AF121*Alapadatok!$K$28)+(AG121*Alapadatok!$K$29)+AH121 -> 0.04079013168 | AJ121: 12 | AK121: =IF(AJ121>Alapadatok!$P$31,0,Alapadatok!$B$38+IF(Alapadatok!$D$38=Alapadatok!$O$32,Alapadatok!$B$36,0)) -> 0 | AM121: n
B122: 2 | D122: 112 | E122: =IF(D121*3>=Alapadatok!$B$21,"",VLOOKUP(D122*3-2,Alapadatok!$T$4:$W$423,$AI$8+1,FALSE)) ->  | F122: =IF(D121*3>=Alapadatok!$B$21,"",E122+$F$11-$E$11) ->  | G122: =IF(OR($H$9<>"",D121*3>=Alapadatok!$B$21),"",VLOOKUP(D122,$O$11:$AA$430,12,FALSE)) ->  | H122: =IF(OR($H$9<>"",D121*3>=Alapadatok!$B$21),"",VLOOKUP(D122*3,$P$11:$AA$430,12,FALSE)) ->  | M122: =IF(D121*3>=Alapadatok!$B$21,"n",F122) -> n | N122: 10 | O122: 38 | P122: 112 | Y122: =IF(P122>Alapadatok!$B$21,0,X122*V122/1200) ->  | Z122: =IF(P122>Alapadatok!$B$21,0,IF(P122<=Alapadatok!$K$15,Y122,IF(O122=O121,Z121,PMT(W122/1200,Alapadatok!$B$21-O122*3+3,-X122)))) ->  | AC122: =IF(P122>Alapadatok!$B$21,0,Alapadatok!$B$35+AK122) -> 0 | AD122: =IF(P122>Alapadatok!$B$21,0,IF($AE$6=$AF$6,$AD$7*Alapadatok!$P$12,$AD$7*AE122))*(1+Alapadatok!$P$11) -> 44986.29779 | AE122: =Alapadatok!$P$12*(1+AI122) -> 290.1612547 | AF122: =SIN(360/Alapadatok!$J$28*P122*PI()/180) -> -0.9945218954 | AG122: =SIN(360/Alapadatok!$J$29*P122*PI()/180) -> -3.920475056e-15 | AH122: =Alapadatok!$K$30 -> 0.015 | AI122: =ABS(AF122*Alapadatok!$K$28)+(AG122*Alapadatok!$K$29)+AH122 -> 0.07467131372 | AJ122: 4 | AK122: =IF(AJ122>Alapadatok!$P$31,0,Alapadatok!$B$38+IF(Alapadatok!$D$38=Alapadatok!$O$32,Alapadatok!$B$36,0)) -> 0 | AM122: n
A123: =C123 -> 29 | B123: 2 | C123: =C119+1 -> 29 | D123: 113 | E123: =IF(D122*3>=Alapadatok!$B$21,"",VLOOKUP(D123*3-2,Alapadatok!$T$4:$W$423,$AI$8+1,FALSE)) ->  | F123: =IF(D122*3>=Alapadatok!$B$21,"",E123+$F$11-$E$11) ->  | G123: =IF(OR($H$9<>"",D122*3>=Alapadatok!$B$21),"",VLOOKUP(D123,$O$11:$AA$430,12,FALSE)) ->  | H123: =IF(OR($H$9<>"",D122*3>=Alapadatok!$B$21),"",VLOOKUP(D123*3,$P$11:$AA$430,12,FALSE)) ->  | M123: =IF(D122*3>=Alapadatok!$B$21,"n",F123) -> n | N123: 10 | O123: 38 | P123: 113 | Y123: =IF(P123>Alapadatok!$B$21,0,X123*V123/1200) ->  | Z123: =IF(P123>Alapadatok!$B$21,0,IF(P123<=Alapadatok!$K$15,Y123,IF(O123=O122,Z122,PMT(W123/1200,Alapadatok!$B$21-O123*3+3,-X123)))) ->  | AC123: =IF(P123>Alapadatok!$B$21,0,Alapadatok!$B$35+AK123) -> 0 | AD123: =IF(P123>Alapadatok!$B$21,0,IF($AE$6=$AF$6,$AD$7*Alapadatok!$P$12,$AD$7*AE123))*(1+Alapadatok!$P$11) -> 44986.29779 | AE123: =Alapadatok!$P$12*(1+AI123) -> 298.6050347 | AF123: =SIN(360/Alapadatok!$J$28*P123*PI()/180) -> -0.9945218954 | AG123: =SIN(360/Alapadatok!$J$29*P123*PI()/180) -> 0.7818314825 | AH123: =Alapadatok!$K$30 -> 0.015 | AI123: =ABS(AF123*Alapadatok!$K$28)+(AG123*Alapadatok!$K$29)+AH123 -> 0.105944573 | AJ123: 12 | AK123: =IF(AJ123>Alapadatok!$P$31,0,Alapadatok!$B$38+IF(Alapadatok!$D$38=Alapadatok!$O$32,Alapadatok!$B$36,0)) -> 0 | AM123: n
B124: 2 | D124: 114 | E124: =IF(D123*3>=Alapadatok!$B$21,"",VLOOKUP(D124*3-2,Alapadatok!$T$4:$W$423,$AI$8+1,FALSE)) ->  | F124: =IF(D123*3>=Alapadatok!$B$21,"",E124+$F$11-$E$11) ->  | G124: =IF(OR($H$9<>"",D123*3>=Alapadatok!$B$21),"",VLOOKUP(D124,$O$11:$AA$430,12,FALSE)) ->  | H124: =IF(OR($H$9<>"",D123*3>=Alapadatok!$B$21),"",VLOOKUP(D124*3,$P$11:$AA$430,12,FALSE)) ->  | M124: =IF(D123*3>=Alapadatok!$B$21,"n",F124) -> n | N124: 10 | O124: 38 | P124: 114 | Y124: =IF(P124>Alapadatok!$B$21,0,X124*V124/1200) ->  | Z124: =IF(P124>Alapadatok!$B$21,0,IF(P124<=Alapadatok!$K$15,Y124,IF(O124=O123,Z123,PMT(W124/1200,Alapadatok!$B$21-O124*3+3,-X124)))) ->  | AC124: =IF(P124>Alapadatok!$B$21,0,Alapadatok!$B$35+AK124) -> 0 | AD124: =IF(P124>Alapadatok!$B$21,0,IF($AE$6=$AF$6,$AD$7*Alapadatok!$P$12,$AD$7*AE124))*(1+Alapadatok!$P$11) -> 44986.29779 | AE124: =Alapadatok!$P$12*(1+AI124) -> 299.986337 | AF124: =SIN(360/Alapadatok!$J$28*P124*PI()/180) -> -0.9510565163 | AG124: =SIN(360/Alapadatok!$J$29*P124*PI()/180) -> 0.9749279122 | AH124: =Alapadatok!$K$30 -> 0.015 | AI124: =ABS(AF124*Alapadatok!$K$28)+(AG124*Alapadatok!$K$29)+AH124 -> 0.1110605075 | AJ124: 12 | AK124: =IF(AJ124>Alapadatok!$P$31,0,Alapadatok!$B$38+IF(Alapadatok!$D$38=Alapadatok!$O$32,Alapadatok!$B$36,0)) -> 0 | AM124: n
B125: 2 | D125: 115 | E125: =IF(D124*3>=Alapadatok!$B$21,"",VLOOKUP(D125*3-2,Alapadatok!$T$4:$W$423,$AI$8+1,FALSE)) ->  | F125: =IF(D124*3>=Alapadatok!$B$21,"",E125+$F$11-$E$11) ->  | G125: =IF(OR($H$9<>"",D124*3>=Alapadatok!$B$21),"",VLOOKUP(D125,$O$11:$AA$430,12,FALSE)) ->  | H125: =IF(OR($H$9<>"",D124*3>=Alapadatok!$B$21),"",VLOOKUP(D125*3,$P$11:$AA$430,12,FALSE)) ->  | M125: =IF(D124*3>=Alapadatok!$B$21,"n",F125) -> n | N125: 10 | O125: 39 | P125: 115 | Y125: =IF(P125>Alapadatok!$B$21,0,X125*V125/1200) ->  | Z125: =IF(P125>Alapadatok!$B$21,0,IF(P125<=Alapadatok!$K$15,Y125,IF(O125=O124,Z124,PMT(W125/1200,Alapadatok!$B$21-O125*3+3,-X125)))) ->  | AC125: =IF(P125>Alapadatok!$B$21,0,Alapadatok!$B$35+AK125) -> 0 | AD125: =IF(P125>Alapadatok!$B$21,0,IF($AE$6=$AF$6,$AD$7*Alapadatok!$P$12,$AD$7*AE125))*(1+Alapadatok!$P$11) -> 44986.29779 | AE125: =Alapadatok!$P$12*(1+AI125) -> 292.7655559 | AF125: =SIN(360/Alapadatok!$J$28*P125*PI()/180) -> -0.8660254038 | AG125: =SIN(360/Alapadatok!$J$29*P125*PI()/180) -> 0.4338837391 | AH125: =Alapadatok!$K$30 -> 0.015 | AI125: =ABS(AF125*Alapadatok!$K$28)+(AG125*Alapadatok!$K$29)+AH125 -> 0.08431687379 | AJ125: 2 | AK125: =IF(AJ125>Alapadatok!$P$31,0,Alapadatok!$B$38+IF(Alapadatok!$D$38=Alapadatok!$O$32,Alapadatok!$B$36,0)) -> 0 | AM125: n
B126: 2 | D126: 116 | E126: =IF(D125*3>=Alapadatok!$B$21,"",VLOOKUP(D126*3-2,Alapadatok!$T$4:$W$423,$AI$8+1,FALSE)) ->  | F126: =IF(D125*3>=Alapadatok!$B$21,"",E126+$F$11-$E$11) ->  | G126: =IF(OR($H$9<>"",D125*3>=Alapadatok!$B$21),"",VLOOKUP(D126,$O$11:$AA$430,12,FALSE)) ->  | H126: =IF(OR($H$9<>"",D125*3>=Alapadatok!$B$21),"",VLOOKUP(D126*3,$P$11:$AA$430,12,FALSE)) ->  | M126: =IF(D125*3>=Alapadatok!$B$21,"n",F126) -> n | N126: 10 | O126: 39 | P126: 116 | Y126: =IF(P126>Alapadatok!$B$21,0,X126*V126/1200) ->  | Z126: =IF(P126>Alapadatok!$B$21,0,IF(P126<=Alapadatok!$K$15,Y126,IF(O126=O125,Z125,PMT(W126/1200,Alapadatok!$B$21-O126*3+3,-X126)))) ->  | AC126: =IF(P126>Alapadatok!$B$21,0,Alapadatok!$B$35+AK126) -> 0 | AD126: =IF(P126>Alapadatok!$B$21,0,IF($AE$6=$AF$6,$AD$7*Alapadatok!$P$12,$AD$7*AE126))*(1+Alapadatok!$P$11) -> 44986.29779 | AE126: =Alapadatok!$P$12*(1+AI126) -> 281.4030018 | AF126: =SIN(360/Alapadatok!$J$28*P126*PI()/180) -> -0.7431448255 | AG126: =SIN(360/Alapadatok!$J$29*P126*PI()/180) -> -0.4338837391 | AH126: =Alapadatok!$K$30 -> 0.015 | AI126: =ABS(AF126*Alapadatok!$K$28)+(AG126*Alapadatok!$K$29)+AH126 -> 0.04223333996 | AJ126: 12 | AK126: =IF(AJ126>Alapadatok!$P$31,0,Alapadatok!$B$38+IF(Alapadatok!$D$38=Alapadatok!$O$32,Alapadatok!$B$36,0)) -> 0 | AM126: n
A127: =C127 -> 30 | B127: 2 | C127: =C123+1 -> 30 | D127: 117 | E127: =IF(D126*3>=Alapadatok!$B$21,"",VLOOKUP(D127*3-2,Alapadatok!$T$4:$W$423,$AI$8+1,FALSE)) ->  | F127: =IF(D126*3>=Alapadatok!$B$21,"",E127+$F$11-$E$11) ->  | G127: =IF(OR($H$9<>"",D126*3>=Alapadatok!$B$21),"",VLOOKUP(D127,$O$11:$AA$430,12,FALSE)) ->  | H127: =IF(OR($H$9<>"",D126*3>=Alapadatok!$B$21),"",VLOOKUP(D127*3,$P$11:$AA$430,12,FALSE)) ->  | M127: =IF(D126*3>=Alapadatok!$B$21,"n",F127) -> n | N127: 10 | O127: 39 | P127: 117 | Y127: =IF(P127>Alapadatok!$B$21,0,X127*V127/1200) ->  | Z127: =IF(P127>Alapadatok!$B$21,0,IF(P127<=Alapadatok!$K$15,Y127,IF(O127=O126,Z126,PMT(W127/1200,Alapadatok!$B$21-O127*3+3,-X127)))) ->  | AC127: =IF(P127>Alapadatok!$B$21,0,Alapadatok!$B$35+AK127) -> 0 | AD127: =IF(P127>Alapadatok!$B$21,0,IF($AE$6=$AF$6,$AD$7*Alapadatok!$P$12,$AD$7*AE127))*(1+Alapadatok!$P$11) -> 44986.29779 | AE127: =Alapadatok!$P$12*(1+AI127) -> 273.0428996 | AF127: =SIN(360/Alapadatok!$J$28*P127*PI()/180) -> -0.5877852523 | AG127: =SIN(360/Alapadatok!$J$29*P127*PI()/180) -> -0.9749279122 | AH127: =Alapadatok!$K$30 -> 0.015 | AI127: =ABS(AF127*Alapadatok!$K$28)+(AG127*Alapadatok!$K$29)+AH127 -> 0.01126999865 | AJ127: 12 | AK127: =IF(AJ127>Alapadatok!$P$31,0,Alapadatok!$B$38+IF(Alapadatok!$D$38=Alapadatok!$O$32,Alapadatok!$B$36,0)) -> 0 | AM127: n
B128: 2 | D128: 118 | E128: =IF(D127*3>=Alapadatok!$B$21,"",VLOOKUP(D128*3-2,Alapadatok!$T$4:$W$423,$AI$8+1,FALSE)) ->  | F128: =IF(D127*3>=Alapadatok!$B$21,"",E128+$F$11-$E$11) ->  | G128: =IF(OR($H$9<>"",D127*3>=Alapadatok!$B$21),"",VLOOKUP(D128,$O$11:$AA$430,12,FALSE)) ->  | H128: =IF(OR($H$9<>"",D127*3>=Alapadatok!$B$21),"",VLOOKUP(D128*3,$P$11:$AA$430,12,FALSE)) ->  | M128: =IF(D127*3>=Alapadatok!$B$21,"n",F128) -> n | N128: 10 | O128: 40 | P128: 118 | Y128: =IF(P128>Alapadatok!$B$21,0,X128*V128/1200) ->  | Z128: =IF(P128>Alapadatok!$B$21,0,IF(P128<=Alapadatok!$K$15,Y128,IF(O128=O127,Z127,PMT(W128/1200,Alapadatok!$B$21-O128*3+3,-X128)))) ->  | AC128: =IF(P128>Alapadatok!$B$21,0,Alapadatok!$B$35+AK128) -> 0 | AD128: =IF(P128>Alapadatok!$B$21,0,IF($AE$6=$AF$6,$AD$7*Alapadatok!$P$12,$AD$7*AE128))*(1+Alapadatok!$P$11) -> 44986.29779 | AE128: =Alapadatok!$P$12*(1+AI128) -> 272.1953536 | AF128: =SIN(360/Alapadatok!$J$28*P128*PI()/180) -> -0.4067366431 | AG128: =SIN(360/Alapadatok!$J$29*P128*PI()/180) -> -0.7818314825 | AH128: =Alapadatok!$K$30 -> 0.015 | AI128: =ABS(AF128*Alapadatok!$K$28)+(AG128*Alapadatok!$K$29)+AH128 -> 0.008130939286 | AJ128: 4 | AK128: =IF(AJ128>Alapadatok!$P$31,0,Alapadatok!$B$38+IF(Alapadatok!$D$38=Alapadatok!$O$32,Alapadatok!$B$36,0)) -> 0 | AM128: n
B129: 2 | D129: 119 | E129: =IF(D128*3>=Alapadatok!$B$21,"",VLOOKUP(D129*3-2,Alapadatok!$T$4:$W$423,$AI$8+1,FALSE)) ->  | F129: =IF(D128*3>=Alapadatok!$B$21,"",E129+$F$11-$E$11) ->  | G129: =IF(OR($H$9<>"",D128*3>=Alapadatok!$B$21),"",VLOOKUP(D129,$O$11:$AA$430,12,FALSE)) ->  | H129: =IF(OR($H$9<>"",D128*3>=Alapadatok!$B$21),"",VLOOKUP(D129*3,$P$11:$AA$430,12,FALSE)) ->  | M129: =IF(D128*3>=Alapadatok!$B$21,"n",F129) -> n | N129: 10 | O129: 40 | P129: 119 | Y129: =IF(P129>Alapadatok!$B$21,0,X129*V129/1200) ->  | Z129: =IF(P129>Alapadatok!$B$21,0,IF(P129<=Alapadatok!$K$15,Y129,IF(O129=O128,Z128,PMT(W129/1200,Alapadatok!$B$21-O129*3+3,-X129)))) ->  | AC129: =IF(P129>Alapadatok!$B$21,0,Alapadatok!$B$35+AK129) -> 0 | AD129: =IF(P129>Alapadatok!$B$21,0,IF($AE$6=$AF$6,$AD$7*Alapadatok!$P$12,$AD$7*AE129))*(1+Alapadatok!$P$11) -> 44986.29779 | AE129: =Alapadatok!$P$12*(1+AI129) -> 277.4181694 | AF129: =SIN(360/Alapadatok!$J$28*P129*PI()/180) -> -0.2079116908 | AG129: =SIN(360/Alapadatok!$J$29*P129*PI()/180) -> -1.12709321e-14 | AH129: =Alapadatok!$K$30 -> 0.015 | AI129: =ABS(AF129*Alapadatok!$K$28)+(AG129*Alapadatok!$K$29)+AH129 -> 0.02747470145 | AJ129: 12 | AK129: =IF(AJ129>Alapadatok!$P$31,0,Alapadatok!$B$38+IF(Alapadatok!$D$38=Alapadatok!$O$32,Alapadatok!$B$36,0)) -> 0 | AM129: n
B130: 2 | D130: 120 | E130: =IF(D129*3>=Alapadatok!$B$21,"",VLOOKUP(D130*3-2,Alapadatok!$T$4:$W$423,$AI$8+1,FALSE)) ->  | F130: =IF(D129*3>=Alapadatok!$B$21,"",E130+$F$11-$E$11) ->  | G130: =IF(OR($H$9<>"",D129*3>=Alapadatok!$B$21),"",VLOOKUP(D130,$O$11:$AA$430,12,FALSE)) ->  | H130: =IF(OR($H$9<>"",D129*3>=Alapadatok!$B$21),"",VLOOKUP(D130*3,$P$11:$AA$430,12,FALSE)) ->  | M130: =IF(D129*3>=Alapadatok!$B$21,"n",F130) -> n | N130: 10 | O130: 40 | P130: 120 | Y130: =IF(P130>Alapadatok!$B$21,0,X130*V130/1200) ->  | Z130: =IF(P130>Alapadatok!$B$21,0,IF(P130<=Alapadatok!$K$15,Y130,IF(O130=O129,Z129,PMT(W130/1200,Alapadatok!$B$21-O130*3+3,-X130)))) ->  | AC130: =IF(P130>Alapadatok!$B$21,0,Alapadatok!$B$35+AK130) -> 0 | AD130: =IF(P130>Alapadatok!$B$21,0,IF($AE$6=$AF$6,$AD$7*Alapadatok!$P$12,$AD$7*AE130))*(1+Alapadatok!$P$11) -> 44986.29779 | AE130: =Alapadatok!$P$12*(1+AI130) -> 282.49378 | AF130: =SIN(360/Alapadatok!$J$28*P130*PI()/180) -> -9.801187639e-16 | AG130: =SIN(360/Alapadatok!$J$29*P130*PI()/180) -> 0.7818314825 | AH130: =Alapadatok!$K$30 -> 0.015 | AI130: =ABS(AF130*Alapadatok!$K$28)+(AG130*Alapadatok!$K$29)+AH130 -> 0.0462732593 | AJ130: 12 | AK130: =IF(AJ130>Alapadatok!$P$31,0,Alapadatok!$B$38+IF(Alapadatok!$D$38=Alapadatok!$O$32,Alapadatok!$B$36,0)) -> 0 | AM130: n
A131: =C131 -> 31 | B131: 2 | C131: =C127+1 -> 31 | D131: 121 | E131: =IF(D130*3>=Alapadatok!$B$21,"",VLOOKUP(D131*3-2,Alapadatok!$T$4:$W$423,$AI$8+1,FALSE)) ->  | F131: =IF(D130*3>=Alapadatok!$B$21,"",E131+$F$11-$E$11) ->  | G131: =IF(OR($H$9<>"",D130*3>=Alapadatok!$B$21),"",VLOOKUP(D131,$O$11:$AA$430,12,FALSE)) ->  | H131: =IF(OR($H$9<>"",D130*3>=Alapadatok!$B$21),"",VLOOKUP(D131*3,$P$11:$AA$430,12,FALSE)) ->  | M131: =IF(D130*3>=Alapadatok!$B$21,"n",F131) -> n | N131: 11 | O131: 41 | P131: 121 | Y131: =IF(P131>Alapadatok!$B$21,0,X131*V131/1200) ->  | Z131: =IF(P131>Alapadatok!$B$21,0,IF(P131<=Alapadatok!$K$15,Y131,IF(O131=O130,Z130,PMT(W131/1200,Alapadatok!$B$21-O131*3+3,-X131)))) ->  | AC131: =IF(P131>Alapadatok!$B$21,0,Alapadatok!$B$35+AK131) -> 0 | AD131: =IF(P131>Alapadatok!$B$21,0,IF($AE$6=$AF$6,$AD$7*Alapadatok!$P$12,$AD$7*AE131))*(1+Alapadatok!$P$11) -> 44986.29779 | AE131: =Alapadatok!$P$12*(1+AI131) -> 287.9473908 | AF131: =SIN(360/Alapadatok!$J$28*P131*PI()/180) -> 0.2079116908 | AG131: =SIN(360/Alapadatok!$J$29*P131*PI()/180) -> 0.9749279122 | AH131: =Alapadatok!$K$30 -> 0.015 | AI131: =ABS(AF131*Alapadatok!$K$28)+(AG131*Alapadatok!$K$29)+AH131 -> 0.06647181794 | AJ131: 1 | AK131: =IF(AJ131>Alapadatok!$P$31,0,Alapadatok!$B$38+IF(Alapadatok!$D$38=Alapadatok!$O$32,Alapadatok!$B$36,0)) -> 0 | AM131: n
B132: 2 | D132: 122 | E132: =IF(D131*3>=Alapadatok!$B$21,"",VLOOKUP(D132*3-2,Alapadatok!$T$4:$W$423,$AI$8+1,FALSE)) ->  | F132: =IF(D131*3>=Alapadatok!$B$21,"",E132+$F$11-$E$11) ->  | G132: =IF(OR($H$9<>"",D131*3>=Alapadatok!$B$21),"",VLOOKUP(D132,$O$11:$AA$430,12,FALSE)) ->  | H132: =IF(OR($H$9<>"",D131*3>=Alapadatok!$B$21),"",VLOOKUP(D132*3,$P$11:$AA$430,12,FALSE)) ->  | M132: =IF(D131*3>=Alapadatok!$B$21,"n",F132) -> n | N132: 11 | O132: 41 | P132: 122 | Y132: =IF(P132>Alapadatok!$B$21,0,X132*V132/1200) ->  | Z132: =IF(P132>Alapadatok!$B$21,0,IF(P132<=Alapadatok!$K$15,Y132,IF(O132=O131,Z131,PMT(W132/1200,Alapadatok!$B$21-O132*3+3,-X132)))) ->  | AC132: =IF(P132>Alapadatok!$B$21,0,Alapadatok!$B$35+AK132) -> 0 | AD132: =IF(P132>Alapadatok!$B$21,0,IF($AE$6=$AF$6,$AD$7*Alapadatok!$P$12,$AD$7*AE132))*(1+Alapadatok!$P$11) -> 44986.29779 | AE132: =Alapadatok!$P$12*(1+AI132) -> 285.325078 | AF132: =SIN(360/Alapadatok!$J$28*P132*PI()/180) -> 0.4067366431 | AG132: =SIN(360/Alapadatok!$J$29*P132*PI()/180) -> 0.4338837391 | AH132: =Alapadatok!$K$30 -> 0.015 | AI132: =ABS(AF132*Alapadatok!$K$28)+(AG132*Alapadatok!$K$29)+AH132 -> 0.05675954815 | AJ132: 12 | AK132: =IF(AJ132>Alapadatok!$P$31,0,Alapadatok!$B$38+IF(Alapadatok!$D$38=Alapadatok!$O$32,Alapadatok!$B$36,0)) -> 0 | AM132: n
B133: 2 | D133: 123 | E133: =IF(D132*3>=Alapadatok!$B$21,"",VLOOKUP(D133*3-2,Alapadatok!$T$4:$W$423,$AI$8+1,FALSE)) ->  | F133: =IF(D132*3>=Alapadatok!$B$21,"",E133+$F$11-$E$11) ->  | G133: =IF(OR($H$9<>"",D132*3>=Alapadatok!$B$21),"",VLOOKUP(D133,$O$11:$AA$430,12,FALSE)) ->  | H133: =IF(OR($H$9<>"",D132*3>=Alapadatok!$B$21),"",VLOOKUP(D133*3,$P$11:$AA$430,12,FALSE)) ->  | M133: =IF(D132*3>=Alapadatok!$B$21,"n",F133) -> n | N133: 11 | O133: 41 | P133: 123 | Y133: =IF(P133>Alapadatok!$B$21,0,X133*V133/1200) ->  | Z133: =IF(P133>Alapadatok!$B$21,0,IF(P133<=Alapadatok!$K$15,Y133,IF(O133=O132,Z132,PMT(W133/1200,Alapadatok!$B$21-O133*3+3,-X133)))) ->  | AC133: =IF(P133>Alapadatok!$B$21,0,Alapadatok!$B$35+AK133) -> 0 | AD133: =IF(P133>Alapadatok!$B$21,0,IF($AE$6=$AF$6,$AD$7*Alapadatok!$P$12,$AD$7*AE133))*(1+Alapadatok!$P$11) -> 44986.29779 | AE133: =Alapadatok!$P$12*(1+AI133) -> 278.8861767 | AF133: =SIN(360/Alapadatok!$J$28*P133*PI()/180) -> 0.5877852523 | AG133: =SIN(360/Alapadatok!$J$29*P133*PI()/180) -> -0.4338837391 | AH133: =Alapadatok!$K$30 -> 0.015 | AI133: =ABS(AF133*Alapadatok!$K$28)+(AG133*Alapadatok!$K$29)+AH133 -> 0.03291176557 | AJ133: 12 | AK133: =IF(AJ133>Alapadatok!$P$31,0,Alapadatok!$B$38+IF(Alapadatok!$D$38=Alapadatok!$O$32,Alapadatok!$B$36,0)) -> 0 | AM133: n
B134: 2 | D134: 124 | E134: =IF(D133*3>=Alapadatok!$B$21,"",VLOOKUP(D134*3-2,Alapadatok!$T$4:$W$423,$AI$8+1,FALSE)) ->  | F134: =IF(D133*3>=Alapadatok!$B$21,"",E134+$F$11-$E$11) ->  | G134: =IF(OR($H$9<>"",D133*3>=Alapadatok!$B$21),"",VLOOKUP(D134,$O$11:$AA$430,12,FALSE)) ->  | H134: =IF(OR($H$9<>"",D133*3>=Alapadatok!$B$21),"",VLOOKUP(D134*3,$P$11:$AA$430,12,FALSE)) ->  | M134: =IF(D133*3>=Alapadatok!$B$21,"n",F134) -> n | N134: 11 | O134: 42 | P134: 124 | Y134: =IF(P134>Alapadatok!$B$21,0,X134*V134/1200) ->  | Z134: =IF(P134>Alapadatok!$B$21,0,IF(P134<=Alapadatok!$K$15,Y134,IF(O134=O133,Z133,PMT(W134/1200,Alapadatok!$B$21-O134*3+3,-X134)))) ->  | AC134: =IF(P134>Alapadatok!$B$21,0,Alapadatok!$B$35+AK134) -> 0 | AD134: =IF(P134>Alapadatok!$B$21,0,IF($AE$6=$AF$6,$AD$7*Alapadatok!$P$12,$AD$7*AE134))*(1+Alapadatok!$P$11) -> 44986.29779 | AE134: =Alapadatok!$P$12*(1+AI134) -> 275.5597247 | AF134: =SIN(360/Alapadatok!$J$28*P134*PI()/180) -> 0.7431448255 | AG134: =SIN(360/Alapadatok!$J$29*P134*PI()/180) -> -0.9749279122 | AH134: =Alapadatok!$K$30 -> 0.015 | AI134: =ABS(AF134*Alapadatok!$K$28)+(AG134*Alapadatok!$K$29)+AH134 -> 0.02059157304 | AJ134: 4 | AK134: =IF(AJ134>Alapadatok!$P$31,0,Alapadatok!$B$38+IF(Alapadatok!$D$38=Alapadatok!$O$32,Alapadatok!$B$36,0)) -> 0 | AM134: n
A135: =C135 -> 32 | B135: 2 | C135: =C131+1 -> 32 | D135: 125 | E135: =IF(D134*3>=Alapadatok!$B$21,"",VLOOKUP(D135*3-2,Alapadatok!$T$4:$W$423,$AI$8+1,FALSE)) ->  | F135: =IF(D134*3>=Alapadatok!$B$21,"",E135+$F$11-$E$11) ->  | G135: =IF(OR($H$9<>"",D134*3>=Alapadatok!$B$21),"",VLOOKUP(D135,$O$11:$AA$430,12,FALSE)) ->  | H135: =IF(OR($H$9<>"",D134*3>=Alapadatok!$B$21),"",VLOOKUP(D135*3,$P$11:$AA$430,12,FALSE)) ->  | M135: =IF(D134*3>=Alapadatok!$B$21,"n",F135) -> n | N135: 11 | O135: 42 | P135: 125 | Y135: =IF(P135>Alapadatok!$B$21,0,X135*V135/1200) ->  | Z135: =IF(P135>Alapadatok!$B$21,0,IF(P135<=Alapadatok!$K$15,Y135,IF(O135=O134,Z134,PMT(W135/1200,Alapadatok!$B$21-O135*3+3,-X135)))) ->  | AC135: =IF(P135>Alapadatok!$B$21,0,Alapadatok!$B$35+AK135) -> 0 | AD135: =IF(P135>Alapadatok!$B$21,0,IF($AE$6=$AF$6,$AD$7*Alapadatok!$P$12,$AD$7*AE135))*(1+Alapadatok!$P$11) -> 44986.29779 | AE135: =Alapadatok!$P$12*(1+AI135) -> 279.6358315 | AF135: =SIN(360/Alapadatok!$J$28*P135*PI()/180) -> 0.8660254038 | AG135: =SIN(360/Alapadatok!$J$29*P135*PI()/180) -> -0.7818314825 | AH135: =Alapadatok!$K$30 -> 0.015 | AI135: =ABS(AF135*Alapadatok!$K$28)+(AG135*Alapadatok!$K$29)+AH135 -> 0.03568826493 | AJ135: 12 | AK135: =IF(AJ135>Alapadatok!$P$31,0,Alapadatok!$B$38+IF(Alapadatok!$D$38=Alapadatok!$O$32,Alapadatok!$B$36,0)) -> 0 | AM135: n
B136: 2 | D136: 126 | E136: =IF(D135*3>=Alapadatok!$B$21,"",VLOOKUP(D136*3-2,Alapadatok!$T$4:$W$423,$AI$8+1,FALSE)) ->  | F136: =IF(D135*3>=Alapadatok!$B$21,"",E136+$F$11-$E$11) ->  | G136: =IF(OR($H$9<>"",D135*3>=Alapadatok!$B$21),"",VLOOKUP(D136,$O$11:$AA$430,12,FALSE)) ->  | H136: =IF(OR($H$9<>"",D135*3>=Alapadatok!$B$21),"",VLOOKUP(D136*3,$P$11:$AA$430,12,FALSE)) ->  | M136: =IF(D135*3>=Alapadatok!$B$21,"n",F136) -> n | N136: 11 | O136: 42 | P136: 126 | Y136: =IF(P136>Alapadatok!$B$21,0,X136*V136/1200) ->  | Z136: =IF(P136>Alapadatok!$B$21,0,IF(P136<=Alapadatok!$K$15,Y136,IF(O136=O135,Z135,PMT(W136/1200,Alapadatok!$B$21-O136*3+3,-X136)))) ->  | AC136: =IF(P136>Alapadatok!$B$21,0,Alapadatok!$B$35+AK136) -> 0 | AD136: =IF(P136>Alapadatok!$B$21,0,IF($AE$6=$AF$6,$AD$7*Alapadatok!$P$12,$AD$7*AE136))*(1+Alapadatok!$P$11) -> 44986.29779 | AE136: =Alapadatok!$P$12*(1+AI136) -> 289.4571156 | AF136: =SIN(360/Alapadatok!$J$28*P136*PI()/180) -> 0.9510565163 | AG136: =SIN(360/Alapadatok!$J$29*P136*PI()/180) -> -1.862138915e-14 | AH136: =Alapadatok!$K$30 -> 0.015 | AI136: =ABS(AF136*Alapadatok!$K$28)+(AG136*Alapadatok!$K$29)+AH136 -> 0.07206339098 | AJ136: 12 | AK136: =IF(AJ136>Alapadatok!$P$31,0,Alapadatok!$B$38+IF(Alapadatok!$D$38=Alapadatok!$O$32,Alapadatok!$B$36,0)) -> 0 | AM136: n
B137: 2 | D137: 127 | E137: =IF(D136*3>=Alapadatok!$B$21,"",VLOOKUP(D137*3-2,Alapadatok!$T$4:$W$423,$AI$8+1,FALSE)) ->  | F137: =IF(D136*3>=Alapadatok!$B$21,"",E137+$F$11-$E$11) ->  | G137: =IF(OR($H$9<>"",D136*3>=Alapadatok!$B$21),"",VLOOKUP(D137,$O$11:$AA$430,12,FALSE)) ->  | H137: =IF(OR($H$9<>"",D136*3>=Alapadatok!$B$21),"",VLOOKUP(D137*3,$P$11:$AA$430,12,FALSE)) ->  | M137: =IF(D136*3>=Alapadatok!$B$21,"n",F137) -> n | N137: 11 | O137: 43 | P137: 127 | Y137: =IF(P137>Alapadatok!$B$21,0,X137*V137/1200) ->  | Z137: =IF(P137>Alapadatok!$B$21,0,IF(P137<=Alapadatok!$K$15,Y137,IF(O137=O136,Z136,PMT(W137/1200,Alapadatok!$B$21-O137*3+3,-X137)))) ->  | AC137: =IF(P137>Alapadatok!$B$21,0,Alapadatok!$B$35+AK137) -> 0 | AD137: =IF(P137>Alapadatok!$B$21,0,IF($AE$6=$AF$6,$AD$7*Alapadatok!$P$12,$AD$7*AE137))*(1+Alapadatok!$P$11) -> 44986.29779 | AE137: =Alapadatok!$P$12*(1+AI137) -> 298.6050347 | AF137: =SIN(360/Alapadatok!$J$28*P137*PI()/180) -> 0.9945218954 | AG137: =SIN(360/Alapadatok!$J$29*P137*PI()/180) -> 0.7818314825 | AH137: =Alapadatok!$K$30 -> 0.015 | AI137: =ABS(AF137*Alapadatok!$K$28)+(AG137*Alapadatok!$K$29)+AH137 -> 0.105944573 | AJ137: 2 | AK137: =IF(AJ137>Alapadatok!$P$31,0,Alapadatok!$B$38+IF(Alapadatok!$D$38=Alapadatok!$O$32,Alapadatok!$B$36,0)) -> 0 | AM137: n
B138: 2 | D138: 128 | E138: =IF(D137*3>=Alapadatok!$B$21,"",VLOOKUP(D138*3-2,Alapadatok!$T$4:$W$423,$AI$8+1,FALSE)) ->  | F138: =IF(D137*3>=Alapadatok!$B$21,"",E138+$F$11-$E$11) ->  | G138: =IF(OR($H$9<>"",D137*3>=Alapadatok!$B$21),"",VLOOKUP(D138,$O$11:$AA$430,12,FALSE)) ->  | H138: =IF(OR($H$9<>"",D137*3>=Alapadatok!$B$21),"",VLOOKUP(D138*3,$P$11:$AA$430,12,FALSE)) ->  | M138: =IF(D137*3>=Alapadatok!$B$21,"n",F138) -> n | N138: 11 | O138: 43 | P138: 128 | Y138: =IF(P138>Alapadatok!$B$21,0,X138*V138/1200) ->  | Z138: =IF(P138>Alapadatok!$B$21,0,IF(P138<=Alapadatok!$K$15,Y138,IF(O138=O137,Z137,PMT(W138/1200,Alapadatok!$B$21-O138*3+3,-X138)))) ->  | AC138: =IF(P138>Alapadatok!$B$21,0,Alapadatok!$B$35+AK138) -> 0 | AD138: =IF(P138>Alapadatok!$B$21,0,IF($AE$6=$AF$6,$AD$7*Alapadatok!$P$12,$AD$7*AE138))*(1+Alapadatok!$P$11) -> 44986.29779 | AE138: =Alapadatok!$P$12*(1+AI138) -> 300.6904762 | AF138: =SIN(360/Alapadatok!$J$28*P138*PI()/180) -> 0.9945218954 | AG138: =SIN(360/Alapadatok!$J$29*P138*PI()/180) -> 0.9749279122 | AH138: =Alapadatok!$K$30 -> 0.015 | AI138: =ABS(AF138*Alapadatok!$K$28)+(AG138*Alapadatok!$K$29)+AH138 -> 0.1136684302 | AJ138: 12 | AK138: =IF(AJ138>Alapadatok!$P$31,0,Alapadatok!$B$38+IF(Alapadatok!$D$38=Alapadatok!$O$32,Alapadatok!$B$36,0)) -> 0 | AM138: n
A139: =C139 -> 33 | B139: 2 | C139: =C135+1 -> 33 | D139: 129 | E139: =IF(D138*3>=Alapadatok!$B$21,"",VLOOKUP(D139*3-2,Alapadatok!$T$4:$W$423,$AI$8+1,FALSE)) ->  | F139: =IF(D138*3>=Alapadatok!$B$21,"",E139+$F$11-$E$11) ->  | G139: =IF(OR($H$9<>"",D138*3>=Alapadatok!$B$21),"",VLOOKUP(D139,$O$11:$AA$430,12,FALSE)) ->  | H139: =IF(OR($H$9<>"",D138*3>=Alapadatok!$B$21),"",VLOOKUP(D139*3,$P$11:$AA$430,12,FALSE)) ->  | M139: =IF(D138*3>=Alapadatok!$B$21,"n",F139) -> n | N139: 11 | O139: 43 | P139: 129 | U139: =+Q139-$I$6 ->  | Y139: =IF(P139>Alapadatok!$B$21,0,X139*V139/1200) ->  | Z139: =IF(P139>Alapadatok!$B$21,0,IF(P139<=Alapadatok!$K$15,Y139,IF(O139=O138,Z138,PMT(W139/1200,Alapadatok!$B$21-O139*3+3,-X139)))) ->  | AA139: =X139+Y139-Z139 ->  | AC139: =IF(P139>Alapadatok!$B$21,0,Alapadatok!$B$35+AK139) -> 0 | AD139: =IF(P139>Alapadatok!$B$21,0,IF($AE$6=$AF$6,$AD$7*Alapadatok!$P$12,$AD$7*AE139))*(1+Alapadatok!$P$11) -> 44986.29779 | AE139: =Alapadatok!$P$12*(1+AI139) -> 294.1430599 | AF139: =SIN(360/Alapadatok!$J$28*P139*PI()/180) -> 0.9510565163 | AG139: =SIN(360/Alapadatok!$J$29*P139*PI()/180) -> 0.4338837391 | AH139: =Alapadatok!$K$30 -> 0.015 | AI139: =ABS(AF139*Alapadatok!$K$28)+(AG139*Alapadatok!$K$29)+AH139 -> 0.08941874054 | AJ139: 12 | AK139: =IF(AJ139>Alapadatok!$P$31,0,Alapadatok!$B$38+IF(Alapadatok!$D$38=Alapadatok!$O$32,Alapadatok!$B$36,0)) -> 0 | AM139: n
B140: 2 | D140: 130 | E140: =IF(D139*3>=Alapadatok!$B$21,"",VLOOKUP(D140*3-2,Alapadatok!$T$4:$W$423,$AI$8+1,FALSE)) ->  | F140: =IF(D139*3>=Alapadatok!$B$21,"",E140+$F$11-$E$11) ->  | G140: =IF(OR($H$9<>"",D139*3>=Alapadatok!$B$21),"",VLOOKUP(D140,$O$11:$AA$430,12,FALSE)) ->  | H140: =IF(OR($H$9<>"",D139*3>=Alapadatok!$B$21),"",VLOOKUP(D140*3,$P$11:$AA$430,12,FALSE)) ->  | M140: =IF(D139*3>=Alapadatok!$B$21,"n",F140) -> n | N140: 11 | O140: 44 | P140: =P139+1 -> 130 | Q140: =DATE(R140,S140,T140) ->  | R140: =IF(S140=1,R139+1,R139) ->  | S140: =IF(S139=12,1,S139+1) ->  | T140: =IF($T$11<29,$T$11,IF(S140=2,28,IF(AND(T139=31,OR(S140=4,S140=6,S140=9,S140=11)),30,$T$11))) ->  | V140: =VLOOKUP(O140,$D$11:$M$150,3,FALSE) ->  | W140: =VLOOKUP(O140,$D$11:$M$150,10,FALSE) ->  | X140: =+AA139 ->  | Y140: =IF(P140>Alapadatok!$B$21,0,X140*V140/1200) ->  | Z140: =IF(P140>Alapadatok!$B$21,0,IF(P140<=Alapadatok!$K$15,Y140,IF(O140=O139,Z139,PMT(W140/1200,Alapadatok!$B$21-O140*3+3,-X140)))) ->  | AC140: =IF(P140>Alapadatok!$B$21,0,Alapadatok!$B$35+AK140) -> 0 | AD140: =IF(P140>Alapadatok!$B$21,0,IF($AE$6=$AF$6,$AD$7*Alapadatok!$P$12,$AD$7*AE140))*(1+Alapadatok!$P$11) -> 44986.29779 | AE140: =Alapadatok!$P$12*(1+AI140) -> 283.3936672 | AF140: =SIN(360/Alapadatok!$J$28*P140*PI()/180) -> 0.8660254038 | AG140: =SIN(360/Alapadatok!$J$29*P140*PI()/180) -> -0.4338837391 | AH140: =Alapadatok!$K$30 -> 0.015 | AI140: =ABS(AF140*Alapadatok!$K$28)+(AG140*Alapadatok!$K$29)+AH140 -> 0.04960617466 | AJ140: 4 | AK140: =IF(AJ140>Alapadatok!$P$31,0,Alapadatok!$B$38+IF(Alapadatok!$D$38=Alapadatok!$O$32,Alapadatok!$B$36,0)) -> 0 | AM140: n
B141: 2 | D141: =+D140+1 -> 131 | E141: =IF(D140*3>=Alapadatok!$B$21,"",VLOOKUP(D141*3-2,Alapadatok!$T$4:$W$423,$AI$8+1,FALSE)) ->  | F141: =IF(D140*3>=Alapadatok!$B$21,"",E141+$F$11-$E$11) ->  | G141: =IF(OR($H$9<>"",D140*3>=Alapadatok!$B$21),"",VLOOKUP(D141,$O$11:$AA$430,12,FALSE)) ->  | H141: =IF(OR($H$9<>"",D140*3>=Alapadatok!$B$21),"",VLOOKUP(D141*3,$P$11:$AA$430,12,FALSE)) ->  | M141: =IF(D140*3>=Alapadatok!$B$21,"n",F141) -> n | N141: 11 | O141: 44 | P141: 131 | Y141: =IF(P141>Alapadatok!$B$21,0,X141*V141/1200) ->  | Z141: =IF(P141>Alapadatok!$B$21,0,IF(P141<=Alapadatok!$K$15,Y141,IF(O141=O140,Z140,PMT(W141/1200,Alapadatok!$B$21-O141*3+3,-X141)))) ->  | AB141: =AB140+(Z141+AC141)/(1+$AB$9)^(U141/365) ->  | AC141: =IF(P141>Alapadatok!$B$21,0,Alapadatok!$B$35+AK141) -> 0 | AD141: =IF(P141>Alapadatok!$B$21,0,IF($AE$6=$AF$6,$AD$7*Alapadatok!$P$12,$AD$7*AE141))*(1+Alapadatok!$P$11) -> 44986.29779 | AE141: =Alapadatok!$P$12*(1+AI141) -> 275.5597247 | AF141: =SIN(360/Alapadatok!$J$28*P141*PI()/180) -> 0.7431448255 | AG141: =SIN(360/Alapadatok!$J$29*P141*PI()/180) -> -0.9749279122 | AH141: =Alapadatok!$K$30 -> 0.015 | AI141: =ABS(AF141*Alapadatok!$K$28)+(AG141*Alapadatok!$K$29)+AH141 -> 0.02059157304 | AJ141: 12 | AK141: =IF(AJ141>Alapadatok!$P$31,0,Alapadatok!$B$38+IF(Alapadatok!$D$38=Alapadatok!$O$32,Alapadatok!$B$36,0)) -> 0 | AM141: n
B142: 2 | D142: 132 | E142: =IF(D141*3>=Alapadatok!$B$21,"",VLOOKUP(D142*3-2,Alapadatok!$T$4:$W$423,$AI$8+1,FALSE)) ->  | F142: =IF(D141*3>=Alapadatok!$B$21,"",E142+$F$11-$E$11) ->  | G142: =IF(OR($H$9<>"",D141*3>=Alapadatok!$B$21),"",VLOOKUP(D142,$O$11:$AA$430,12,FALSE)) ->  | H142: =IF(OR($H$9<>"",D141*3>=Alapadatok!$B$21),"",VLOOKUP(D142*3,$P$11:$AA$430,12,FALSE)) ->  | M142: =IF(D141*3>=Alapadatok!$B$21,"n",F142) -> n | N142: 11 | O142: 44 | P142: 132 | Y142: =IF(P142>Alapadatok!$B$21,0,X142*V142/1200) ->  | Z142: =IF(P142>Alapadatok!$B$21,0,IF(P142<=Alapadatok!$K$15,Y142,IF(O142=O141,Z141,PMT(W142/1200,Alapadatok!$B$21-O142*3+3,-X142)))) ->  | AC142: =IF(P142>Alapadatok!$B$21,0,Alapadatok!$B$35+AK142) -> 0 | AD142: =IF(P142>Alapadatok!$B$21,0,IF($AE$6=$AF$6,$AD$7*Alapadatok!$P$12,$AD$7*AE142))*(1+Alapadatok!$P$11) -> 44986.29779 | AE142: =Alapadatok!$P$12*(1+AI142) -> 275.1283411 | AF142: =SIN(360/Alapadatok!$J$28*P142*PI()/180) -> 0.5877852523 | AG142: =SIN(360/Alapadatok!$J$29*P142*PI()/180) -> -0.7818314825 | AH142: =Alapadatok!$K$30 -> 0.015 | AI142: =ABS(AF142*Alapadatok!$K$28)+(AG142*Alapadatok!$K$29)+AH142 -> 0.01899385584 | AJ142: 12 | AK142: =IF(AJ142>Alapadatok!$P$31,0,Alapadatok!$B$38+IF(Alapadatok!$D$38=Alapadatok!$O$32,Alapadatok!$B$36,0)) -> 0 | AM142: n
A143: =C143 -> 34 | B143: 2 | C143: =C139+1 -> 34 | D143: 133 | E143: =IF(D142*3>=Alapadatok!$B$21,"",VLOOKUP(D143*3-2,Alapadatok!$T$4:$W$423,$AI$8+1,FALSE)) ->  | F143: =IF(D142*3>=Alapadatok!$B$21,"",E143+$F$11-$E$11) ->  | G143: =IF(OR($H$9<>"",D142*3>=Alapadatok!$B$21),"",VLOOKUP(D143,$O$11:$AA$430,12,FALSE)) ->  | H143: =IF(OR($H$9<>"",D142*3>=Alapadatok!$B$21),"",VLOOKUP(D143*3,$P$11:$AA$430,12,FALSE)) ->  | M143: =IF(D142*3>=Alapadatok!$B$21,"n",F143) -> n | N143: 12 | O143: =O140+1 -> 45 | P143: 133 | Y143: =IF(P143>Alapadatok!$B$21,0,X143*V143/1200) ->  | Z143: =IF(P143>Alapadatok!$B$21,0,IF(P143<=Alapadatok!$K$15,Y143,IF(O143=O142,Z142,PMT(W143/1200,Alapadatok!$B$21-O143*3+3,-X143)))) ->  | AC143: =IF(P143>Alapadatok!$B$21,0,Alapadatok!$B$35+AK143) -> 0 | AD143: =IF(P143>Alapadatok!$B$21,0,IF($AE$6=$AF$6,$AD$7*Alapadatok!$P$12,$AD$7*AE143))*(1+Alapadatok!$P$11) -> 44986.29779 | AE143: =Alapadatok!$P$12*(1+AI143) -> 280.6391336 | AF143: =SIN(360/Alapadatok!$J$28*P143*PI()/180) -> 0.4067366431 | AG143: =SIN(360/Alapadatok!$J$29*P143*PI()/180) -> 2.449863229e-15 | AH143: =Alapadatok!$K$30 -> 0.015 | AI143: =ABS(AF143*Alapadatok!$K$28)+(AG143*Alapadatok!$K$29)+AH143 -> 0.03940419858 | AJ143: 1 | AK143: =IF(AJ143>Alapadatok!$P$31,0,Alapadatok!$B$38+IF(Alapadatok!$D$38=Alapadatok!$O$32,Alapadatok!$B$36,0)) -> 0 | AM143: n
B144: 2 | D144: 134 | E144: =IF(D143*3>=Alapadatok!$B$21,"",VLOOKUP(D144*3-2,Alapadatok!$T$4:$W$423,$AI$8+1,FALSE)) ->  | F144: =IF(D143*3>=Alapadatok!$B$21,"",E144+$F$11-$E$11) ->  | G144: =IF(OR($H$9<>"",D143*3>=Alapadatok!$B$21),"",VLOOKUP(D144,$O$11:$AA$430,12,FALSE)) ->  | H144: =IF(OR($H$9<>"",D143*3>=Alapadatok!$B$21),"",VLOOKUP(D144*3,$P$11:$AA$430,12,FALSE)) ->  | M144: =IF(D143*3>=Alapadatok!$B$21,"n",F144) -> n | N144: 12 | O144: 45 | P144: 134 | Y144: =IF(P144>Alapadatok!$B$21,0,X144*V144/1200) ->  | Z144: =IF(P144>Alapadatok!$B$21,0,IF(P144<=Alapadatok!$K$15,Y144,IF(O144=O143,Z143,PMT(W144/1200,Alapadatok!$B$21-O144*3+3,-X144)))) ->  | AC144: =IF(P144>Alapadatok!$B$21,0,Alapadatok!$B$35+AK144) -> 0 | AD144: =IF(P144>Alapadatok!$B$21,0,IF($AE$6=$AF$6,$AD$7*Alapadatok!$P$12,$AD$7*AE144))*(1+Alapadatok!$P$11) -> 44986.29779 | AE144: =Alapadatok!$P$12*(1+AI144) -> 285.8619494 | AF144: =SIN(360/Alapadatok!$J$28*P144*PI()/180) -> 0.2079116908 | AG144: =SIN(360/Alapadatok!$J$29*P144*PI()/180) -> 0.7818314825 | AH144: =Alapadatok!$K$30 -> 0.015 | AI144: =ABS(AF144*Alapadatok!$K$28)+(AG144*Alapadatok!$K$29)+AH144 -> 0.05874796075 | AJ144: 12 | AK144: =IF(AJ144>Alapadatok!$P$31,0,Alapadatok!$B$38+IF(Alapadatok!$D$38=Alapadatok!$O$32,Alapadatok!$B$36,0)) -> 0 | AM144: n
B145: 2 | D145: 135 | E145: =IF(D144*3>=Alapadatok!$B$21,"",VLOOKUP(D145*3-2,Alapadatok!$T$4:$W$423,$AI$8+1,FALSE)) ->  | F145: =IF(D144*3>=Alapadatok!$B$21,"",E145+$F$11-$E$11) ->  | G145: =IF(OR($H$9<>"",D144*3>=Alapadatok!$B$21),"",VLOOKUP(D145,$O$11:$AA$430,12,FALSE)) ->  | H145: =IF(OR($H$9<>"",D144*3>=Alapadatok!$B$21),"",VLOOKUP(D145*3,$P$11:$AA$430,12,FALSE)) ->  | I145: =IF($H$9<>"","",(G145/G141)-1) ->  | M145: =IF(D144*3>=Alapadatok!$B$21,"n",F145) -> n | N145: 12 | O145: 45 | P145: 135 | Y145: =IF(P145>Alapadatok!$B$21,0,X145*V145/1200) ->  | Z145: =IF(P145>Alapadatok!$B$21,0,IF(P145<=Alapadatok!$K$15,Y145,IF(O145=O144,Z144,PMT(W145/1200,Alapadatok!$B$21-O145*3+3,-X145)))) ->  | AC145: =IF(P145>Alapadatok!$B$21,0,Alapadatok!$B$35+AK145) -> 0 | AD145: =IF(P145>Alapadatok!$B$21,0,IF($AE$6=$AF$6,$AD$7*Alapadatok!$P$12,$AD$7*AE145))*(1+Alapadatok!$P$11) -> 44986.29779 | AE145: =Alapadatok!$P$12*(1+AI145) -> 284.5792215 | AF145: =SIN(360/Alapadatok!$J$28*P145*PI()/180) -> 4.655347288e-15 | AG145: =SIN(360/Alapadatok!$J$29*P145*PI()/180) -> 0.9749279122 | AH145: =Alapadatok!$K$30 -> 0.015 | AI145: =ABS(AF145*Alapadatok!$K$28)+(AG145*Alapadatok!$K$29)+AH145 -> 0.05399711649 | AJ145: 12 | AK145: =IF(AJ145>Alapadatok!$P$31,0,Alapadatok!$B$38+IF(Alapadatok!$D$38=Alapadatok!$O$32,Alapadatok!$B$36,0)) -> 0 | AM145: n
B146: 2 | D146: 136 | E146: =IF(D145*3>=Alapadatok!$B$21,"",VLOOKUP(D146*3-2,Alapadatok!$T$4:$W$423,$AI$8+1,FALSE)) ->  | F146: =IF(D145*3>=Alapadatok!$B$21,"",E146+$F$11-$E$11) ->  | G146: =IF(OR($H$9<>"",D145*3>=Alapadatok!$B$21),"",VLOOKUP(D146,$O$11:$AA$430,12,FALSE)) ->  | H146: =IF(OR($H$9<>"",D145*3>=Alapadatok!$B$21),"",VLOOKUP(D146*3,$P$11:$AA$430,12,FALSE)) ->  | M146: =IF(D145*3>=Alapadatok!$B$21,"n",F146) -> n | N146: 12 | O146: 46 | P146: 136 | Y146: =IF(P146>Alapadatok!$B$21,0,X146*V146/1200) ->  | Z146: =IF(P146>Alapadatok!$B$21,0,IF(P146<=Alapadatok!$K$15,Y146,IF(O146=O145,Z145,PMT(W146/1200,Alapadatok!$B$21-O146*3+3,-X146)))) ->  | AC146: =IF(P146>Alapadatok!$B$21,0,Alapadatok!$B$35+AK146) -> 0 | AD146: =IF(P146>Alapadatok!$B$21,0,IF($AE$6=$AF$6,$AD$7*Alapadatok!$P$12,$AD$7*AE146))*(1+Alapadatok!$P$11) -> 44986.29779 | AE146: =Alapadatok!$P$12*(1+AI146) -> 282.1041138 | AF146: =SIN(360/Alapadatok!$J$28*P146*PI()/180) -> -0.2079116908 | AG146: =SIN(360/Alapadatok!$J$29*P146*PI()/180) -> 0.4338837391 | AH146: =Alapadatok!$K$30 -> 0.015 | AI146: =ABS(AF146*Alapadatok!$K$28)+(AG146*Alapadatok!$K$29)+AH146 -> 0.04483005101 | AJ146: 4 | AK146: =IF(AJ146>Alapadatok!$P$31,0,Alapadatok!$B$38+IF(Alapadatok!$D$38=Alapadatok!$O$32,Alapadatok!$B$36,0)) -> 0 | AM146: n
A147: =C147 -> 35 | B147: 2 | C147: =C143+1 -> 35 | D147: 137 | E147: =IF(D146*3>=Alapadatok!$B$21,"",VLOOKUP(D147*3-2,Alapadatok!$T$4:$W$423,$AI$8+1,FALSE)) ->  | F147: =IF(D146*3>=Alapadatok!$B$21,"",E147+$F$11-$E$11) ->  | G147: =IF(OR($H$9<>"",D146*3>=Alapadatok!$B$21),"",VLOOKUP(D147,$O$11:$AA$430,12,FALSE)) ->  | H147: =IF(OR($H$9<>"",D146*3>=Alapadatok!$B$21),"",VLOOKUP(D147*3,$P$11:$AA$430,12,FALSE)) ->  | M147: =IF(D146*3>=Alapadatok!$B$21,"n",F147) -> n | N147: 12 | O147: 46 | P147: 137 | Y147: =IF(P147>Alapadatok!$B$21,0,X147*V147/1200) ->  | Z147: =IF(P147>Alapadatok!$B$21,0,IF(P147<=Alapadatok!$K$15,Y147,IF(O147=O146,Z146,PMT(W147/1200,Alapadatok!$B$21-O147*3+3,-X147)))) ->  | AC147: =IF(P147>Alapadatok!$B$21,0,Alapadatok!$B$35+AK147) -> 0 | AD147: =IF(P147>Alapadatok!$B$21,0,IF($AE$6=$AF$6,$AD$7*Alapadatok!$P$12,$AD$7*AE147))*(1+Alapadatok!$P$11) -> 44986.29779 | AE147: =Alapadatok!$P$12*(1+AI147) -> 275.9531892 | AF147: =SIN(360/Alapadatok!$J$28*P147*PI()/180) -> -0.4067366431 | AG147: =SIN(360/Alapadatok!$J$29*P147*PI()/180) -> -0.4338837391 | AH147: =Alapadatok!$K$30 -> 0.015 | AI147: =ABS(AF147*Alapadatok!$K$28)+(AG147*Alapadatok!$K$29)+AH147 -> 0.02204884902 | AJ147: 12 | AK147: =IF(AJ147>Alapadatok!$P$31,0,Alapadatok!$B$38+IF(Alapadatok!$D$38=Alapadatok!$O$32,Alapadatok!$B$36,0)) -> 0 | AM147: n
B148: 2 | D148: 138 | E148: =IF(D147*3>=Alapadatok!$B$21,"",VLOOKUP(D148*3-2,Alapadatok!$T$4:$W$423,$AI$8+1,FALSE)) ->  | F148: =IF(D147*3>=Alapadatok!$B$21,"",E148+$F$11-$E$11) ->  | G148: =IF(OR($H$9<>"",D147*3>=Alapadatok!$B$21),"",VLOOKUP(D148,$O$11:$AA$430,12,FALSE)) ->  | H148: =IF(OR($H$9<>"",D147*3>=Alapadatok!$B$21),"",VLOOKUP(D148*3,$P$11:$AA$430,12,FALSE)) ->  | M148: =IF(D147*3>=Alapadatok!$B$21,"n",F148) -> n | N148: 12 | O148: 46 | P148: 138 | Y148: =IF(P148>Alapadatok!$B$21,0,X148*V148/1200) ->  | Z148: =IF(P148>Alapadatok!$B$21,0,IF(P148<=Alapadatok!$K$15,Y148,IF(O148=O147,Z147,PMT(W148/1200,Alapadatok!$B$21-O148*3+3,-X148)))) ->  | AC148: =IF(P148>Alapadatok!$B$21,0,Alapadatok!$B$35+AK148) -> 0 | AD148: =IF(P148>Alapadatok!$B$21,0,IF($AE$6=$AF$6,$AD$7*Alapadatok!$P$12,$AD$7*AE148))*(1+Alapadatok!$P$11) -> 44986.29779 | AE148: =Alapadatok!$P$12*(1+AI148) -> 273.0428996 | AF148: =SIN(360/Alapadatok!$J$28*P148*PI()/180) -> -0.5877852523 | AG148: =SIN(360/Alapadatok!$J$29*P148*PI()/180) -> -0.9749279122 | AH148: =Alapadatok!$K$30 -> 0.015 | AI148: =ABS(AF148*Alapadatok!$K$28)+(AG148*Alapadatok!$K$29)+AH148 -> 0.01126999865 | AJ148: 12 | AK148: =IF(AJ148>Alapadatok!$P$31,0,Alapadatok!$B$38+IF(Alapadatok!$D$38=Alapadatok!$O$32,Alapadatok!$B$36,0)) -> 0 | AM148: n
B149: 2 | D149: 139 | E149: =IF(D148*3>=Alapadatok!$B$21,"",VLOOKUP(D149*3-2,Alapadatok!$T$4:$W$423,$AI$8+1,FALSE)) ->  | F149: =IF(D148*3>=Alapadatok!$B$21,"",E149+$F$11-$E$11) ->  | G149: =IF(OR($H$9<>"",D148*3>=Alapadatok!$B$21),"",VLOOKUP(D149,$O$11:$AA$430,12,FALSE)) ->  | H149: =IF(OR($H$9<>"",D148*3>=Alapadatok!$B$21),"",VLOOKUP(D149*3,$P$11:$AA$430,12,FALSE)) ->  | M149: =IF(D148*3>=Alapadatok!$B$21,"n",F149) -> n | N149: 12 | O149: 47 | P149: 139 | Y149: =IF(P149>Alapadatok!$B$21,0,X149*V149/1200) ->  | Z149: =IF(P149>Alapadatok!$B$21,0,IF(P149<=Alapadatok!$K$15,Y149,IF(O149=O148,Z148,PMT(W149/1200,Alapadatok!$B$21-O149*3+3,-X149)))) ->  | AC149: =IF(P149>Alapadatok!$B$21,0,Alapadatok!$B$35+AK149) -> 0 | AD149: =IF(P149>Alapadatok!$B$21,0,IF($AE$6=$AF$6,$AD$7*Alapadatok!$P$12,$AD$7*AE149))*(1+Alapadatok!$P$11) -> 44986.29779 | AE149: =Alapadatok!$P$12*(1+AI149) -> 277.6451662 | AF149: =SIN(360/Alapadatok!$J$28*P149*PI()/180) -> -0.7431448255 | AG149: =SIN(360/Alapadatok!$J$29*P149*PI()/180) -> -0.7818314825 | AH149: =Alapadatok!$K$30 -> 0.015 | AI149: =ABS(AF149*Alapadatok!$K$28)+(AG149*Alapadatok!$K$29)+AH149 -> 0.02831543023 | AJ149: 2 | AK149: =IF(AJ149>Alapadatok!$P$31,0,Alapadatok!$B$38+IF(Alapadatok!$D$38=Alapadatok!$O$32,Alapadatok!$B$36,0)) -> 0 | AM149: n
B150: 2 | D150: 140 | E150: =IF(D149*3>=Alapadatok!$B$21,"",VLOOKUP(D150*3-2,Alapadatok!$T$4:$W$423,$AI$8+1,FALSE)) ->  | F150: =IF(D149*3>=Alapadatok!$B$21,"",E150+$F$11-$E$11) ->  | G150: =IF(OR($H$9<>"",D149*3>=Alapadatok!$B$21),"",VLOOKUP(D150,$O$11:$AA$430,12,FALSE)) ->  | H150: =IF(OR($H$9<>"",D149*3>=Alapadatok!$B$21),"",VLOOKUP(D150*3,$P$11:$AA$430,12,FALSE)) ->  | M150: =IF(D149*3>=Alapadatok!$B$21,"n",F150) -> n | N150: 12 | O150: 47 | P150: 140 | Y150: =IF(P150>Alapadatok!$B$21,0,X150*V150/1200) ->  | Z150: =IF(P150>Alapadatok!$B$21,0,IF(P150<=Alapadatok!$K$15,Y150,IF(O150=O149,Z149,PMT(W150/1200,Alapadatok!$B$21-O150*3+3,-X150)))) ->  | AC150: =IF(P150>Alapadatok!$B$21,0,Alapadatok!$B$35+AK150) -> 0 | AD150: =IF(P150>Alapadatok!$B$21,0,IF($AE$6=$AF$6,$AD$7*Alapadatok!$P$12,$AD$7*AE150))*(1+Alapadatok!$P$11) -> 44986.29779 | AE150: =Alapadatok!$P$12*(1+AI150) -> 288.0796115 | AF150: =SIN(360/Alapadatok!$J$28*P150*PI()/180) -> -0.8660254038 | AG150: =SIN(360/Alapadatok!$J$29*P150*PI()/180) -> -4.90059382e-15 | AH150: =Alapadatok!$K$30 -> 0.015 | AI150: =ABS(AF150*Alapadatok!$K$28)+(AG150*Alapadatok!$K$29)+AH150 -> 0.06696152423 | AJ150: 12 | AK150: =IF(AJ150>Alapadatok!$P$31,0,Alapadatok!$B$38+IF(Alapadatok!$D$38=Alapadatok!$O$32,Alapadatok!$B$36,0)) -> 0 | AM150: n
B151: 2 | N151: =N139+1 -> 12 | O151: 47 | P151: 141 | Y151: =IF(P151>Alapadatok!$B$21,0,X151*V151/1200) ->  | Z151: =IF(P151>Alapadatok!$B$21,0,IF(P151<=Alapadatok!$K$15,Y151,IF(O151=O150,Z150,PMT(W151/1200,Alapadatok!$B$21-O151*3+3,-X151)))) ->  | AC151: =IF(P151>Alapadatok!$B$21,0,Alapadatok!$B$35+AK151) -> 0 | AD151: =IF(P151>Alapadatok!$B$21,0,IF($AE$6=$AF$6,$AD$7*Alapadatok!$P$12,$AD$7*AE151))*(1+Alapadatok!$P$11) -> 44986.29779 | AE151: =Alapadatok!$P$12*(1+AI151) -> 297.9008956 | AF151: =SIN(360/Alapadatok!$J$28*P151*PI()/180) -> -0.9510565163 | AG151: =SIN(360/Alapadatok!$J$29*P151*PI()/180) -> 0.7818314825 | AH151: =Alapadatok!$K$30 -> 0.015 | AI151: =ABS(AF151*Alapadatok!$K$28)+(AG151*Alapadatok!$K$29)+AH151 -> 0.1033366503 | AJ151: 12 | AK151: =IF(AJ151>Alapadatok!$P$31,0,Alapadatok!$B$38+IF(Alapadatok!$D$38=Alapadatok!$O$32,Alapadatok!$B$36,0)) -> 0
N152: 12 | O152: 48 | P152: 142 | Y152: =IF(P152>Alapadatok!$B$21,0,X152*V152/1200) ->  | Z152: =IF(P152>Alapadatok!$B$21,0,IF(P152<=Alapadatok!$K$15,Y152,IF(O152=O151,Z151,PMT(W152/1200,Alapadatok!$B$21-O152*3+3,-X152)))) ->  | AC152: =IF(P152>Alapadatok!$B$21,0,Alapadatok!$B$35+AK152) -> 0 | AD152: =IF(P152>Alapadatok!$B$21,0,IF($AE$6=$AF$6,$AD$7*Alapadatok!$P$12,$AD$7*AE152))*(1+Alapadatok!$P$11) -> 44986.29779 | AE152: =Alapadatok!$P$12*(1+AI152) -> 300.6904762 | AF152: =SIN(360/Alapadatok!$J$28*P152*PI()/180) -> -0.9945218954 | AG152: =SIN(360/Alapadatok!$J$29*P152*PI()/180) -> 0.9749279122 | AH152: =Alapadatok!$K$30 -> 0.015 | AI152: =ABS(AF152*Alapadatok!$K$28)+(AG152*Alapadatok!$K$29)+AH152 -> 0.1136684302 | AJ152: 4 | AK152: =IF(AJ152>Alapadatok!$P$31,0,Alapadatok!$B$38+IF(Alapadatok!$D$38=Alapadatok!$O$32,Alapadatok!$B$36,0)) -> 0
N153: 12 | O153: 48 | P153: 143 | Y153: =IF(P153>Alapadatok!$B$21,0,X153*V153/1200) ->  | Z153: =IF(P153>Alapadatok!$B$21,0,IF(P153<=Alapadatok!$K$15,Y153,IF(O153=O152,Z152,PMT(W153/1200,Alapadatok!$B$21-O153*3+3,-X153)))) ->  | AC153: =IF(P153>Alapadatok!$B$21,0,Alapadatok!$B$35+AK153) -> 0 | AD153: =IF(P153>Alapadatok!$B$21,0,IF($AE$6=$AF$6,$AD$7*Alapadatok!$P$12,$AD$7*AE153))*(1+Alapadatok!$P$11) -> 44986.29779 | AE153: =Alapadatok!$P$12*(1+AI153) -> 294.8471991 | AF153: =SIN(360/Alapadatok!$J$28*P153*PI()/180) -> -0.9945218954 | AG153: =SIN(360/Alapadatok!$J$29*P153*PI()/180) -> 0.4338837391 | AH153: =Alapadatok!$K$30 -> 0.015 | AI153: =ABS(AF153*Alapadatok!$K$28)+(AG153*Alapadatok!$K$29)+AH153 -> 0.09202666329 | AJ153: 12 | AK153: =IF(AJ153>Alapadatok!$P$31,0,Alapadatok!$B$38+IF(Alapadatok!$D$38=Alapadatok!$O$32,Alapadatok!$B$36,0)) -> 0
N154: 12 | O154: 48 | P154: 144 | Y154: =IF(P154>Alapadatok!$B$21,0,X154*V154/1200) ->  | Z154: =IF(P154>Alapadatok!$B$21,0,IF(P154<=Alapadatok!$K$15,Y154,IF(O154=O153,Z153,PMT(W154/1200,Alapadatok!$B$21-O154*3+3,-X154)))) ->  | AC154: =IF(P154>Alapadatok!$B$21,0,Alapadatok!$B$35+AK154) -> 0 | AD154: =IF(P154>Alapadatok!$B$21,0,IF($AE$6=$AF$6,$AD$7*Alapadatok!$P$12,$AD$7*AE154))*(1+Alapadatok!$P$11) -> 44986.29779 | AE154: =Alapadatok!$P$12*(1+AI154) -> 284.7711712 | AF154: =SIN(360/Alapadatok!$J$28*P154*PI()/180) -> -0.9510565163 | AG154: =SIN(360/Alapadatok!$J$29*P154*PI()/180) -> -0.4338837391 | AH154: =Alapadatok!$K$30 -> 0.015 | AI154: =ABS(AF154*Alapadatok!$K$28)+(AG154*Alapadatok!$K$29)+AH154 -> 0.05470804141 | AJ154: 12 | AK154: =IF(AJ154>Alapadatok!$P$31,0,Alapadatok!$B$38+IF(Alapadatok!$D$38=Alapadatok!$O$32,Alapadatok!$B$36,0)) -> 0
N155: 13 | O155: 49 | P155: 145 | Y155: =IF(P155>Alapadatok!$B$21,0,X155*V155/1200) ->  | Z155: =IF(P155>Alapadatok!$B$21,0,IF(P155<=Alapadatok!$K$15,Y155,IF(O155=O154,Z154,PMT(W155/1200,Alapadatok!$B$21-O155*3+3,-X155)))) ->  | AC155: =IF(P155>Alapadatok!$B$21,0,Alapadatok!$B$35+AK155) -> 0 | AD155: =IF(P155>Alapadatok!$B$21,0,IF($AE$6=$AF$6,$AD$7*Alapadatok!$P$12,$AD$7*AE155))*(1+Alapadatok!$P$11) -> 44986.29779 | AE155: =Alapadatok!$P$12*(1+AI155) -> 277.5503901 | AF155: =SIN(360/Alapadatok!$J$28*P155*PI()/180) -> -0.8660254038 | AG155: =SIN(360/Alapadatok!$J$29*P155*PI()/180) -> -0.9749279122 | AH155: =Alapadatok!$K$30 -> 0.015 | AI155: =ABS(AF155*Alapadatok!$K$28)+(AG155*Alapadatok!$K$29)+AH155 -> 0.02796440774 | AJ155: 1 | AK155: =IF(AJ155>Alapadatok!$P$31,0,Alapadatok!$B$38+IF(Alapadatok!$D$38=Alapadatok!$O$32,Alapadatok!$B$36,0)) -> 0
N156: 13 | O156: 49 | P156: 146 | Y156: =IF(P156>Alapadatok!$B$21,0,X156*V156/1200) ->  | Z156: =IF(P156>Alapadatok!$B$21,0,IF(P156<=Alapadatok!$K$15,Y156,IF(O156=O155,Z155,PMT(W156/1200,Alapadatok!$B$21-O156*3+3,-X156)))) ->  | AC156: =IF(P156>Alapadatok!$B$21,0,Alapadatok!$B$35+AK156) -> 0 | AD156: =IF(P156>Alapadatok!$B$21,0,IF($AE$6=$AF$6,$AD$7*Alapadatok!$P$12,$AD$7*AE156))*(1+Alapadatok!$P$11) -> 44986.29779 | AE156: =Alapadatok!$P$12*(1+AI156) -> 277.6451662 | AF156: =SIN(360/Alapadatok!$J$28*P156*PI()/180) -> -0.7431448255 | AG156: =SIN(360/Alapadatok!$J$29*P156*PI()/180) -> -0.7818314825 | AH156: =Alapadatok!$K$30 -> 0.015 | AI156: =ABS(AF156*Alapadatok!$K$28)+(AG156*Alapadatok!$K$29)+AH156 -> 0.02831543023 | AJ156: 12 | AK156: =IF(AJ156>Alapadatok!$P$31,0,Alapadatok!$B$38+IF(Alapadatok!$D$38=Alapadatok!$O$32,Alapadatok!$B$36,0)) -> 0
N157: 13 | O157: 49 | P157: 147 | Y157: =IF(P157>Alapadatok!$B$21,0,X157*V157/1200) ->  | Z157: =IF(P157>Alapadatok!$B$21,0,IF(P157<=Alapadatok!$K$15,Y157,IF(O157=O156,Z156,PMT(W157/1200,Alapadatok!$B$21-O157*3+3,-X157)))) ->  | AC157: =IF(P157>Alapadatok!$B$21,0,Alapadatok!$B$35+AK157) -> 0 | AD157: =IF(P157>Alapadatok!$B$21,0,IF($AE$6=$AF$6,$AD$7*Alapadatok!$P$12,$AD$7*AE157))*(1+Alapadatok!$P$11) -> 44986.29779 | AE157: =Alapadatok!$P$12*(1+AI157) -> 283.5721211 | AF157: =SIN(360/Alapadatok!$J$28*P157*PI()/180) -> -0.5877852523 | AG157: =SIN(360/Alapadatok!$J$29*P157*PI()/180) -> -2.646190558e-14 | AH157: =Alapadatok!$K$30 -> 0.015 | AI157: =ABS(AF157*Alapadatok!$K$28)+(AG157*Alapadatok!$K$29)+AH157 -> 0.05026711514 | AJ157: 12 | AK157: =IF(AJ157>Alapadatok!$P$31,0,Alapadatok!$B$38+IF(Alapadatok!$D$38=Alapadatok!$O$32,Alapadatok!$B$36,0)) -> 0
N158: 13 | O158: 50 | P158: 148 | Y158: =IF(P158>Alapadatok!$B$21,0,X158*V158/1200) ->  | Z158: =IF(P158>Alapadatok!$B$21,0,IF(P158<=Alapadatok!$K$15,Y158,IF(O158=O157,Z157,PMT(W158/1200,Alapadatok!$B$21-O158*3+3,-X158)))) ->  | AC158: =IF(P158>Alapadatok!$B$21,0,Alapadatok!$B$35+AK158) -> 0 | AD158: =IF(P158>Alapadatok!$B$21,0,IF($AE$6=$AF$6,$AD$7*Alapadatok!$P$12,$AD$7*AE158))*(1+Alapadatok!$P$11) -> 44986.29779 | AE158: =Alapadatok!$P$12*(1+AI158) -> 289.0829136 | AF158: =SIN(360/Alapadatok!$J$28*P158*PI()/180) -> -0.4067366431 | AG158: =SIN(360/Alapadatok!$J$29*P158*PI()/180) -> 0.7818314825 | AH158: =Alapadatok!$K$30 -> 0.015 | AI158: =ABS(AF158*Alapadatok!$K$28)+(AG158*Alapadatok!$K$29)+AH158 -> 0.07067745788 | AJ158: 4 | AK158: =IF(AJ158>Alapadatok!$P$31,0,Alapadatok!$B$38+IF(Alapadatok!$D$38=Alapadatok!$O$32,Alapadatok!$B$36,0)) -> 0
N159: 13 | O159: 50 | P159: 149 | Y159: =IF(P159>Alapadatok!$B$21,0,X159*V159/1200) ->  | Z159: =IF(P159>Alapadatok!$B$21,0,IF(P159<=Alapadatok!$K$15,Y159,IF(O159=O158,Z158,PMT(W159/1200,Alapadatok!$B$21-O159*3+3,-X159)))) ->  | AC159: =IF(P159>Alapadatok!$B$21,0,Alapadatok!$B$35+AK159) -> 0 | AD159: =IF(P159>Alapadatok!$B$21,0,IF($AE$6=$AF$6,$AD$7*Alapadatok!$P$12,$AD$7*AE159))*(1+Alapadatok!$P$11) -> 44986.29779 | AE159: =Alapadatok!$P$12*(1+AI159) -> 287.9473908 | AF159: =SIN(360/Alapadatok!$J$28*P159*PI()/180) -> -0.2079116908 | AG159: =SIN(360/Alapadatok!$J$29*P159*PI()/180) -> 0.9749279122 | AH159: =Alapadatok!$K$30 -> 0.015 | AI159: =ABS(AF159*Alapadatok!$K$28)+(AG159*Alapadatok!$K$29)+AH159 -> 0.06647181794 | AJ159: 12 | AK159: =IF(AJ159>Alapadatok!$P$31,0,Alapadatok!$B$38+IF(Alapadatok!$D$38=Alapadatok!$O$32,Alapadatok!$B$36,0)) -> 0
N160: 13 | O160: 50 | P160: 150 | Y160: =IF(P160>Alapadatok!$B$21,0,X160*V160/1200) ->  | Z160: =IF(P160>Alapadatok!$B$21,0,IF(P160<=Alapadatok!$K$15,Y160,IF(O160=O159,Z159,PMT(W160/1200,Alapadatok!$B$21-O160*3+3,-X160)))) ->  | AC160: =IF(P160>Alapadatok!$B$21,0,Alapadatok!$B$35+AK160) -> 0 | AD160: =IF(P160>Alapadatok!$B$21,0,IF($AE$6=$AF$6,$AD$7*Alapadatok!$P$12,$AD$7*AE160))*(1+Alapadatok!$P$11) -> 44986.29779 | AE160: =Alapadatok!$P$12*(1+AI160) -> 278.7359444 | AF160: =SIN(360/Alapadatok!$J$28*P160*PI()/180) -> -1.225148455e-15 | AG160: =SIN(360/Alapadatok!$J$29*P160*PI()/180) -> 0.4338837391 | AH160: =Alapadatok!$K$30 -> 0.015 | AI160: =ABS(AF160*Alapadatok!$K$28)+(AG160*Alapadatok!$K$29)+AH160 -> 0.03235534956 | AJ160: 12 | AK160: =IF(AJ160>Alapadatok!$P$31,0,Alapadatok!$B$38+IF(Alapadatok!$D$38=Alapadatok!$O$32,Alapadatok!$B$36,0)) -> 0
N161: 13 | O161: 51 | P161: 151 | Y161: =IF(P161>Alapadatok!$B$21,0,X161*V161/1200) ->  | Z161: =IF(P161>Alapadatok!$B$21,0,IF(P161<=Alapadatok!$K$15,Y161,IF(O161=O160,Z160,PMT(W161/1200,Alapadatok!$B$21-O161*3+3,-X161)))) ->  | AC161: =IF(P161>Alapadatok!$B$21,0,Alapadatok!$B$35+AK161) -> 0 | AD161: =IF(P161>Alapadatok!$B$21,0,IF($AE$6=$AF$6,$AD$7*Alapadatok!$P$12,$AD$7*AE161))*(1+Alapadatok!$P$11) -> 44986.29779 | AE161: =Alapadatok!$P$12*(1+AI161) -> 272.732225 | AF161: =SIN(360/Alapadatok!$J$28*P161*PI()/180) -> 0.2079116908 | AG161: =SIN(360/Alapadatok!$J$29*P161*PI()/180) -> -0.4338837391 | AH161: =Alapadatok!$K$30 -> 0.015 | AI161: =ABS(AF161*Alapadatok!$K$28)+(AG161*Alapadatok!$K$29)+AH161 -> 0.01011935188 | AJ161: 2 | AK161: =IF(AJ161>Alapadatok!$P$31,0,Alapadatok!$B$38+IF(Alapadatok!$D$38=Alapadatok!$O$32,Alapadatok!$B$36,0)) -> 0
N162: 13 | O162: 51 | P162: 152 | Y162: =IF(P162>Alapadatok!$B$21,0,X162*V162/1200) ->  | Z162: =IF(P162>Alapadatok!$B$21,0,IF(P162<=Alapadatok!$K$15,Y162,IF(O162=O161,Z161,PMT(W162/1200,Alapadatok!$B$21-O162*3+3,-X162)))) ->  | AC162: =IF(P162>Alapadatok!$B$21,0,Alapadatok!$B$35+AK162) -> 0 | AD162: =IF(P162>Alapadatok!$B$21,0,IF($AE$6=$AF$6,$AD$7*Alapadatok!$P$12,$AD$7*AE162))*(1+Alapadatok!$P$11) -> 44986.29779 | AE162: =Alapadatok!$P$12*(1+AI162) -> 270.1099122 | AF162: =SIN(360/Alapadatok!$J$28*P162*PI()/180) -> 0.4067366431 | AG162: =SIN(360/Alapadatok!$J$29*P162*PI()/180) -> -0.9749279122 | AH162: =Alapadatok!$K$30 -> 0.015 | AI162: =ABS(AF162*Alapadatok!$K$28)+(AG162*Alapadatok!$K$29)+AH162 -> 0.0004070820973 | AJ162: 12 | AK162: =IF(AJ162>Alapadatok!$P$31,0,Alapadatok!$B$38+IF(Alapadatok!$D$38=Alapadatok!$O$32,Alapadatok!$B$36,0)) -> 0
N163: 13 | O163: 51 | P163: 153 | Y163: =IF(P163>Alapadatok!$B$21,0,X163*V163/1200) ->  | Z163: =IF(P163>Alapadatok!$B$21,0,IF(P163<=Alapadatok!$K$15,Y163,IF(O163=O162,Z162,PMT(W163/1200,Alapadatok!$B$21-O163*3+3,-X163)))) ->  | AC163: =IF(P163>Alapadatok!$B$21,0,Alapadatok!$B$35+AK163) -> 0 | AD163: =IF(P163>Alapadatok!$B$21,0,IF($AE$6=$AF$6,$AD$7*Alapadatok!$P$12,$AD$7*AE163))*(1+Alapadatok!$P$11) -> 44986.29779 | AE163: =Alapadatok!$P$12*(1+AI163) -> 275.1283411 | AF163: =SIN(360/Alapadatok!$J$28*P163*PI()/180) -> 0.5877852523 | AG163: =SIN(360/Alapadatok!$J$29*P163*PI()/180) -> -0.7818314825 | AH163: =Alapadatok!$K$30 -> 0.015 | AI163: =ABS(AF163*Alapadatok!$K$28)+(AG163*Alapadatok!$K$29)+AH163 -> 0.01899385584 | AJ163: 12 | AK163: =IF(AJ163>Alapadatok!$P$31,0,Alapadatok!$B$38+IF(Alapadatok!$D$38=Alapadatok!$O$32,Alapadatok!$B$36,0)) -> 0
N164: 13 | O164: 52 | P164: 154 | Y164: =IF(P164>Alapadatok!$B$21,0,X164*V164/1200) ->  | Z164: =IF(P164>Alapadatok!$B$21,0,IF(P164<=Alapadatok!$K$15,Y164,IF(O164=O163,Z163,PMT(W164/1200,Alapadatok!$B$21-O164*3+3,-X164)))) ->  | AC164: =IF(P164>Alapadatok!$B$21,0,Alapadatok!$B$35+AK164) -> 0 | AD164: =IF(P164>Alapadatok!$B$21,0,IF($AE$6=$AF$6,$AD$7*Alapadatok!$P$12,$AD$7*AE164))*(1+Alapadatok!$P$11) -> 44986.29779 | AE164: =Alapadatok!$P$12*(1+AI164) -> 286.0889462 | AF164: =SIN(360/Alapadatok!$J$28*P164*PI()/180) -> 0.7431448255 | AG164: =SIN(360/Alapadatok!$J$29*P164*PI()/180) -> 8.820201514e-15 | AH164: =Alapadatok!$K$30 -> 0.015 | AI164: =ABS(AF164*Alapadatok!$K$28)+(AG164*Alapadatok!$K$29)+AH164 -> 0.05958868953 | AJ164: 4 | AK164: =IF(AJ164>Alapadatok!$P$31,0,Alapadatok!$B$38+IF(Alapadatok!$D$38=Alapadatok!$O$32,Alapadatok!$B$36,0)) -> 0
N165: 13 | O165: 52 | P165: 155 | Y165: =IF(P165>Alapadatok!$B$21,0,X165*V165/1200) ->  | Z165: =IF(P165>Alapadatok!$B$21,0,IF(P165<=Alapadatok!$K$15,Y165,IF(O165=O164,Z164,PMT(W165/1200,Alapadatok!$B$21-O165*3+3,-X165)))) ->  | AC165: =IF(P165>Alapadatok!$B$21,0,Alapadatok!$B$35+AK165) -> 0 | AD165: =IF(P165>Alapadatok!$B$21,0,IF($AE$6=$AF$6,$AD$7*Alapadatok!$P$12,$AD$7*AE165))*(1+Alapadatok!$P$11) -> 44986.29779 | AE165: =Alapadatok!$P$12*(1+AI165) -> 296.5233916 | AF165: =SIN(360/Alapadatok!$J$28*P165*PI()/180) -> 0.8660254038 | AG165: =SIN(360/Alapadatok!$J$29*P165*PI()/180) -> 0.7818314825 | AH165: =Alapadatok!$K$30 -> 0.015 | AI165: =ABS(AF165*Alapadatok!$K$28)+(AG165*Alapadatok!$K$29)+AH165 -> 0.09823478353 | AJ165: 12 | AK165: =IF(AJ165>Alapadatok!$P$31,0,Alapadatok!$B$38+IF(Alapadatok!$D$38=Alapadatok!$O$32,Alapadatok!$B$36,0)) -> 0
N166: 13 | O166: 52 | P166: 156 | Y166: =IF(P166>Alapadatok!$B$21,0,X166*V166/1200) ->  | Z166: =IF(P166>Alapadatok!$B$21,0,IF(P166<=Alapadatok!$K$15,Y166,IF(O166=O165,Z165,PMT(W166/1200,Alapadatok!$B$21-O166*3+3,-X166)))) ->  | AC166: =IF(P166>Alapadatok!$B$21,0,Alapadatok!$B$35+AK166) -> 0 | AD166: =IF(P166>Alapadatok!$B$21,0,IF($AE$6=$AF$6,$AD$7*Alapadatok!$P$12,$AD$7*AE166))*(1+Alapadatok!$P$11) -> 44986.29779 | AE166: =Alapadatok!$P$12*(1+AI166) -> 299.986337 | AF166: =SIN(360/Alapadatok!$J$28*P166*PI()/180) -> 0.9510565163 | AG166: =SIN(360/Alapadatok!$J$29*P166*PI()/180) -> 0.9749279122 | AH166: =Alapadatok!$K$30 -> 0.015 | AI166: =ABS(AF166*Alapadatok!$K$28)+(AG166*Alapadatok!$K$29)+AH166 -> 0.1110605075 | AJ166: 12 | AK166: =IF(AJ166>Alapadatok!$P$31,0,Alapadatok!$B$38+IF(Alapadatok!$D$38=Alapadatok!$O$32,Alapadatok!$B$36,0)) -> 0
N167: 14 | O167: 53 | P167: 157 | Y167: =IF(P167>Alapadatok!$B$21,0,X167*V167/1200) ->  | Z167: =IF(P167>Alapadatok!$B$21,0,IF(P167<=Alapadatok!$K$15,Y167,IF(O167=O166,Z166,PMT(W167/1200,Alapadatok!$B$21-O167*3+3,-X167)))) ->  | AC167: =IF(P167>Alapadatok!$B$21,0,Alapadatok!$B$35+AK167) -> 0 | AD167: =IF(P167>Alapadatok!$B$21,0,IF($AE$6=$AF$6,$AD$7*Alapadatok!$P$12,$AD$7*AE167))*(1+Alapadatok!$P$11) -> 44986.29779 | AE167: =Alapadatok!$P$12*(1+AI167) -> 294.8471991 | AF167: =SIN(360/Alapadatok!$J$28*P167*PI()/180) -> 0.9945218954 | AG167: =SIN(360/Alapadatok!$J$29*P167*PI()/180) -> 0.4338837391 | AH167: =Alapadatok!$K$30 -> 0.015 | AI167: =ABS(AF167*Alapadatok!$K$28)+(AG167*Alapadatok!$K$29)+AH167 -> 0.09202666329 | AJ167: 1 | AK167: =IF(AJ167>Alapadatok!$P$31,0,Alapadatok!$B$38+IF(Alapadatok!$D$38=Alapadatok!$O$32,Alapadatok!$B$36,0)) -> 0
N168: 14 | O168: 53 | P168: 158 | Y168: =IF(P168>Alapadatok!$B$21,0,X168*V168/1200) ->  | Z168: =IF(P168>Alapadatok!$B$21,0,IF(P168<=Alapadatok!$K$15,Y168,IF(O168=O167,Z167,PMT(W168/1200,Alapadatok!$B$21-O168*3+3,-X168)))) ->  | AC168: =IF(P168>Alapadatok!$B$21,0,Alapadatok!$B$35+AK168) -> 0 | AD168: =IF(P168>Alapadatok!$B$21,0,IF($AE$6=$AF$6,$AD$7*Alapadatok!$P$12,$AD$7*AE168))*(1+Alapadatok!$P$11) -> 44986.29779 | AE168: =Alapadatok!$P$12*(1+AI168) -> 285.4753103 | AF168: =SIN(360/Alapadatok!$J$28*P168*PI()/180) -> 0.9945218954 | AG168: =SIN(360/Alapadatok!$J$29*P168*PI()/180) -> -0.4338837391 | AH168: =Alapadatok!$K$30 -> 0.015 | AI168: =ABS(AF168*Alapadatok!$K$28)+(AG168*Alapadatok!$K$29)+AH168 -> 0.05731596416 | AJ168: 12 | AK168: =IF(AJ168>Alapadatok!$P$31,0,Alapadatok!$B$38+IF(Alapadatok!$D$38=Alapadatok!$O$32,Alapadatok!$B$36,0)) -> 0
N169: 14 | O169: 53 | P169: 159 | Y169: =IF(P169>Alapadatok!$B$21,0,X169*V169/1200) ->  | Z169: =IF(P169>Alapadatok!$B$21,0,IF(P169<=Alapadatok!$K$15,Y169,IF(O169=O168,Z168,PMT(W169/1200,Alapadatok!$B$21-O169*3+3,-X169)))) ->  | AC169: =IF(P169>Alapadatok!$B$21,0,Alapadatok!$B$35+AK169) -> 0 | AD169: =IF(P169>Alapadatok!$B$21,0,IF($AE$6=$AF$6,$AD$7*Alapadatok!$P$12,$AD$7*AE169))*(1+Alapadatok!$P$11) -> 44986.29779 | AE169: =Alapadatok!$P$12*(1+AI169) -> 278.9278941 | AF169: =SIN(360/Alapadatok!$J$28*P169*PI()/180) -> 0.9510565163 | AG169: =SIN(360/Alapadatok!$J$29*P169*PI()/180) -> -0.9749279122 | AH169: =Alapadatok!$K$30 -> 0.015 | AI169: =ABS(AF169*Alapadatok!$K$28)+(AG169*Alapadatok!$K$29)+AH169 -> 0.03306627449 | AJ169: 12 | AK169: =IF(AJ169>Alapadatok!$P$31,0,Alapadatok!$B$38+IF(Alapadatok!$D$38=Alapadatok!$O$32,Alapadatok!$B$36,0)) -> 0
N170: 14 | O170: 54 | P170: 160 | Y170: =IF(P170>Alapadatok!$B$21,0,X170*V170/1200) ->  | Z170: =IF(P170>Alapadatok!$B$21,0,IF(P170<=Alapadatok!$K$15,Y170,IF(O170=O169,Z169,PMT(W170/1200,Alapadatok!$B$21-O170*3+3,-X170)))) ->  | AC170: =IF(P170>Alapadatok!$B$21,0,Alapadatok!$B$35+AK170) -> 0 | AD170: =IF(P170>Alapadatok!$B$21,0,IF($AE$6=$AF$6,$AD$7*Alapadatok!$P$12,$AD$7*AE170))*(1+Alapadatok!$P$11) -> 44986.29779 | AE170: =Alapadatok!$P$12*(1+AI170) -> 279.6358315 | AF170: =SIN(360/Alapadatok!$J$28*P170*PI()/180) -> 0.8660254038 | AG170: =SIN(360/Alapadatok!$J$29*P170*PI()/180) -> -0.7818314825 | AH170: =Alapadatok!$K$30 -> 0.015 | AI170: =ABS(AF170*Alapadatok!$K$28)+(AG170*Alapadatok!$K$29)+AH170 -> 0.03568826493 | AJ170: 4 | AK170: =IF(AJ170>Alapadatok!$P$31,0,Alapadatok!$B$38+IF(Alapadatok!$D$38=Alapadatok!$O$32,Alapadatok!$B$36,0)) -> 0
N171: 14 | O171: 54 | P171: 161 | Y171: =IF(P171>Alapadatok!$B$21,0,X171*V171/1200) ->  | Z171: =IF(P171>Alapadatok!$B$21,0,IF(P171<=Alapadatok!$K$15,Y171,IF(O171=O170,Z170,PMT(W171/1200,Alapadatok!$B$21-O171*3+3,-X171)))) ->  | AC171: =IF(P171>Alapadatok!$B$21,0,Alapadatok!$B$35+AK171) -> 0 | AD171: =IF(P171>Alapadatok!$B$21,0,IF($AE$6=$AF$6,$AD$7*Alapadatok!$P$12,$AD$7*AE171))*(1+Alapadatok!$P$11) -> 44986.29779 | AE171: =Alapadatok!$P$12*(1+AI171) -> 286.0889462 | AF171: =SIN(360/Alapadatok!$J$28*P171*PI()/180) -> 0.7431448255 | AG171: =SIN(360/Alapadatok!$J$29*P171*PI()/180) -> -1.274111025e-14 | AH171: =Alapadatok!$K$30 -> 0.015 | AI171: =ABS(AF171*Alapadatok!$K$28)+(AG171*Alapadatok!$K$29)+AH171 -> 0.05958868953 | AJ171: 12 | AK171: =IF(AJ171>Alapadatok!$P$31,0,Alapadatok!$B$38+IF(Alapadatok!$D$38=Alapadatok!$O$32,Alapadatok!$B$36,0)) -> 0
N172: 14 | O172: 54 | P172: 162 | Y172: =IF(P172>Alapadatok!$B$21,0,X172*V172/1200) ->  | Z172: =IF(P172>Alapadatok!$B$21,0,IF(P172<=Alapadatok!$K$15,Y172,IF(O172=O171,Z171,PMT(W172/1200,Alapadatok!$B$21-O172*3+3,-X172)))) ->  | AC172: =IF(P172>Alapadatok!$B$21,0,Alapadatok!$B$35+AK172) -> 0 | AD172: =IF(P172>Alapadatok!$B$21,0,IF($AE$6=$AF$6,$AD$7*Alapadatok!$P$12,$AD$7*AE172))*(1+Alapadatok!$P$11) -> 44986.29779 | AE172: =Alapadatok!$P$12*(1+AI172) -> 292.0159011 | AF172: =SIN(360/Alapadatok!$J$28*P172*PI()/180) -> 0.5877852523 | AG172: =SIN(360/Alapadatok!$J$29*P172*PI()/180) -> 0.7818314825 | AH172: =Alapadatok!$K$30 -> 0.015 | AI172: =ABS(AF172*Alapadatok!$K$28)+(AG172*Alapadatok!$K$29)+AH172 -> 0.08154037444 | AJ172: 12 | AK172: =IF(AJ172>Alapadatok!$P$31,0,Alapadatok!$B$38+IF(Alapadatok!$D$38=Alapadatok!$O$32,Alapadatok!$B$36,0)) -> 0
N173: 14 | O173: 55 | P173: 163 | Y173: =IF(P173>Alapadatok!$B$21,0,X173*V173/1200) ->  | Z173: =IF(P173>Alapadatok!$B$21,0,IF(P173<=Alapadatok!$K$15,Y173,IF(O173=O172,Z172,PMT(W173/1200,Alapadatok!$B$21-O173*3+3,-X173)))) ->  | AC173: =IF(P173>Alapadatok!$B$21,0,Alapadatok!$B$35+AK173) -> 0 | AD173: =IF(P173>Alapadatok!$B$21,0,IF($AE$6=$AF$6,$AD$7*Alapadatok!$P$12,$AD$7*AE173))*(1+Alapadatok!$P$11) -> 44986.29779 | AE173: =Alapadatok!$P$12*(1+AI173) -> 291.1683551 | AF173: =SIN(360/Alapadatok!$J$28*P173*PI()/180) -> 0.4067366431 | AG173: =SIN(360/Alapadatok!$J$29*P173*PI()/180) -> 0.9749279122 | AH173: =Alapadatok!$K$30 -> 0.015 | AI173: =ABS(AF173*Alapadatok!$K$28)+(AG173*Alapadatok!$K$29)+AH173 -> 0.07840131507 | AJ173: 2 | AK173: =IF(AJ173>Alapadatok!$P$31,0,Alapadatok!$B$38+IF(Alapadatok!$D$38=Alapadatok!$O$32,Alapadatok!$B$36,0)) -> 0
N174: 14 | O174: 55 | P174: 164 | Y174: =IF(P174>Alapadatok!$B$21,0,X174*V174/1200) ->  | Z174: =IF(P174>Alapadatok!$B$21,0,IF(P174<=Alapadatok!$K$15,Y174,IF(O174=O173,Z173,PMT(W174/1200,Alapadatok!$B$21-O174*3+3,-X174)))) ->  | AC174: =IF(P174>Alapadatok!$B$21,0,Alapadatok!$B$35+AK174) -> 0 | AD174: =IF(P174>Alapadatok!$B$21,0,IF($AE$6=$AF$6,$AD$7*Alapadatok!$P$12,$AD$7*AE174))*(1+Alapadatok!$P$11) -> 44986.29779 | AE174: =Alapadatok!$P$12*(1+AI174) -> 282.1041138 | AF174: =SIN(360/Alapadatok!$J$28*P174*PI()/180) -> 0.2079116908 | AG174: =SIN(360/Alapadatok!$J$29*P174*PI()/180) -> 0.4338837391 | AH174: =Alapadatok!$K$30 -> 0.015 | AI174: =ABS(AF174*Alapadatok!$K$28)+(AG174*Alapadatok!$K$29)+AH174 -> 0.04483005101 | AJ174: 12 | AK174: =IF(AJ174>Alapadatok!$P$31,0,Alapadatok!$B$38+IF(Alapadatok!$D$38=Alapadatok!$O$32,Alapadatok!$B$36,0)) -> 0
N175: 14 | O175: 55 | P175: 165 | Y175: =IF(P175>Alapadatok!$B$21,0,X175*V175/1200) ->  | Z175: =IF(P175>Alapadatok!$B$21,0,IF(P175<=Alapadatok!$K$15,Y175,IF(O175=O174,Z174,PMT(W175/1200,Alapadatok!$B$21-O175*3+3,-X175)))) ->  | AC175: =IF(P175>Alapadatok!$B$21,0,Alapadatok!$B$35+AK175) -> 0 | AD175: =IF(P175>Alapadatok!$B$21,0,IF($AE$6=$AF$6,$AD$7*Alapadatok!$P$12,$AD$7*AE175))*(1+Alapadatok!$P$11) -> 44986.29779 | AE175: =Alapadatok!$P$12*(1+AI175) -> 269.3640556 | AF175: =SIN(360/Alapadatok!$J$28*P175*PI()/180) -> -2.205050378e-15 | AG175: =SIN(360/Alapadatok!$J$29*P175*PI()/180) -> -0.4338837391 | AH175: =Alapadatok!$K$30 -> 0.015 | AI175: =ABS(AF175*Alapadatok!$K$28)+(AG175*Alapadatok!$K$29)+AH175 -> -0.002355349565 | AJ175: 12 | AK175: =IF(AJ175>Alapadatok!$P$31,0,Alapadatok!$B$38+IF(Alapadatok!$D$38=Alapadatok!$O$32,Alapadatok!$B$36,0)) -> 0
N176: 14 | O176: 56 | P176: 166 | Y176: =IF(P176>Alapadatok!$B$21,0,X176*V176/1200) ->  | Z176: =IF(P176>Alapadatok!$B$21,0,IF(P176<=Alapadatok!$K$15,Y176,IF(O176=O175,Z175,PMT(W176/1200,Alapadatok!$B$21-O176*3+3,-X176)))) ->  | AC176: =IF(P176>Alapadatok!$B$21,0,Alapadatok!$B$35+AK176) -> 0 | AD176: =IF(P176>Alapadatok!$B$21,0,IF($AE$6=$AF$6,$AD$7*Alapadatok!$P$12,$AD$7*AE176))*(1+Alapadatok!$P$11) -> 44986.29779 | AE176: =Alapadatok!$P$12*(1+AI176) -> 266.8889479 | AF176: =SIN(360/Alapadatok!$J$28*P176*PI()/180) -> -0.2079116908 | AG176: =SIN(360/Alapadatok!$J$29*P176*PI()/180) -> -0.9749279122 | AH176: =Alapadatok!$K$30 -> 0.015 | AI176: =ABS(AF176*Alapadatok!$K$28)+(AG176*Alapadatok!$K$29)+AH176 -> -0.01152241504 | AJ176: 4 | AK176: =IF(AJ176>Alapadatok!$P$31,0,Alapadatok!$B$38+IF(Alapadatok!$D$38=Alapadatok!$O$32,Alapadatok!$B$36,0)) -> 0
N177: 14 | O177: 56 | P177: 167 | Y177: =IF(P177>Alapadatok!$B$21,0,X177*V177/1200) ->  | Z177: =IF(P177>Alapadatok!$B$21,0,IF(P177<=Alapadatok!$K$15,Y177,IF(O177=O176,Z176,PMT(W177/1200,Alapadatok!$B$21-O177*3+3,-X177)))) ->  | AC177: =IF(P177>Alapadatok!$B$21,0,Alapadatok!$B$35+AK177) -> 0 | AD177: =IF(P177>Alapadatok!$B$21,0,IF($AE$6=$AF$6,$AD$7*Alapadatok!$P$12,$AD$7*AE177))*(1+Alapadatok!$P$11) -> 44986.29779 | AE177: =Alapadatok!$P$12*(1+AI177) -> 272.1953536 | AF177: =SIN(360/Alapadatok!$J$28*P177*PI()/180) -> -0.4067366431 | AG177: =SIN(360/Alapadatok!$J$29*P177*PI()/180) -> -0.7818314825 | AH177: =Alapadatok!$K$30 -> 0.015 | AI177: =ABS(AF177*Alapadatok!$K$28)+(AG177*Alapadatok!$K$29)+AH177 -> 0.008130939286 | AJ177: 12 | AK177: =IF(AJ177>Alapadatok!$P$31,0,Alapadatok!$B$38+IF(Alapadatok!$D$38=Alapadatok!$O$32,Alapadatok!$B$36,0)) -> 0
N178: 14 | O178: 56 | P178: 168 | Y178: =IF(P178>Alapadatok!$B$21,0,X178*V178/1200) ->  | Z178: =IF(P178>Alapadatok!$B$21,0,IF(P178<=Alapadatok!$K$15,Y178,IF(O178=O177,Z177,PMT(W178/1200,Alapadatok!$B$21-O178*3+3,-X178)))) ->  | AC178: =IF(P178>Alapadatok!$B$21,0,Alapadatok!$B$35+AK178) -> 0 | AD178: =IF(P178>Alapadatok!$B$21,0,IF($AE$6=$AF$6,$AD$7*Alapadatok!$P$12,$AD$7*AE178))*(1+Alapadatok!$P$11) -> 44986.29779 | AE178: =Alapadatok!$P$12*(1+AI178) -> 283.5721211 | AF178: =SIN(360/Alapadatok!$J$28*P178*PI()/180) -> -0.5877852523 | AG178: =SIN(360/Alapadatok!$J$29*P178*PI()/180) -> -5.880712584e-15 | AH178: =Alapadatok!$K$30 -> 0.015 | AI178: =ABS(AF178*Alapadatok!$K$28)+(AG178*Alapadatok!$K$29)+AH178 -> 0.05026711514 | AJ178: 12 | AK178: =IF(AJ178>Alapadatok!$P$31,0,Alapadatok!$B$38+IF(Alapadatok!$D$38=Alapadatok!$O$32,Alapadatok!$B$36,0)) -> 0
N179: 15 | O179: 57 | P179: 169 | Y179: =IF(P179>Alapadatok!$B$21,0,X179*V179/1200) ->  | Z179: =IF(P179>Alapadatok!$B$21,0,IF(P179<=Alapadatok!$K$15,Y179,IF(O179=O178,Z178,PMT(W179/1200,Alapadatok!$B$21-O179*3+3,-X179)))) ->  | AC179: =IF(P179>Alapadatok!$B$21,0,Alapadatok!$B$35+AK179) -> 0 | AD179: =IF(P179>Alapadatok!$B$21,0,IF($AE$6=$AF$6,$AD$7*Alapadatok!$P$12,$AD$7*AE179))*(1+Alapadatok!$P$11) -> 44986.29779 | AE179: =Alapadatok!$P$12*(1+AI179) -> 294.5327262 | AF179: =SIN(360/Alapadatok!$J$28*P179*PI()/180) -> -0.7431448255 | AG179: =SIN(360/Alapadatok!$J$29*P179*PI()/180) -> 0.7818314825 | AH179: =Alapadatok!$K$30 -> 0.015 | AI179: =ABS(AF179*Alapadatok!$K$28)+(AG179*Alapadatok!$K$29)+AH179 -> 0.09086194883 | AJ179: 1 | AK179: =IF(AJ179>Alapadatok!$P$31,0,Alapadatok!$B$38+IF(Alapadatok!$D$38=Alapadatok!$O$32,Alapadatok!$B$36,0)) -> 0
N180: 15 | O180: 57 | P180: 170 | Y180: =IF(P180>Alapadatok!$B$21,0,X180*V180/1200) ->  | Z180: =IF(P180>Alapadatok!$B$21,0,IF(P180<=Alapadatok!$K$15,Y180,IF(O180=O179,Z179,PMT(W180/1200,Alapadatok!$B$21-O180*3+3,-X180)))) ->  | AC180: =IF(P180>Alapadatok!$B$21,0,Alapadatok!$B$35+AK180) -> 0 | AD180: =IF(P180>Alapadatok!$B$21,0,IF($AE$6=$AF$6,$AD$7*Alapadatok!$P$12,$AD$7*AE180))*(1+Alapadatok!$P$11) -> 44986.29779 | AE180: =Alapadatok!$P$12*(1+AI180) -> 298.608833 | AF180: =SIN(360/Alapadatok!$J$28*P180*PI()/180) -> -0.8660254038 | AG180: =SIN(360/Alapadatok!$J$29*P180*PI()/180) -> 0.9749279122 | AH180: =Alapadatok!$K$30 -> 0.015 | AI180: =ABS(AF180*Alapadatok!$K$28)+(AG180*Alapadatok!$K$29)+AH180 -> 0.1059586407 | AJ180: 12 | AK180: =IF(AJ180>Alapadatok!$P$31,0,Alapadatok!$B$38+IF(Alapadatok!$D$38=Alapadatok!$O$32,Alapadatok!$B$36,0)) -> 0
N181: 15 | O181: 57 | P181: 171 | Y181: =IF(P181>Alapadatok!$B$21,0,X181*V181/1200) ->  | Z181: =IF(P181>Alapadatok!$B$21,0,IF(P181<=Alapadatok!$K$15,Y181,IF(O181=O180,Z180,PMT(W181/1200,Alapadatok!$B$21-O181*3+3,-X181)))) ->  | AC181: =IF(P181>Alapadatok!$B$21,0,Alapadatok!$B$35+AK181) -> 0 | AD181: =IF(P181>Alapadatok!$B$21,0,IF($AE$6=$AF$6,$AD$7*Alapadatok!$P$12,$AD$7*AE181))*(1+Alapadatok!$P$11) -> 44986.29779 | AE181: =Alapadatok!$P$12*(1+AI181) -> 294.1430599 | AF181: =SIN(360/Alapadatok!$J$28*P181*PI()/180) -> -0.9510565163 | AG181: =SIN(360/Alapadatok!$J$29*P181*PI()/180) -> 0.4338837391 | AH181: =Alapadatok!$K$30 -> 0.015 | AI181: =ABS(AF181*Alapadatok!$K$28)+(AG181*Alapadatok!$K$29)+AH181 -> 0.08941874054 | AJ181: 12 | AK181: =IF(AJ181>Alapadatok!$P$31,0,Alapadatok!$B$38+IF(Alapadatok!$D$38=Alapadatok!$O$32,Alapadatok!$B$36,0)) -> 0
N182: 15 | O182: 58 | P182: 172 | Y182: =IF(P182>Alapadatok!$B$21,0,X182*V182/1200) ->  | Z182: =IF(P182>Alapadatok!$B$21,0,IF(P182<=Alapadatok!$K$15,Y182,IF(O182=O181,Z181,PMT(W182/1200,Alapadatok!$B$21-O182*3+3,-X182)))) ->  | AC182: =IF(P182>Alapadatok!$B$21,0,Alapadatok!$B$35+AK182) -> 0 | AD182: =IF(P182>Alapadatok!$B$21,0,IF($AE$6=$AF$6,$AD$7*Alapadatok!$P$12,$AD$7*AE182))*(1+Alapadatok!$P$11) -> 44986.29779 | AE182: =Alapadatok!$P$12*(1+AI182) -> 285.4753103 | AF182: =SIN(360/Alapadatok!$J$28*P182*PI()/180) -> -0.9945218954 | AG182: =SIN(360/Alapadatok!$J$29*P182*PI()/180) -> -0.4338837391 | AH182: =Alapadatok!$K$30 -> 0.015 | AI182: =ABS(AF182*Alapadatok!$K$28)+(AG182*Alapadatok!$K$29)+AH182 -> 0.05731596416 | AJ182: 4 | AK182: =IF(AJ182>Alapadatok!$P$31,0,Alapadatok!$B$38+IF(Alapadatok!$D$38=Alapadatok!$O$32,Alapadatok!$B$36,0)) -> 0
N183: 15 | O183: 58 | P183: 173 | Y183: =IF(P183>Alapadatok!$B$21,0,X183*V183/1200) ->  | Z183: =IF(P183>Alapadatok!$B$21,0,IF(P183<=Alapadatok!$K$15,Y183,IF(O183=O182,Z182,PMT(W183/1200,Alapadatok!$B$21-O183*3+3,-X183)))) ->  | AC183: =IF(P183>Alapadatok!$B$21,0,Alapadatok!$B$35+AK183) -> 0 | AD183: =IF(P183>Alapadatok!$B$21,0,IF($AE$6=$AF$6,$AD$7*Alapadatok!$P$12,$AD$7*AE183))*(1+Alapadatok!$P$11) -> 44986.29779 | AE183: =Alapadatok!$P$12*(1+AI183) -> 279.6320333 | AF183: =SIN(360/Alapadatok!$J$28*P183*PI()/180) -> -0.9945218954 | AG183: =SIN(360/Alapadatok!$J$29*P183*PI()/180) -> -0.9749279122 | AH183: =Alapadatok!$K$30 -> 0.015 | AI183: =ABS(AF183*Alapadatok!$K$28)+(AG183*Alapadatok!$K$29)+AH183 -> 0.03567419723 | AJ183: 12 | AK183: =IF(AJ183>Alapadatok!$P$31,0,Alapadatok!$B$38+IF(Alapadatok!$D$38=Alapadatok!$O$32,Alapadatok!$B$36,0)) -> 0
N184: 15 | O184: 58 | P184: 174 | Y184: =IF(P184>Alapadatok!$B$21,0,X184*V184/1200) ->  | Z184: =IF(P184>Alapadatok!$B$21,0,IF(P184<=Alapadatok!$K$15,Y184,IF(O184=O183,Z183,PMT(W184/1200,Alapadatok!$B$21-O184*3+3,-X184)))) ->  | AC184: =IF(P184>Alapadatok!$B$21,0,Alapadatok!$B$35+AK184) -> 0 | AD184: =IF(P184>Alapadatok!$B$21,0,IF($AE$6=$AF$6,$AD$7*Alapadatok!$P$12,$AD$7*AE184))*(1+Alapadatok!$P$11) -> 44986.29779 | AE184: =Alapadatok!$P$12*(1+AI184) -> 281.0133356 | AF184: =SIN(360/Alapadatok!$J$28*P184*PI()/180) -> -0.9510565163 | AG184: =SIN(360/Alapadatok!$J$29*P184*PI()/180) -> -0.7818314825 | AH184: =Alapadatok!$K$30 -> 0.015 | AI184: =ABS(AF184*Alapadatok!$K$28)+(AG184*Alapadatok!$K$29)+AH184 -> 0.04079013168 | AJ184: 12 | AK184: =IF(AJ184>Alapadatok!$P$31,0,Alapadatok!$B$38+IF(Alapadatok!$D$38=Alapadatok!$O$32,Alapadatok!$B$36,0)) -> 0
N185: 15 | O185: 59 | P185: 175 | Y185: =IF(P185>Alapadatok!$B$21,0,X185*V185/1200) ->  | Z185: =IF(P185>Alapadatok!$B$21,0,IF(P185<=Alapadatok!$K$15,Y185,IF(O185=O184,Z184,PMT(W185/1200,Alapadatok!$B$21-O185*3+3,-X185)))) ->  | AC185: =IF(P185>Alapadatok!$B$21,0,Alapadatok!$B$35+AK185) -> 0 | AD185: =IF(P185>Alapadatok!$B$21,0,IF($AE$6=$AF$6,$AD$7*Alapadatok!$P$12,$AD$7*AE185))*(1+Alapadatok!$P$11) -> 44986.29779 | AE185: =Alapadatok!$P$12*(1+AI185) -> 288.0796115 | AF185: =SIN(360/Alapadatok!$J$28*P185*PI()/180) -> -0.8660254038 | AG185: =SIN(360/Alapadatok!$J$29*P185*PI()/180) -> 9.796850831e-16 | AH185: =Alapadatok!$K$30 -> 0.015 | AI185: =ABS(AF185*Alapadatok!$K$28)+(AG185*Alapadatok!$K$29)+AH185 -> 0.06696152423 | AJ185: 2 | AK185: =IF(AJ185>Alapadatok!$P$31,0,Alapadatok!$B$38+IF(Alapadatok!$D$38=Alapadatok!$O$32,Alapadatok!$B$36,0)) -> 0
N186: 15 | O186: 59 | P186: 176 | Y186: =IF(P186>Alapadatok!$B$21,0,X186*V186/1200) ->  | Z186: =IF(P186>Alapadatok!$B$21,0,IF(P186<=Alapadatok!$K$15,Y186,IF(O186=O185,Z185,PMT(W186/1200,Alapadatok!$B$21-O186*3+3,-X186)))) ->  | AC186: =IF(P186>Alapadatok!$B$21,0,Alapadatok!$B$35+AK186) -> 0 | AD186: =IF(P186>Alapadatok!$B$21,0,IF($AE$6=$AF$6,$AD$7*Alapadatok!$P$12,$AD$7*AE186))*(1+Alapadatok!$P$11) -> 44986.29779 | AE186: =Alapadatok!$P$12*(1+AI186) -> 294.5327262 | AF186: =SIN(360/Alapadatok!$J$28*P186*PI()/180) -> -0.7431448255 | AG186: =SIN(360/Alapadatok!$J$29*P186*PI()/180) -> 0.7818314825 | AH186: =Alapadatok!$K$30 -> 0.015 | AI186: =ABS(AF186*Alapadatok!$K$28)+(AG186*Alapadatok!$K$29)+AH186 -> 0.09086194883 | AJ186: 12 | AK186: =IF(AJ186>Alapadatok!$P$31,0,Alapadatok!$B$38+IF(Alapadatok!$D$38=Alapadatok!$O$32,Alapadatok!$B$36,0)) -> 0
N187: 15 | O187: 59 | P187: 177 | Y187: =IF(P187>Alapadatok!$B$21,0,X187*V187/1200) ->  | Z187: =IF(P187>Alapadatok!$B$21,0,IF(P187<=Alapadatok!$K$15,Y187,IF(O187=O186,Z186,PMT(W187/1200,Alapadatok!$B$21-O187*3+3,-X187)))) ->  | AC187: =IF(P187>Alapadatok!$B$21,0,Alapadatok!$B$35+AK187) -> 0 | AD187: =IF(P187>Alapadatok!$B$21,0,IF($AE$6=$AF$6,$AD$7*Alapadatok!$P$12,$AD$7*AE187))*(1+Alapadatok!$P$11) -> 44986.29779 | AE187: =Alapadatok!$P$12*(1+AI187) -> 294.1013425 | AF187: =SIN(360/Alapadatok!$J$28*P187*PI()/180) -> -0.5877852523 | AG187: =SIN(360/Alapadatok!$J$29*P187*PI()/180) -> 0.9749279122 | AH187: =Alapadatok!$K$30 -> 0.015 | AI187: =ABS(AF187*Alapadatok!$K$28)+(AG187*Alapadatok!$K$29)+AH187 -> 0.08926423162 | AJ187: 12 | AK187: =IF(AJ187>Alapadatok!$P$31,0,Alapadatok!$B$38+IF(Alapadatok!$D$38=Alapadatok!$O$32,Alapadatok!$B$36,0)) -> 0
N188: 15 | O188: 60 | P188: 178 | Y188: =IF(P188>Alapadatok!$B$21,0,X188*V188/1200) ->  | Z188: =IF(P188>Alapadatok!$B$21,0,IF(P188<=Alapadatok!$K$15,Y188,IF(O188=O187,Z187,PMT(W188/1200,Alapadatok!$B$21-O188*3+3,-X188)))) ->  | AC188: =IF(P188>Alapadatok!$B$21,0,Alapadatok!$B$35+AK188) -> 0 | AD188: =IF(P188>Alapadatok!$B$21,0,IF($AE$6=$AF$6,$AD$7*Alapadatok!$P$12,$AD$7*AE188))*(1+Alapadatok!$P$11) -> 44986.29779 | AE188: =Alapadatok!$P$12*(1+AI188) -> 285.325078 | AF188: =SIN(360/Alapadatok!$J$28*P188*PI()/180) -> -0.4067366431 | AG188: =SIN(360/Alapadatok!$J$29*P188*PI()/180) -> 0.4338837391 | AH188: =Alapadatok!$K$30 -> 0.015 | AI188: =ABS(AF188*Alapadatok!$K$28)+(AG188*Alapadatok!$K$29)+AH188 -> 0.05675954815 | AJ188: 4 | AK188: =IF(AJ188>Alapadatok!$P$31,0,Alapadatok!$B$38+IF(Alapadatok!$D$38=Alapadatok!$O$32,Alapadatok!$B$36,0)) -> 0
N189: 15 | O189: 60 | P189: 179 | Y189: =IF(P189>Alapadatok!$B$21,0,X189*V189/1200) ->  | Z189: =IF(P189>Alapadatok!$B$21,0,IF(P189<=Alapadatok!$K$15,Y189,IF(O189=O188,Z188,PMT(W189/1200,Alapadatok!$B$21-O189*3+3,-X189)))) ->  | AC189: =IF(P189>Alapadatok!$B$21,0,Alapadatok!$B$35+AK189) -> 0 | AD189: =IF(P189>Alapadatok!$B$21,0,IF($AE$6=$AF$6,$AD$7*Alapadatok!$P$12,$AD$7*AE189))*(1+Alapadatok!$P$11) -> 44986.29779 | AE189: =Alapadatok!$P$12*(1+AI189) -> 272.732225 | AF189: =SIN(360/Alapadatok!$J$28*P189*PI()/180) -> -0.2079116908 | AG189: =SIN(360/Alapadatok!$J$29*P189*PI()/180) -> -0.4338837391 | AH189: =Alapadatok!$K$30 -> 0.015 | AI189: =ABS(AF189*Alapadatok!$K$28)+(AG189*Alapadatok!$K$29)+AH189 -> 0.01011935188 | AJ189: 12 | AK189: =IF(AJ189>Alapadatok!$P$31,0,Alapadatok!$B$38+IF(Alapadatok!$D$38=Alapadatok!$O$32,Alapadatok!$B$36,0)) -> 0
N190: 15 | O190: 60 | P190: 180 | Y190: =IF(P190>Alapadatok!$B$21,0,X190*V190/1200) ->  | Z190: =IF(P190>Alapadatok!$B$21,0,IF(P190<=Alapadatok!$K$15,Y190,IF(O190=O189,Z189,PMT(W190/1200,Alapadatok!$B$21-O190*3+3,-X190)))) ->  | AC190: =IF(P190>Alapadatok!$B$21,0,Alapadatok!$B$35+AK190) -> 0 | AD190: =IF(P190>Alapadatok!$B$21,0,IF($AE$6=$AF$6,$AD$7*Alapadatok!$P$12,$AD$7*AE190))*(1+Alapadatok!$P$11) -> 44986.29779 | AE190: =Alapadatok!$P$12*(1+AI190) -> 263.5207785 | AF190: =SIN(360/Alapadatok!$J$28*P190*PI()/180) -> -1.470178146e-15 | AG190: =SIN(360/Alapadatok!$J$29*P190*PI()/180) -> -0.9749279122 | AH190: =Alapadatok!$K$30 -> 0.015 | AI190: =ABS(AF190*Alapadatok!$K$28)+(AG190*Alapadatok!$K$29)+AH190 -> -0.02399711649 | AJ190: 12 | AK190: =IF(AJ190>Alapadatok!$P$31,0,Alapadatok!$B$38+IF(Alapadatok!$D$38=Alapadatok!$O$32,Alapadatok!$B$36,0)) -> 0
N191: 16 | O191: 61 | P191: 181 | Y191: =IF(P191>Alapadatok!$B$21,0,X191*V191/1200) ->  | Z191: =IF(P191>Alapadatok!$B$21,0,IF(P191<=Alapadatok!$K$15,Y191,IF(O191=O190,Z190,PMT(W191/1200,Alapadatok!$B$21-O191*3+3,-X191)))) ->  | AC191: =IF(P191>Alapadatok!$B$21,0,Alapadatok!$B$35+AK191) -> 0 | AD191: =IF(P191>Alapadatok!$B$21,0,IF($AE$6=$AF$6,$AD$7*Alapadatok!$P$12,$AD$7*AE191))*(1+Alapadatok!$P$11) -> 44986.29779 | AE191: =Alapadatok!$P$12*(1+AI191) -> 268.9743894 | AF191: =SIN(360/Alapadatok!$J$28*P191*PI()/180) -> 0.2079116908 | AG191: =SIN(360/Alapadatok!$J$29*P191*PI()/180) -> -0.7818314825 | AH191: =Alapadatok!$K$30 -> 0.015 | AI191: =ABS(AF191*Alapadatok!$K$28)+(AG191*Alapadatok!$K$29)+AH191 -> -0.00379855785 | AJ191: 1 | AK191: =IF(AJ191>Alapadatok!$P$31,0,Alapadatok!$B$38+IF(Alapadatok!$D$38=Alapadatok!$O$32,Alapadatok!$B$36,0)) -> 0
N192: 16 | O192: 61 | P192: 182 | Y192: =IF(P192>Alapadatok!$B$21,0,X192*V192/1200) ->  | Z192: =IF(P192>Alapadatok!$B$21,0,IF(P192<=Alapadatok!$K$15,Y192,IF(O192=O191,Z191,PMT(W192/1200,Alapadatok!$B$21-O192*3+3,-X192)))) ->  | AC192: =IF(P192>Alapadatok!$B$21,0,Alapadatok!$B$35+AK192) -> 0 | AD192: =IF(P192>Alapadatok!$B$21,0,IF($AE$6=$AF$6,$AD$7*Alapadatok!$P$12,$AD$7*AE192))*(1+Alapadatok!$P$11) -> 44986.29779 | AE192: =Alapadatok!$P$12*(1+AI192) -> 280.6391336 | AF192: =SIN(360/Alapadatok!$J$28*P192*PI()/180) -> 0.4067366431 | AG192: =SIN(360/Alapadatok!$J$29*P192*PI()/180) -> 7.84008275e-15 | AH192: =Alapadatok!$K$30 -> 0.015 | AI192: =ABS(AF192*Alapadatok!$K$28)+(AG192*Alapadatok!$K$29)+AH192 -> 0.03940419858 | AJ192: 12 | AK192: =IF(AJ192>Alapadatok!$P$31,0,Alapadatok!$B$38+IF(Alapadatok!$D$38=Alapadatok!$O$32,Alapadatok!$B$36,0)) -> 0
N193: 16 | O193: 61 | P193: 183 | Y193: =IF(P193>Alapadatok!$B$21,0,X193*V193/1200) ->  | Z193: =IF(P193>Alapadatok!$B$21,0,IF(P193<=Alapadatok!$K$15,Y193,IF(O193=O192,Z192,PMT(W193/1200,Alapadatok!$B$21-O193*3+3,-X193)))) ->  | AC193: =IF(P193>Alapadatok!$B$21,0,Alapadatok!$B$35+AK193) -> 0 | AD193: =IF(P193>Alapadatok!$B$21,0,IF($AE$6=$AF$6,$AD$7*Alapadatok!$P$12,$AD$7*AE193))*(1+Alapadatok!$P$11) -> 44986.29779 | AE193: =Alapadatok!$P$12*(1+AI193) -> 292.0159011 | AF193: =SIN(360/Alapadatok!$J$28*P193*PI()/180) -> 0.5877852523 | AG193: =SIN(360/Alapadatok!$J$29*P193*PI()/180) -> 0.7818314825 | AH193: =Alapadatok!$K$30 -> 0.015 | AI193: =ABS(AF193*Alapadatok!$K$28)+(AG193*Alapadatok!$K$29)+AH193 -> 0.08154037444 | AJ193: 12 | AK193: =IF(AJ193>Alapadatok!$P$31,0,Alapadatok!$B$38+IF(Alapadatok!$D$38=Alapadatok!$O$32,Alapadatok!$B$36,0)) -> 0
N194: 16 | O194: 62 | P194: 184 | Y194: =IF(P194>Alapadatok!$B$21,0,X194*V194/1200) ->  | Z194: =IF(P194>Alapadatok!$B$21,0,IF(P194<=Alapadatok!$K$15,Y194,IF(O194=O193,Z193,PMT(W194/1200,Alapadatok!$B$21-O194*3+3,-X194)))) ->  | AC194: =IF(P194>Alapadatok!$B$21,0,Alapadatok!$B$35+AK194) -> 0 | AD194: =IF(P194>Alapadatok!$B$21,0,IF($AE$6=$AF$6,$AD$7*Alapadatok!$P$12,$AD$7*AE194))*(1+Alapadatok!$P$11) -> 44986.29779 | AE194: =Alapadatok!$P$12*(1+AI194) -> 296.6181676 | AF194: =SIN(360/Alapadatok!$J$28*P194*PI()/180) -> 0.7431448255 | AG194: =SIN(360/Alapadatok!$J$29*P194*PI()/180) -> 0.9749279122 | AH194: =Alapadatok!$K$30 -> 0.015 | AI194: =ABS(AF194*Alapadatok!$K$28)+(AG194*Alapadatok!$K$29)+AH194 -> 0.09858580602 | AJ194: 4 | AK194: =IF(AJ194>Alapadatok!$P$31,0,Alapadatok!$B$38+IF(Alapadatok!$D$38=Alapadatok!$O$32,Alapadatok!$B$36,0)) -> 0
N195: 16 | O195: 62 | P195: 185 | Y195: =IF(P195>Alapadatok!$B$21,0,X195*V195/1200) ->  | Z195: =IF(P195>Alapadatok!$B$21,0,IF(P195<=Alapadatok!$K$15,Y195,IF(O195=O194,Z194,PMT(W195/1200,Alapadatok!$B$21-O195*3+3,-X195)))) ->  | AC195: =IF(P195>Alapadatok!$B$21,0,Alapadatok!$B$35+AK195) -> 0 | AD195: =IF(P195>Alapadatok!$B$21,0,IF($AE$6=$AF$6,$AD$7*Alapadatok!$P$12,$AD$7*AE195))*(1+Alapadatok!$P$11) -> 44986.29779 | AE195: =Alapadatok!$P$12*(1+AI195) -> 292.7655559 | AF195: =SIN(360/Alapadatok!$J$28*P195*PI()/180) -> 0.8660254038 | AG195: =SIN(360/Alapadatok!$J$29*P195*PI()/180) -> 0.4338837391 | AH195: =Alapadatok!$K$30 -> 0.015 | AI195: =ABS(AF195*Alapadatok!$K$28)+(AG195*Alapadatok!$K$29)+AH195 -> 0.08431687379 | AJ195: 12 | AK195: =IF(AJ195>Alapadatok!$P$31,0,Alapadatok!$B$38+IF(Alapadatok!$D$38=Alapadatok!$O$32,Alapadatok!$B$36,0)) -> 0
N196: 16 | O196: 62 | P196: 186 | Y196: =IF(P196>Alapadatok!$B$21,0,X196*V196/1200) ->  | Z196: =IF(P196>Alapadatok!$B$21,0,IF(P196<=Alapadatok!$K$15,Y196,IF(O196=O195,Z195,PMT(W196/1200,Alapadatok!$B$21-O196*3+3,-X196)))) ->  | AC196: =IF(P196>Alapadatok!$B$21,0,Alapadatok!$B$35+AK196) -> 0 | AD196: =IF(P196>Alapadatok!$B$21,0,IF($AE$6=$AF$6,$AD$7*Alapadatok!$P$12,$AD$7*AE196))*(1+Alapadatok!$P$11) -> 44986.29779 | AE196: =Alapadatok!$P$12*(1+AI196) -> 284.7711712 | AF196: =SIN(360/Alapadatok!$J$28*P196*PI()/180) -> 0.9510565163 | AG196: =SIN(360/Alapadatok!$J$29*P196*PI()/180) -> -0.4338837391 | AH196: =Alapadatok!$K$30 -> 0.015 | AI196: =ABS(AF196*Alapadatok!$K$28)+(AG196*Alapadatok!$K$29)+AH196 -> 0.05470804141 | AJ196: 12 | AK196: =IF(AJ196>Alapadatok!$P$31,0,Alapadatok!$B$38+IF(Alapadatok!$D$38=Alapadatok!$O$32,Alapadatok!$B$36,0)) -> 0
N197: 16 | O197: 63 | P197: 187 | Y197: =IF(P197>Alapadatok!$B$21,0,X197*V197/1200) ->  | Z197: =IF(P197>Alapadatok!$B$21,0,IF(P197<=Alapadatok!$K$15,Y197,IF(O197=O196,Z196,PMT(W197/1200,Alapadatok!$B$21-O197*3+3,-X197)))) ->  | AC197: =IF(P197>Alapadatok!$B$21,0,Alapadatok!$B$35+AK197) -> 0 | AD197: =IF(P197>Alapadatok!$B$21,0,IF($AE$6=$AF$6,$AD$7*Alapadatok!$P$12,$AD$7*AE197))*(1+Alapadatok!$P$11) -> 44986.29779 | AE197: =Alapadatok!$P$12*(1+AI197) -> 279.6320333 | AF197: =SIN(360/Alapadatok!$J$28*P197*PI()/180) -> 0.9945218954 | AG197: =SIN(360/Alapadatok!$J$29*P197*PI()/180) -> -0.9749279122 | AH197: =Alapadatok!$K$30 -> 0.015 | AI197: =ABS(AF197*Alapadatok!$K$28)+(AG197*Alapadatok!$K$29)+AH197 -> 0.03567419723 | AJ197: 2 | AK197: =IF(AJ197>Alapadatok!$P$31,0,Alapadatok!$B$38+IF(Alapadatok!$D$38=Alapadatok!$O$32,Alapadatok!$B$36,0)) -> 0
N198: 16 | O198: 63 | P198: 188 | Y198: =IF(P198>Alapadatok!$B$21,0,X198*V198/1200) ->  | Z198: =IF(P198>Alapadatok!$B$21,0,IF(P198<=Alapadatok!$K$15,Y198,IF(O198=O197,Z197,PMT(W198/1200,Alapadatok!$B$21-O198*3+3,-X198)))) ->  | AC198: =IF(P198>Alapadatok!$B$21,0,Alapadatok!$B$35+AK198) -> 0 | AD198: =IF(P198>Alapadatok!$B$21,0,IF($AE$6=$AF$6,$AD$7*Alapadatok!$P$12,$AD$7*AE198))*(1+Alapadatok!$P$11) -> 44986.29779 | AE198: =Alapadatok!$P$12*(1+AI198) -> 281.7174747 | AF198: =SIN(360/Alapadatok!$J$28*P198*PI()/180) -> 0.9945218954 | AG198: =SIN(360/Alapadatok!$J$29*P198*PI()/180) -> -0.7818314825 | AH198: =Alapadatok!$K$30 -> 0.015 | AI198: =ABS(AF198*Alapadatok!$K$28)+(AG198*Alapadatok!$K$29)+AH198 -> 0.04339805442 | AJ198: 12 | AK198: =IF(AJ198>Alapadatok!$P$31,0,Alapadatok!$B$38+IF(Alapadatok!$D$38=Alapadatok!$O$32,Alapadatok!$B$36,0)) -> 0
N199: 16 | O199: 63 | P199: 189 | Y199: =IF(P199>Alapadatok!$B$21,0,X199*V199/1200) ->  | Z199: =IF(P199>Alapadatok!$B$21,0,IF(P199<=Alapadatok!$K$15,Y199,IF(O199=O198,Z198,PMT(W199/1200,Alapadatok!$B$21-O199*3+3,-X199)))) ->  | AC199: =IF(P199>Alapadatok!$B$21,0,Alapadatok!$B$35+AK199) -> 0 | AD199: =IF(P199>Alapadatok!$B$21,0,IF($AE$6=$AF$6,$AD$7*Alapadatok!$P$12,$AD$7*AE199))*(1+Alapadatok!$P$11) -> 44986.29779 | AE199: =Alapadatok!$P$12*(1+AI199) -> 289.4571156 | AF199: =SIN(360/Alapadatok!$J$28*P199*PI()/180) -> 0.9510565163 | AG199: =SIN(360/Alapadatok!$J$29*P199*PI()/180) -> -1.372122901e-14 | AH199: =Alapadatok!$K$30 -> 0.015 | AI199: =ABS(AF199*Alapadatok!$K$28)+(AG199*Alapadatok!$K$29)+AH199 -> 0.07206339098 | AJ199: 12 | AK199: =IF(AJ199>Alapadatok!$P$31,0,Alapadatok!$B$38+IF(Alapadatok!$D$38=Alapadatok!$O$32,Alapadatok!$B$36,0)) -> 0
N200: 16 | O200: 64 | P200: 190 | Y200: =IF(P200>Alapadatok!$B$21,0,X200*V200/1200) ->  | Z200: =IF(P200>Alapadatok!$B$21,0,IF(P200<=Alapadatok!$K$15,Y200,IF(O200=O199,Z199,PMT(W200/1200,Alapadatok!$B$21-O200*3+3,-X200)))) ->  | AC200: =IF(P200>Alapadatok!$B$21,0,Alapadatok!$B$35+AK200) -> 0 | AD200: =IF(P200>Alapadatok!$B$21,0,IF($AE$6=$AF$6,$AD$7*Alapadatok!$P$12,$AD$7*AE200))*(1+Alapadatok!$P$11) -> 44986.29779 | AE200: =Alapadatok!$P$12*(1+AI200) -> 296.5233916 | AF200: =SIN(360/Alapadatok!$J$28*P200*PI()/180) -> 0.8660254038 | AG200: =SIN(360/Alapadatok!$J$29*P200*PI()/180) -> 0.7818314825 | AH200: =Alapadatok!$K$30 -> 0.015 | AI200: =ABS(AF200*Alapadatok!$K$28)+(AG200*Alapadatok!$K$29)+AH200 -> 0.09823478353 | AJ200: 4 | AK200: =IF(AJ200>Alapadatok!$P$31,0,Alapadatok!$B$38+IF(Alapadatok!$D$38=Alapadatok!$O$32,Alapadatok!$B$36,0)) -> 0
N201: 16 | O201: 64 | P201: 191 | Y201: =IF(P201>Alapadatok!$B$21,0,X201*V201/1200) ->  | Z201: =IF(P201>Alapadatok!$B$21,0,IF(P201<=Alapadatok!$K$15,Y201,IF(O201=O200,Z200,PMT(W201/1200,Alapadatok!$B$21-O201*3+3,-X201)))) ->  | AC201: =IF(P201>Alapadatok!$B$21,0,Alapadatok!$B$35+AK201) -> 0 | AD201: =IF(P201>Alapadatok!$B$21,0,IF($AE$6=$AF$6,$AD$7*Alapadatok!$P$12,$AD$7*AE201))*(1+Alapadatok!$P$11) -> 44986.29779 | AE201: =Alapadatok!$P$12*(1+AI201) -> 296.6181676 | AF201: =SIN(360/Alapadatok!$J$28*P201*PI()/180) -> 0.7431448255 | AG201: =SIN(360/Alapadatok!$J$29*P201*PI()/180) -> 0.9749279122 | AH201: =Alapadatok!$K$30 -> 0.015 | AI201: =ABS(AF201*Alapadatok!$K$28)+(AG201*Alapadatok!$K$29)+AH201 -> 0.09858580602 | AJ201: 12 | AK201: =IF(AJ201>Alapadatok!$P$31,0,Alapadatok!$B$38+IF(Alapadatok!$D$38=Alapadatok!$O$32,Alapadatok!$B$36,0)) -> 0
N202: 16 | O202: 64 | P202: 192 | Y202: =IF(P202>Alapadatok!$B$21,0,X202*V202/1200) ->  | Z202: =IF(P202>Alapadatok!$B$21,0,IF(P202<=Alapadatok!$K$15,Y202,IF(O202=O201,Z201,PMT(W202/1200,Alapadatok!$B$21-O202*3+3,-X202)))) ->  | AC202: =IF(P202>Alapadatok!$B$21,0,Alapadatok!$B$35+AK202) -> 0 | AD202: =IF(P202>Alapadatok!$B$21,0,IF($AE$6=$AF$6,$AD$7*Alapadatok!$P$12,$AD$7*AE202))*(1+Alapadatok!$P$11) -> 44986.29779 | AE202: =Alapadatok!$P$12*(1+AI202) -> 288.2580655 | AF202: =SIN(360/Alapadatok!$J$28*P202*PI()/180) -> 0.5877852523 | AG202: =SIN(360/Alapadatok!$J$29*P202*PI()/180) -> 0.4338837391 | AH202: =Alapadatok!$K$30 -> 0.015 | AI202: =ABS(AF202*Alapadatok!$K$28)+(AG202*Alapadatok!$K$29)+AH202 -> 0.0676224647 | AJ202: 12 | AK202: =IF(AJ202>Alapadatok!$P$31,0,Alapadatok!$B$38+IF(Alapadatok!$D$38=Alapadatok!$O$32,Alapadatok!$B$36,0)) -> 0
N203: 17 | O203: 65 | P203: 193 | U203: =+Q203-$I$6 ->  | Y203: =IF(P203>Alapadatok!$B$21,0,X203*V203/1200) ->  | Z203: =IF(P203>Alapadatok!$B$21,0,IF(P203<=Alapadatok!$K$15,Y203,IF(O203=O202,Z202,PMT(W203/1200,Alapadatok!$B$21-O203*3+3,-X203)))) ->  | AA203: =X203+Y203-Z203 ->  | AC203: =IF(P203>Alapadatok!$B$21,0,Alapadatok!$B$35+AK203) -> 0 | AD203: =IF(P203>Alapadatok!$B$21,0,IF($AE$6=$AF$6,$AD$7*Alapadatok!$P$12,$AD$7*AE203))*(1+Alapadatok!$P$11) -> 44986.29779 | AE203: =Alapadatok!$P$12*(1+AI203) -> 275.9531892 | AF203: =SIN(360/Alapadatok!$J$28*P203*PI()/180) -> 0.4067366431 | AG203: =SIN(360/Alapadatok!$J$29*P203*PI()/180) -> -0.4338837391 | AH203: =Alapadatok!$K$30 -> 0.015 | AI203: =ABS(AF203*Alapadatok!$K$28)+(AG203*Alapadatok!$K$29)+AH203 -> 0.02204884902 | AJ203: 1 | AK203: =IF(AJ203>Alapadatok!$P$31,0,Alapadatok!$B$38+IF(Alapadatok!$D$38=Alapadatok!$O$32,Alapadatok!$B$36,0)) -> 0
... 227 more rows

Sheet Indikatív
C1: Indikatív és kockázatfeltáró nyomtatás nyomógombbal. | O1: EPSON Stylus DX7000F Series a(z) Ne03: kimeneten
A2: I. Általános tájékoztatás a jelzáloghitelekről
A3: 1. A hitelezővel kapcsolatos adatok: 1.1 a hitelező neve (cégneve) és címe (székhelye): K&H Bank Zrt., H-1095 Budapest, Lechner Ödön fasor 9.
A4: 1.2 a hitelközvetítő neve (cégneve) és címe (székhelye): | E4: =IF('Kezdő oldal'!B1="","",CONCATENATE('Kezdő oldal'!B1,", ",'Kezdő oldal'!B2)) -> 
A16: II. Személyes tájékoztatás a jelzáloghitelről
A17: Jelen tájékoztató nem minősül jogilag kötelező érvényű ajánlatnak.
A18: A tájékoztatóban szereplő adatokat a K&H Bank Zrt. jóhiszeműen nyújtja és azon ajánlatát tükrözik, amelyet a rendelkezésre álló információk alapján a jelenlegi piaci feltételek mellett tenne. Az adatok a piaci feltételek változása esetén megváltozhatnak.
A19: A tájékoztató nem kötelezi a K&H Bank Zrt.-t a hitel jóváhagyására.
A20: 1. Hitelező | B20: a hitelező neve (cégneve): K&H Bank Zrt. címe: H-1095 Budapest, Lechner Ödön fasor 9. internet címe: www.kh.hu | L20: 2 | M20: 3 | N20: 4 | O20: 5 | P20: 6
A21: 2. A termék leírása | B21: =CONCATENATE(L30,M30) -> K&H üzleti feltételű lakáshitelt lakó- vagy üdülő ingatlan vásárlásra, - építésre, - bővítésre, - korszerűsítésre, - felújításra illetve lakáscélú hitelek refinanszírozására nyújtjuk. | L21: név | M21: hitelcél | N21: biztosíték | O21: türelmivel | P21: no türelmi
B22: =CONCATENATE(L30,N30) -> K&H üzleti feltételű lakáshitelt esetén az ingatlanon jelzálogjog kerül bejegyzésre a K&H Bank Zrt. javára. | K22: Szenzációs lakáshitel | L22: K&H szenzációs forinthitelt ingatlanfedezettel lakás célra | M22: lakó- vagy üdülő ingatlan vásárlásra, - építésre, - bővítésre, - korszerűsítésre, - felújításra illetve lakáscélú hitelek refinanszírozására nyújtjuk. | N22: esetén az ingatlanon jelzálogjog kerül bejegyzésre a K&H Bank Zrt. javára. | O22: esetén a konstrukció paramétereinek megfelelő türelmi idő alatt nem kell tőkét törleszteni, hanem kizárólag kamatot kell megfizetni. Ezt követően a tőketartozást a Bank havonta a K&H Banknál vezetett K&H forint lakossági bankszámláról szedi be a kamattal együttesen. | P22: esetén a tőketartozást a Bank havonta a K&H Banknál vezetett K&H forint lakossági bankszámláról szedi be a kamattal együttesen.
B23: =CONCATENATE(Indikatív!L30,Indikatív!O30) -> K&H üzleti feltételű lakáshitelt esetén a konstrukció paramétereinek megfelelő türelmi idő alatt nem kell tőkét törleszteni, hanem kizárólag kamatot kell megfizetni. Ezt követően a tőketartozást a Bank havonta a K&H Banknál vezetett K&H forint lakossági bankszámláról szedi be a kamattal együttesen. | K23: Lakáshitel | L23: K&H üzleti feltételű lakáshitelt | M23: lakó- vagy üdülő ingatlan vásárlásra, - építésre, - bővítésre, - korszerűsítésre, - felújításra illetve lakáscélú hitelek refinanszírozására nyújtjuk. | N23: esetén az ingatlanon jelzálogjog kerül bejegyzésre a K&H Bank Zrt. javára. | O23: esetén a konstrukció paramétereinek megfelelő türelmi idő alatt nem kell tőkét törleszteni, hanem kizárólag kamatot kell megfizetni. Ezt követően a tőketartozást a Bank havonta a K&H Banknál vezetett K&H forint lakossági bankszámláról szedi be a kamattal együttesen. | P23: esetén a tőketartozást a Bank havonta a K&H Banknál vezetett K&H forint lakossági bankszámláról szedi be a kamattal együttesen.
B24: =IF(Alapadatok!B2=Alapadatok!I45,"","A hitel felvétele nem függ harmadik fél által vállalt kezességtől.") -> A hitel felvétele nem függ harmadik fél által vállalt kezességtől. | K24: Otthon-korszerűsítő hitel | L24: K&H otthon-korszerűsítő hitelt | M24: lakásának korszerűsítésével kapcsolatos kiadások finanszírozására, illetve építési telek vagy egyéb ingatlan vásárlására nyújtjuk. | N24: esetén az ingatlanon jelzálogjog kerül bejegyzésre a K&H Bank Zrt. javára. | O24: esetén a konstrukció paramétereinek megfelelő türelmi idő alatt nem kell tőkét törleszteni, hanem kizárólag kamatot kell megfizetni. Ezt követően a tőketartozást a Bank havonta a K&H Banknál vezetett K&H forint lakossági bankszámláról szedi be a kamattal együttesen. | P24: esetén a tőketartozást a Bank havonta a K&H Banknál vezetett K&H forint lakossági bankszámláról szedi be a kamattal együttesen.
B25: A fogyasztó által biztosítandó önerő mértéke a körültekintő lakossági hitelezés feltételeiről és a hitelképesség vizsgálatáról szóló a 361/2009. kormányrendelet alapján forint alapú hitel esetén legalább 20%. Amennyiben a fedezetként felajánlott ingatlanon kívül/helyett további, a K&H Bank által elfogadható fedezet kerül felajánlásra, úgy az önerő mértéke 0%-ig is csökkenthető. | K25: Személyi hitel | L25: K&H ingatlanfedezetű személyi hitelt | M25: szabadon felhasználhatja bármilyen célra. | N25: esetén az ingatlanon jelzálogjog kerül bejegyzésre a K&H Bank Zrt. javára. | O25: esetén a konstrukció paramétereinek megfelelő türelmi idő alatt nem kell tőkét törleszteni, hanem kizárólag kamatot kell megfizetni. Ezt követően a tőketartozást a Bank havonta a K&H Banknál vezetett K&H forint lakossági bankszámláról szedi be a kamattal együttesen. | P25: esetén a tőketartozást a Bank havonta a K&H Banknál vezetett K&H forint lakossági bankszámláról szedi be a kamattal együttesen.
A26: 3. A kölcsön ügyleti kamata | B26: =IF(K36=1,P32,P31) -> Kölcsön referencia kamatlába: a kamatperiódus kezdetét megelőző hónap utolsó munkanapja előtt 2 nappal érvényes 12 havi BUBOR. | K26: Lakáshitel - lakás-előtakarékossággal | L26: K&H üzleti feltételű lakáshitel – lakás-előtakarékossággal | M26: lakó- vagy üdülő ingatlan vásárlásra, - építésre, - bővítésre, - korszerűsítésre, - felújításra nyújtjuk. | N26: esetén az ingatlanon jelzálogjog kerül bejegyzésre a K&H Bank Zrt. javára. | O26: Amennyiben Ön a kölcsönszerződés megkötése időpontjában rendelkezik lakás-előtakarékossági szerződéssel, amely kiutalási időszakának vége nem későbbi, mint a kölcsönszerződés megkötése időpontjától számított 5 év, és ezt bemutatja a Bank részére, a kölcsön t örlesztése során a Bank egyedi tőketörlesztési ütemezést biztosít arra tekintettel, hogy szándékai szerint a szerződéskötéskor bemutatott lakáselőtakarékossági szerződéséből származó megtakarítást a kölcsön teljes vagy részleges rendezésére kívánja fordítani. Ennek megfelelően Önt a futamidő első 5 évében – erre irányuló kifejezett kérelem hiányában - tőketörlesztési kötelezettség nem terheli, ezen időszak alatt csak a kölcsön kamatait fizeti (Türelmi időszak). A kölcsön annuitásossá alakítását a futamidő első 5 évében Ön is bármikor kérheti, de legkésőbb az első kamatfizetés esedékességétől számított 60. hónap elteltével a kölcsön annuitásossá alakul, és az egyes törlesztőrészletekben innentől kezdve a kölcsön tőkerészét is törlesztenie kell. A szerződéskötéskor bemutatott lakás-előtakarékossági szerződésből származó megtakarítási összeget a kölcsönszerződés futamideje alatt az első alkalommal díjmentesen a kölcsön előtörlesztésére fordíthatja, amelynek folytán a tőketörlesztést is tartalmazó törlesztőrészletek összege jelentősen csökkenthet.
B27: =IF(K36=1,P33,P37) -> A Bank tájékoztatja az Adóst, hogy az irányadó referenciakamat mértéke 2015.2 hónapra vonatozóan 2,11%. Kölcsön referencia kamatlábának mindenkori aktuális mértéke megtekinthető a Bank honlapján (www.kh.hu).
B28: =IF(K36=1,P36,P38) -> 
B29: =IF(K36=1,P35,"") -> A Kölcsön ügyleti kamata a 12 havi BUBOR mértékét legfeljebb az aktuális Hirdetményben meghatározott eltéréssel haladja meg.
B30: =+P44 -> Kamatperiódus: tizenkettő (12) hónap kivéve az első kamatperiódust, amely a Folyósítás Napjától a 12. esedékességig tart. A Kamatperiódus a Kölcsön ügyleti kamatára vonatkozó azon időszak, amely alatt az ügyleti kamat mértéke állandó. Kivételt képez ez alól, ha az Adós elveszíti vagy visszanyeri valamely kamatkedvezményre való jogosultságát, amely következtében az ügyleti kamat a jogosultság megszűnését, illetőleg visszanyerését követő esedékességtől módosulhat. A Kamatperiódus megváltoztatása a mindenkori hatályos Hirdetményben rögzített határidők és feltételek teljesülése mellett, az Adós által benyújtott módosítási igény alapján lehetséges. | K30: =Alapadatok!B2 -> Lakáshitel | L30: =VLOOKUP(Alapadatok!$B$2,Indikatív!$K$22:$P$28,L20,FALSE) -> K&H üzleti feltételű lakáshitelt | M30: =VLOOKUP(Alapadatok!$B$2,Indikatív!$K$22:$P$28,M20,FALSE) -> lakó- vagy üdülő ingatlan vásárlásra, - építésre, - bővítésre, - korszerűsítésre, - felújításra illetve lakáscélú hitelek refinanszírozására nyújtjuk. | N30: =VLOOKUP(Alapadatok!$B$2,Indikatív!$K$22:$P$28,N20,FALSE) -> esetén az ingatlanon jelzálogjog kerül bejegyzésre a K&H Bank Zrt. javára. | O30: =VLOOKUP(Alapadatok!$B$2,Indikatív!$K$22:$P$28,O20,FALSE) -> esetén a konstrukció paramétereinek megfelelő türelmi idő alatt nem kell tőkét törleszteni, hanem kizárólag kamatot kell megfizetni. Ezt követően a tőketartozást a Bank havonta a K&H Banknál vezetett K&H forint lakossági bankszámláról szedi be a kamattal együttesen. | P30: =VLOOKUP(Alapadatok!$B$2,Indikatív!$K$22:$P$28,P20,FALSE) -> esetén a tőketartozást a Bank havonta a K&H Banknál vezetett K&H forint lakossági bankszámláról szedi be a kamattal együttesen.
